Workbook

Sheet Admin
A1: Model: ETYS Spatial Model
A2: Display of spatial data for SO Strategy customers, provided by National Grid's Energy Insights team
B5: Key
B6: Data comes from another sheet or goes to another sheet | C6: Blue Text
B7: Calculation/text/label | C7: Black Text
B8: Key output | C8: Purple Background
B9: Pasted / Manually input | C9: Yellow Background
B10: Key data / warning | C10: Red Text
B11: Input pending | C11: Orange background
B12: Admin | C12: Black Tab
B13: Data | C13: Green Tab
B14: Data (NEEDS UPDATE FOR FES 2017) | C14: Yellow Tab
B15: Calculations | C15: Grey Tab
B16: Outputs | C16: Purple Tab
B18: Update Log
B19: Activities completed on the workbook | C19: Worksheet | D19: Date | E19: Who | F19: Version
B20: Provide Minor FLOP level data for GB. | C20: All | D20: 2017-10-11 | E20: KO/AG/RN | F20: vPublic

Sheet Controls
A1: Updated by Janet Coley, 7/5/16
A8: Look-up Control
A10: 1 | B10: Year | C10: 2015/16 | D10: 2016/17 | E10: 2017/18 | F10: 2018/19 | G10: 2019/20 | H10: 2020/21 | I10: 2021/22 | J10: 2022/23 | K10: 2023/24 | L10: 2024/25 | M10: 2025/26 | N10: 2026/27 | O10: 2027/28 | P10: 2028/29 | Q10: 2029/30 | R10: 2030/31 | S10: 2031/32 | T10: 2032/33 | U10: 2033/34 | V10: 2034/35 | W10: 2035/36 | X10: 2036/37 | Y10: 2037/38 | Z10: 2038/39 | AA10: 2039/40 | AB10: 2040/41
A11: 2 | B11: Column | C11: 1 | D11: 2 | E11: 3 | F11: 4 | G11: 5 | H11: 6 | I11: 7 | J11: 8 | K11: 9 | L11: 10 | M11: 11 | N11: 12 | O11: 13 | P11: 14 | Q11: 15 | R11: 16 | S11: 17 | T11: 18 | U11: 19 | V11: 20 | W11: 21 | X11: 22 | Y11: 23 | Z11: 24 | AA11: 25 | AB11: 26
A12: 3 | B12: Original lookups | C12: 5 | D12: 6 | E12: 7 | F12: 8 | G12: 9 | H12: 10 | I12: 11 | J12: 12 | K12: 13 | L12: 14 | M12: 15 | N12: 16 | O12: 17 | P12: 18 | Q12: 19 | R12: 20 | S12: 21 | T12: 22 | U12: 23 | V12: 24 | W12: 25 | X12: 26 | Y12: 27 | Z12: 28 | AA12: 29 | AB12: 30
B15: TO | D15: Major FLOP Zones | F15: Scenarios | H15: Study Periods
B16: NGET | D16: A | F16: Two Degrees | H16: Winter Peak
B17: SPT | D17: B | F17: Consumer Power | H17: Summer Minimum AM
B18: SHET | D18: C | F18: Slow Progression | H18: Summer Minimum PM
D19: D | F19: Steady State
D20: E
D21: F
D22: G
D23: H
D24: J
D25: K
D26: L
D27: M
D28: N
D29: P
D30: Q
D31: R
D32: S
D33: T
B37: ACTIVE LOOK-UPS
B38: Worksheet [Active] Look-Up: these change according to Scenario and Study Period selected
C39: ='MAIN DATA'!A5 -> Winter Peak | D39: ='MAIN DATA'!A4 -> Two Degrees | E39: =HLOOKUP(D39,$C$47:$F$48,2,FALSE) -> 2
D40: Data Range
B41: Active | D41: =VLOOKUP($C$39,$B$49:$F$51,$E$39,FALSE) -> $A$400:$AG$491 | F41: ="'"& $B41 & "'!"&$D41 -> 'Active'!$A$400:$AG$491
B42: Reactive inc LV Gain | D42: =VLOOKUP($C$39,$B$49:$F$51,$E$39,FALSE) -> $A$400:$AG$491 | F42: ="'"& $B42 & "'!"&$D42 -> 'Reactive inc LV Gain'!$A$400:$AG$491
B43: Reactive INC LV Gain | D43: =VLOOKUP($C$39,$B$49:$F$51,$E$39,FALSE) -> $A$400:$AG$491 | F43: ="'"& $B43 & "'!"&$D43 -> 'Reactive INC LV Gain'!$A$400:$AG$491
B44: LV Gain | D44: =VLOOKUP($C$39,$B$49:$F$51,$E$39,FALSE) -> $A$400:$AG$491 | F44: ="'"& $B44 & "'!"&$D44 -> 'LV Gain'!$A$400:$AG$491
C47: =$F$16 -> Two Degrees | D47: =$F$18 -> Slow Progression | E47: =$F$19 -> Steady State | F47: =$F$17 -> Consumer Power
B48: 1 | C48: 2 | D48: 3 | E48: 4 | F48: 5
B49: =$H$16 -> Winter Peak | C49: ="$A$400:$AG$491" -> $A$400:$AG$491 | D49: ="$A$682:$AG$773" -> $A$682:$AG$773 | E49: ="$A$964:$AG$1055" -> $A$964:$AG$1055 | F49: ="$A$1246:$AG$1337" -> $A$1246:$AG$1337
B50: =$H$17 -> Summer Minimum AM | C50: ="$A$494:$AG$585" -> $A$494:$AG$585 | D50: ="$A$776:$AG$867" -> $A$776:$AG$867 | E50: ="$A$1058:$AG$1149" -> $A$1058:$AG$1149 | F50: ="$A$1340:$AG$1431" -> $A$1340:$AG$1431
B51: =$H$18 -> Summer Minimum PM | C51: ="$A$588:$AG$679" -> $A$588:$AG$679 | D51: ="$A$870:$AG$961" -> $A$870:$AG$961 | E51: ="$A$1152:$AG$1243" -> $A$1152:$AG$1243 | F51: ="$A$1434:$AG$1525" -> $A$1434:$AG$1525

Sheet MAIN DATA
A1: Please select Scenario, Study Period and Analysis Year in the Orange Cells below
A3: Drop-Down Options:
A4: Two Degrees | B4: Scenario | U4: ETYS Wind Load Factor | V4: ETYS Wind Load Factor
A5: Winter Peak | B5: Study Period | G5: ="Column assumes " & U$5 *100 & "% Wind" -> Column assumes 70% Wind | H5: ="Column assumes " & V$5 *100 & "% Wind" -> Column assumes 0% Wind | U5: =IF(A5="Winter Peak",0.7,IF(A5="Summer Minimum AM",0.47,IF(A5="Summer Minimum PM",0.39,"Err"))) -> 0.7 | V5: 0
A6: 2016/17 | B6: Analysis Year | E6: Original VLOOKUP | F6: =HLOOKUP(A6,Controls!$C$10:$AB$12,Controls!$A$12,FALSE) -> 6 | U6: Linked to P(Economy Net Demand) | V6: Linked to P(Security Net Demand)
E7: Column Index | F7: =HLOOKUP(A6,Controls!$C$10:$AB$11,Controls!$A$11,FALSE) -> 2 | I7: Transmission Storage | K7: Embedded Data (DG + Sub1MW)
A8: Wind Factor Option: see U5:V5 | E8: =LEFT(A4,1)&MID(A4,FIND( " ", A4 )+1,1) -> TD | F8: =MID(A6,3,2)+0 -> 16 | Q8: =IF(A5="Winter Peak",0,IF(A5="Summer Minimum AM",1,IF(A5="Summer Minimum PM",2,"Err"))) -> 0
A10: Total: NGET | D10: =SUM(D17:D98) -> 55475.12067 | E10: =SUM(E17:E98) -> 4090.134344 | F10: =SUM(F17:F98) -> 11108.14818 | G10: 45960.28247 | H10: 48717.35567 | I10: 0 | J10: 2004 | K10: 833.317 | L10: 11018.99 | M10: 3938.676 | N10: 147.865 | O10: 7820.39 | U10: =SUM(U17:U98) -> 9514.8382 | V10: =SUM(V17:V98) -> 6757.765
A11: Total: SHET | D11: =SUM(D108:D112) -> 1362.1 | E11: =SUM(E108:E112) -> 275.5994061 | G11: =SUM(G108:G112) -> 741.9835 | H11: 1087.458 | I11: 0 | J11: 300 | K11: 4.884 | L11: 126.854 | M11: 493.535 | N11: 268.597 | O11: 113.152 | U11: =SUM(U108:U112) -> 620.1165 | V11: =SUM(V108:V112) -> 274.642
A12: Total: SPT | D12: =SUM(D99:D107) -> 3581.828107 | E12: =SUM(E99:E107) -> 513.9616731 | G12: =SUM(G99:G107) -> 2519.392407 | H12: 3290.247107 | I12: 0 | J12: 440 | K12: 6.909 | L12: 168.016 | M12: 1101.221 | N12: 119.687 | O12: 264.337 | U12: =SUM(U99:U107) -> 1062.4357 | V12: =SUM(V99:V107) -> 291.581 | AB12: DSR (MW)
A13: Total: GB | D13: =SUM(D10:D12) -> 60419.04878 | E13: =SUM(E10:E12) -> 4879.695423 | G13: =SUM(G10:G12) -> 49221.65838 | H13: 53095.06078 | I13: 0 | J13: 2744 | K13: 845.11 | L13: 11313.86 | M13: 5533.432 | N13: 536.149 | O13: 8197.879 | U13: =SUM(U10:U12) -> 11197.3904 | V13: =SUM(V10:V12) -> 7323.988 | AB13: =IF(A5="Winter Peak",DSR!A8,0) -> -1322.932259
D14: Data includes Battery Demand
A15: Location | B15: Minor FLOP | C15: Major FLOP | D15: P(Gross) | E15: Q inc LV Gain | F15: Q exc LV Gain | G15: P(Economy Net Demand) | H15: P(Security Net Demand) | I15: Tx Battery Capacity | J15: Tx PHES Capacity | K15: Embedded Storage | L15: Embedded Solar | M15: Embedded Wind | N15: Embedded Hydro | O15: Embedded Other | P15: Embedded Storage | Q15: Embedded Solar | R15: Embedded Wind | S15: Embedded Hydro | T15: Embedded Other | U15: ="EG Output (" & $U$5*100 & "% Wind) incl Storage" -> EG Output (70% Wind) incl Storage | V15: ="EG Output (0% Wind) incl Storage" -> EG Output (0% Wind) incl Storage | W15: Tx Storage | X15: Dx Storage | Y15: Micro storage | Z15: Indicative DSR | AB15: Location Demand %
D16: MW | E16: MVAR | F16: MVAR | G16: Demand (MW) | H16: Demand (MW) | I16: MW | J16: MW | K16: MW | L16: MW | M16: MW | N16: MW | O16: MW | P16: LF% | Q16: LF% | R16: LF% | S16: LF% | T16: LF% | U16: Output (MW) | V16: Output (MW) | W16: Demand (MW) | X16: Demand (MW) | Y16: Demand (MW) | Z16: Demand (MW)
A17: A1 | B17: A1 | C17: =LEFT(B17,1) -> A | D17: =IF(ISNA(VLOOKUP($A17,Active!$D$22:$AG$114,$F$6,FALSE)),0,VLOOKUP($A17,Active!$D$22:$AG$114,$F$6,FALSE))+SUM(W17:Y17) -> 1920.589917 | E17: =IFERROR(VLOOKUP(A17,'Reactive inc LV Gain'!$D$23:$AG$114,F$6,FALSE),"") -> 147.7467099 | F17: =IF(ISERROR(VLOOKUP($B17,'LV Gain K'!$B$15:$C$98,2,FALSE)+E17),0,VLOOKUP($B17,'LV Gain K'!$B$15:$C$98,2,FALSE)+E17) -> 521.4228464 | G17: =D17-U17 -> 1742.140417 | H17: =D17-V17 -> 1749.773917 | I17: =SUMIFS(TxStorCapacity,TxStorLoc,A17,TxStorScenario,$E$8,TxStorYear,$F$8,TxStorTech,"Battery") -> 0 | J17: =SUMIFS(TxStorCapacity,TxStorLoc,A17,TxStorScenario,$E$8,TxStorYear,$F$8,TxStorTech,"PHES") -> 0 | K17: =SUMIFS(DGcapacity,DGlocation,A17,DGscenario,$E$8,DGyear,$F$8,DGtech,"Storage")+SUMIFS(micro_capacity,micro_location,A17,micro_scenario,$E$8,micro_year,$F$8,micro_tech,"Battery") -> 20.304 | L17: =SUMIFS(DGcapacity,DGlocation,A17,DGscenario,$E$8,DGyear,$F$8,DGtech,"Solar")+SUMIFS(micro_capacity,micro_location,A17,micro_scenario,$E$8,micro_year,$F$8,micro_tech,"Solar") -> 32.497 | M17: =SUMIFS(DGcapacity,DGlocation,A17,DGscenario,$E$8,DGyear,$F$8,DGtech,"Wind")+SUMIFS(micro_capacity,micro_location,A17,micro_scenario,$E$8,micro_year,$F$8,micro_tech,"Wind") -> 10.905 | N17: =SUMIFS(DGcapacity,DGlocation,A17,DGscenario,$E$8,DGyear,$F$8,DGtech,"Hydro")+SUMIFS(micro_capacity,micro_location,A17,micro_scenario,$E$8,micro_year,$F$8,micro_tech,"Hydro") -> 0 | O17: =SUMIFS(DGcapacity,DGlocation,A17,DGscenario,$E$8,DGyear,$F$8,DGtech,"Other")+SUMIFS(micro_capacity,micro_location,A17,micro_scenario,$E$8,micro_year,$F$8,micro_tech,"Other") -> 226.976 | P17: =IF(K17=0,0,(SUMIFS(OFFSET(DGWintPk,0,$Q$8),DGlocation,A17,DGscenario,$E$8,DGyear,$F$8,DGtech,"Storage")+SUMIFS(OFFSET(micro_WintPk,0,$Q$8),micro_location,A17,micro_scenario,$E$8,micro_year,$F$8,micro_tech,"Battery"))/K17) -> 0.8680555556 | Q17: =IF(L17=0,0,(SUMIFS(OFFSET(DGWintPk,0,$Q$8),DGlocation,A17,DGscenario,$E$8,DGyear,$F$8,DGtech,"Solar")+SUMIFS(OFFSET(micro_WintPk,0,$Q$8),micro_location,A17,micro_scenario,$E$8,micro_year,$F$8,micro_tech,"Solar"))/L17) -> 0 | R17: =IF(M17=0,0,(SUMIFS(OFFSET(DGWintPk,0,$Q$8),DGlocation,A17,DGscenario,$E$8,DGyear,$F$8,DGtech,"Wind")+SUMIFS(OFFSET(micro_WintPk,0,$Q$8),micro_location,A17,micro_scenario,$E$8,micro_year,$F$8,micro_tech,"Wind"))/M17) -> 0.2308115543 | S17: =IF(N17=0,0,(SUMIFS(OFFSET(DGWintPk,0,$Q$8),DGlocation,A17,DGscenario,$E$8,DGyear,$F$8,DGtech,"Hydro")+SUMIFS(OFFSET(micro_WintPk,0,$Q$8),micro_location,A17,micro_scenario,$E$8,micro_year,$F$8,micro_tech,"Hydro"))/N17) -> 0 | T17: =IF(O17=0,0,(SUMIFS(OFFSET(DGWintPk,0,$Q$8),DGlocation,A17,DGscenario,$E$8,DGyear,$F$8,DGtech,"Other")+SUMIFS(OFFSET(micro_WintPk,0,$Q$8),micro_location,A17,micro_scenario,$E$8,micro_year,$F$8,micro_tech,"Other"))/O17) -> 0.6749215776 | U17: =(K17*P17)+(L17*Q17)+(M17*$U$5)+(N17*S17)+(O17*T17) -> 178.4495 | V17: =(K17*P17)+(L17*Q17)+(M17*$V$5)+(N17*S17)+(O17*T17) -> 170.816 | W17: =SUMIFS(OFFSET(TxStorWintPk,0,$Q$8),TxStorLoc,A17,TxStorScenario,$E$8,TxStorYear,$F$8)*-1 -> 0 | X17: =SUMIFS(OFFSET(DxStorWintpk,0,$Q$8),DxStorLocation,A17,DxStorScenario,$E$8,DxStorYear,$F$8)*-1 -> 0 | Y17: =SUMIFS(OFFSET(mbat_wintpk,0,$Q$8),mbat_location,A17,mbat_scenario,$E$8,mbat_year,$F$8)*-1 -> 0 | Z17: =$AB$13*AB17 -> -42.05313404 | AB17: =D17/$D$13 -> 0.03178782115
A18: A3 | B18: A3 | C18: =LEFT(B18,1) -> A | D18: =IF(ISNA(VLOOKUP($A18,Active!$D$22:$AG$114,$F$6,FALSE)),0,VLOOKUP($A18,Active!$D$22:$AG$114,$F$6,FALSE))+SUM(W18:Y18) -> 426.247255 | E18: =IFERROR(VLOOKUP(A18,'Reactive inc LV Gain'!$D$23:$AG$114,F$6,FALSE),"") -> 20.14982445 | F18: =IF(ISERROR(VLOOKUP($B18,'LV Gain K'!$B$15:$C$98,2,FALSE)+E18),0,VLOOKUP($B18,'LV Gain K'!$B$15:$C$98,2,FALSE)+E18) -> 69.85609789 | G18: =D18-U18 -> 420.261855 | H18: =D18-V18 -> 420.340255 | I18: 0 | J18: 0 | K18: 0.041 | L18: 5.305 | M18: 0.112 | N18: 0 | O18: 7.971 | P18: 0.8780487805 | Q18: 0 | R18: 0.2321428571 | S18: 0 | T18: 0.7365449755 | U18: =(K18*P18)+(L18*Q18)+(M18*$U$5)+(N18*S18)+(O18*T18) -> 5.9854 | V18: =(K18*P18)+(L18*Q18)+(M18*$V$5)+(N18*S18)+(O18*T18) -> 5.907 | W18: 0 | X18: 0 | Y18: 0 | Z18: =$AB$13*AB18 -> -9.333087087 | AB18: =D18/$D$13 -> 0.00705484882
A19: A4 | B19: A4 | C19: =LEFT(B19,1) -> A | D19: =IF(ISNA(VLOOKUP($A19,Active!$D$22:$AG$114,$F$6,FALSE)),0,VLOOKUP($A19,Active!$D$22:$AG$114,$F$6,FALSE))+SUM(W19:Y19) -> 1305.770892 | E19: =IFERROR(VLOOKUP(A19,'Reactive inc LV Gain'!$D$23:$AG$114,F$6,FALSE),"") -> 42.09878503 | F19: =IF(ISERROR(VLOOKUP($B19,'LV Gain K'!$B$15:$C$98,2,FALSE)+E19),0,VLOOKUP($B19,'LV Gain K'!$B$15:$C$98,2,FALSE)+E19) -> 246.4437014 | G19: 1263.320392 | H19: 1263.337892 | I19: 0 | J19: 0 | K19: 0.199 | L19: 30.02 | M19: 0.025 | N19: 0 | O19: 58.549 | P19: 0.864321608 | Q19: 0 | R19: 0.24 | S19: 0 | T19: 0.721805667 | U19: 42.4505 | V19: 42.433 | W19: 0 | X19: 0 | Y19: 0 | Z19: -28.59108958 | AB19: 0.02161190748
A20: A6 | B20: A6 | C20: A | D20: =IF(ISNA(VLOOKUP($A20,Active!$D$22:$AG$114,$F$6,FALSE)),0,VLOOKUP($A20,Active!$D$22:$AG$114,$F$6,FALSE))+SUM(W20:Y20) -> 2195.809794 | E20: =IFERROR(VLOOKUP(A20,'Reactive inc LV Gain'!$D$23:$AG$114,F$6,FALSE),"") -> 70.65867011 | F20: =IF(ISERROR(VLOOKUP($B20,'LV Gain K'!$B$15:$C$98,2,FALSE)+E20),0,VLOOKUP($B20,'LV Gain K'!$B$15:$C$98,2,FALSE)+E20) -> 401.8459239 | G20: 1898.355294 | H20: 1898.757794 | I20: 0 | J20: 0 | K20: 115.419 | L20: 55.922 | M20: 0.575 | N20: 0.52 | O20: 250.765 | P20: 0.8680286608 | Q20: 0 | R20: 0.2330434783 | S20: 0.4788461538 | T20: 0.7840647618 | U20: 297.4545 | V20: 297.052 | W20: 0 | X20: 0 | Y20: 0 | Z20: -48.07933374 | AB20: 0.03634300503
A21: A7 | B21: A7 | C21: A | D21: =IF(ISNA(VLOOKUP($A21,Active!$D$22:$AG$114,$F$6,FALSE)),0,VLOOKUP($A21,Active!$D$22:$AG$114,$F$6,FALSE))+SUM(W21:Y21) -> 3139.063358 | E21: =IFERROR(VLOOKUP(A21,'Reactive inc LV Gain'!$D$23:$AG$114,F$6,FALSE),"") -> 369.1426549 | F21: =IF(ISERROR(VLOOKUP($B21,'LV Gain K'!$B$15:$C$98,2,FALSE)+E21),0,VLOOKUP($B21,'LV Gain K'!$B$15:$C$98,2,FALSE)+E21) -> 752.3618794 | G21: 3084.135858 | H21: 3084.258358 | I21: 0 | J21: 0 | K21: 0.148 | L21: 19.151 | M21: 0.175 | N21: 0 | O21: 77.438 | P21: 0.8648648649 | Q21: 0 | R21: 0.2342857143 | S21: 0 | T21: 0.706074537 | U21: 54.9275 | V21: 54.805 | W21: 0 | X21: 0 | Y21: 0 | Z21: -68.73276331 | AB21: 0.05195486227
A22: A8 | B22: A8 | C22: A | D22: =IF(ISNA(VLOOKUP($A22,Active!$D$22:$AG$114,$F$6,FALSE)),0,VLOOKUP($A22,Active!$D$22:$AG$114,$F$6,FALSE))+SUM(W22:Y22) -> 2024.268751 | E22: =IFERROR(VLOOKUP(A22,'Reactive inc LV Gain'!$D$23:$AG$114,F$6,FALSE),"") -> 69.5799737 | F22: =IF(ISERROR(VLOOKUP($B22,'LV Gain K'!$B$15:$C$98,2,FALSE)+E22),0,VLOOKUP($B22,'LV Gain K'!$B$15:$C$98,2,FALSE)+E22) -> 519.8041384 | G22: 1806.850051 | H22: 1807.361751 | I22: 0 | J22: 0 | K22: 36.468 | L22: 61.721 | M22: 0.731 | N22: 0.059 | O22: 251.841 | P22: 0.8681035428 | Q22: 0 | R22: 0.2325581395 | S22: 0.4745762712 | T22: 0.7354680135 | U22: 217.4187 | V22: 216.907 | W22: 0 | X22: 0 | Y22: 0 | Z22: -44.32328027 | AB22: 0.03350381697
A23: A9 | B23: A9 | C23: A | D23: =IF(ISNA(VLOOKUP($A23,Active!$D$22:$AG$114,$F$6,FALSE)),0,VLOOKUP($A23,Active!$D$22:$AG$114,$F$6,FALSE))+SUM(W23:Y23) -> 420.0666839 | E23: =IFERROR(VLOOKUP(A23,'Reactive inc LV Gain'!$D$23:$AG$114,F$6,FALSE),"") -> 48.7474459 | F23: =IF(ISERROR(VLOOKUP($B23,'LV Gain K'!$B$15:$C$98,2,FALSE)+E23),0,VLOOKUP($B23,'LV Gain K'!$B$15:$C$98,2,FALSE)+E23) -> 86.11368879 | G23: 402.8427839 | H23: 402.8476839 | I23: 0 | J23: 0 | K23: 0.076 | L23: 9.904 | M23: 0.007 | N23: 0 | O23: 26.226 | P23: 0.8684210526 | Q23: 0 | R23: 0.2857142857 | S23: 0 | T23: 0.6540456036 | U23: 17.2239 | V23: 17.219 | W23: 0 | X23: 0 | Y23: 0 | Z23: -9.197757633 | AB23: 0.006952553746
A24: B1 | B24: B1 | C24: B | D24: =IF(ISNA(VLOOKUP($A24,Active!$D$22:$AG$114,$F$6,FALSE)),0,VLOOKUP($A24,Active!$D$22:$AG$114,$F$6,FALSE))+SUM(W24:Y24) -> 1565.494387 | E24: =IFERROR(VLOOKUP(A24,'Reactive inc LV Gain'!$D$23:$AG$114,F$6,FALSE),"") -> 75.74938361 | F24: =IF(ISERROR(VLOOKUP($B24,'LV Gain K'!$B$15:$C$98,2,FALSE)+E24),0,VLOOKUP($B24,'LV Gain K'!$B$15:$C$98,2,FALSE)+E24) -> 232.369749 | G24: 1441.248987 | H24: 1442.223387 | I24: 0 | J24: 0 | K24: 42.153 | L24: 177.108 | M24: 1.392 | N24: 0.025 | O24: 121.343 | P24: 0.8680520959 | Q24: 0 | R24: 0.2327586207 | S24: 0.48 | T24: 0.7142397996 | U24: 124.2454 | V24: 123.271 | W24: 0 | X24: 0 | Y24: 0 | Z24: -34.27798132 | AB24: 0.02591060962
A25: B2 | B25: B2 | C25: B | D25: =IF(ISNA(VLOOKUP($A25,Active!$D$22:$AG$114,$F$6,FALSE)),0,VLOOKUP($A25,Active!$D$22:$AG$114,$F$6,FALSE))+SUM(W25:Y25) -> 1370.165873 | E25: =IFERROR(VLOOKUP(A25,'Reactive inc LV Gain'!$D$23:$AG$114,F$6,FALSE),"") -> -18.9908405 | F25: =IF(ISERROR(VLOOKUP($B25,'LV Gain K'!$B$15:$C$98,2,FALSE)+E25),0,VLOOKUP($B25,'LV Gain K'!$B$15:$C$98,2,FALSE)+E25) -> 263.814779 | G25: 1063.755673 | H25: 1064.312873 | I25: 0 | J25: 0 | K25: 9.933 | L25: 494.607 | M25: 0.796 | N25: 0.022 | O25: 392.322 | P25: 0.8685190778 | Q25: 0 | R25: 0.2324120603 | S25: 0.5 | T25: 0.7575792334 | U25: 306.4102 | V25: 305.853 | W25: 0 | X25: 0 | Y25: 0 | Z25: -30.00107865 | AB25: 0.02267771342
A26: B3 | B26: B3 | C26: B | D26: =IF(ISNA(VLOOKUP($A26,Active!$D$22:$AG$114,$F$6,FALSE)),0,VLOOKUP($A26,Active!$D$22:$AG$114,$F$6,FALSE))+SUM(W26:Y26) -> 1213.521235 | E26: =IFERROR(VLOOKUP(A26,'Reactive inc LV Gain'!$D$23:$AG$114,F$6,FALSE),"") -> 49.63614505 | F26: =IF(ISERROR(VLOOKUP($B26,'LV Gain K'!$B$15:$C$98,2,FALSE)+E26),0,VLOOKUP($B26,'LV Gain K'!$B$15:$C$98,2,FALSE)+E26) -> 211.5280451 | G26: 1208.046435 | H26: 1208.063235 | I26: 0 | J26: 0 | K26: 0.417 | L26: 65.31 | M26: 0.024 | N26: 0.027 | O26: 7.978 | P26: 0.8633093525 | Q26: 0 | R26: 0.25 | S26: 0.4814814815 | T26: 0.6373777889 | U26: 5.4748 | V26: 5.458 | W26: 0 | X26: 0 | Y26: 0 | Z26: -26.57119603 | AB26: 0.0200850768
A27: B4 | B27: B4 | C27: B | D27: =IF(ISNA(VLOOKUP($A27,Active!$D$22:$AG$114,$F$6,FALSE)),0,VLOOKUP($A27,Active!$D$22:$AG$114,$F$6,FALSE))+SUM(W27:Y27) -> 383.4188958 | E27: =IFERROR(VLOOKUP(A27,'Reactive inc LV Gain'!$D$23:$AG$114,F$6,FALSE),"") -> -56.98575588 | F27: =IF(ISERROR(VLOOKUP($B27,'LV Gain K'!$B$15:$C$98,2,FALSE)+E27),0,VLOOKUP($B27,'LV Gain K'!$B$15:$C$98,2,FALSE)+E27) -> 75.8324944 | G27: 263.5283958 | H27: 264.9528958 | I27: 0 | J27: 0 | K27: 1.479 | L27: 101.253 | M27: 2.035 | N27: 0.292 | O27: 137.667 | P27: 0.8654496281 | Q27: 0 | R27: 0.2329238329 | S27: 0.4794520548 | T27: 0.8502110164 | U27: 119.8905 | V27: 118.466 | W27: 0 | X27: 0 | Y27: 0 | Z27: -8.395319625 | AB27: 0.006345993582
A28: C1 | B28: C1 | C28: C | D28: =IF(ISNA(VLOOKUP($A28,Active!$D$22:$AG$114,$F$6,FALSE)),0,VLOOKUP($A28,Active!$D$22:$AG$114,$F$6,FALSE))+SUM(W28:Y28) -> 259.3731204 | E28: =IFERROR(VLOOKUP(A28,'Reactive inc LV Gain'!$D$23:$AG$114,F$6,FALSE),"") -> -14.58324728 | F28: =IF(ISERROR(VLOOKUP($B28,'LV Gain K'!$B$15:$C$98,2,FALSE)+E28),0,VLOOKUP($B28,'LV Gain K'!$B$15:$C$98,2,FALSE)+E28) -> -3.235749154 | G28: 235.5557204 | H28: 242.0741204 | I28: 0 | J28: 0 | K28: 0.135 | L28: 10.986 | M28: 9.312 | N28: 0 | O28: 28.062 | P28: 0.8444444444 | Q28: 0 | R28: 0.2308848797 | S28: 0 | T28: 0.6123939847 | U28: 23.8174 | V28: 17.299 | W28: 0 | X28: 0 | Y28: 0 | Z28: -5.679219966 | AB28: 0.004292903077
A29: C2 | B29: C2 | C29: C | D29: =IF(ISNA(VLOOKUP($A29,Active!$D$22:$AG$114,$F$6,FALSE)),0,VLOOKUP($A29,Active!$D$22:$AG$114,$F$6,FALSE))+SUM(W29:Y29) -> 755.8360552 | E29: =IFERROR(VLOOKUP(A29,'Reactive inc LV Gain'!$D$23:$AG$114,F$6,FALSE),"") -> 7.784372698 | F29: =IF(ISERROR(VLOOKUP($B29,'LV Gain K'!$B$15:$C$98,2,FALSE)+E29),0,VLOOKUP($B29,'LV Gain K'!$B$15:$C$98,2,FALSE)+E29) -> 119.9394207 | G29: 419.4826552 | H29: 419.5050552 | I29: 0 | J29: 0 | K29: 236.208 | L29: 65.542 | M29: 0.032 | N29: 0.006 | O29: 161.105 | P29: 0.8679892298 | Q29: 0 | R29: 0.21875 | S29: 0.5 | T29: 0.8150088452 | U29: 336.3534 | V29: 336.331 | W29: 0 | X29: 0 | Y29: 0 | Z29: -16.54974582 | AB29: 0.01250989664
A30: C3 | B30: C3 | C30: C | D30: =IF(ISNA(VLOOKUP($A30,Active!$D$22:$AG$114,$F$6,FALSE)),0,VLOOKUP($A30,Active!$D$22:$AG$114,$F$6,FALSE))+SUM(W30:Y30) -> 228.2376625 | E30: =IFERROR(VLOOKUP(A30,'Reactive inc LV Gain'!$D$23:$AG$114,F$6,FALSE),"") -> 24.8556059 | F30: =IF(ISERROR(VLOOKUP($B30,'LV Gain K'!$B$15:$C$98,2,FALSE)+E30),0,VLOOKUP($B30,'LV Gain K'!$B$15:$C$98,2,FALSE)+E30) -> 58.05817911 | G30: -48.26453749 | H30: -39.07633749 | I30: 0 | J30: 0 | K30: 0.647 | L30: 100.231 | M30: 13.126 | N30: 0 | O30: 333.809 | P30: 0.8717156105 | Q30: 0 | R30: 0.2315252171 | S30: 0 | T30: 0.7991096705 | U30: 276.5022 | V30: 267.314 | W30: 0 | X30: 0 | Y30: 0 | Z30: -4.997479646 | AB30: 0.003777577885
A31: C4 | B31: C4 | C31: C | D31: =IF(ISNA(VLOOKUP($A31,Active!$D$22:$AG$114,$F$6,FALSE)),0,VLOOKUP($A31,Active!$D$22:$AG$114,$F$6,FALSE))+SUM(W31:Y31) -> 146.6856685 | E31: =IFERROR(VLOOKUP(A31,'Reactive inc LV Gain'!$D$23:$AG$114,F$6,FALSE),"") -> -32.23254528 | F31: =IF(ISERROR(VLOOKUP($B31,'LV Gain K'!$B$15:$C$98,2,FALSE)+E31),0,VLOOKUP($B31,'LV Gain K'!$B$15:$C$98,2,FALSE)+E31) -> -5.537012655 | G31: 89.90906852 | H31: 132.3346685 | I31: 0 | J31: 0 | K31: 0.455 | L31: 16.192 | M31: 60.608 | N31: 0 | O31: 16.695 | P31: 0.8769230769 | Q31: 0 | R31: 0.2312565998 | S31: 0 | T31: 0.8356993112 | U31: 56.7766 | V31: 14.351 | W31: 0 | X31: 0 | Y31: 0 | Z31: -3.211821549 | AB31: 0.002427804997
A32: C5 | B32: C5 | C32: C | D32: =IF(ISNA(VLOOKUP($A32,Active!$D$22:$AG$114,$F$6,FALSE)),0,VLOOKUP($A32,Active!$D$22:$AG$114,$F$6,FALSE))+SUM(W32:Y32) -> 447.7455621 | E32: =IFERROR(VLOOKUP(A32,'Reactive inc LV Gain'!$D$23:$AG$114,F$6,FALSE),"") -> 23.98990783 | F32: =IF(ISERROR(VLOOKUP($B32,'LV Gain K'!$B$15:$C$98,2,FALSE)+E32),0,VLOOKUP($B32,'LV Gain K'!$B$15:$C$98,2,FALSE)+E32) -> 30.71927236 | G32: 360.8357621 | H32: 402.7195621 | I32: 0 | J32: 0 | K32: 21.756 | L32: 107.903 | M32: 59.834 | N32: 0 | O32: 42.943 | P32: 0.8681283324 | Q32: 0 | R32: 0.2312063375 | S32: 0 | T32: 0.6086905899 | U32: 86.9098 | V32: 45.026 | W32: 0 | X32: 0 | Y32: 0 | Z32: -9.803812869 | AB32: 0.007410668839
A33: C6 | B33: C6 | C33: C | D33: =IF(ISNA(VLOOKUP($A33,Active!$D$22:$AG$114,$F$6,FALSE)),0,VLOOKUP($A33,Active!$D$22:$AG$114,$F$6,FALSE))+SUM(W33:Y33) -> 262.3632968 | E33: =IFERROR(VLOOKUP(A33,'Reactive inc LV Gain'!$D$23:$AG$114,F$6,FALSE),"") -> 22.66470157 | F33: =IF(ISERROR(VLOOKUP($B33,'LV Gain K'!$B$15:$C$98,2,FALSE)+E33),0,VLOOKUP($B33,'LV Gain K'!$B$15:$C$98,2,FALSE)+E33) -> 109.0455709 | G33: 253.0661968 | H33: 253.5652968 | I33: 0 | J33: 0 | K33: 10.131 | L33: 20.667 | M33: 0.713 | N33: 0 | O33: 0.005 | P33: 0.8680288224 | Q33: 0 | R33: 0.2328190743 | S33: 0 | T33: 0.8 | U33: 9.2971 | V33: 8.798 | W33: 0 | X33: 0 | Y33: 0 | Z33: -5.744692707 | AB33: 0.0043423937
A34: C7 | B34: C7 | C34: C | D34: =IF(ISNA(VLOOKUP($A34,Active!$D$22:$AG$114,$F$6,FALSE)),0,VLOOKUP($A34,Active!$D$22:$AG$114,$F$6,FALSE))+SUM(W34:Y34) -> 229.5537689 | E34: =IFERROR(VLOOKUP(A34,'Reactive inc LV Gain'!$D$23:$AG$114,F$6,FALSE),"") -> 59.70585737 | F34: =IF(ISERROR(VLOOKUP($B34,'LV Gain K'!$B$15:$C$98,2,FALSE)+E34),0,VLOOKUP($B34,'LV Gain K'!$B$15:$C$98,2,FALSE)+E34) -> 95.14073801 | G34: 64.49336889 | H34: 164.8817689 | I34: 0 | J34: 0 | K34: 2.224 | L34: 254.855 | M34: 143.412 | N34: 0 | O34: 91.167 | P34: 0.8673561151 | Q34: 0 | R34: 0.2311940423 | S34: 0 | T34: 0.6882205184 | U34: 165.0604 | V34: 64.672 | W34: 0 | X34: 0 | Y34: 0 | Z34: -5.02629704 | AB34: 0.003799360856
A35: C9 | B35: C9 | C35: C | F35: =IF(ISERROR(VLOOKUP($B35,'LV Gain K'!$B$15:$C$98,2,FALSE)+E35),0,VLOOKUP($B35,'LV Gain K'!$B$15:$C$98,2,FALSE)+E35) -> 0 | G35: 0 | H35: 0 | I35: 0 | J35: 0 | K35: 0 | L35: 0 | M35: 0 | N35: 0 | O35: 0 | P35: 0 | Q35: 0 | R35: 0 | S35: 0 | T35: 0 | U35: 0 | V35: 0 | W35: 0 | X35: 0 | Y35: 0 | Z35: 0 | AB35: 0
A36: D4 | B36: D4 | C36: D | D36: =IF(ISNA(VLOOKUP($A36,Active!$D$22:$AG$114,$F$6,FALSE)),0,VLOOKUP($A36,Active!$D$22:$AG$114,$F$6,FALSE))+SUM(W36:Y36) -> 1124.342767 | E36: =IFERROR(VLOOKUP(A36,'Reactive inc LV Gain'!$D$23:$AG$114,F$6,FALSE),"") -> 100.6369947 | F36: =IF(ISERROR(VLOOKUP($B36,'LV Gain K'!$B$15:$C$98,2,FALSE)+E36),0,VLOOKUP($B36,'LV Gain K'!$B$15:$C$98,2,FALSE)+E36) -> 208.8140693 | G36: 1059.750267 | H36: 1064.611767 | I36: 0 | J36: 0 | K36: 2.512 | L36: 253.562 | M36: 6.945 | N36: 0 | O36: 94.727 | P36: 0.8674363057 | Q36: 0 | R36: 0.2318214543 | S36: 0 | T36: 0.6075564517 | U36: 64.5925 | V36: 59.731 | W36: 0 | X36: 0 | Y36: 0 | Z36: -24.61854906 | AB36: 0.0186090776
A37: D5 | B37: D5 | C37: D | D37: =IF(ISNA(VLOOKUP($A37,Active!$D$22:$AG$114,$F$6,FALSE)),0,VLOOKUP($A37,Active!$D$22:$AG$114,$F$6,FALSE))+SUM(W37:Y37) -> 586.2228782 | E37: =IFERROR(VLOOKUP(A37,'Reactive inc LV Gain'!$D$23:$AG$114,F$6,FALSE),"") -> 47.02594441 | F37: =IF(ISERROR(VLOOKUP($B37,'LV Gain K'!$B$15:$C$98,2,FALSE)+E37),0,VLOOKUP($B37,'LV Gain K'!$B$15:$C$98,2,FALSE)+E37) -> 116.9231774 | G37: 468.1649782 | H37: 468.7998782 | I37: 0 | J37: 0 | K37: 121.027 | L37: 174.35 | M37: 0.907 | N37: 0.025 | O37: 19.985 | P37: 0.8680129227 | Q37: 0 | R37: 0.2326350606 | S37: 0.48 | T37: 0.6183637728 | U37: 118.0579 | V37: 117.423 | W37: 0 | X37: 0 | Y37: 0 | Z37: -12.83590477 | AB37: 0.009702616808
A38: D6 | B38: D6 | C38: D | D38: =IF(ISNA(VLOOKUP($A38,Active!$D$22:$AG$114,$F$6,FALSE)),0,VLOOKUP($A38,Active!$D$22:$AG$114,$F$6,FALSE))+SUM(W38:Y38) -> 695.6601827 | E38: =IFERROR(VLOOKUP(A38,'Reactive inc LV Gain'!$D$23:$AG$114,F$6,FALSE),"") -> 12.98787789 | F38: =IF(ISERROR(VLOOKUP($B38,'LV Gain K'!$B$15:$C$98,2,FALSE)+E38),0,VLOOKUP($B38,'LV Gain K'!$B$15:$C$98,2,FALSE)+E38) -> 151.3802336 | G38: 658.4817827 | H38: 658.5391827 | I38: 0 | J38: 0 | K38: 2.06 | L38: 360.144 | M38: 0.082 | N38: 0.205 | O38: 52.385 | P38: 0.8689320388 | Q38: 0 | R38: 0.2317073171 | S38: 0.4780487805 | T38: 0.6725780281 | U38: 37.1784 | V38: 37.121 | W38: 0 | X38: 0 | Y38: 0 | Z38: -15.23213814 | AB38: 0.01151392147
A39: E1 | B39: E1 | C39: E | D39: =IF(ISNA(VLOOKUP($A39,Active!$D$22:$AG$114,$F$6,FALSE)),0,VLOOKUP($A39,Active!$D$22:$AG$114,$F$6,FALSE))+SUM(W39:Y39) -> 1107.153778 | E39: =IFERROR(VLOOKUP(A39,'Reactive inc LV Gain'!$D$23:$AG$114,F$6,FALSE),"") -> 81.32175948 | F39: =IF(ISERROR(VLOOKUP($B39,'LV Gain K'!$B$15:$C$98,2,FALSE)+E39),0,VLOOKUP($B39,'LV Gain K'!$B$15:$C$98,2,FALSE)+E39) -> 140.8167289 | G39: 1025.074178 | H39: 1026.213778 | I39: 0 | J39: 0 | K39: 7.902 | L39: 1112.161 | M39: 1.628 | N39: 0.25 | O39: 92.552 | P39: 0.867881549 | Q39: 0 | R39: 0.2328009828 | S39: 0.48 | T39: 0.799139943 | U39: 82.0796 | V39: 80.94 | W39: 0 | X39: 0 | Y39: 0 | Z39: -24.24217987 | AB39: 0.0183245814
A40: E6 | B40: E6 | C40: E | G40: 0 | H40: 0 | I40: 0 | J40: 0 | K40: 0 | L40: 0 | M40: 0 | N40: 0 | O40: 0 | P40: 0 | Q40: 0 | R40: 0 | S40: 0 | T40: 0 | U40: 0 | V40: 0 | W40: 0 | X40: 0 | Y40: 0 | Z40: 0 | AB40: 0
A41: E7 | B41: E7 | C41: E | D41: =IF(ISNA(VLOOKUP($A41,Active!$D$22:$AG$114,$F$6,FALSE)),0,VLOOKUP($A41,Active!$D$22:$AG$114,$F$6,FALSE))+SUM(W41:Y41) -> 381.5219775 | E41: =IFERROR(VLOOKUP(A41,'Reactive inc LV Gain'!$D$23:$AG$114,F$6,FALSE),"") -> 44.60707597 | F41: =IF(ISERROR(VLOOKUP($B41,'LV Gain K'!$B$15:$C$98,2,FALSE)+E41),0,VLOOKUP($B41,'LV Gain K'!$B$15:$C$98,2,FALSE)+E41) -> 153.9448608 | G41: 357.4200775 | H41: 359.2589775 | I41: 0 | J41: 0 | K41: 1.476 | L41: 258.094 | M41: 2.627 | N41: 0.03 | O41: 26.519 | P41: 0.8658536585 | Q41: 0 | R41: 0.2325846974 | S41: 0.4666666667 | T41: 0.790791508 | U41: 24.1019 | V41: 22.263 | W41: 0 | X41: 0 | Y41: 0 | Z41: -8.353784805 | AB41: 0.006314597552
A42: E8 | B42: E8 | C42: E | D42: =IF(ISNA(VLOOKUP($A42,Active!$D$22:$AG$114,$F$6,FALSE)),0,VLOOKUP($A42,Active!$D$22:$AG$114,$F$6,FALSE))+SUM(W42:Y42) -> 101.1987485 | E42: =IFERROR(VLOOKUP(A42,'Reactive inc LV Gain'!$D$23:$AG$114,F$6,FALSE),"") -> 20.3672807 | F42: =IF(ISERROR(VLOOKUP($B42,'LV Gain K'!$B$15:$C$98,2,FALSE)+E42),0,VLOOKUP($B42,'LV Gain K'!$B$15:$C$98,2,FALSE)+E42) -> 43.7585244 | G42: 78.23514846 | H42: 78.39474846 | I42: 0 | J42: 0 | K42: 0.602 | L42: 101.688 | M42: 0.228 | N42: 0.048 | O42: 26.914 | P42: 0.8687707641 | Q42: 0 | R42: 0.2324561404 | S42: 0.4791666667 | T42: 0.827004533 | U42: 22.9636 | V42: 22.804 | W42: 0 | X42: 0 | Y42: 0 | Z42: -2.215842381 | AB42: 0.001674947728
A43: F6 | B43: F6 | C43: F | D43: =IF(ISNA(VLOOKUP($A43,Active!$D$22:$AG$114,$F$6,FALSE)),0,VLOOKUP($A43,Active!$D$22:$AG$114,$F$6,FALSE))+SUM(W43:Y43) -> 1497.183646 | E43: =IFERROR(VLOOKUP(A43,'Reactive inc LV Gain'!$D$23:$AG$114,F$6,FALSE),"") -> 154.8325662 | F43: =IF(ISERROR(VLOOKUP($B43,'LV Gain K'!$B$15:$C$98,2,FALSE)+E43),0,VLOOKUP($B43,'LV Gain K'!$B$15:$C$98,2,FALSE)+E43) -> 216.6355328 | G43: 1113.750146 | H43: 1288.592646 | I43: 0 | J43: 0 | K43: 56.53 | L43: 739.936 | M43: 249.775 | N43: 11.862 | O43: 226.309 | P43: 0.8681231205 | Q43: 0 | R43: 0.2315964368 | S43: 0.60748609 | T43: 0.673017865 | U43: 383.4335 | V43: 208.591 | W43: 0 | X43: 0 | Y43: 0 | Z43: -32.78225301 | AB43: 0.02477999367
A44: G1 | B44: G1 | C44: G | D44: =IF(ISNA(VLOOKUP($A44,Active!$D$22:$AG$114,$F$6,FALSE)),0,VLOOKUP($A44,Active!$D$22:$AG$114,$F$6,FALSE))+SUM(W44:Y44) -> 372.795815 | E44: =IFERROR(VLOOKUP(A44,'Reactive inc LV Gain'!$D$23:$AG$114,F$6,FALSE),"") -> 57.95840516 | F44: =IF(ISERROR(VLOOKUP($B44,'LV Gain K'!$B$15:$C$98,2,FALSE)+E44),0,VLOOKUP($B44,'LV Gain K'!$B$15:$C$98,2,FALSE)+E44) -> 101.3876595 | G44: 355.564115 | H44: 356.362815 | I44: 0 | J44: 0 | K44: 0.458 | L44: 63.545 | M44: 1.141 | N44: 0.164 | O44: 24.691 | P44: 0.8711790393 | Q44: 0 | R44: 0.2331288344 | S44: 0.4817073171 | T44: 0.6461868697 | U44: 17.2317 | V44: 16.433 | W44: 0 | X44: 0 | Y44: 0 | Z44: -8.162717216 | AB44: 0.006170170211
A45: G5 | B45: G5 | C45: G | D45: =IF(ISNA(VLOOKUP($A45,Active!$D$22:$AG$114,$F$6,FALSE)),0,VLOOKUP($A45,Active!$D$22:$AG$114,$F$6,FALSE))+SUM(W45:Y45) -> 587.4233721 | E45: =IFERROR(VLOOKUP(A45,'Reactive inc LV Gain'!$D$23:$AG$114,F$6,FALSE),"") -> 59.59793474 | F45: =IF(ISERROR(VLOOKUP($B45,'LV Gain K'!$B$15:$C$98,2,FALSE)+E45),0,VLOOKUP($B45,'LV Gain K'!$B$15:$C$98,2,FALSE)+E45) -> 110.8920678 | G45: 536.7150721 | H45: 537.8903721 | I45: 0 | J45: 0 | K45: 0.541 | L45: 86.418 | M45: 1.679 | N45: 0.221 | O45: 58.124 | P45: 0.8706099815 | Q45: 0 | R45: 0.2328767123 | S45: 0.479638009 | T45: 0.8422682541 | U45: 50.7083 | V45: 49.533 | W45: 0 | X45: 0 | Y45: 0 | Z45: -12.86219072 | AB45: 0.009722486269
A46: G6 | B46: G6 | C46: G | D46: =IF(ISNA(VLOOKUP($A46,Active!$D$22:$AG$114,$F$6,FALSE)),0,VLOOKUP($A46,Active!$D$22:$AG$114,$F$6,FALSE))+SUM(W46:Y46) -> 861.1123366 | E46: =IFERROR(VLOOKUP(A46,'Reactive inc LV Gain'!$D$23:$AG$114,F$6,FALSE),"") -> 101.4087379 | F46: =IF(ISERROR(VLOOKUP($B46,'LV Gain K'!$B$15:$C$98,2,FALSE)+E46),0,VLOOKUP($B46,'LV Gain K'!$B$15:$C$98,2,FALSE)+E46) -> 130.3729157 | G46: 814.9658366 | H46: 822.0673366 | I46: 0 | J46: 0 | K46: 4.462 | L46: 784.724 | M46: 10.145 | N46: 0.721 | O46: 49.993 | P46: 0.8679964142 | Q46: 0 | R46: 0.2313454904 | S46: 0.479889043 | T46: 0.6966175265 | U46: 46.1465 | V46: 39.045 | W46: 0 | X46: 0 | Y46: 0 | Z46: -18.85486965 | AB46: 0.01425233191
A47: G7 | B47: G7 | C47: G | D47: =IF(ISNA(VLOOKUP($A47,Active!$D$22:$AG$114,$F$6,FALSE)),0,VLOOKUP($A47,Active!$D$22:$AG$114,$F$6,FALSE))+SUM(W47:Y47) -> 263.2671325 | E47: =IFERROR(VLOOKUP(A47,'Reactive inc LV Gain'!$D$23:$AG$114,F$6,FALSE),"") -> 56.7025875 | F47: =IF(ISERROR(VLOOKUP($B47,'LV Gain K'!$B$15:$C$98,2,FALSE)+E47),0,VLOOKUP($B47,'LV Gain K'!$B$15:$C$98,2,FALSE)+E47) -> 94.59050896 | G47: 171.8237325 | H47: 191.9711325 | I47: 0 | J47: 0 | K47: 0.631 | L47: 71.406 | M47: 28.782 | N47: 0.322 | O47: 84.475 | P47: 0.8748019017 | Q47: 0 | R47: 0.231186158 | S47: 0.4782608696 | T47: 0.8356318437 | U47: 91.4434 | V47: 71.296 | W47: 0 | X47: 0 | Y47: 0 | Z47: -5.764483045 | AB47: 0.004357353149
A48: H1 | B48: H1 | C48: H | D48: =IF(ISNA(VLOOKUP($A48,Active!$D$22:$AG$114,$F$6,FALSE)),0,VLOOKUP($A48,Active!$D$22:$AG$114,$F$6,FALSE))+SUM(W48:Y48) -> 277.4450395 | E48: =IFERROR(VLOOKUP(A48,'Reactive inc LV Gain'!$D$23:$AG$114,F$6,FALSE),"") -> 64.07211898 | F48: =IF(ISERROR(VLOOKUP($B48,'LV Gain K'!$B$15:$C$98,2,FALSE)+E48),0,VLOOKUP($B48,'LV Gain K'!$B$15:$C$98,2,FALSE)+E48) -> 124.8810578 | G48: 171.6316395 | H48: 246.3930395 | I48: 0 | J48: 0 | K48: 0.77 | L48: 33.146 | M48: 106.802 | N48: 1.028 | O48: 36.272 | P48: 0.8662337662 | Q48: 0 | R48: 0.2312128986 | S48: 0.4805447471 | T48: 0.8240791795 | U48: 105.8134 | V48: 31.052 | W48: 0 | X48: 0 | Y48: 0 | Z48: -6.07492174 | AB48: 0.004592012704
A49: H2 | B49: H2 | C49: H | D49: =IF(ISNA(VLOOKUP($A49,Active!$D$22:$AG$114,$F$6,FALSE)),0,VLOOKUP($A49,Active!$D$22:$AG$114,$F$6,FALSE))+SUM(W49:Y49) -> 867.3235654 | E49: =IFERROR(VLOOKUP(A49,'Reactive inc LV Gain'!$D$23:$AG$114,F$6,FALSE),"") -> 28.45959475 | F49: =IF(ISERROR(VLOOKUP($B49,'LV Gain K'!$B$15:$C$98,2,FALSE)+E49),0,VLOOKUP($B49,'LV Gain K'!$B$15:$C$98,2,FALSE)+E49) -> 264.3393952 | G49: 584.3284654 | H49: 654.6385654 | I49: =SUMIFS(TxStorCapacity,TxStorLoc,A49,TxStorScenario,$E$8,TxStorYear,$F$8,TxStorTech,"Battery") -> 0 | J49: =SUMIFS(TxStorCapacity,TxStorLoc,A49,TxStorScenario,$E$8,TxStorYear,$F$8,TxStorTech,"PHES") -> 0 | K49: =SUMIFS(DGcapacity,DGlocation,A49,DGscenario,$E$8,DGyear,$F$8,DGtech,"Storage")+SUMIFS(micro_capacity,micro_location,A49,micro_scenario,$E$8,micro_year,$F$8,micro_tech,"Battery") -> 1.304 | L49: =SUMIFS(DGcapacity,DGlocation,A49,DGscenario,$E$8,DGyear,$F$8,DGtech,"Solar")+SUMIFS(micro_capacity,micro_location,A49,micro_scenario,$E$8,micro_year,$F$8,micro_tech,"Solar") -> 112.635 | M49: =SUMIFS(DGcapacity,DGlocation,A49,DGscenario,$E$8,DGyear,$F$8,DGtech,"Wind")+SUMIFS(micro_capacity,micro_location,A49,micro_scenario,$E$8,micro_year,$F$8,micro_tech,"Wind") -> 100.443 | N49: =SUMIFS(DGcapacity,DGlocation,A49,DGscenario,$E$8,DGyear,$F$8,DGtech,"Hydro")+SUMIFS(micro_capacity,micro_location,A49,micro_scenario,$E$8,micro_year,$F$8,micro_tech,"Hydro") -> 0.173 | O49: =SUMIFS(DGcapacity,DGlocation,A49,DGscenario,$E$8,DGyear,$F$8,DGtech,"Other")+SUMIFS(micro_capacity,micro_location,A49,micro_scenario,$E$8,micro_year,$F$8,micro_tech,"Other") -> 265.447 | P49: =IF(K49=0,0,(SUMIFS(OFFSET(DGWintPk,0,$Q$8),DGlocation,A49,DGscenario,$E$8,DGyear,$F$8,DGtech,"Storage")+SUMIFS(OFFSET(micro_WintPk,0,$Q$8),micro_location,A49,micro_scenario,$E$8,micro_year,$F$8,micro_tech,"Battery"))/K49) -> 0.8719325153 | Q49: =IF(L49=0,0,(SUMIFS(OFFSET(DGWintPk,0,$Q$8),DGlocation,A49,DGscenario,$E$8,DGyear,$F$8,DGtech,"Solar")+SUMIFS(OFFSET(micro_WintPk,0,$Q$8),micro_location,A49,micro_scenario,$E$8,micro_year,$F$8,micro_tech,"Solar"))/L49) -> 0 | R49: =IF(M49=0,0,(SUMIFS(OFFSET(DGWintPk,0,$Q$8),DGlocation,A49,DGscenario,$E$8,DGyear,$F$8,DGtech,"Wind")+SUMIFS(OFFSET(micro_WintPk,0,$Q$8),micro_location,A49,micro_scenario,$E$8,micro_year,$F$8,micro_tech,"Wind"))/M49) -> 0.2312654939 | S49: =IF(N49=0,0,(SUMIFS(OFFSET(DGWintPk,0,$Q$8),DGlocation,A49,DGscenario,$E$8,DGyear,$F$8,DGtech,"Hydro")+SUMIFS(OFFSET(micro_WintPk,0,$Q$8),micro_location,A49,micro_scenario,$E$8,micro_year,$F$8,micro_tech,"Hydro"))/N49) -> 0.4797687861 | T49: =IF(O49=0,0,(SUMIFS(OFFSET(DGWintPk,0,$Q$8),DGlocation,A49,DGscenario,$E$8,DGyear,$F$8,DGtech,"Other")+SUMIFS(OFFSET(micro_WintPk,0,$Q$8),micro_location,A49,micro_scenario,$E$8,micro_year,$F$8,micro_tech,"Other"))/O49) -> 0.7966373702 | U49: 282.9951 | V49: 212.685 | W49: =SUMIFS(OFFSET(TxStorWintPk,0,$Q$8),TxStorLoc,A49,TxStorScenario,$E$8,TxStorYear,$F$8)*-1 -> 0 | X49: =SUMIFS(OFFSET(DxStorWintpk,0,$Q$8),DxStorLocation,A49,DxStorScenario,$E$8,DxStorYear,$F$8)*-1 -> 0 | Y49: =SUMIFS(OFFSET(mbat_wintpk,0,$Q$8),mbat_location,A49,mbat_scenario,$E$8,mbat_year,$F$8)*-1 -> 0 | Z49: -18.99087038 | AB49: 0.0143551344
A50: H6 | B50: H6 | C50: H | D50: =IF(ISNA(VLOOKUP($A50,Active!$D$22:$AG$114,$F$6,FALSE)),0,VLOOKUP($A50,Active!$D$22:$AG$114,$F$6,FALSE))+SUM(W50:Y50) -> 940.2823821 | E50: =IFERROR(VLOOKUP(A50,'Reactive inc LV Gain'!$D$23:$AG$114,F$6,FALSE),"") -> 78.41204871 | F50: =IF(ISERROR(VLOOKUP($B50,'LV Gain K'!$B$15:$C$98,2,FALSE)+E50),0,VLOOKUP($B50,'LV Gain K'!$B$15:$C$98,2,FALSE)+E50) -> 155.3581346 | G50: 615.2278821 | H50: 732.2503821 | I50: 0 | J50: 0 | K50: 4.066 | L50: 566.345 | M50: 167.175 | N50: 58.089 | O50: 230.128 | P50: 0.8689129365 | Q50: 0 | R50: 0.2314281442 | S50: 0.8291242748 | T50: 0.6793436696 | U50: 325.0545 | V50: 208.032 | W50: 0 | X50: 0 | Y50: 0 | Z50: -20.58837273 | AB50: 0.015562681
A51: J1 | B51: J1 | C51: J | D51: =IF(ISNA(VLOOKUP($A51,Active!$D$22:$AG$114,$F$6,FALSE)),0,VLOOKUP($A51,Active!$D$22:$AG$114,$F$6,FALSE))+SUM(W51:Y51) -> 659.504312 | E51: =IFERROR(VLOOKUP(A51,'Reactive inc LV Gain'!$D$23:$AG$114,F$6,FALSE),"") -> 97.66603725 | F51: =IF(ISERROR(VLOOKUP($B51,'LV Gain K'!$B$15:$C$98,2,FALSE)+E51),0,VLOOKUP($B51,'LV Gain K'!$B$15:$C$98,2,FALSE)+E51) -> 143.2536452 | G51: 401.590812 | H51: 541.615312 | I51: 0 | J51: 0 | K51: 2.236 | L51: 197.75 | M51: 200.035 | N51: 0 | O51: 148.117 | P51: 0.8694096601 | Q51: 0 | R51: 0.2312545305 | S51: 0 | T51: 0.7827933323 | U51: 257.9135 | V51: 117.889 | W51: 0 | X51: 0 | Y51: 0 | Z51: -14.44047113 | AB51: 0.01091550306
A52: J2 | B52: J2 | C52: J | G52: 0 | H52: 0 | I52: 0 | J52: 0 | K52: 0 | L52: 0 | M52: 0 | N52: 0 | O52: 0 | P52: 0 | Q52: 0 | R52: 0 | S52: 0 | T52: 0 | U52: 0 | V52: 0 | W52: 0 | X52: 0 | Y52: 0 | Z52: 0 | AB52: 0
A53: J3 | B53: J3 | C53: J | D53: =IF(ISNA(VLOOKUP($A53,Active!$D$22:$AG$114,$F$6,FALSE)),0,VLOOKUP($A53,Active!$D$22:$AG$114,$F$6,FALSE))+SUM(W53:Y53) -> 571.6604041 | E53: =IFERROR(VLOOKUP(A53,'Reactive inc LV Gain'!$D$23:$AG$114,F$6,FALSE),"") -> 8.46537 | F53: =IF(ISERROR(VLOOKUP($B53,'LV Gain K'!$B$15:$C$98,2,FALSE)+E53),0,VLOOKUP($B53,'LV Gain K'!$B$15:$C$98,2,FALSE)+E53) -> 144.3228847 | G53: 444.9930041 | H53: 507.8544041 | I53: 0 | J53: 0 | K53: 3.212 | L53: 466.036 | M53: 89.802 | N53: 0.035 | O53: 82.165 | P53: 0.8689290162 | Q53: 0 | R53: 0.2312866083 | S53: 0.4857142857 | T53: 0.7423842269 | U53: 126.6674 | V53: 63.806 | W53: 0 | X53: 0 | Y53: 0 | Z53: -12.51704562 | AB53: 0.009461592258
A54: J4 | B54: J4 | C54: J | D54: =IF(ISNA(VLOOKUP($A54,Active!$D$22:$AG$114,$F$6,FALSE)),0,VLOOKUP($A54,Active!$D$22:$AG$114,$F$6,FALSE))+SUM(W54:Y54) -> 244.5489596 | E54: =IFERROR(VLOOKUP(A54,'Reactive inc LV Gain'!$D$23:$AG$114,F$6,FALSE),"") -> 39.34673267 | F54: =IF(ISERROR(VLOOKUP($B54,'LV Gain K'!$B$15:$C$98,2,FALSE)+E54),0,VLOOKUP($B54,'LV Gain K'!$B$15:$C$98,2,FALSE)+E54) -> 48.11385239 | G54: 155.2184596 | H54: 233.4679596 | I54: 0 | J54: 0 | K54: 2.156 | L54: 274.6 | M54: 111.785 | N54: 0.087 | O54: 12.531 | P54: 0.8696660482 | Q54: 0 | R54: 0.231283267 | S54: 0.4827586207 | T54: 0.7313063602 | U54: 89.3305 | V54: 11.081 | W54: 0 | X54: 0 | Y54: 0 | Z54: -5.354630935 | AB54: 0.004047547332
A55: J5 | B55: J5 | C55: J | D55: =IF(ISNA(VLOOKUP($A55,Active!$D$22:$AG$114,$F$6,FALSE)),0,VLOOKUP($A55,Active!$D$22:$AG$114,$F$6,FALSE))+SUM(W55:Y55) -> 512.1488361 | E55: =IFERROR(VLOOKUP(A55,'Reactive inc LV Gain'!$D$23:$AG$114,F$6,FALSE),"") -> 119.8443023 | F55: =IF(ISERROR(VLOOKUP($B55,'LV Gain K'!$B$15:$C$98,2,FALSE)+E55),0,VLOOKUP($B55,'LV Gain K'!$B$15:$C$98,2,FALSE)+E55) -> 201.9586499 | G55: 438.3530361 | H55: 459.8038361 | I55: 0 | J55: 0 | K55: 1.3 | L55: 180.13 | M55: 30.644 | N55: 0.067 | O55: 70.613 | P55: 0.8692307692 | Q55: 0 | R55: 0.2314319279 | S55: 0.4776119403 | T55: 0.7248382026 | U55: 73.7958 | V55: 52.345 | W55: 0 | X55: 0 | Y55: 0 | Z55: -11.21398351 | AB55: 0.008476612036
A56: J6 | B56: J6 | C56: J | D56: =IF(ISNA(VLOOKUP($A56,Active!$D$22:$AG$114,$F$6,FALSE)),0,VLOOKUP($A56,Active!$D$22:$AG$114,$F$6,FALSE))+SUM(W56:Y56) -> 772.9634538 | E56: =IFERROR(VLOOKUP(A56,'Reactive inc LV Gain'!$D$23:$AG$114,F$6,FALSE),"") -> 104.0260297 | F56: =IF(ISERROR(VLOOKUP($B56,'LV Gain K'!$B$15:$C$98,2,FALSE)+E56),0,VLOOKUP($B56,'LV Gain K'!$B$15:$C$98,2,FALSE)+E56) -> 132.6072756 | G56: 610.5579538 | H56: 718.5644538 | I56: 0 | J56: 0 | K56: 2.51 | L56: 290.736 | M56: 154.295 | N56: 0.025 | O56: 73.218 | P56: 0.8685258964 | Q56: 0 | R56: 0.2312583039 | S56: 0.48 | T56: 0.713035046 | U56: 162.4055 | V56: 54.399 | W56: 0 | X56: 0 | Y56: 0 | Z56: -16.92476642 | AB56: 0.01279337344
A57: J7 | B57: J7 | C57: J | D57: =IF(ISNA(VLOOKUP($A57,Active!$D$22:$AG$114,$F$6,FALSE)),0,VLOOKUP($A57,Active!$D$22:$AG$114,$F$6,FALSE))+SUM(W57:Y57) -> 362.8020373 | E57: =IFERROR(VLOOKUP(A57,'Reactive inc LV Gain'!$D$23:$AG$114,F$6,FALSE),"") -> 52.84629786 | F57: =IF(ISERROR(VLOOKUP($B57,'LV Gain K'!$B$15:$C$98,2,FALSE)+E57),0,VLOOKUP($B57,'LV Gain K'!$B$15:$C$98,2,FALSE)+E57) -> 62.26826179 | G57: 153.6249373 | H57: 172.2400373 | I57: 0 | J57: 0 | K57: 2.951 | L57: 496.475 | M57: 26.593 | N57: 0 | O57: 249.126 | P57: 0.8698746188 | Q57: 0 | R57: 0.231414282 | S57: 0 | T57: 0.754618145 | U57: 209.1771 | V57: 190.562 | W57: 0 | X57: 0 | Y57: 0 | Z57: -7.943893996 | AB57: 0.006004762482
A58: J8 | B58: J8 | C58: J | D58: =IF(ISNA(VLOOKUP($A58,Active!$D$22:$AG$114,$F$6,FALSE)),0,VLOOKUP($A58,Active!$D$22:$AG$114,$F$6,FALSE))+SUM(W58:Y58) -> 204.3545798 | E58: =IFERROR(VLOOKUP(A58,'Reactive inc LV Gain'!$D$23:$AG$114,F$6,FALSE),"") -> 35.5291417 | F58: =IF(ISERROR(VLOOKUP($B58,'LV Gain K'!$B$15:$C$98,2,FALSE)+E58),0,VLOOKUP($B58,'LV Gain K'!$B$15:$C$98,2,FALSE)+E58) -> 71.64811242 | G58: 131.9330798 | H58: 132.6225798 | I58: 0 | J58: 0 | K58: 72.662 | L58: 79.116 | M58: 0.985 | N58: 0 | O58: 14.246 | P58: 0.8680052847 | Q58: 0 | R58: 0.2324873096 | S58: 0 | T58: 0.6079601292 | U58: 72.4215 | V58: 71.732 | W58: 0 | X58: 0 | Y58: 0 | Z58: -4.474536944 | AB58: 0.003382287274
A59: K1 | B59: K1 | C59: K | G59: 0 | H59: 0 | I59: 0 | J59: 0 | K59: 0 | L59: 0 | M59: 0 | N59: 0 | O59: 0 | P59: 0 | Q59: 0 | R59: 0 | S59: 0 | T59: 0 | U59: 0 | V59: 0 | W59: 0 | X59: 0 | Y59: 0 | Z59: 0 | AB59: 0
A60: K2 | B60: K2 | C60: K | G60: 0 | H60: 0 | I60: 0 | J60: 0 | K60: 0 | L60: 0 | M60: 0 | N60: 0 | O60: 0 | P60: 0 | Q60: 0 | R60: 0 | S60: 0 | T60: 0 | U60: 0 | V60: 0 | W60: 0 | X60: 0 | Y60: 0 | Z60: 0 | AB60: 0
A61: K4 | B61: K4 | C61: K | D61: =IF(ISNA(VLOOKUP($A61,Active!$D$22:$AG$114,$F$6,FALSE)),0,VLOOKUP($A61,Active!$D$22:$AG$114,$F$6,FALSE))+SUM(W61:Y61) -> 205.5224237 | E61: =IFERROR(VLOOKUP(A61,'Reactive inc LV Gain'!$D$23:$AG$114,F$6,FALSE),"") -> 28.47604285 | F61: =IF(ISERROR(VLOOKUP($B61,'LV Gain K'!$B$15:$C$98,2,FALSE)+E61),0,VLOOKUP($B61,'LV Gain K'!$B$15:$C$98,2,FALSE)+E61) -> 36.0236613 | G61: -10.04227631 | H61: 158.2664237 | I61: 0 | J61: 0 | K61: 2.649 | L61: 221.073 | M61: 240.441 | N61: 0 | O61: 54.44 | P61: 0.8674971687 | Q61: 0 | R61: 0.2311876926 | S61: 0 | T61: 0.8258265981 | U61: 215.5647 | V61: 47.256 | W61: 0 | X61: 0 | Y61: 0 | Z61: -4.500107992 | AB61: 0.003401616342
A62: K5 | B62: K5 | C62: K | D62: =IF(ISNA(VLOOKUP($A62,Active!$D$22:$AG$114,$F$6,FALSE)),0,VLOOKUP($A62,Active!$D$22:$AG$114,$F$6,FALSE))+SUM(W62:Y62) -> 251.8619048 | E62: =IFERROR(VLOOKUP(A62,'Reactive inc LV Gain'!$D$23:$AG$114,F$6,FALSE),"") -> 19.76615684 | F62: =IF(ISERROR(VLOOKUP($B62,'LV Gain K'!$B$15:$C$98,2,FALSE)+E62),0,VLOOKUP($B62,'LV Gain K'!$B$15:$C$98,2,FALSE)+E62) -> 58.92746455 | G62: 173.9553048 | H62: 197.9079048 | I62: 0 | J62: 0 | K62: 1.243 | L62: 189.419 | M62: 34.218 | N62: 0 | O62: 68.304 | P62: 0.8712791633 | Q62: 0 | R62: 0.2316616985 | S62: 0 | T62: 0.7740542282 | U62: 77.9066 | V62: 53.954 | W62: 0 | X62: 0 | Y62: 0 | Z62: -5.51475479 | AB62: 0.00416858441
A63: K6 | B63: K6 | C63: K | D63: =IF(ISNA(VLOOKUP($A63,Active!$D$22:$AG$114,$F$6,FALSE)),0,VLOOKUP($A63,Active!$D$22:$AG$114,$F$6,FALSE))+SUM(W63:Y63) -> 188.3091735 | E63: =IFERROR(VLOOKUP(A63,'Reactive inc LV Gain'!$D$23:$AG$114,F$6,FALSE),"") -> 30.63431966 | F63: =IF(ISERROR(VLOOKUP($B63,'LV Gain K'!$B$15:$C$98,2,FALSE)+E63),0,VLOOKUP($B63,'LV Gain K'!$B$15:$C$98,2,FALSE)+E63) -> 45.53239543 | G63: 173.7863735 | H63: 177.5691735 | I63: 0 | J63: 0 | K63: 0.7 | L63: 112.5 | M63: 5.404 | N63: 0 | O63: 15.473 | P63: 0.8628571429 | Q63: 0 | R63: 0.2326054774 | S63: 0 | T63: 0.655076585 | U63: 14.5228 | V63: 10.74 | W63: 0 | X63: 0 | Y63: 0 | Z63: -4.123207587 | AB63: 0.003116718607
A64: L1 | B64: L1 | C64: L | D64: =IF(ISNA(VLOOKUP($A64,Active!$D$22:$AG$114,$F$6,FALSE)),0,VLOOKUP($A64,Active!$D$22:$AG$114,$F$6,FALSE))+SUM(W64:Y64) -> 354.8000956 | E64: =IFERROR(VLOOKUP(A64,'Reactive inc LV Gain'!$D$23:$AG$114,F$6,FALSE),"") -> 46.42273208 | F64: =IF(ISERROR(VLOOKUP($B64,'LV Gain K'!$B$15:$C$98,2,FALSE)+E64),0,VLOOKUP($B64,'LV Gain K'!$B$15:$C$98,2,FALSE)+E64) -> 81.40902143 | G64: 350.5982956 | H64: 350.6080956 | I64: 0 | J64: 0 | K64: 0.05 | L64: 6.51 | M64: 0.014 | N64: 0 | O64: 6.663 | P64: 0.88 | Q64: 0 | R64: 0.2142857143 | S64: 0 | T64: 0.6225423983 | U64: 4.2018 | V64: 4.192 | W64: 0 | X64: 0 | Y64: 0 | Z64: -7.768683908 | AB64: 0.005872321773
A65: L2 | B65: L2 | C65: L | D65: =IF(ISNA(VLOOKUP($A65,Active!$D$22:$AG$114,$F$6,FALSE)),0,VLOOKUP($A65,Active!$D$22:$AG$114,$F$6,FALSE))+SUM(W65:Y65) -> 1606.753578 | E65: =IFERROR(VLOOKUP(A65,'Reactive inc LV Gain'!$D$23:$AG$114,F$6,FALSE),"") -> 61.36776246 | F65: =IF(ISERROR(VLOOKUP($B65,'LV Gain K'!$B$15:$C$98,2,FALSE)+E65),0,VLOOKUP($B65,'LV Gain K'!$B$15:$C$98,2,FALSE)+E65) -> 332.7868784 | G65: 1503.332278 | H65: 1503.947578 | I65: 0 | J65: 0 | K65: 3.277 | L65: 139.67 | M65: 0.879 | N65: 0.116 | O65: 135.582 | P65: 0.8675617943 | Q65: 0 | R65: 0.2320819113 | S65: 0.4827586207 | T65: 0.7368751014 | U65: 103.4213 | V65: 102.806 | W65: 0 | X65: 0 | Y65: 0 | Z65: -35.18139038 | AB65: 0.02659349346
A66: L3 | B66: L3 | C66: L | D66: =IF(ISNA(VLOOKUP($A66,Active!$D$22:$AG$114,$F$6,FALSE)),0,VLOOKUP($A66,Active!$D$22:$AG$114,$F$6,FALSE))+SUM(W66:Y66) -> 3179.551633 | E66: =IFERROR(VLOOKUP(A66,'Reactive inc LV Gain'!$D$23:$AG$114,F$6,FALSE),"") -> 189.8762573 | F66: =IF(ISERROR(VLOOKUP($B66,'LV Gain K'!$B$15:$C$98,2,FALSE)+E66),0,VLOOKUP($B66,'LV Gain K'!$B$15:$C$98,2,FALSE)+E66) -> 526.1711865 | G66: 2905.115733 | H66: 2920.877633 | I66: 0 | J66: 0 | K66: 4.019 | L66: 294.08 | M66: 22.517 | N66: 0.942 | O66: 333.196 | P66: 0.8698681264 | Q66: 0 | R66: 0.2312919128 | S66: 0.4798301486 | T66: 0.7644929711 | U66: 274.4359 | V66: 258.674 | W66: 0 | X66: 0 | Y66: 0 | Z66: -69.61929243 | AB66: 0.05262498662
A67: L5 | B67: L5 | C67: L | D67: =IF(ISNA(VLOOKUP($A67,Active!$D$22:$AG$114,$F$6,FALSE)),0,VLOOKUP($A67,Active!$D$22:$AG$114,$F$6,FALSE))+SUM(W67:Y67) -> 1362.609666 | E67: =IFERROR(VLOOKUP(A67,'Reactive inc LV Gain'!$D$23:$AG$114,F$6,FALSE),"") -> 182.6984988 | F67: =IF(ISERROR(VLOOKUP($B67,'LV Gain K'!$B$15:$C$98,2,FALSE)+E67),0,VLOOKUP($B67,'LV Gain K'!$B$15:$C$98,2,FALSE)+E67) -> 303.755898 | G67: 1210.179566 | H67: 1237.222666 | I67: 0 | J67: 0 | K67: 2.395 | L67: 357.242 | M67: 38.633 | N67: 0.398 | O67: 169.385 | P67: 0.8688935282 | Q67: 0 | R67: 0.231434266 | S67: 0.4798994975 | T67: 0.726835316 | U67: 152.4301 | V67: 125.387 | W67: 0 | X67: 0 | Y67: 0 | Z67: -29.83562833 | AB67: 0.02255265009
A68: L7 | B68: L7 | C68: L | D68: =IF(ISNA(VLOOKUP($A68,Active!$D$22:$AG$114,$F$6,FALSE)),0,VLOOKUP($A68,Active!$D$22:$AG$114,$F$6,FALSE))+SUM(W68:Y68) -> 696.0024327 | E68: =IFERROR(VLOOKUP(A68,'Reactive inc LV Gain'!$D$23:$AG$114,F$6,FALSE),"") -> 5.204274385 | F68: =IF(ISERROR(VLOOKUP($B68,'LV Gain K'!$B$15:$C$98,2,FALSE)+E68),0,VLOOKUP($B68,'LV Gain K'!$B$15:$C$98,2,FALSE)+E68) -> 123.6976188 | G68: 649.6185327 | H68: 659.6894327 | I68: 0 | J68: 0 | K68: 0.843 | L68: 120.622 | M68: 14.387 | N68: 1.6 | O68: 48.735 | P68: 0.8730723606 | Q68: 0 | R68: 0.2315284632 | S68: 0.85 | T68: 0.7021032112 | U68: 46.3839 | V68: 36.313 | W68: 0 | X68: 0 | Y68: 0 | Z68: -15.23963202 | AB68: 0.01151958607
A69: L8 | B69: L8 | C69: L | D69: =IF(ISNA(VLOOKUP($A69,Active!$D$22:$AG$114,$F$6,FALSE)),0,VLOOKUP($A69,Active!$D$22:$AG$114,$F$6,FALSE))+SUM(W69:Y69) -> 601.4673792 | E69: =IFERROR(VLOOKUP(A69,'Reactive inc LV Gain'!$D$23:$AG$114,F$6,FALSE),"") -> 66.9886462 | F69: =IF(ISERROR(VLOOKUP($B69,'LV Gain K'!$B$15:$C$98,2,FALSE)+E69),0,VLOOKUP($B69,'LV Gain K'!$B$15:$C$98,2,FALSE)+E69) -> 69.92283698 | G69: 549.5376792 | H69: 579.9603792 | I69: 0 | J69: 0 | K69: 0.546 | L69: 47.801 | M69: 43.461 | N69: 0 | O69: 32.716 | P69: 0.8644688645 | Q69: 0 | R69: 0.2314949035 | S69: 0 | T69: 0.6429575743 | U69: 51.9297 | V69: 21.507 | W69: 0 | X69: 0 | Y69: 0 | Z69: -13.16969755 | AB69: 0.009954929636
A70: M4 | B70: M4 | C70: M | D70: =IF(ISNA(VLOOKUP($A70,Active!$D$22:$AG$114,$F$6,FALSE)),0,VLOOKUP($A70,Active!$D$22:$AG$114,$F$6,FALSE))+SUM(W70:Y70) -> 341.9469119 | E70: =IFERROR(VLOOKUP(A70,'Reactive inc LV Gain'!$D$23:$AG$114,F$6,FALSE),"") -> 63.83132842 | F70: =IF(ISERROR(VLOOKUP($B70,'LV Gain K'!$B$15:$C$98,2,FALSE)+E70),0,VLOOKUP($B70,'LV Gain K'!$B$15:$C$98,2,FALSE)+E70) -> 70.53992316 | G70: 309.6564119 | H70: 322.4629119 | I70: 0 | J70: 0 | K70: 0.451 | L70: 57.425 | M70: 18.295 | N70: 2.124 | O70: 26.788 | P70: 0.8736141907 | Q70: 0 | R70: 0.2318666302 | S70: 0.4802259887 | T70: 0.6745557712 | U70: 32.2905 | V70: 19.484 | W70: 0 | X70: 0 | Y70: 0 | Z70: -7.487251285 | AB70: 0.005659587809
A71: M5 | B71: M5 | C71: M | D71: =IF(ISNA(VLOOKUP($A71,Active!$D$22:$AG$114,$F$6,FALSE)),0,VLOOKUP($A71,Active!$D$22:$AG$114,$F$6,FALSE))+SUM(W71:Y71) -> 256.4155505 | E71: =IFERROR(VLOOKUP(A71,'Reactive inc LV Gain'!$D$23:$AG$114,F$6,FALSE),"") -> 47.25699359 | F71: =IF(ISERROR(VLOOKUP($B71,'LV Gain K'!$B$15:$C$98,2,FALSE)+E71),0,VLOOKUP($B71,'LV Gain K'!$B$15:$C$98,2,FALSE)+E71) -> 52.1238413 | G71: 219.4356505 | H71: 239.2435505 | I71: 0 | J71: 0 | K71: 0.323 | L71: 24.622 | M71: 28.297 | N71: 0.176 | O71: 22.921 | P71: 0.8761609907 | Q71: 0 | R71: 0.2311199067 | S71: 0.4829545455 | T71: 0.7331268269 | U71: 36.9799 | V71: 17.172 | W71: 0 | X71: 0 | Y71: 0 | Z71: -5.614461174 | AB71: 0.004243952126
A72: M6 | B72: M6 | C72: M | D72: =IF(ISNA(VLOOKUP($A72,Active!$D$22:$AG$114,$F$6,FALSE)),0,VLOOKUP($A72,Active!$D$22:$AG$114,$F$6,FALSE))+SUM(W72:Y72) -> 145.0588259 | E72: =IFERROR(VLOOKUP(A72,'Reactive inc LV Gain'!$D$23:$AG$114,F$6,FALSE),"") -> 17.53641372 | F72: =IF(ISERROR(VLOOKUP($B72,'LV Gain K'!$B$15:$C$98,2,FALSE)+E72),0,VLOOKUP($B72,'LV Gain K'!$B$15:$C$98,2,FALSE)+E72) -> 43.29867502 | G72: 84.07732588 | H72: 138.1628259 | I72: 0 | J72: 1644 | K72: 0.905 | L72: 85.328 | M72: 77.265 | N72: 4.44 | O72: 5.698 | P72: 0.8662983425 | Q72: 0 | R72: 0.2311913544 | S72: 0.5693693694 | T72: 0.628992629 | U72: 60.9815 | V72: 6.896 | W72: 0 | X72: 0 | Y72: 0 | Z72: -3.176200289 | AB72: 0.002400879008
A73: M7 | B73: M7 | C73: M | D73: =IF(ISNA(VLOOKUP($A73,Active!$D$22:$AG$114,$F$6,FALSE)),0,VLOOKUP($A73,Active!$D$22:$AG$114,$F$6,FALSE))+SUM(W73:Y73) -> 29.3970961 | E73: =IFERROR(VLOOKUP(A73,'Reactive inc LV Gain'!$D$23:$AG$114,F$6,FALSE),"") -> -20.68205683 | F73: =IF(ISERROR(VLOOKUP($B73,'LV Gain K'!$B$15:$C$98,2,FALSE)+E73),0,VLOOKUP($B73,'LV Gain K'!$B$15:$C$98,2,FALSE)+E73) -> 83.99207437 | G73: -89.8139039 | H73: 4.672096104 | I73: 0 | J73: 360 | K73: 0.794 | L73: 9.624 | M73: 134.98 | N73: 32.229 | O73: 2.702 | P73: 0.862720403 | Q73: 0 | R73: 0.2311823974 | S73: 0.694064352 | T73: 0.618430792 | U73: 119.211 | V73: 24.725 | W73: 0 | X73: 0 | Y73: 0 | Z73: -0.6436772433 | AB73: 0.0004865534413
A74: M8 | B74: M8 | C74: M | D74: =IF(ISNA(VLOOKUP($A74,Active!$D$22:$AG$114,$F$6,FALSE)),0,VLOOKUP($A74,Active!$D$22:$AG$114,$F$6,FALSE))+SUM(W74:Y74) -> 48.40800087 | E74: =IFERROR(VLOOKUP(A74,'Reactive inc LV Gain'!$D$23:$AG$114,F$6,FALSE),"") -> 6.409468144 | F74: =IF(ISERROR(VLOOKUP($B74,'LV Gain K'!$B$15:$C$98,2,FALSE)+E74),0,VLOOKUP($B74,'LV Gain K'!$B$15:$C$98,2,FALSE)+E74) -> 53.61854964 | G74: 20.04000087 | H74: 48.20800087 | I74: 0 | J74: 0 | K74: 0.233 | L74: 2.938 | M74: 40.24 | N74: 0 | O74: 0 | P74: 0.8583690987 | Q74: 0 | R74: 0.2313121272 | S74: 0 | T74: 0 | U74: 28.368 | V74: 0.2 | W74: 0 | X74: 0 | Y74: 0 | Z74: -1.059938997 | AB74: 0.0008012042866
A75: N1 | B75: N1 | C75: N | D75: =IF(ISNA(VLOOKUP($A75,Active!$D$22:$AG$114,$F$6,FALSE)),0,VLOOKUP($A75,Active!$D$22:$AG$114,$F$6,FALSE))+SUM(W75:Y75) -> 1449.901225 | E75: =IFERROR(VLOOKUP(A75,'Reactive inc LV Gain'!$D$23:$AG$114,F$6,FALSE),"") -> -5.792632012 | F75: =IF(ISERROR(VLOOKUP($B75,'LV Gain K'!$B$15:$C$98,2,FALSE)+E75),0,VLOOKUP($B75,'LV Gain K'!$B$15:$C$98,2,FALSE)+E75) -> 242.2793445 | G75: 1263.577325 | H75: 1276.371225 | I75: 0 | J75: 0 | K75: 0.445 | L75: 46.072 | M75: 18.277 | N75: 0 | O75: 221.915 | P75: 0.8741573034 | Q75: 0 | R75: 0.2310554249 | S75: 0 | T75: 0.7802131447 | U75: 186.3239 | V75: 173.53 | W75: 0 | X75: 0 | Y75: 0 | Z75: -31.74695965 | AB75: 0.02399741894
A76: N2 | B76: N2 | C76: N | D76: =IF(ISNA(VLOOKUP($A76,Active!$D$22:$AG$114,$F$6,FALSE)),0,VLOOKUP($A76,Active!$D$22:$AG$114,$F$6,FALSE))+SUM(W76:Y76) -> 1123.421229 | E76: =IFERROR(VLOOKUP(A76,'Reactive inc LV Gain'!$D$23:$AG$114,F$6,FALSE),"") -> 85.02360742 | F76: =IF(ISERROR(VLOOKUP($B76,'LV Gain K'!$B$15:$C$98,2,FALSE)+E76),0,VLOOKUP($B76,'LV Gain K'!$B$15:$C$98,2,FALSE)+E76) -> 302.0107952 | G76: 1008.498829 | H76: 1008.703229 | I76: 0 | J76: 0 | K76: 0.403 | L76: 52.179 | M76: 0.292 | N76: 0.224 | O76: 152.975 | P76: 0.8734491315 | Q76: 0 | R76: 0.2328767123 | S76: 0.4821428571 | T76: 0.7469063572 | U76: 114.9224 | V76: 114.718 | W76: 0 | X76: 0 | Y76: 0 | Z76: -24.59837113 | AB76: 0.01859382516
A77: N3 | B77: N3 | C77: N | D77: =IF(ISNA(VLOOKUP($A77,Active!$D$22:$AG$114,$F$6,FALSE)),0,VLOOKUP($A77,Active!$D$22:$AG$114,$F$6,FALSE))+SUM(W77:Y77) -> 836.6292068 | E77: =IFERROR(VLOOKUP(A77,'Reactive inc LV Gain'!$D$23:$AG$114,F$6,FALSE),"") -> 118.4925761 | F77: =IF(ISERROR(VLOOKUP($B77,'LV Gain K'!$B$15:$C$98,2,FALSE)+E77),0,VLOOKUP($B77,'LV Gain K'!$B$15:$C$98,2,FALSE)+E77) -> 239.8418409 | G77: 252.1219068 | H77: 378.1912068 | I77: 0 | J77: 0 | K77: 1.238 | L77: 33.586 | M77: 180.099 | N77: 0 | O77: 546.364 | P77: 0.8691437803 | Q77: 0 | R77: 0.2312228274 | S77: 0 | T77: 0.8371012731 | U77: 584.5073 | V77: 458.438 | W77: 0 | X77: 0 | Y77: 0 | Z77: -18.31878834 | AB77: 0.01384710987
A78: N4 | B78: N4 | C78: N | D78: =IF(ISNA(VLOOKUP($A78,Active!$D$22:$AG$114,$F$6,FALSE)),0,VLOOKUP($A78,Active!$D$22:$AG$114,$F$6,FALSE))+SUM(W78:Y78) -> 1309.621389 | E78: =IFERROR(VLOOKUP(A78,'Reactive inc LV Gain'!$D$23:$AG$114,F$6,FALSE),"") -> 109.8732813 | F78: =IF(ISERROR(VLOOKUP($B78,'LV Gain K'!$B$15:$C$98,2,FALSE)+E78),0,VLOOKUP($B78,'LV Gain K'!$B$15:$C$98,2,FALSE)+E78) -> 312.4606435 | G78: 1185.753089 | H78: 1269.038389 | I78: 0 | J78: 0 | K78: 6.05 | L78: 55.602 | M78: 118.979 | N78: 1.43 | O78: 54.998 | P78: 0.867768595 | Q78: 0 | R78: 0.2311836543 | S78: 0.4797202797 | T78: 0.6299683625 | U78: 123.8683 | V78: 40.583 | W78: 0 | X78: 0 | Y78: 0 | Z78: -28.67539986 | AB78: 0.02167563733
A79: N5 | B79: N5 | C79: N | D79: =IF(ISNA(VLOOKUP($A79,Active!$D$22:$AG$114,$F$6,FALSE)),0,VLOOKUP($A79,Active!$D$22:$AG$114,$F$6,FALSE))+SUM(W79:Y79) -> 297.5385243 | E79: =IFERROR(VLOOKUP(A79,'Reactive inc LV Gain'!$D$23:$AG$114,F$6,FALSE),"") -> 51.28454784 | F79: =IF(ISERROR(VLOOKUP($B79,'LV Gain K'!$B$15:$C$98,2,FALSE)+E79),0,VLOOKUP($B79,'LV Gain K'!$B$15:$C$98,2,FALSE)+E79) -> 64.53562886 | G79: 192.4881243 | H79: 232.3335243 | I79: 0 | J79: 0 | K79: 0.508 | L79: 28.676 | M79: 56.922 | N79: 0.518 | O79: 77.904 | P79: 0.8700787402 | Q79: 0 | R79: 0.2312814026 | S79: 0.4806949807 | T79: 0.8281217909 | U79: 105.0504 | V79: 65.205 | W79: 0 | X79: 0 | Y79: 0 | Z79: -6.514887607 | AB79: 0.004924581408
A80: N6 | B80: N6 | C80: N | D80: =IF(ISNA(VLOOKUP($A80,Active!$D$22:$AG$114,$F$6,FALSE)),0,VLOOKUP($A80,Active!$D$22:$AG$114,$F$6,FALSE))+SUM(W80:Y80) -> 75.58296959 | E80: =IFERROR(VLOOKUP(A80,'Reactive inc LV Gain'!$D$23:$AG$114,F$6,FALSE),"") -> 7.357009479 | F80: =IF(ISERROR(VLOOKUP($B80,'LV Gain K'!$B$15:$C$98,2,FALSE)+E80),0,VLOOKUP($B80,'LV Gain K'!$B$15:$C$98,2,FALSE)+E80) -> 7.357009479 | G80: 18.03836959 | H80: 18.13496959 | I80: 0 | J80: 0 | K80: 0.067 | L80: 8.717 | M80: 0.138 | N80: 0.063 | O80: 71.387 | P80: 0.8656716418 | Q80: 0 | R80: 0.231884058 | S80: 0.4761904762 | T80: 0.8035076414 | U80: 57.5446 | V80: 57.448 | W80: 0 | X80: 0 | Y80: 0 | Z80: -1.654960658 | AB80: 0.001250979139
A81: N7 | B81: N7 | C81: N | D81: =IF(ISNA(VLOOKUP($A81,Active!$D$22:$AG$114,$F$6,FALSE)),0,VLOOKUP($A81,Active!$D$22:$AG$114,$F$6,FALSE))+SUM(W81:Y81) -> 396.695059 | E81: =IFERROR(VLOOKUP(A81,'Reactive inc LV Gain'!$D$23:$AG$114,F$6,FALSE),"") -> 63.83249624 | F81: =IF(ISERROR(VLOOKUP($B81,'LV Gain K'!$B$15:$C$98,2,FALSE)+E81),0,VLOOKUP($B81,'LV Gain K'!$B$15:$C$98,2,FALSE)+E81) -> 97.38346305 | G81: 395.554259 | H81: 395.662059 | I81: =SUMIFS(TxStorCapacity,TxStorLoc,A81,TxStorScenario,$E$8,TxStorYear,$F$8,TxStorTech,"Battery") -> 0 | J81: =SUMIFS(TxStorCapacity,TxStorLoc,A81,TxStorScenario,$E$8,TxStorYear,$F$8,TxStorTech,"PHES") -> 0 | K81: =SUMIFS(DGcapacity,DGlocation,A81,DGscenario,$E$8,DGyear,$F$8,DGtech,"Storage")+SUMIFS(micro_capacity,micro_location,A81,micro_scenario,$E$8,micro_year,$F$8,micro_tech,"Battery") -> 0.119 | L81: =SUMIFS(DGcapacity,DGlocation,A81,DGscenario,$E$8,DGyear,$F$8,DGtech,"Solar")+SUMIFS(micro_capacity,micro_location,A81,micro_scenario,$E$8,micro_year,$F$8,micro_tech,"Solar") -> 16.247 | M81: =SUMIFS(DGcapacity,DGlocation,A81,DGscenario,$E$8,DGyear,$F$8,DGtech,"Wind")+SUMIFS(micro_capacity,micro_location,A81,micro_scenario,$E$8,micro_year,$F$8,micro_tech,"Wind") -> 0.154 | N81: =SUMIFS(DGcapacity,DGlocation,A81,DGscenario,$E$8,DGyear,$F$8,DGtech,"Hydro")+SUMIFS(micro_capacity,micro_location,A81,micro_scenario,$E$8,micro_year,$F$8,micro_tech,"Hydro") -> 0.228 | O81: =SUMIFS(DGcapacity,DGlocation,A81,DGscenario,$E$8,DGyear,$F$8,DGtech,"Other")+SUMIFS(micro_capacity,micro_location,A81,micro_scenario,$E$8,micro_year,$F$8,micro_tech,"Other") -> 1.16 | P81: =IF(K81=0,0,(SUMIFS(OFFSET(DGWintPk,0,$Q$8),DGlocation,A81,DGscenario,$E$8,DGyear,$F$8,DGtech,"Storage")+SUMIFS(OFFSET(micro_WintPk,0,$Q$8),micro_location,A81,micro_scenario,$E$8,micro_year,$F$8,micro_tech,"Battery"))/K81) -> 0.8907563025 | Q81: =IF(L81=0,0,(SUMIFS(OFFSET(DGWintPk,0,$Q$8),DGlocation,A81,DGscenario,$E$8,DGyear,$F$8,DGtech,"Solar")+SUMIFS(OFFSET(micro_WintPk,0,$Q$8),micro_location,A81,micro_scenario,$E$8,micro_year,$F$8,micro_tech,"Solar"))/L81) -> 0 | R81: =IF(M81=0,0,(SUMIFS(OFFSET(DGWintPk,0,$Q$8),DGlocation,A81,DGscenario,$E$8,DGyear,$F$8,DGtech,"Wind")+SUMIFS(OFFSET(micro_WintPk,0,$Q$8),micro_location,A81,micro_scenario,$E$8,micro_year,$F$8,micro_tech,"Wind"))/M81) -> 0.2337662338 | S81: =IF(N81=0,0,(SUMIFS(OFFSET(DGWintPk,0,$Q$8),DGlocation,A81,DGscenario,$E$8,DGyear,$F$8,DGtech,"Hydro")+SUMIFS(OFFSET(micro_WintPk,0,$Q$8),micro_location,A81,micro_scenario,$E$8,micro_year,$F$8,micro_tech,"Hydro"))/N81) -> 0.4780701754 | T81: =IF(O81=0,0,(SUMIFS(OFFSET(DGWintPk,0,$Q$8),DGlocation,A81,DGscenario,$E$8,DGyear,$F$8,DGtech,"Other")+SUMIFS(OFFSET(micro_WintPk,0,$Q$8),micro_location,A81,micro_scenario,$E$8,micro_year,$F$8,micro_tech,"Other"))/O81) -> 0.7051724138 | U81: 1.1408 | V81: 1.033 | W81: =SUMIFS(OFFSET(TxStorWintPk,0,$Q$8),TxStorLoc,A81,TxStorScenario,$E$8,TxStorYear,$F$8)*-1 -> 0 | X81: =SUMIFS(OFFSET(DxStorWintpk,0,$Q$8),DxStorLocation,A81,DxStorScenario,$E$8,DxStorYear,$F$8)*-1 -> 0 | Y81: =SUMIFS(OFFSET(mbat_wintpk,0,$Q$8),mbat_location,A81,mbat_scenario,$E$8,mbat_year,$F$8)*-1 -> 0 | Z81: -8.686013786 | AB81: 0.006565728311
A82: P1 | B82: P1 | C82: P | D82: =IF(ISNA(VLOOKUP($A82,Active!$D$22:$AG$114,$F$6,FALSE)),0,VLOOKUP($A82,Active!$D$22:$AG$114,$F$6,FALSE))+SUM(W82:Y82) -> 1810.833726 | E82: =IFERROR(VLOOKUP(A82,'Reactive inc LV Gain'!$D$23:$AG$114,F$6,FALSE),"") -> 71.19570385 | F82: =IF(ISERROR(VLOOKUP($B82,'LV Gain K'!$B$15:$C$98,2,FALSE)+E82),0,VLOOKUP($B82,'LV Gain K'!$B$15:$C$98,2,FALSE)+E82) -> 286.829823 | G82: =D82-U82 -> 1639.888426 | H82: =D82-V82 -> 1678.296726 | I82: 0 | J82: 0 | K82: 0.921 | L82: 89.951 | M82: 54.869 | N82: 3.617 | O82: 164.842 | P82: 0.8729641694 | Q82: 0 | R82: 0.2314603875 | S82: 0.6845452032 | T82: 0.7841266182 | U82: =(K82*P82)+(L82*Q82)+(M82*$U$5)+(N82*S82)+(O82*T82) -> 170.9453 | V82: =(K82*P82)+(L82*Q82)+(M82*$V$5)+(N82*S82)+(O82*T82) -> 132.537 | W82: 0 | X82: 0 | Y82: 0 | Z82: =$AB$13*AB82 -> -39.64991838 | AB82: =D82/$D$13 -> 0.02997123859
A83: P2 | B83: P2 | C83: =LEFT(B83,1) -> P | D83: =IF(ISNA(VLOOKUP($A83,Active!$D$22:$AG$114,$F$6,FALSE)),0,VLOOKUP($A83,Active!$D$22:$AG$114,$F$6,FALSE))+SUM(W83:Y83) -> 251.6978024 | E83: =IFERROR(VLOOKUP(A83,'Reactive inc LV Gain'!$D$23:$AG$114,F$6,FALSE),"") -> 2.230587467 | F83: =IF(ISERROR(VLOOKUP($B83,'LV Gain K'!$B$15:$C$98,2,FALSE)+E83),0,VLOOKUP($B83,'LV Gain K'!$B$15:$C$98,2,FALSE)+E83) -> 3.080323425 | G83: 233.7380024 | H83: 234.5108024 | I83: 0 | J83: 0 | K83: 0.271 | L83: 35.053 | M83: 1.104 | N83: 1.675 | O83: 24.47 | P83: 0.8745387454 | Q83: 0 | R83: 0.2327898551 | S83: 0.48 | T83: 0.6598283613 | U83: 17.9598 | V83: 17.187 | W83: 0 | X83: 0 | Y83: 0 | Z83: -5.511161614 | AB83: 0.00416586834
A84: P3 | B84: P3 | C84: P | D84: =IF(ISNA(VLOOKUP($A84,Active!$D$22:$AG$114,$F$6,FALSE)),0,VLOOKUP($A84,Active!$D$22:$AG$114,$F$6,FALSE))+SUM(W84:Y84) -> 1915.697883 | E84: =IFERROR(VLOOKUP(A84,'Reactive inc LV Gain'!$D$23:$AG$114,F$6,FALSE),"") -> 280.1942369 | F84: =IF(ISERROR(VLOOKUP($B84,'LV Gain K'!$B$15:$C$98,2,FALSE)+E84),0,VLOOKUP($B84,'LV Gain K'!$B$15:$C$98,2,FALSE)+E84) -> 319.5902733 | G84: 1748.274983 | H84: 1795.333883 | I84: 0 | J84: 0 | K84: 3.152 | L84: 165.388 | M84: 67.227 | N84: 1.809 | O84: 144.486 | P84: 0.869606599 | Q84: 0 | R84: 0.2313207491 | S84: 0.4798231067 | T84: 0.8080713702 | U84: 167.4229 | V84: 120.364 | W84: 0 | X84: 0 | Y84: 0 | Z84: -41.94601834 | AB84: 0.03170685276
A85: P4 | B85: P4 | C85: P | D85: =IF(ISNA(VLOOKUP($A85,Active!$D$22:$AG$114,$F$6,FALSE)),0,VLOOKUP($A85,Active!$D$22:$AG$114,$F$6,FALSE))+SUM(W85:Y85) -> 119.7250905 | E85: =IFERROR(VLOOKUP(A85,'Reactive inc LV Gain'!$D$23:$AG$114,F$6,FALSE),"") -> 9.68529249 | F85: =IF(ISERROR(VLOOKUP($B85,'LV Gain K'!$B$15:$C$98,2,FALSE)+E85),0,VLOOKUP($B85,'LV Gain K'!$B$15:$C$98,2,FALSE)+E85) -> 13.69188632 | G85: 52.33869053 | H85: 97.77709053 | I85: 0 | J85: 0 | K85: 0.43 | L85: 12.959 | M85: 64.912 | N85: 0 | O85: 26.049 | P85: 0.876744186 | Q85: 0 | R85: 0.231297757 | S85: 0 | T85: 0.828093209 | U85: 67.3864 | V85: 21.948 | W85: 0 | X85: 0 | Y85: 0 | Z85: -2.621494176 | AB85: 0.001981578541
A86: P5 | B86: P5 | C86: P | D86: =IF(ISNA(VLOOKUP($A86,Active!$D$22:$AG$114,$F$6,FALSE)),0,VLOOKUP($A86,Active!$D$22:$AG$114,$F$6,FALSE))+SUM(W86:Y86) -> 361.9168388 | E86: =IFERROR(VLOOKUP(A86,'Reactive inc LV Gain'!$D$23:$AG$114,F$6,FALSE),"") -> 27.24441648 | F86: =IF(ISERROR(VLOOKUP($B86,'LV Gain K'!$B$15:$C$98,2,FALSE)+E86),0,VLOOKUP($B86,'LV Gain K'!$B$15:$C$98,2,FALSE)+E86) -> 34.70048728 | G86: 236.6582388 | H86: 238.3368388 | I86: 0 | J86: 0 | K86: 0.091 | L86: 11.818 | M86: 2.398 | N86: 0 | O86: 156.028 | P86: 0.8681318681 | Q86: 0 | R86: 0.2326939116 | S86: 0 | T86: 0.7915310073 | U86: 125.2586 | V86: 123.58 | W86: 0 | X86: 0 | Y86: 0 | Z86: -7.924511736 | AB86: 0.005990111498
A87: P6 | B87: P6 | C87: P | D87: =IF(ISNA(VLOOKUP($A87,Active!$D$22:$AG$114,$F$6,FALSE)),0,VLOOKUP($A87,Active!$D$22:$AG$114,$F$6,FALSE))+SUM(W87:Y87) -> 418.4915287 | E87: =IFERROR(VLOOKUP(A87,'Reactive inc LV Gain'!$D$23:$AG$114,F$6,FALSE),"") -> 27.43359068 | F87: =IF(ISERROR(VLOOKUP($B87,'LV Gain K'!$B$15:$C$98,2,FALSE)+E87),0,VLOOKUP($B87,'LV Gain K'!$B$15:$C$98,2,FALSE)+E87) -> 59.38338978 | G87: 318.6387287 | H87: 367.7885287 | I87: 0 | J87: 0 | K87: 0.654 | L87: 43.911 | M87: 70.214 | N87: 0.09 | O87: 66.836 | P87: 0.8654434251 | Q87: 0 | R87: 0.2313783576 | S87: 0.4777777778 | T87: 0.7495062541 | U87: 99.8528 | V87: 50.703 | W87: 0 | X87: 0 | Y87: 0 | Z87: -9.163268119 | AB87: 0.006926483239
A88: P7 | B88: P7 | C88: P | D88: =IF(ISNA(VLOOKUP($A88,Active!$D$22:$AG$114,$F$6,FALSE)),0,VLOOKUP($A88,Active!$D$22:$AG$114,$F$6,FALSE))+SUM(W88:Y88) -> 141.0548083 | E88: =IFERROR(VLOOKUP(A88,'Reactive inc LV Gain'!$D$23:$AG$114,F$6,FALSE),"") -> -0.763736164 | F88: =IF(ISERROR(VLOOKUP($B88,'LV Gain K'!$B$15:$C$98,2,FALSE)+E88),0,VLOOKUP($B88,'LV Gain K'!$B$15:$C$98,2,FALSE)+E88) -> 9.411030999 | G88: 20.20950831 | H88: 67.06680831 | I88: 0 | J88: 0 | K88: 0.524 | L88: 25.19 | M88: 66.939 | N88: 0 | O88: 89.605 | P88: 0.8759541985 | Q88: 0 | R88: 0.2313897728 | S88: 0 | T88: 0.8205903688 | U88: 120.8453 | V88: 73.988 | W88: 0 | X88: 0 | Y88: 0 | Z88: -3.088528535 | AB88: 0.002334608226
A89: P8 | B89: P8 | C89: P | D89: =IF(ISNA(VLOOKUP($A89,Active!$D$22:$AG$114,$F$6,FALSE)),0,VLOOKUP($A89,Active!$D$22:$AG$114,$F$6,FALSE))+SUM(W89:Y89) -> 526.3393727 | E89: =IFERROR(VLOOKUP(A89,'Reactive inc LV Gain'!$D$23:$AG$114,F$6,FALSE),"") -> 48.19244865 | F89: =IF(ISERROR(VLOOKUP($B89,'LV Gain K'!$B$15:$C$98,2,FALSE)+E89),0,VLOOKUP($B89,'LV Gain K'!$B$15:$C$98,2,FALSE)+E89) -> 105.1337601 | G89: 275.4255727 | H89: 485.6943727 | I89: 0 | J89: 0 | K89: 2.318 | L89: 123.417 | M89: 300.384 | N89: 0 | O89: 55.169 | P89: 0.8701466782 | Q89: 0 | R89: 0.2313405508 | S89: 0 | T89: 0.7001758234 | U89: 250.9138 | V89: 40.645 | W89: 0 | X89: 0 | Y89: 0 | Z89: -11.52469874 | AB89: 0.008711480624
A90: Q2 | B90: Q2 | C90: Q | D90: =IF(ISNA(VLOOKUP($A90,Active!$D$22:$AG$114,$F$6,FALSE)),0,VLOOKUP($A90,Active!$D$22:$AG$114,$F$6,FALSE))+SUM(W90:Y90) -> 215.8747078 | E90: =IFERROR(VLOOKUP(A90,'Reactive inc LV Gain'!$D$23:$AG$114,F$6,FALSE),"") -> -44.90399192 | F90: =IF(ISERROR(VLOOKUP($B90,'LV Gain K'!$B$15:$C$98,2,FALSE)+E90),0,VLOOKUP($B90,'LV Gain K'!$B$15:$C$98,2,FALSE)+E90) -> -7.498022101 | G90: -216.0719922 | H90: -161.2752922 | I90: 0 | J90: 0 | K90: 0.548 | L90: 17.722 | M90: 78.281 | N90: 0.25 | O90: 477.639 | P90: 0.8594890511 | Q90: 0 | R90: 0.2311927543 | S90: 0.48 | T90: 0.7883757398 | U90: 431.9467 | V90: 377.15 | W90: 0 | X90: 0 | Y90: 0 | Z90: -4.72678105 | AB90: 0.003572957737
A91: Q4 | B91: Q4 | C91: Q | D91: =IF(ISNA(VLOOKUP($A91,Active!$D$22:$AG$114,$F$6,FALSE)),0,VLOOKUP($A91,Active!$D$22:$AG$114,$F$6,FALSE))+SUM(W91:Y91) -> 1359.872818 | E91: =IFERROR(VLOOKUP(A91,'Reactive inc LV Gain'!$D$23:$AG$114,F$6,FALSE),"") -> 39.57569439 | F91: =IF(ISERROR(VLOOKUP($B91,'LV Gain K'!$B$15:$C$98,2,FALSE)+E91),0,VLOOKUP($B91,'LV Gain K'!$B$15:$C$98,2,FALSE)+E91) -> 107.3847125 | G91: 1279.073318 | H91: 1340.207818 | I91: 0 | J91: 0 | K91: 1.223 | L91: 80.89 | M91: 87.335 | N91: 0.879 | O91: 29.638 | P91: 0.8691741619 | Q91: 0 | R91: 0.2312932959 | S91: 0.4800910125 | T91: 0.613401714 | U91: 80.7995 | V91: 19.665 | W91: 0 | X91: 0 | Y91: 0 | Z91: -29.77570246 | AB91: 0.02250735233
A92: Q5 | B92: Q5 | C92: Q | D92: =IF(ISNA(VLOOKUP($A92,Active!$D$22:$AG$114,$F$6,FALSE)),0,VLOOKUP($A92,Active!$D$22:$AG$114,$F$6,FALSE))+SUM(W92:Y92) -> 542.0178744 | E92: =IFERROR(VLOOKUP(A92,'Reactive inc LV Gain'!$D$23:$AG$114,F$6,FALSE),"") -> 21.59840475 | F92: =IF(ISERROR(VLOOKUP($B92,'LV Gain K'!$B$15:$C$98,2,FALSE)+E92),0,VLOOKUP($B92,'LV Gain K'!$B$15:$C$98,2,FALSE)+E92) -> 37.49687187 | G92: 497.1028744 | H92: 520.5038744 | I92: 0 | J92: 0 | K92: 0.348 | L92: 24.414 | M92: 33.43 | N92: 0.31 | O92: 31.626 | P92: 0.8735632184 | Q92: 0 | R92: 0.2313790009 | S92: 0.4806451613 | T92: 0.6659394169 | U92: 44.915 | V92: 21.514 | W92: 0 | X92: 0 | Y92: 0 | Z92: -11.86799438 | AB92: 0.008970976627
A93: Q6 | B93: Q6 | C93: Q | D93: =IF(ISNA(VLOOKUP($A93,Active!$D$22:$AG$114,$F$6,FALSE)),0,VLOOKUP($A93,Active!$D$22:$AG$114,$F$6,FALSE))+SUM(W93:Y93) -> 233.9653787 | E93: =IFERROR(VLOOKUP(A93,'Reactive inc LV Gain'!$D$23:$AG$114,F$6,FALSE),"") -> -5.93826341 | F93: =IF(ISERROR(VLOOKUP($B93,'LV Gain K'!$B$15:$C$98,2,FALSE)+E93),0,VLOOKUP($B93,'LV Gain K'!$B$15:$C$98,2,FALSE)+E93) -> -4.405322282 | G93: 118.3465787 | H93: 226.2753787 | I93: 0 | J93: 0 | K93: 0.987 | L93: 19.107 | M93: 154.184 | N93: 0.034 | O93: 10.345 | P93: 0.8693009119 | Q93: 0 | R93: 0.2311848181 | S93: 0.4705882353 | T93: 0.6588690188 | U93: 115.6188 | V93: 7.69 | W93: 0 | X93: 0 | Y93: 0 | Z93: -5.122893413 | AB93: 0.003872377726
A94: Q7 | B94: Q7 | C94: Q | D94: =IF(ISNA(VLOOKUP($A94,Active!$D$22:$AG$114,$F$6,FALSE)),0,VLOOKUP($A94,Active!$D$22:$AG$114,$F$6,FALSE))+SUM(W94:Y94) -> 238.9122379 | E94: =IFERROR(VLOOKUP(A94,'Reactive inc LV Gain'!$D$23:$AG$114,F$6,FALSE),"") -> 10.43735495 | F94: =IF(ISERROR(VLOOKUP($B94,'LV Gain K'!$B$15:$C$98,2,FALSE)+E94),0,VLOOKUP($B94,'LV Gain K'!$B$15:$C$98,2,FALSE)+E94) -> 12.68807326 | G94: 123.6439379 | H94: 149.8722379 | I94: 0 | J94: 0 | K94: 3.016 | L94: 24.13 | M94: 37.469 | N94: 0.168 | O94: 111.445 | P94: 0.8693633952 | Q94: 0 | R94: 0.2313645947 | S94: 0.4761904762 | T94: 0.7747139845 | U94: 115.2683 | V94: 89.04 | W94: 0 | X94: 0 | Y94: 0 | Z94: -5.231209578 | AB94: 0.003954253547
A95: Q8 | B95: Q8 | C95: Q | D95: =IF(ISNA(VLOOKUP($A95,Active!$D$22:$AG$114,$F$6,FALSE)),0,VLOOKUP($A95,Active!$D$22:$AG$114,$F$6,FALSE))+SUM(W95:Y95) -> 255.8575708 | E95: =IFERROR(VLOOKUP(A95,'Reactive inc LV Gain'!$D$23:$AG$114,F$6,FALSE),"") -> 3.02324364 | F95: =IF(ISERROR(VLOOKUP($B95,'LV Gain K'!$B$15:$C$98,2,FALSE)+E95),0,VLOOKUP($B95,'LV Gain K'!$B$15:$C$98,2,FALSE)+E95) -> 54.76119298 | G95: 155.3543708 | H95: 229.9645708 | I95: 0 | J95: 0 | K95: 0.81 | L95: 42.64 | M95: 106.586 | N95: 13.915 | O95: 23.765 | P95: 0.862962963 | Q95: 0 | R95: 0.2312874111 | S95: 0.7877111031 | T95: 0.5989059541 | U95: 100.5032 | V95: 25.893 | W95: 0 | X95: 0 | Y95: 0 | Z95: -5.60224368 | AB95: 0.004234716964
A96: R4 | B96: R4 | C96: R | D96: =IF(ISNA(VLOOKUP($A96,Active!$D$22:$AG$114,$F$6,FALSE)),0,VLOOKUP($A96,Active!$D$22:$AG$114,$F$6,FALSE))+SUM(W96:Y96) -> 572.0113334 | E96: =IFERROR(VLOOKUP(A96,'Reactive inc LV Gain'!$D$23:$AG$114,F$6,FALSE),"") -> 90.43518273 | F96: =IF(ISERROR(VLOOKUP($B96,'LV Gain K'!$B$15:$C$98,2,FALSE)+E96),0,VLOOKUP($B96,'LV Gain K'!$B$15:$C$98,2,FALSE)+E96) -> 137.139443 | G96: 519.9102334 | H96: 520.5423334 | I96: 0 | J96: 0 | K96: 0.228 | L96: 29.561 | M96: 0.903 | N96: 1.006 | O96: 73.109 | P96: 0.8684210526 | Q96: 0 | R96: 0.2325581395 | S96: 0.4801192843 | T96: 0.6946887524 | U96: 52.1011 | V96: 51.469 | W96: 0 | X96: 0 | Y96: 0 | Z96: -12.52472955 | AB96: 0.009467400514
A97: R5 | B97: R5 | C97: R | D97: =IF(ISNA(VLOOKUP($A97,Active!$D$22:$AG$114,$F$6,FALSE)),0,VLOOKUP($A97,Active!$D$22:$AG$114,$F$6,FALSE))+SUM(W97:Y97) -> 140.6587335 | E97: =IFERROR(VLOOKUP(A97,'Reactive inc LV Gain'!$D$23:$AG$114,F$6,FALSE),"") -> -5.9069642 | F97: =IF(ISERROR(VLOOKUP($B97,'LV Gain K'!$B$15:$C$98,2,FALSE)+E97),0,VLOOKUP($B97,'LV Gain K'!$B$15:$C$98,2,FALSE)+E97) -> 82.88101683 | G97: 85.02323349 | H97: 128.8887335 | I97: 0 | J97: 0 | K97: 0.497 | L97: 24.192 | M97: 62.665 | N97: 3.328 | O97: 15.031 | P97: 0.8692152918 | Q97: 0 | R97: 0.2312774276 | S97: 0.4798677885 | T97: 0.6480606746 | U97: 55.6355 | V97: 11.77 | W97: 0 | X97: 0 | Y97: 0 | Z97: -3.079856102 | AB97: 0.002328052764
A98: R6 | B98: R6 | C98: R | D98: =IF(ISNA(VLOOKUP($A98,Active!$D$22:$AG$114,$F$6,FALSE)),0,VLOOKUP($A98,Active!$D$22:$AG$114,$F$6,FALSE))+SUM(W98:Y98) -> 327.5703073 | E98: =IFERROR(VLOOKUP(A98,'Reactive inc LV Gain'!$D$23:$AG$114,F$6,FALSE),"") -> 64.71093136 | F98: =IF(ISERROR(VLOOKUP($B98,'LV Gain K'!$B$15:$C$98,2,FALSE)+E98),0,VLOOKUP($B98,'LV Gain K'!$B$15:$C$98,2,FALSE)+E98) -> 104.419177 | G98: 190.2499073 | H98: 245.9503073 | I98: 0 | J98: 0 | K98: 0.48 | L98: 6.543 | M98: 79.572 | N98: 1.993 | O98: 99.602 | P98: 0.8625 | Q98: 0 | R98: 0.2311994169 | S98: 0.4801806322 | T98: 0.8056966728 | U98: 137.3204 | V98: 81.62 | W98: 0 | X98: 0 | Y98: 0 | Z98: -7.172461922 | AB98: 0.005421639598
A99: S1 | B99: S1 | C99: =LEFT(B99,1) -> S | D99: =IF(ISNA(VLOOKUP($A99,Active!$D$22:$AG$114,$F$6,FALSE)),0,VLOOKUP($A99,Active!$D$22:$AG$114,$F$6,FALSE))+SUM(W99:Y99) -> 1749.976442 | E99: =IFERROR(VLOOKUP(A99,'Reactive inc LV Gain'!$D$23:$AG$114,F$6,FALSE),"") -> 242.348832 | F99: =IF(ISERROR(VLOOKUP($B99,'LV Gain K'!$B$15:$C$98,2,FALSE)+E99),0,VLOOKUP($B99,'LV Gain K'!$B$15:$C$98,2,FALSE)+E99) -> 0 | G99: 1088.628542 | H99: 1575.532442 | I99: 0 | J99: 0 | K99: 4.257 | L99: 92.997 | M99: 695.577 | N99: 105.58 | O99: 126.619 | P99: 0.8677472398 | Q99: 0 | R99: 0.2313359987 | S99: 0.7991665088 | T99: 0.6821567063 | U99: 661.3479 | V99: 174.444 | W99: 0 | X99: 0 | Y99: =SUMIFS(OFFSET(mbat_wintpk,0,$Q$8),mbat_location,A99,mbat_scenario,$E$8,mbat_year,$F$8)*-1 -> 0 | Z99: =$AB$13*AB99 -> -38.31739054 | AB99: =D99/$D$13 -> 0.02896398533
A100: S2 | B100: S2 | C100: =LEFT(B100,1) -> S | D100: =IF(ISNA(VLOOKUP($A100,Active!$D$22:$AG$114,$F$6,FALSE)),0,VLOOKUP($A100,Active!$D$22:$AG$114,$F$6,FALSE))+SUM(W100:Y100) -> 595.636183 | E100: =IFERROR(VLOOKUP(A100,'Reactive inc LV Gain'!$D$23:$AG$114,F$6,FALSE),"") -> 72.42240026 | F100: =IF(ISERROR(VLOOKUP($B100,'LV Gain K'!$B$15:$C$98,2,FALSE)+E100),0,VLOOKUP($B100,'LV Gain K'!$B$15:$C$98,2,FALSE)+E100) -> 0 | G100: 463.995283 | H100: 552.221183 | I100: 0 | J100: 0 | K100: 0.762 | L100: 14.469 | M100: 126.037 | N100: 0.122 | O100: 50.844 | P100: 0.8622047244 | Q100: 0 | R100: 0.2312971588 | S100: 0.4836065574 | T100: 0.8398041067 | U100: 131.6409 | V100: 43.415 | W100: 0 | X100: 0 | Y100: =SUMIFS(OFFSET(mbat_wintpk,0,$Q$8),mbat_location,A100,mbat_scenario,$E$8,mbat_year,$F$8)*-1 -> 0 | Z100: =$AB$13*AB100 -> -13.04201799 | AB100: =D100/$D$13 -> 0.00985841709
A101: S3 | B101: S3 | C101: =LEFT(B101,1) -> S | D101: =IF(ISNA(VLOOKUP($A101,Active!$D$22:$AG$114,$F$6,FALSE)),0,VLOOKUP($A101,Active!$D$22:$AG$114,$F$6,FALSE))+SUM(W101:Y101) -> 121.5074013 | E101: =IFERROR(VLOOKUP(A101,'Reactive inc LV Gain'!$D$23:$AG$114,F$6,FALSE),"") -> 50.29318845 | F101: =IF(ISERROR(VLOOKUP($B101,'LV Gain K'!$B$15:$C$98,2,FALSE)+E101),0,VLOOKUP($B101,'LV Gain K'!$B$15:$C$98,2,FALSE)+E101) -> 0 | G101: 114.7474013 | H101: 114.7474013 | I101: 0 | J101: 0 | K101: 0 | L101: 0 | M101: 0 | N101: 0 | O101: 11.38 | P101: 0 | Q101: 0 | R101: 0 | S101: 0 | T101: 0.5940246046 | U101: 6.76 | V101: 6.76 | W101: 0 | X101: 0 | Y101: =SUMIFS(OFFSET(mbat_wintpk,0,$Q$8),mbat_location,A101,mbat_scenario,$E$8,mbat_year,$F$8)*-1 -> 0 | Z101: =$AB$13*AB101 -> -2.660519556 | AB101: =D101/$D$13 -> 0.002011077693
A102: S4 | B102: S4 | C102: =LEFT(B102,1) -> S | D102: =IF(ISNA(VLOOKUP($A102,Active!$D$22:$AG$114,$F$6,FALSE)),0,VLOOKUP($A102,Active!$D$22:$AG$114,$F$6,FALSE))+SUM(W102:Y102) -> 170.5546251 | E102: =IFERROR(VLOOKUP(A102,'Reactive inc LV Gain'!$D$23:$AG$114,F$6,FALSE),"") -> 22.32273279 | F102: =IF(ISERROR(VLOOKUP($B102,'LV Gain K'!$B$15:$C$98,2,FALSE)+E102),0,VLOOKUP($B102,'LV Gain K'!$B$15:$C$98,2,FALSE)+E102) -> 0 | G102: 155.6707251 | H102: 155.7246251 | I102: 0 | J102: 0 | K102: 0.033 | L102: 4.227 | M102: 0.077 | N102: 0 | O102: 20.003 | P102: 0.8484848485 | Q102: 0 | R102: 0.2337662338 | S102: 0 | T102: 0.7399890016 | U102: 14.8839 | V102: 14.83 | W102: 0 | X102: 0 | Y102: =SUMIFS(OFFSET(mbat_wintpk,0,$Q$8),mbat_location,A102,mbat_scenario,$E$8,mbat_year,$F$8)*-1 -> 0 | Z102: =$AB$13*AB102 -> -3.734454945 | AB102: =D102/$D$13 -> 0.002822861806
A103: S5 | B103: S5 | C103: S | D103: =IF(ISNA(VLOOKUP($A103,Active!$D$22:$AG$114,$F$6,FALSE)),0,VLOOKUP($A103,Active!$D$22:$AG$114,$F$6,FALSE))+SUM(W103:Y103) -> 669.7620991 | E103: =IFERROR(VLOOKUP(A103,'Reactive inc LV Gain'!$D$23:$AG$114,F$6,FALSE),"") -> 96.06361842 | F103: =IF(ISERROR(VLOOKUP($B103,'LV Gain K'!$B$15:$C$98,2,FALSE)+E103),0,VLOOKUP($B103,'LV Gain K'!$B$15:$C$98,2,FALSE)+E103) -> 0 | G103: =D103-U103 -> 434.1143991 | H103: =D103-V103 -> 629.1910991 | I103: =SUMIFS(TxStorCapacity,TxStorLoc,A103,TxStorScenario,$E$8,TxStorYear,$F$8,TxStorTech,"Battery") -> 0 | J103: =SUMIFS(TxStorCapacity,TxStorLoc,A103,TxStorScenario,$E$8,TxStorYear,$F$8,TxStorTech,"PHES") -> 0 | K103: =SUMIFS(DGcapacity,DGlocation,A103,DGscenario,$E$8,DGyear,$F$8,DGtech,"Storage")+SUMIFS(micro_capacity,micro_location,A103,micro_scenario,$E$8,micro_year,$F$8,micro_tech,"Battery") -> 1.78 | L103: =SUMIFS(DGcapacity,DGlocation,A103,DGscenario,$E$8,DGyear,$F$8,DGtech,"Solar")+SUMIFS(micro_capacity,micro_location,A103,micro_scenario,$E$8,micro_year,$F$8,micro_tech,"Solar") -> 46.339 | M103: =SUMIFS(DGcapacity,DGlocation,A103,DGscenario,$E$8,DGyear,$F$8,DGtech,"Wind")+SUMIFS(micro_capacity,micro_location,A103,micro_scenario,$E$8,micro_year,$F$8,micro_tech,"Wind") -> 278.681 | N103: =SUMIFS(DGcapacity,DGlocation,A103,DGscenario,$E$8,DGyear,$F$8,DGtech,"Hydro")+SUMIFS(micro_capacity,micro_location,A103,micro_scenario,$E$8,micro_year,$F$8,micro_tech,"Hydro") -> 4.202 | O103: =SUMIFS(DGcapacity,DGlocation,A103,DGscenario,$E$8,DGyear,$F$8,DGtech,"Other")+SUMIFS(micro_capacity,micro_location,A103,micro_scenario,$E$8,micro_year,$F$8,micro_tech,"Other") -> 49.141 | P103: =IF(K103=0,0,(SUMIFS(OFFSET(DGWintPk,0,$Q$8),DGlocation,A103,DGscenario,$E$8,DGyear,$F$8,DGtech,"Storage")+SUMIFS(OFFSET(micro_WintPk,0,$Q$8),micro_location,A103,micro_scenario,$E$8,micro_year,$F$8,micro_tech,"Battery"))/K103) -> 0.8674157303 | Q103: =IF(L103=0,0,(SUMIFS(OFFSET(DGWintPk,0,$Q$8),DGlocation,A103,DGscenario,$E$8,DGyear,$F$8,DGtech,"Solar")+SUMIFS(OFFSET(micro_WintPk,0,$Q$8),micro_location,A103,micro_scenario,$E$8,micro_year,$F$8,micro_tech,"Solar"))/L103) -> 0 | R103: =IF(M103=0,0,(SUMIFS(OFFSET(DGWintPk,0,$Q$8),DGlocation,A103,DGscenario,$E$8,DGyear,$F$8,DGtech,"Wind")+SUMIFS(OFFSET(micro_WintPk,0,$Q$8),micro_location,A103,micro_scenario,$E$8,micro_year,$F$8,micro_tech,"Wind"))/M103) -> 0.2312680089 | S103: =IF(N103=0,0,(SUMIFS(OFFSET(DGWintPk,0,$Q$8),DGlocation,A103,DGscenario,$E$8,DGyear,$F$8,DGtech,"Hydro")+SUMIFS(OFFSET(micro_WintPk,0,$Q$8),micro_location,A103,micro_scenario,$E$8,micro_year,$F$8,micro_tech,"Hydro"))/N103) -> 0.4800095193 | T103: =IF(O103=0,0,(SUMIFS(OFFSET(DGWintPk,0,$Q$8),DGlocation,A103,DGscenario,$E$8,DGyear,$F$8,DGtech,"Other")+SUMIFS(OFFSET(micro_WintPk,0,$Q$8),micro_location,A103,micro_scenario,$E$8,micro_year,$F$8,micro_tech,"Other"))/O103) -> 0.7531389268 | U103: =(K103*P103)+(L103*Q103)+(M103*$U$5)+(N103*S103)+(O103*T103) -> 235.6477 | V103: =(K103*P103)+(L103*Q103)+(M103*$V$5)+(N103*S103)+(O103*T103) -> 40.571 | W103: =SUMIFS(OFFSET(TxStorWintPk,0,$Q$8),TxStorLoc,A103,TxStorScenario,$E$8,TxStorYear,$F$8)*-1 -> 0 | X103: =SUMIFS(OFFSET(DxStorWintpk,0,$Q$8),DxStorLocation,A103,DxStorScenario,$E$8,DxStorYear,$F$8)*-1 -> 0 | Y103: 0 | Z103: -14.66507508 | AB103: 0.01108528043
A104: S6 | B104: S6 | C104: S | D104: =IF(ISNA(VLOOKUP($A104,Active!$D$22:$AG$114,$F$6,FALSE)),0,VLOOKUP($A104,Active!$D$22:$AG$114,$F$6,FALSE))+SUM(W104:Y104) -> 134.6899346 | E104: =IFERROR(VLOOKUP(A104,'Reactive inc LV Gain'!$D$23:$AG$114,F$6,FALSE),"") -> 17.25071557 | F104: =IF(ISERROR(VLOOKUP($B104,'LV Gain K'!$B$15:$C$98,2,FALSE)+E104),0,VLOOKUP($B104,'LV Gain K'!$B$15:$C$98,2,FALSE)+E104) -> 0 | G104: 131.6804346 | H104: 131.6909346 | I104: 0 | J104: 440 | K104: 0.034 | L104: 4.383 | M104: 0.015 | N104: 0 | O104: 5 | P104: 0.8529411765 | Q104: 0 | R104: 0.2666666667 | S104: 0 | T104: 0.594 | U104: 3.0095 | V104: 2.999 | W104: 0 | X104: 0 | Y104: 0 | Z104: -2.9491636 | AB104: 0.002229262746
A105: S7 | B105: S7 | C105: =LEFT(B105,1) -> S | D105: =IF(ISNA(VLOOKUP($A105,Active!$D$22:$AG$114,$F$6,FALSE)),0,VLOOKUP($A105,Active!$D$22:$AG$114,$F$6,FALSE))+SUM(W105:Y105) -> 139.7014219 | E105: =IFERROR(VLOOKUP(A105,'Reactive inc LV Gain'!$D$23:$AG$114,F$6,FALSE),"") -> 13.2601856 | F105: =IF(ISERROR(VLOOKUP($B105,'LV Gain K'!$B$15:$C$98,2,FALSE)+E105),0,VLOOKUP($B105,'LV Gain K'!$B$15:$C$98,2,FALSE)+E105) -> 0 | G105: =D105-U105 -> 130.5556219 | H105: =D105-V105 -> 131.1394219 | I105: =SUMIFS(TxStorCapacity,TxStorLoc,A105,TxStorScenario,$E$8,TxStorYear,$F$8,TxStorTech,"Battery") -> 0 | J105: =SUMIFS(TxStorCapacity,TxStorLoc,A105,TxStorScenario,$E$8,TxStorYear,$F$8,TxStorTech,"PHES") -> 0 | K105: =SUMIFS(DGcapacity,DGlocation,A105,DGscenario,$E$8,DGyear,$F$8,DGtech,"Storage")+SUMIFS(micro_capacity,micro_location,A105,micro_scenario,$E$8,micro_year,$F$8,micro_tech,"Battery") -> 0.043 | L105: =SUMIFS(DGcapacity,DGlocation,A105,DGscenario,$E$8,DGyear,$F$8,DGtech,"Solar")+SUMIFS(micro_capacity,micro_location,A105,micro_scenario,$E$8,micro_year,$F$8,micro_tech,"Solar") -> 5.601 | M105: =SUMIFS(DGcapacity,DGlocation,A105,DGscenario,$E$8,DGyear,$F$8,DGtech,"Wind")+SUMIFS(micro_capacity,micro_location,A105,micro_scenario,$E$8,micro_year,$F$8,micro_tech,"Wind") -> 0.834 | N105: =SUMIFS(DGcapacity,DGlocation,A105,DGscenario,$E$8,DGyear,$F$8,DGtech,"Hydro")+SUMIFS(micro_capacity,micro_location,A105,micro_scenario,$E$8,micro_year,$F$8,micro_tech,"Hydro") -> 9.783 | O105: =SUMIFS(DGcapacity,DGlocation,A105,DGscenario,$E$8,DGyear,$F$8,DGtech,"Other")+SUMIFS(micro_capacity,micro_location,A105,micro_scenario,$E$8,micro_year,$F$8,micro_tech,"Other") -> 1.35 | P105: =IF(K105=0,0,(SUMIFS(OFFSET(DGWintPk,0,$Q$8),DGlocation,A105,DGscenario,$E$8,DGyear,$F$8,DGtech,"Storage")+SUMIFS(OFFSET(micro_WintPk,0,$Q$8),micro_location,A105,micro_scenario,$E$8,micro_year,$F$8,micro_tech,"Battery"))/K105) -> 0.8837209302 | Q105: =IF(L105=0,0,(SUMIFS(OFFSET(DGWintPk,0,$Q$8),DGlocation,A105,DGscenario,$E$8,DGyear,$F$8,DGtech,"Solar")+SUMIFS(OFFSET(micro_WintPk,0,$Q$8),micro_location,A105,micro_scenario,$E$8,micro_year,$F$8,micro_tech,"Solar"))/L105) -> 0 | R105: =IF(M105=0,0,(SUMIFS(OFFSET(DGWintPk,0,$Q$8),DGlocation,A105,DGscenario,$E$8,DGyear,$F$8,DGtech,"Wind")+SUMIFS(OFFSET(micro_WintPk,0,$Q$8),micro_location,A105,micro_scenario,$E$8,micro_year,$F$8,micro_tech,"Wind"))/M105) -> 0.2326139089 | S105: =IF(N105=0,0,(SUMIFS(OFFSET(DGWintPk,0,$Q$8),DGlocation,A105,DGscenario,$E$8,DGyear,$F$8,DGtech,"Hydro")+SUMIFS(OFFSET(micro_WintPk,0,$Q$8),micro_location,A105,micro_scenario,$E$8,micro_year,$F$8,micro_tech,"Hydro"))/N105) -> 0.7739957068 | T105: =IF(O105=0,0,(SUMIFS(OFFSET(DGWintPk,0,$Q$8),DGlocation,A105,DGscenario,$E$8,DGyear,$F$8,DGtech,"Other")+SUMIFS(OFFSET(micro_WintPk,0,$Q$8),micro_location,A105,micro_scenario,$E$8,micro_year,$F$8,micro_tech,"Other"))/O105) -> 0.7051851852 | U105: =(K105*P105)+(L105*Q105)+(M105*$U$5)+(N105*S105)+(O105*T105) -> 9.1458 | V105: =(K105*P105)+(L105*Q105)+(M105*$V$5)+(N105*S105)+(O105*T105) -> 8.562 | W105: =SUMIFS(OFFSET(TxStorWintPk,0,$Q$8),TxStorLoc,A105,TxStorScenario,$E$8,TxStorYear,$F$8)*-1 -> 0 | X105: =SUMIFS(OFFSET(DxStorWintpk,0,$Q$8),DxStorLocation,A105,DxStorScenario,$E$8,DxStorYear,$F$8)*-1 -> 0 | Y105: =SUMIFS(OFFSET(mbat_wintpk,0,$Q$8),mbat_location,A105,mbat_scenario,$E$8,mbat_year,$F$8)*-1 -> 0 | Z105: =$AB$13*AB105 -> -3.058894858 | AB105: =D105/$D$13 -> 0.00231220823
A106: S8 | B106: S8 | C106: =LEFT(B106,1) -> S | D106: =IF(ISNA(VLOOKUP($A106,Active!$D$22:$AG$114,$F$6,FALSE)),0,VLOOKUP($A106,Active!$D$22:$AG$114,$F$6,FALSE))+SUM(W106:Y106) -> 0 | E106: =IFERROR(VLOOKUP(A106,'Reactive inc LV Gain'!$D$23:$AG$114,F$6,FALSE),"") -> 0 | F106: =IF(ISERROR(VLOOKUP($B106,'LV Gain K'!$B$15:$C$98,2,FALSE)+E106),0,VLOOKUP($B106,'LV Gain K'!$B$15:$C$98,2,FALSE)+E106) -> 0 | G106: =D106-U106 -> 0 | H106: =D106-V106 -> 0 | I106: =SUMIFS(TxStorCapacity,TxStorLoc,A106,TxStorScenario,$E$8,TxStorYear,$F$8,TxStorTech,"Battery") -> 0 | J106: =SUMIFS(TxStorCapacity,TxStorLoc,A106,TxStorScenario,$E$8,TxStorYear,$F$8,TxStorTech,"PHES") -> 0 | K106: =SUMIFS(DGcapacity,DGlocation,A106,DGscenario,$E$8,DGyear,$F$8,DGtech,"Storage")+SUMIFS(micro_capacity,micro_location,A106,micro_scenario,$E$8,micro_year,$F$8,micro_tech,"Battery") -> 0 | L106: =SUMIFS(DGcapacity,DGlocation,A106,DGscenario,$E$8,DGyear,$F$8,DGtech,"Solar")+SUMIFS(micro_capacity,micro_location,A106,micro_scenario,$E$8,micro_year,$F$8,micro_tech,"Solar") -> 0 | M106: =SUMIFS(DGcapacity,DGlocation,A106,DGscenario,$E$8,DGyear,$F$8,DGtech,"Wind")+SUMIFS(micro_capacity,micro_location,A106,micro_scenario,$E$8,micro_year,$F$8,micro_tech,"Wind") -> 0 | N106: =SUMIFS(DGcapacity,DGlocation,A106,DGscenario,$E$8,DGyear,$F$8,DGtech,"Hydro")+SUMIFS(micro_capacity,micro_location,A106,micro_scenario,$E$8,micro_year,$F$8,micro_tech,"Hydro") -> 0 | O106: =SUMIFS(DGcapacity,DGlocation,A106,DGscenario,$E$8,DGyear,$F$8,DGtech,"Other")+SUMIFS(micro_capacity,micro_location,A106,micro_scenario,$E$8,micro_year,$F$8,micro_tech,"Other") -> 0 | P106: =IF(K106=0,0,(SUMIFS(OFFSET(DGWintPk,0,$Q$8),DGlocation,A106,DGscenario,$E$8,DGyear,$F$8,DGtech,"Storage")+SUMIFS(OFFSET(micro_WintPk,0,$Q$8),micro_location,A106,micro_scenario,$E$8,micro_year,$F$8,micro_tech,"Battery"))/K106) -> 0 | Q106: =IF(L106=0,0,(SUMIFS(OFFSET(DGWintPk,0,$Q$8),DGlocation,A106,DGscenario,$E$8,DGyear,$F$8,DGtech,"Solar")+SUMIFS(OFFSET(micro_WintPk,0,$Q$8),micro_location,A106,micro_scenario,$E$8,micro_year,$F$8,micro_tech,"Solar"))/L106) -> 0 | R106: =IF(M106=0,0,(SUMIFS(OFFSET(DGWintPk,0,$Q$8),DGlocation,A106,DGscenario,$E$8,DGyear,$F$8,DGtech,"Wind")+SUMIFS(OFFSET(micro_WintPk,0,$Q$8),micro_location,A106,micro_scenario,$E$8,micro_year,$F$8,micro_tech,"Wind"))/M106) -> 0 | S106: =IF(N106=0,0,(SUMIFS(OFFSET(DGWintPk,0,$Q$8),DGlocation,A106,DGscenario,$E$8,DGyear,$F$8,DGtech,"Hydro")+SUMIFS(OFFSET(micro_WintPk,0,$Q$8),micro_location,A106,micro_scenario,$E$8,micro_year,$F$8,micro_tech,"Hydro"))/N106) -> 0 | T106: =IF(O106=0,0,(SUMIFS(OFFSET(DGWintPk,0,$Q$8),DGlocation,A106,DGscenario,$E$8,DGyear,$F$8,DGtech,"Other")+SUMIFS(OFFSET(micro_WintPk,0,$Q$8),micro_location,A106,micro_scenario,$E$8,micro_year,$F$8,micro_tech,"Other"))/O106) -> 0 | U106: =(K106*P106)+(L106*Q106)+(M106*$U$5)+(N106*S106)+(O106*T106) -> 0 | V106: =(K106*P106)+(L106*Q106)+(M106*$V$5)+(N106*S106)+(O106*T106) -> 0 | W106: =SUMIFS(OFFSET(TxStorWintPk,0,$Q$8),TxStorLoc,A106,TxStorScenario,$E$8,TxStorYear,$F$8)*-1 -> 0 | X106: =SUMIFS(OFFSET(DxStorWintpk,0,$Q$8),DxStorLocation,A106,DxStorScenario,$E$8,DxStorYear,$F$8)*-1 -> 0 | Y106: =SUMIFS(OFFSET(mbat_wintpk,0,$Q$8),mbat_location,A106,mbat_scenario,$E$8,mbat_year,$F$8)*-1 -> 0 | Z106: =$AB$13*AB106 -> 0 | AB106: =D106/$D$13 -> 0
A107: S9 | B107: S9 | C107: =LEFT(B107,1) -> S | D107: =IF(ISNA(VLOOKUP($A107,Active!$D$22:$AG$114,$F$6,FALSE)),0,VLOOKUP($A107,Active!$D$22:$AG$114,$F$6,FALSE))+SUM(W107:Y107) -> 0 | E107: =IFERROR(VLOOKUP(A107,'Reactive inc LV Gain'!$D$23:$AG$114,F$6,FALSE),"") -> 0 | F107: =IF(ISERROR(VLOOKUP($B107,'LV Gain K'!$B$15:$C$98,2,FALSE)+E107),0,VLOOKUP($B107,'LV Gain K'!$B$15:$C$98,2,FALSE)+E107) -> 0 | G107: =D107-U107 -> 0 | H107: =D107-V107 -> 0 | I107: =SUMIFS(TxStorCapacity,TxStorLoc,A107,TxStorScenario,$E$8,TxStorYear,$F$8,TxStorTech,"Battery") -> 0 | J107: =SUMIFS(TxStorCapacity,TxStorLoc,A107,TxStorScenario,$E$8,TxStorYear,$F$8,TxStorTech,"PHES") -> 0 | K107: =SUMIFS(DGcapacity,DGlocation,A107,DGscenario,$E$8,DGyear,$F$8,DGtech,"Storage")+SUMIFS(micro_capacity,micro_location,A107,micro_scenario,$E$8,micro_year,$F$8,micro_tech,"Battery") -> 0 | L107: =SUMIFS(DGcapacity,DGlocation,A107,DGscenario,$E$8,DGyear,$F$8,DGtech,"Solar")+SUMIFS(micro_capacity,micro_location,A107,micro_scenario,$E$8,micro_year,$F$8,micro_tech,"Solar") -> 0 | M107: =SUMIFS(DGcapacity,DGlocation,A107,DGscenario,$E$8,DGyear,$F$8,DGtech,"Wind")+SUMIFS(micro_capacity,micro_location,A107,micro_scenario,$E$8,micro_year,$F$8,micro_tech,"Wind") -> 0 | N107: =SUMIFS(DGcapacity,DGlocation,A107,DGscenario,$E$8,DGyear,$F$8,DGtech,"Hydro")+SUMIFS(micro_capacity,micro_location,A107,micro_scenario,$E$8,micro_year,$F$8,micro_tech,"Hydro") -> 0 | O107: =SUMIFS(DGcapacity,DGlocation,A107,DGscenario,$E$8,DGyear,$F$8,DGtech,"Other")+SUMIFS(micro_capacity,micro_location,A107,micro_scenario,$E$8,micro_year,$F$8,micro_tech,"Other") -> 0 | P107: =IF(K107=0,0,(SUMIFS(OFFSET(DGWintPk,0,$Q$8),DGlocation,A107,DGscenario,$E$8,DGyear,$F$8,DGtech,"Storage")+SUMIFS(OFFSET(micro_WintPk,0,$Q$8),micro_location,A107,micro_scenario,$E$8,micro_year,$F$8,micro_tech,"Battery"))/K107) -> 0 | Q107: =IF(L107=0,0,(SUMIFS(OFFSET(DGWintPk,0,$Q$8),DGlocation,A107,DGscenario,$E$8,DGyear,$F$8,DGtech,"Solar")+SUMIFS(OFFSET(micro_WintPk,0,$Q$8),micro_location,A107,micro_scenario,$E$8,micro_year,$F$8,micro_tech,"Solar"))/L107) -> 0 | R107: =IF(M107=0,0,(SUMIFS(OFFSET(DGWintPk,0,$Q$8),DGlocation,A107,DGscenario,$E$8,DGyear,$F$8,DGtech,"Wind")+SUMIFS(OFFSET(micro_WintPk,0,$Q$8),micro_location,A107,micro_scenario,$E$8,micro_year,$F$8,micro_tech,"Wind"))/M107) -> 0 | S107: =IF(N107=0,0,(SUMIFS(OFFSET(DGWintPk,0,$Q$8),DGlocation,A107,DGscenario,$E$8,DGyear,$F$8,DGtech,"Hydro")+SUMIFS(OFFSET(micro_WintPk,0,$Q$8),micro_location,A107,micro_scenario,$E$8,micro_year,$F$8,micro_tech,"Hydro"))/N107) -> 0 | T107: =IF(O107=0,0,(SUMIFS(OFFSET(DGWintPk,0,$Q$8),DGlocation,A107,DGscenario,$E$8,DGyear,$F$8,DGtech,"Other")+SUMIFS(OFFSET(micro_WintPk,0,$Q$8),micro_location,A107,micro_scenario,$E$8,micro_year,$F$8,micro_tech,"Other"))/O107) -> 0 | U107: =(K107*P107)+(L107*Q107)+(M107*$U$5)+(N107*S107)+(O107*T107) -> 0 | V107: =(K107*P107)+(L107*Q107)+(M107*$V$5)+(N107*S107)+(O107*T107) -> 0 | W107: =SUMIFS(OFFSET(TxStorWintPk,0,$Q$8),TxStorLoc,A107,TxStorScenario,$E$8,TxStorYear,$F$8)*-1 -> 0 | X107: =SUMIFS(OFFSET(DxStorWintpk,0,$Q$8),DxStorLocation,A107,DxStorScenario,$E$8,DxStorYear,$F$8)*-1 -> 0 | Y107: =SUMIFS(OFFSET(mbat_wintpk,0,$Q$8),mbat_location,A107,mbat_scenario,$E$8,mbat_year,$F$8)*-1 -> 0 | Z107: =$AB$13*AB107 -> 0 | AB107: =D107/$D$13 -> 0
A108: T1 | B108: T1 | C108: T | D108: =IF(ISNA(VLOOKUP($A108,Active!$D$22:$AG$114,$F$6,FALSE)),0,VLOOKUP($A108,Active!$D$22:$AG$114,$F$6,FALSE))+SUM(W108:Y108) -> 300.7 | E108: =IFERROR(VLOOKUP(A108,'Reactive inc LV Gain'!$D$23:$AG$114,F$6,FALSE),"") -> 66.38775838 | F108: =IF(ISERROR(VLOOKUP($B108,'LV Gain K'!$B$15:$C$98,2,FALSE)+E108),0,VLOOKUP($B108,'LV Gain K'!$B$15:$C$98,2,FALSE)+E108) -> 0 | G108: 109.2084 | H108: 199.087 | I108: 0 | J108: 300 | K108: 0.745 | L108: 27.654 | M108: 128.398 | N108: 106.8 | O108: 27.189 | P108: 0.8711409396 | Q108: 0 | R108: 0.2317403698 | S108: 0.7401872659 | T108: 0.8059141565 | U108: 191.4916 | V108: 101.613 | W108: 0 | X108: 0 | Y108: 0 | Z108: -6.58411111 | AB108: 0.004976907219
A109: T2 | B109: T2 | C109: T | D109: =IF(ISNA(VLOOKUP($A109,Active!$D$22:$AG$114,$F$6,FALSE)),0,VLOOKUP($A109,Active!$D$22:$AG$114,$F$6,FALSE))+SUM(W109:Y109) -> 471 | E109: =IFERROR(VLOOKUP(A109,'Reactive inc LV Gain'!$D$23:$AG$114,F$6,FALSE),"") -> 100.2086035 | F109: =IF(ISERROR(VLOOKUP($B109,'LV Gain K'!$B$15:$C$98,2,FALSE)+E109),0,VLOOKUP($B109,'LV Gain K'!$B$15:$C$98,2,FALSE)+E109) -> 0 | G109: 334.7507 | H109: 450.201 | I109: 0 | J109: 0 | K109: 0.919 | L109: 31.559 | M109: 164.929 | N109: 0.244 | O109: 28.678 | P109: 0.8661588683 | Q109: 0 | R109: 0.2315178046 | S109: 0.4795081967 | T109: 0.6934235302 | U109: 136.2493 | V109: 20.799 | W109: 0 | X109: 0 | Y109: 0 | Z109: -10.3129908 | AB109: 0.007795554706
A110: T3 | B110: T3 | C110: T | D110: =IF(ISNA(VLOOKUP($A110,Active!$D$22:$AG$114,$F$6,FALSE)),0,VLOOKUP($A110,Active!$D$22:$AG$114,$F$6,FALSE))+SUM(W110:Y110) -> 54 | E110: =IFERROR(VLOOKUP(A110,'Reactive inc LV Gain'!$D$23:$AG$114,F$6,FALSE),"") -> 19.65947348 | F110: =IF(ISERROR(VLOOKUP($B110,'LV Gain K'!$B$15:$C$98,2,FALSE)+E110),0,VLOOKUP($B110,'LV Gain K'!$B$15:$C$98,2,FALSE)+E110) -> 0 | G110: -22.6048 | H110: -2.631 | I110: 0 | J110: 0 | K110: 0.16 | L110: 3.855 | M110: 28.534 | N110: 72.757 | O110: 9.396 | P110: 0.85 | Q110: 0 | R110: 0.2315833742 | S110: 0.692249543 | T110: 0.6522988506 | U110: 76.6048 | V110: 56.631 | W110: 0 | X110: 0 | Y110: 0 | Z110: -1.182381111 | AB110: 0.0008937578644
A111: T4 | B111: T4 | C111: T | D111: =IF(ISNA(VLOOKUP($A111,Active!$D$22:$AG$114,$F$6,FALSE)),0,VLOOKUP($A111,Active!$D$22:$AG$114,$F$6,FALSE))+SUM(W111:Y111) -> 417.4 | E111: =IFERROR(VLOOKUP(A111,'Reactive inc LV Gain'!$D$23:$AG$114,F$6,FALSE),"") -> 80.33310669 | F111: =IF(ISERROR(VLOOKUP($B111,'LV Gain K'!$B$15:$C$98,2,FALSE)+E111),0,VLOOKUP($B111,'LV Gain K'!$B$15:$C$98,2,FALSE)+E111) -> 0 | G111: 322.294 | H111: 353.612 | I111: 0 | J111: 0 | K111: 0.488 | L111: 57.047 | M111: 44.74 | N111: 67.21 | O111: 21.564 | P111: 0.8729508197 | Q111: 0 | R111: 0.231917747 | S111: 0.7186579378 | T111: 0.6984325728 | U111: 95.106 | V111: 63.788 | W111: 0 | X111: 0 | Y111: 0 | Z111: -9.139368065 | AB111: 0.00690841727
A112: T5 | B112: T5 | C112: T | D112: =IF(ISNA(VLOOKUP($A112,Active!$D$22:$AG$114,$F$6,FALSE)),0,VLOOKUP($A112,Active!$D$22:$AG$114,$F$6,FALSE))+SUM(W112:Y112) -> 119 | E112: =IFERROR(VLOOKUP(A112,'Reactive inc LV Gain'!$D$23:$AG$114,F$6,FALSE),"") -> 9.010464033 | F112: =IF(ISERROR(VLOOKUP($B112,'LV Gain K'!$B$15:$C$98,2,FALSE)+E112),0,VLOOKUP($B112,'LV Gain K'!$B$15:$C$98,2,FALSE)+E112) -> 0 | G112: -1.6648 | H112: 87.189 | I112: 0 | J112: 0 | K112: 2.572 | L112: 6.739 | M112: 126.934 | N112: 21.586 | O112: 26.325 | P112: 0.8689735614 | Q112: 0 | R112: 0.2316164306 | S112: 0.6881775225 | T112: 0.5592022792 | U112: 120.6648 | V112: 31.811 | W112: 0 | X112: 0 | Y112: 0 | Z112: -2.605617632 | AB112: 0.001969577516

Sheet DSR
A5: ='MAIN DATA'!A4 -> Two Degrees | Q5: Two Degrees
A6: ='MAIN DATA'!A6 -> 2016/17 | Q6: Slow Progression
Q7: Steady State
A8: =HLOOKUP(A6,P12:AN13,2,FALSE) -> -1322.932259 | B8: Goes to Main sheet | Q8: Consumer Power
A12: Feeds to Main Sheet | P12: =Controls!D10 -> 2016/17 | Q12: =Controls!E10 -> 2017/18 | R12: =Controls!F10 -> 2018/19 | S12: =Controls!G10 -> 2019/20 | T12: =Controls!H10 -> 2020/21 | U12: =Controls!I10 -> 2021/22 | V12: =Controls!J10 -> 2022/23 | W12: =Controls!K10 -> 2023/24 | X12: =Controls!L10 -> 2024/25 | Y12: =Controls!M10 -> 2025/26 | Z12: =Controls!N10 -> 2026/27 | AA12: =Controls!O10 -> 2027/28 | AB12: =Controls!P10 -> 2028/29 | AC12: =Controls!Q10 -> 2029/30 | AD12: =Controls!R10 -> 2030/31 | AE12: =Controls!S10 -> 2031/32 | AF12: =Controls!T10 -> 2032/33 | AG12: =Controls!U10 -> 2033/34 | AH12: =Controls!V10 -> 2034/35 | AI12: =Controls!W10 -> 2035/36 | AJ12: =Controls!X10 -> 2036/37 | AK12: =Controls!Y10 -> 2037/38 | AL12: =Controls!Z10 -> 2038/39 | AM12: =Controls!AA10 -> 2039/40 | AN12: =Controls!AB10 -> 2040/41
D13: =A5 -> Two Degrees | P13: =IF($A5=$Q$5,P17,IF(A5=$Q$6,P18,IF(A5=$Q$7,P19,P20))) -> -1322.932259 | Q13: -2440.703952 | R13: -2694.909195 | S13: -2933.800016 | T13: -3370.991822 | U13: -4163.290508 | V13: -4614.844818 | W13: -5199.437064 | X13: -5780.589877 | Y13: -6246.9492 | Z13: -6694.745502 | AA13: -7186.269911 | AB13: -7553.255813 | AC13: -7804.743506 | AD13: -8050.589003 | AE13: -8209.118787 | AF13: -8266.742484 | AG13: -8296.394431 | AH13: -8319.662238 | AI13: -8331.169317 | AJ13: -8344.5549 | AK13: -8360.450095 | AL13: -8384.855709 | AM13: -8401.425791 | AN13: -8431.289496
E16: =E25 -> 05/06 | F16: 06/07 | G16: 07/08 | H16: 08/09 | I16: 09/10 | J16: 10/11 | K16: 11/12 | L16: 12/13 | M16: 13/14 | N16: 14/15 | O16: 15/16 | P16: 16/17 | Q16: 17/18 | R16: 18/19 | S16: 19/20 | T16: 20/21 | U16: 21/22 | V16: 22/23 | W16: 23/24 | X16: 24/25 | Y16: 25/26 | Z16: 26/27 | AA16: 27/28 | AB16: 28/29 | AC16: 29/30 | AD16: 30/31 | AE16: 31/32 | AF16: 32/33 | AG16: 33/34 | AH16: 34/35 | AI16: 35/36 | AJ16: 36/37 | AK16: 37/38 | AL16: 38/39 | AM16: 39/40 | AN16: 40/41
A17: TD | B17: Total DSR | C17: Total DSR | D17: MW | E17: =(E26+E27)*1000 -> -800 | F17: -800 | G17: -800 | H17: -800 | I17: -800 | J17: -800 | K17: -1000 | L17: -1201.272688 | M17: -1804.075786 | N17: -1210.775382 | O17: -1287.619199 | P17: -1322.932259 | Q17: -2440.703952 | R17: -2694.909195 | S17: -2933.800016 | T17: -3370.991822 | U17: -4163.290508 | V17: -4614.844818 | W17: -5199.437064 | X17: -5780.589877 | Y17: -6246.9492 | Z17: -6694.745502 | AA17: -7186.269911 | AB17: -7553.255813 | AC17: -7804.743506 | AD17: -8050.589003 | AE17: -8209.118787 | AF17: -8266.742484 | AG17: -8296.394431 | AH17: -8319.662238 | AI17: -8331.169317 | AJ17: -8344.5549 | AK17: -8360.450095 | AL17: -8384.855709 | AM17: -8401.425791 | AN17: -8431.289496
A18: SP | B18: Total DSR | C18: Total DSR | D18: MW | E18: =(E29+E30)*1000 -> -800 | F18: -800 | G18: -800 | H18: -800 | I18: -800 | J18: -800 | K18: -1000 | L18: -1200.39703 | M18: -1801.275137 | N18: -1203.40289 | O18: -1268.814054 | P18: -1280.669935 | Q18: -1796.319658 | R18: -1911.938495 | S18: -2082.540685 | T18: -2318.93019 | U18: -2708.257109 | V18: -2927.524137 | W18: -3288.982774 | X18: -3674.224721 | Y18: -4004.848485 | Z18: -4321.320004 | AA18: -4656.254218 | AB18: -4919.926881 | AC18: -5111.8271 | AD18: -5292.739712 | AE18: -5471.28582 | AF18: -5609.658208 | AG18: -5687.903358 | AH18: -5756.484083 | AI18: -5815.241055 | AJ18: -5861.547634 | AK18: -5917.966857 | AL18: -5978.19095 | AM18: -6039.74787 | AN18: -6095.999219
A19: SS | B19: Total DSR | C19: Total DSR | D19: MW | E19: =(E32+E33)*1000 -> -800 | F19: -800 | G19: -800 | H19: -800 | I19: -800 | J19: -800 | K19: -1000 | L19: -1200.030069 | M19: -1800.097656 | N19: -1200.270039 | O19: -1260.753015 | P19: -1261.830653 | Q19: -1298.318872 | R19: -1343.698902 | S19: -1410.212972 | T19: -1535.456051 | U19: -1779.279115 | V19: -1914.305626 | W19: -2052.941022 | X19: -2181.595855 | Y19: -2312.502624 | Z19: -2453.063328 | AA19: -2610.971731 | AB19: -2731.856986 | AC19: -2815.766573 | AD19: -2893.545687 | AE19: -2969.212447 | AF19: -3018.010713 | AG19: -3057.167097 | AH19: -3091.948492 | AI19: -3123.952131 | AJ19: -3152.517189 | AK19: -3181.443529 | AL19: -3208.205855 | AM19: -3233.867462 | AN19: -3257.768686
A20: CP | B20: Total DSR | C20: Total DSR | D20: MW | E20: =(E35+E36)*1000 -> -800 | F20: -800 | G20: -800 | H20: -800 | I20: -800 | J20: -800 | K20: -1000 | L20: -1200.279039 | M20: -1800.899093 | N20: -1202.424612 | O20: -1266.429649 | P20: -1275.112071 | Q20: -1407.157889 | R20: -1520.726613 | S20: -1666.336712 | T20: -1859.354532 | U20: -2166.233041 | V20: -2297.796082 | W20: -2471.02575 | X20: -2651.542261 | Y20: -2847.421478 | Z20: -3063.235498 | AA20: -3312.679816 | AB20: -3510.385003 | AC20: -3654.258675 | AD20: -3791.250622 | AE20: -3926.195031 | AF20: -4058.472856 | AG20: -4165.039186 | AH20: -4233.851878 | AI20: -4296.905439 | AJ20: -4354.47494 | AK20: -4413.493644 | AL20: -4469.009355 | AM20: -4524.185349 | AN20: -4577.328362
E25: 05/06 | F25: 06/07 | G25: 07/08 | H25: 08/09 | I25: 09/10 | J25: 10/11 | K25: 11/12 | L25: 12/13 | M25: 13/14 | N25: 14/15 | O25: 15/16 | P25: 16/17 | Q25: 17/18 | R25: 18/19 | S25: 19/20 | T25: 20/21 | U25: 21/22 | V25: 22/23 | W25: 23/24 | X25: 24/25 | Y25: 25/26 | Z25: 26/27 | AA25: 27/28 | AB25: 28/29 | AC25: 29/30 | AD25: 30/31 | AE25: 31/32 | AF25: 32/33 | AG25: 33/34 | AH25: 34/35 | AI25: 35/36 | AJ25: 36/37 | AK25: 37/38 | AL25: 38/39 | AM25: 39/40 | AN25: 40/41
A26: TD | B26: DSR | C26: I&C | D26: GW | E26: -0.8 | F26: -0.8 | G26: -0.8 | H26: -0.8 | I26: -0.8 | J26: -0.8 | K26: -1 | L26: -1.2 | M26: -1.8 | N26: -1.2 | O26: -1.26 | P26: -1.26 | Q26: -2.298075112 | R26: -2.371758642 | S26: -2.450737158 | T26: -2.666848578 | U26: -3.077253775 | V26: -3.206509257 | W26: -3.418136839 | X26: -3.649364376 | Y26: -3.913520699 | Z26: -4.226263349 | AA26: -4.615026124 | AB26: -4.892756214 | AC26: -5.06317813 | AD26: -5.207217321 | AE26: -5.326768969 | AF26: -5.433144872 | AG26: -5.52610995 | AH26: -5.613090858 | AI26: -5.688155808 | AJ26: -5.765003855 | AK26: -5.844163813 | AL26: -5.919681379 | AM26: -5.99150321 | AN26: -6.064786357
A27: TD | B27: DSR | C27: TOUTS | D27: GW | E27: 0 | F27: 0 | G27: 0 | H27: 0 | I27: 0 | J27: 0 | K27: 0 | L27: -0.001272687858 | M27: -0.004075785692 | N27: -0.01077538227 | O27: -0.02761919889 | P27: -0.06293225904 | Q27: -0.14262884 | R27: -0.3231505528 | S27: -0.4830628581 | T27: -0.7041432439 | U27: -1.086036733 | V27: -1.408335561 | W27: -1.781300226 | X27: -2.131225501 | Y27: -2.333428501 | Z27: -2.468482153 | AA27: -2.571243788 | AB27: -2.660499599 | AC27: -2.741565376 | AD27: -2.843371682 | AE27: -2.882349818 | AF27: -2.833597612 | AG27: -2.770284481 | AH27: -2.70657138 | AI27: -2.64301351 | AJ27: -2.579551045 | AK27: -2.516286282 | AL27: -2.465174331 | AM27: -2.409922581 | AN27: -2.366503139
A29: SP | B29: DSR | C29: I&C | D29: GW | E29: -0.8 | F29: -0.8 | G29: -0.8 | H29: -0.8 | I29: -0.8 | J29: -0.8 | K29: -1 | L29: -1.2 | M29: -1.8 | N29: -1.2 | O29: -1.26 | P29: -1.26 | Q29: -1.752732359 | R29: -1.818103859 | S29: -1.877998619 | T29: -2.029038468 | U29: -2.330870113 | V29: -2.428851359 | W29: -2.582461194 | X29: -2.742252577 | Y29: -2.919144409 | Z29: -3.119454737 | AA29: -3.357353217 | AB29: -3.53077436 | AC29: -3.635890136 | AD29: -3.728222015 | AE29: -3.815706652 | AF29: -3.895888037 | AG29: -3.975853986 | AH29: -4.046964381 | AI29: -4.108769044 | AJ29: -4.157270659 | AK29: -4.210377006 | AL29: -4.261396082 | AM29: -4.312620784 | AN29: -4.359244543
A30: SP | B30: DSR | C30: TOUTS | D30: GW | E30: 0 | F30: 0 | G30: 0 | H30: 0 | I30: 0 | J30: 0 | K30: 0 | L30: -0.0003970301278 | M30: -0.001275136719 | N30: -0.003402890263 | O30: -0.008814054249 | P30: -0.02066993497 | Q30: -0.04358729834 | R30: -0.09383463611 | S30: -0.2045420656 | T30: -0.2898917223 | U30: -0.377386996 | V30: -0.4986727778 | W30: -0.7065215796 | X30: -0.9319721441 | Y30: -1.085704076 | Z30: -1.201865267 | AA30: -1.298901001 | AB30: -1.389152521 | AC30: -1.475936964 | AD30: -1.564517697 | AE30: -1.655579168 | AF30: -1.713770171 | AG30: -1.712049372 | AH30: -1.709519701 | AI30: -1.70647201 | AJ30: -1.704276975 | AK30: -1.707589851 | AL30: -1.716794868 | AM30: -1.727127087 | AN30: -1.736754676
A32: SS | B32: DSR | C32: I&C | D32: GW | E32: -0.8 | F32: -0.8 | G32: -0.8 | H32: -0.8 | I32: -0.8 | J32: -0.8 | K32: -1 | L32: -1.2 | M32: -1.8 | N32: -1.2 | O32: -1.26 | P32: -1.26 | Q32: -1.294273159 | R32: -1.334633157 | S32: -1.390368527 | T32: -1.491195521 | U32: -1.681500369 | V32: -1.753064364 | W32: -1.846775239 | X32: -1.940281453 | Y32: -2.040892263 | Z32: -2.153219202 | AA32: -2.283428101 | AB32: -2.376454056 | AC32: -2.431556455 | AD32: -2.479331919 | AE32: -2.523851398 | AF32: -2.56518354 | AG32: -2.603372632 | AH32: -2.637284978 | AI32: -2.668542381 | AJ32: -2.696468882 | AK32: -2.724867067 | AL32: -2.751206401 | AM32: -2.776538911 | AN32: -2.80044179
A33: SS | B33: DSR | C33: TOUTS | D33: GW | E33: 0 | F33: 0 | G33: 0 | H33: 0 | I33: 0 | J33: 0 | K33: 0 | L33: -3.006858483e-05 | M33: -9.765648665e-05 | N33: -0.0002700389733 | O33: -0.0007530154464 | P33: -0.001830653079 | Q33: -0.004045712478 | R33: -0.00906574522 | S33: -0.01984444489 | T33: -0.04426053004 | U33: -0.09777874611 | V33: -0.1612412621 | W33: -0.2061657831 | X33: -0.2413144022 | Y33: -0.2716103603 | Z33: -0.2998441261 | AA33: -0.3275436299 | AB33: -0.3554029293 | AC33: -0.3842101181 | AD33: -0.4142137673 | AE33: -0.445361049 | AF33: -0.4528271736 | AG33: -0.4537944649 | AH33: -0.4546635149 | AI33: -0.4554097501 | AJ33: -0.456048307 | AK33: -0.4565764625 | AL33: -0.4569994543 | AM33: -0.4573285507 | AN33: -0.4573268965
A35: CP | B35: DSR | C35: I&C | D35: GW | E35: -0.8 | F35: -0.8 | G35: -0.8 | H35: -0.8 | I35: -0.8 | J35: -0.8 | K35: -1 | L35: -1.2 | M35: -1.8 | N35: -1.2 | O35: -1.26 | P35: -1.26 | Q35: -1.374329156 | R35: -1.448723074 | S35: -1.509098347 | T35: -1.640722357 | U35: -1.898751633 | V35: -1.986707236 | W35: -2.117264912 | X35: -2.255032306 | Y35: -2.407190188 | Z35: -2.577821853 | AA35: -2.780992816 | AB35: -2.930026219 | AC35: -3.022719092 | AD35: -3.106154876 | AE35: -3.184597389 | AF35: -3.257257593 | AG35: -3.32669343 | AH35: -3.387984035 | AI35: -3.442501612 | AJ35: -3.491808047 | AK35: -3.542837428 | AL35: -3.590954676 | AM35: -3.639388019 | AN35: -3.686170796
A36: CP | B36: DSR | C36: TOUTS | D36: GW | E36: 0 | F36: 0 | G36: 0 | H36: 0 | I36: 0 | J36: 0 | K36: 0 | L36: -0.0002790390489 | M36: -0.0008990934532 | N36: -0.00242461233 | O36: -0.006429649425 | P36: -0.01511207057 | Q36: -0.03282873366 | R36: -0.07200353957 | S36: -0.1572383655 | T36: -0.2186321749 | U36: -0.2674814077 | V36: -0.3110888461 | W36: -0.3537608385 | X36: -0.3965099546 | Y36: -0.4402312908 | Z36: -0.485413645 | AA36: -0.5316870007 | AB36: -0.5803587841 | AC36: -0.6315395828 | AD36: -0.685095746 | AE36: -0.7415976422 | AF36: -0.801215263 | AG36: -0.8383457563 | AH36: -0.845867843 | AI36: -0.8544038268 | AJ36: -0.8626668925 | AK36: -0.8706562165 | AL36: -0.8780546797 | AM36: -0.88479733 | AN36: -0.891157566

Sheet EG ->

Sheet DG
A1: Source: | B1: Produced by CalcDGSplit.sas
A3: scenario | B3: tech | C3: year | D3: etys_location | E3: capacity | F3: wintpk | G3: summam | H3: summpm
A4: CP | B4: Hydro | C4: 16 | D4: F6 | E4: 4.1 | F4: 3.48 | G4: 0.7 | H4: 0.98
A5: CP | B5: Hydro | C5: 16 | D5: H6 | E5: 55 | F5: 46.68 | G5: 9.35 | H5: 13.2
A6: CP | B6: Hydro | C6: 16 | D6: L7 | E6: 1.6 | F6: 1.36 | G6: 0.27 | H6: 0.38
A7: CP | B7: Hydro | C7: 16 | D7: M6 | E7: 1.07 | F7: 0.91 | G7: 0.18 | H7: 0.26
A8: CP | B8: Hydro | C8: 16 | D8: M7 | E8: 18.71 | F8: 15.88 | G8: 3.18 | H8: 4.49
A9: CP | B9: Hydro | C9: 16 | D9: P1 | E9: 2 | F9: 1.7 | G9: 0.34 | H9: 0.48
A10: CP | B10: Hydro | C10: 16 | D10: Q8 | E10: 11.6 | F10: 9.85 | G10: 1.97 | H10: 2.78
A11: CP | B11: Hydro | C11: 16 | D11: S1 | E11: 91.4 | F11: 77.57 | G11: 15.54 | H11: 21.94
A12: CP | B12: Hydro | C12: 16 | D12: S7 | E12: 7.8 | F12: 6.62 | G12: 1.33 | H12: 1.87
A13: CP | B13: Hydro | C13: 16 | D13: T1 | E13: 75.38 | F13: 63.97 | G13: 12.81 | H13: 18.09
A14: CP | B14: Hydro | C14: 16 | D14: T3 | E14: 41.89 | F14: 35.55 | G14: 7.12 | H14: 10.05
A15: CP | B15: Hydro | C15: 16 | D15: T4 | E15: 43.5 | F15: 36.92 | G15: 7.4 | H15: 10.44
A16: CP | B16: Hydro | C16: 16 | D16: T5 | E16: 12.2 | F16: 10.35 | G16: 2.07 | H16: 2.93
A17: CP | B17: Hydro | C17: 17 | D17: F6 | E17: 4.21 | F17: 3.57 | G17: 0.72 | H17: 1.01
A18: CP | B18: Hydro | C18: 17 | D18: H6 | E18: 56.49 | F18: 47.94 | G18: 9.6 | H18: 13.56
A19: CP | B19: Hydro | C19: 17 | D19: L7 | E19: 1.64 | F19: 1.39 | G19: 0.28 | H19: 0.39
A20: CP | B20: Hydro | C20: 17 | D20: M6 | E20: 1.1 | F20: 0.93 | G20: 0.19 | H20: 0.26
A21: CP | B21: Hydro | C21: 17 | D21: M7 | E21: 19.21 | F21: 16.31 | G21: 3.27 | H21: 4.61
A22: CP | B22: Hydro | C22: 17 | D22: P1 | E22: 2.05 | F22: 1.74 | G22: 0.35 | H22: 0.49
A23: CP | B23: Hydro | C23: 17 | D23: Q8 | E23: 11.91 | F23: 10.11 | G23: 2.03 | H23: 2.86
A24: CP | B24: Hydro | C24: 17 | D24: S1 | E24: 93.87 | F24: 79.67 | G24: 15.96 | H24: 22.53
A25: CP | B25: Hydro | C25: 17 | D25: S7 | E25: 8.01 | F25: 6.8 | G25: 1.36 | H25: 1.92
A26: CP | B26: Hydro | C26: 17 | D26: T1 | E26: 77.41 | F26: 65.7 | G26: 13.16 | H26: 18.58
A27: CP | B27: Hydro | C27: 17 | D27: T3 | E27: 43.02 | F27: 36.51 | G27: 7.31 | H27: 10.32
A28: CP | B28: Hydro | C28: 17 | D28: T4 | E28: 44.67 | F28: 37.92 | G28: 7.59 | H28: 10.72
A29: CP | B29: Hydro | C29: 17 | D29: T5 | E29: 12.53 | F29: 10.63 | G29: 2.13 | H29: 3.01
A30: CP | B30: Hydro | C30: 18 | D30: F6 | E30: 4.32 | F30: 3.67 | G30: 0.74 | H30: 1.04
A31: CP | B31: Hydro | C31: 18 | D31: H6 | E31: 58 | F31: 49.23 | G31: 9.86 | H31: 13.92
A32: CP | B32: Hydro | C32: 18 | D32: L7 | E32: 1.69 | F32: 1.43 | G32: 0.29 | H32: 0.4
A33: CP | B33: Hydro | C33: 18 | D33: M6 | E33: 1.13 | F33: 0.96 | G33: 0.19 | H33: 0.27
A34: CP | B34: Hydro | C34: 18 | D34: M7 | E34: 19.73 | F34: 16.74 | G34: 3.35 | H34: 4.73
A35: CP | B35: Hydro | C35: 18 | D35: P1 | E35: 2.11 | F35: 1.79 | G35: 0.36 | H35: 0.51
A36: CP | B36: Hydro | C36: 18 | D36: Q8 | E36: 12.23 | F36: 10.38 | G36: 2.08 | H36: 2.94
A37: CP | B37: Hydro | C37: 18 | D37: S1 | E37: 96.39 | F37: 81.81 | G37: 16.39 | H37: 23.13
A38: CP | B38: Hydro | C38: 18 | D38: S7 | E38: 8.23 | F38: 6.98 | G38: 1.4 | H38: 1.97
A39: CP | B39: Hydro | C39: 18 | D39: T1 | E39: 79.49 | F39: 67.46 | G39: 13.51 | H39: 19.08
A40: CP | B40: Hydro | C40: 18 | D40: T3 | E40: 44.17 | F40: 37.49 | G40: 7.51 | H40: 10.6
A41: CP | B41: Hydro | C41: 18 | D41: T4 | E41: 45.87 | F41: 38.93 | G41: 7.8 | H41: 11.01
A42: CP | B42: Hydro | C42: 18 | D42: T5 | E42: 12.87 | F42: 10.92 | G42: 2.19 | H42: 3.09
A43: CP | B43: Hydro | C43: 19 | D43: F6 | E43: 4.44 | F43: 3.77 | G43: 0.75 | H43: 1.07
A44: CP | B44: Hydro | C44: 19 | D44: H6 | E44: 59.56 | F44: 50.55 | G44: 10.12 | H44: 14.29
A45: CP | B45: Hydro | C45: 19 | D45: L7 | E45: 1.73 | F45: 1.47 | G45: 0.29 | H45: 0.42
A46: CP | B46: Hydro | C46: 19 | D46: M6 | E46: 1.16 | F46: 0.98 | G46: 0.2 | H46: 0.28
A47: CP | B47: Hydro | C47: 19 | D47: M7 | E47: 20.26 | F47: 17.19 | G47: 3.44 | H47: 4.86
A48: CP | B48: Hydro | C48: 19 | D48: P1 | E48: 2.17 | F48: 1.84 | G48: 0.37 | H48: 0.52
A49: CP | B49: Hydro | C49: 19 | D49: Q8 | E49: 12.56 | F49: 10.66 | G49: 2.14 | H49: 3.01
A50: CP | B50: Hydro | C50: 19 | D50: S1 | E50: 98.97 | F50: 84 | G50: 16.83 | H50: 23.75
A51: CP | B51: Hydro | C51: 19 | D51: S7 | E51: 8.45 | F51: 7.17 | G51: 1.44 | H51: 2.03
A52: CP | B52: Hydro | C52: 19 | D52: T1 | E52: 81.62 | F52: 69.27 | G52: 13.88 | H52: 19.59
A53: CP | B53: Hydro | C53: 19 | D53: T3 | E53: 45.36 | F53: 38.49 | G53: 7.71 | H53: 10.89
A54: CP | B54: Hydro | C54: 19 | D54: T4 | E54: 47.1 | F54: 39.98 | G54: 8.01 | H54: 11.3
A55: CP | B55: Hydro | C55: 19 | D55: T5 | E55: 13.21 | F55: 11.21 | G55: 2.25 | H55: 3.17
A56: CP | B56: Hydro | C56: 20 | D56: F6 | E56: 4.54 | F56: 3.85 | G56: 0.77 | H56: 1.09
A57: CP | B57: Hydro | C57: 20 | D57: H6 | E57: 60.85 | F57: 51.65 | G57: 10.35 | H57: 14.6
A58: CP | B58: Hydro | C58: 20 | D58: L7 | E58: 1.77 | F58: 1.5 | G58: 0.3 | H58: 0.42
A59: CP | B59: Hydro | C59: 20 | D59: M6 | E59: 1.18 | F59: 1 | G59: 0.2 | H59: 0.28
A60: CP | B60: Hydro | C60: 20 | D60: M7 | E60: 20.7 | F60: 17.57 | G60: 3.52 | H60: 4.97
A61: CP | B61: Hydro | C61: 20 | D61: P1 | E61: 2.21 | F61: 1.88 | G61: 0.38 | H61: 0.53
A62: CP | B62: Hydro | C62: 20 | D62: Q8 | E62: 12.83 | F62: 10.89 | G62: 2.18 | H62: 3.08
A63: CP | B63: Hydro | C63: 20 | D63: S1 | E63: 101.12 | F63: 85.82 | G63: 17.19 | H63: 24.27
A64: CP | B64: Hydro | C64: 20 | D64: S7 | E64: 8.63 | F64: 7.32 | G64: 1.47 | H64: 2.07
A65: CP | B65: Hydro | C65: 20 | D65: T1 | E65: 83.39 | F65: 70.78 | G65: 14.18 | H65: 20.01
A66: CP | B66: Hydro | C66: 20 | D66: T3 | E66: 46.34 | F66: 39.33 | G66: 7.88 | H66: 11.12
A67: CP | B67: Hydro | C67: 20 | D67: T4 | E67: 48.13 | F67: 40.85 | G67: 8.18 | H67: 11.55
A68: CP | B68: Hydro | C68: 20 | D68: T5 | E68: 13.5 | F68: 11.46 | G68: 2.29 | H68: 3.24
A69: CP | B69: Hydro | C69: 21 | D69: F6 | E69: 4.63 | F69: 3.93 | G69: 0.79 | H69: 1.11
A70: CP | B70: Hydro | C70: 21 | D70: H6 | E70: 62.17 | F70: 52.76 | G70: 10.57 | H70: 14.92
A71: CP | B71: Hydro | C71: 21 | D71: L7 | E71: 1.81 | F71: 1.53 | G71: 0.31 | H71: 0.43
A72: CP | B72: Hydro | C72: 21 | D72: M6 | E72: 1.21 | F72: 1.03 | G72: 0.21 | H72: 0.29
A73: CP | B73: Hydro | C73: 21 | D73: M7 | E73: 21.15 | F73: 17.95 | G73: 3.59 | H73: 5.07
A74: CP | B74: Hydro | C74: 21 | D74: P1 | E74: 2.26 | F74: 1.92 | G74: 0.38 | H74: 0.54
A75: CP | B75: Hydro | C75: 21 | D75: Q8 | E75: 13.11 | F75: 11.13 | G75: 2.23 | H75: 3.15
A76: CP | B76: Hydro | C76: 21 | D76: S1 | E76: 103.31 | F76: 87.68 | G76: 17.56 | H76: 24.8
A77: CP | B77: Hydro | C77: 21 | D77: S7 | E77: 8.82 | F77: 7.48 | G77: 1.5 | H77: 2.12
A78: CP | B78: Hydro | C78: 21 | D78: T1 | E78: 85.2 | F78: 72.31 | G78: 14.48 | H78: 20.45
A79: CP | B79: Hydro | C79: 21 | D79: T3 | E79: 47.34 | F79: 40.18 | G79: 8.05 | H79: 11.36
A80: CP | B80: Hydro | C80: 21 | D80: T4 | E80: 49.17 | F80: 41.73 | G80: 8.36 | H80: 11.8
A81: CP | B81: Hydro | C81: 21 | D81: T5 | E81: 13.79 | F81: 11.7 | G81: 2.34 | H81: 3.31
A82: CP | B82: Hydro | C82: 22 | D82: F6 | E82: 4.71 | F82: 4 | G82: 0.8 | H82: 1.13
A83: CP | B83: Hydro | C83: 22 | D83: H6 | E83: 63.2 | F83: 53.64 | G83: 10.74 | H83: 15.17
A84: CP | B84: Hydro | C84: 22 | D84: L7 | E84: 1.84 | F84: 1.56 | G84: 0.31 | H84: 0.44
A85: CP | B85: Hydro | C85: 22 | D85: M6 | E85: 1.23 | F85: 1.04 | G85: 0.21 | H85: 0.3
A86: CP | B86: Hydro | C86: 22 | D86: M7 | E86: 21.5 | F86: 18.24 | G86: 3.65 | H86: 5.16
A87: CP | B87: Hydro | C87: 22 | D87: P1 | E87: 2.3 | F87: 1.95 | G87: 0.39 | H87: 0.55
A88: CP | B88: Hydro | C88: 22 | D88: Q8 | E88: 13.33 | F88: 11.31 | G88: 2.27 | H88: 3.2
A89: CP | B89: Hydro | C89: 22 | D89: S1 | E89: 105.03 | F89: 89.14 | G89: 17.85 | H89: 25.21
A90: CP | B90: Hydro | C90: 22 | D90: S7 | E90: 8.96 | F90: 7.61 | G90: 1.52 | H90: 2.15
A91: CP | B91: Hydro | C91: 22 | D91: T1 | E91: 86.61 | F91: 73.51 | G91: 14.72 | H91: 20.79
A92: CP | B92: Hydro | C92: 22 | D92: T3 | E92: 48.13 | F92: 40.85 | G92: 8.18 | H92: 11.55
A93: CP | B93: Hydro | C93: 22 | D93: T4 | E93: 49.98 | F93: 42.42 | G93: 8.5 | H93: 12
A94: CP | B94: Hydro | C94: 22 | D94: T5 | E94: 14.02 | F94: 11.9 | G94: 2.38 | H94: 3.36
A95: CP | B95: Hydro | C95: 23 | D95: F6 | E95: 4.79 | F95: 4.06 | G95: 0.81 | H95: 1.15
A96: CP | B96: Hydro | C96: 23 | D96: H6 | E96: 64.24 | F96: 54.52 | G96: 10.92 | H96: 15.42
A97: CP | B97: Hydro | C97: 23 | D97: L7 | E97: 1.87 | F97: 1.59 | G97: 0.32 | H97: 0.45
A98: CP | B98: Hydro | C98: 23 | D98: M6 | E98: 1.25 | F98: 1.06 | G98: 0.21 | H98: 0.3
A99: CP | B99: Hydro | C99: 23 | D99: M7 | E99: 21.85 | F99: 18.55 | G99: 3.71 | H99: 5.24
A100: CP | B100: Hydro | C100: 23 | D100: P1 | E100: 2.34 | F100: 1.98 | G100: 0.4 | H100: 0.56
A101: CP | B101: Hydro | C101: 23 | D101: Q8 | E101: 13.55 | F101: 11.5 | G101: 2.3 | H101: 3.25
A102: CP | B102: Hydro | C102: 23 | D102: S1 | E102: 106.76 | F102: 90.61 | G102: 18.15 | H102: 25.62
A103: CP | B103: Hydro | C103: 23 | D103: S7 | E103: 9.11 | F103: 7.73 | G103: 1.55 | H103: 2.19
A104: CP | B104: Hydro | C104: 23 | D104: T1 | E104: 88.04 | F104: 74.72 | G104: 14.97 | H104: 21.13
A105: CP | B105: Hydro | C105: 23 | D105: T3 | E105: 48.92 | F105: 41.52 | G105: 8.32 | H105: 11.74
A106: CP | B106: Hydro | C106: 23 | D106: T4 | E106: 50.81 | F106: 43.12 | G106: 8.64 | H106: 12.19
A107: CP | B107: Hydro | C107: 23 | D107: T5 | E107: 14.25 | F107: 12.09 | G107: 2.42 | H107: 3.42
A108: CP | B108: Hydro | C108: 24 | D108: F6 | E108: 4.87 | F108: 4.13 | G108: 0.83 | H108: 1.17
A109: CP | B109: Hydro | C109: 24 | D109: H6 | E109: 65.3 | F109: 55.42 | G109: 11.1 | H109: 15.67
A110: CP | B110: Hydro | C110: 24 | D110: L7 | E110: 1.9 | F110: 1.61 | G110: 0.32 | H110: 0.46
A111: CP | B111: Hydro | C111: 24 | D111: M6 | E111: 1.27 | F111: 1.08 | G111: 0.22 | H111: 0.3
A112: CP | B112: Hydro | C112: 24 | D112: M7 | E112: 22.21 | F112: 18.85 | G112: 3.78 | H112: 5.33
A113: CP | B113: Hydro | C113: 24 | D113: P1 | E113: 2.37 | F113: 2.02 | G113: 0.4 | H113: 0.57
A114: CP | B114: Hydro | C114: 24 | D114: Q8 | E114: 13.77 | F114: 11.69 | G114: 2.34 | H114: 3.31
A115: CP | B115: Hydro | C115: 24 | D115: S1 | E115: 108.52 | F115: 92.1 | G115: 18.45 | H115: 26.04
A116: CP | B116: Hydro | C116: 24 | D116: S7 | E116: 9.26 | F116: 7.86 | G116: 1.57 | H116: 2.22
A117: CP | B117: Hydro | C117: 24 | D117: T1 | E117: 89.49 | F117: 75.95 | G117: 15.21 | H117: 21.48
A118: CP | B118: Hydro | C118: 24 | D118: T3 | E118: 49.73 | F118: 42.2 | G118: 8.45 | H118: 11.93
A119: CP | B119: Hydro | C119: 24 | D119: T4 | E119: 51.65 | F119: 43.83 | G119: 8.78 | H119: 12.4
A120: CP | B120: Hydro | C120: 24 | D120: T5 | E120: 14.48 | F120: 12.29 | G120: 2.46 | H120: 3.48
A121: CP | B121: Hydro | C121: 25 | D121: F6 | E121: 4.95 | F121: 4.2 | G121: 0.84 | H121: 1.19
A122: CP | B122: Hydro | C122: 25 | D122: H6 | E122: 66.37 | F122: 56.33 | G122: 11.28 | H122: 15.93
A123: CP | B123: Hydro | C123: 25 | D123: L7 | E123: 1.93 | F123: 1.64 | G123: 0.33 | H123: 0.46
A124: CP | B124: Hydro | C124: 25 | D124: M6 | E124: 1.29 | F124: 1.1 | G124: 0.22 | H124: 0.31
A125: CP | B125: Hydro | C125: 25 | D125: M7 | E125: 22.58 | F125: 19.16 | G125: 3.84 | H125: 5.42
A126: CP | B126: Hydro | C126: 25 | D126: P1 | E126: 2.41 | F126: 2.05 | G126: 0.41 | H126: 0.58
A127: CP | B127: Hydro | C127: 25 | D127: Q8 | E127: 14 | F127: 11.88 | G127: 2.38 | H127: 3.36
A128: CP | B128: Hydro | C128: 25 | D128: S1 | E128: 110.3 | F128: 93.61 | G128: 18.75 | H128: 26.47
A129: CP | B129: Hydro | C129: 25 | D129: S7 | E129: 9.41 | F129: 7.99 | G129: 1.6 | H129: 2.26
A130: CP | B130: Hydro | C130: 25 | D130: T1 | E130: 90.96 | F130: 77.2 | G130: 15.46 | H130: 21.83
A131: CP | B131: Hydro | C131: 25 | D131: T3 | E131: 50.54 | F131: 42.9 | G131: 8.59 | H131: 12.13
A132: CP | B132: Hydro | C132: 25 | D132: T4 | E132: 52.49 | F132: 44.55 | G132: 8.92 | H132: 12.6
A133: CP | B133: Hydro | C133: 25 | D133: T5 | E133: 14.72 | F133: 12.49 | G133: 2.5 | H133: 3.53
A134: CP | B134: Hydro | C134: 26 | D134: F6 | E134: 5.03 | F134: 4.27 | G134: 0.85 | H134: 1.21
A135: CP | B135: Hydro | C135: 26 | D135: H6 | E135: 67.46 | F135: 57.25 | G135: 11.47 | H135: 16.19
A136: CP | B136: Hydro | C136: 26 | D136: L7 | E136: 1.96 | F136: 1.67 | G136: 0.33 | H136: 0.47
A137: CP | B137: Hydro | C137: 26 | D137: M6 | E137: 1.31 | F137: 1.11 | G137: 0.22 | H137: 0.31
A138: CP | B138: Hydro | C138: 26 | D138: M7 | E138: 22.95 | F138: 19.47 | G138: 3.9 | H138: 5.51
A139: CP | B139: Hydro | C139: 26 | D139: P1 | E139: 2.45 | F139: 2.08 | G139: 0.42 | H139: 0.59
A140: CP | B140: Hydro | C140: 26 | D140: Q8 | E140: 14.23 | F140: 12.08 | G140: 2.42 | H140: 3.41
A141: CP | B141: Hydro | C141: 26 | D141: S1 | E141: 112.1 | F141: 95.14 | G141: 19.06 | H141: 26.9
A142: CP | B142: Hydro | C142: 26 | D142: S7 | E142: 9.57 | F142: 8.12 | G142: 1.63 | H142: 2.3
A143: CP | B143: Hydro | C143: 26 | D143: T1 | E143: 92.45 | F143: 78.46 | G143: 15.72 | H143: 22.19
A144: CP | B144: Hydro | C144: 26 | D144: T3 | E144: 51.37 | F144: 43.6 | G144: 8.73 | H144: 12.33
A145: CP | B145: Hydro | C145: 26 | D145: T4 | E145: 53.35 | F145: 45.28 | G145: 9.07 | H145: 12.8
A146: CP | B146: Hydro | C146: 26 | D146: T5 | E146: 14.96 | F146: 12.7 | G146: 2.54 | H146: 3.59
A147: CP | B147: Hydro | C147: 27 | D147: F6 | E147: 5.11 | F147: 4.34 | G147: 0.87 | H147: 1.23
A148: CP | B148: Hydro | C148: 27 | D148: H6 | E148: 68.56 | F148: 58.19 | G148: 11.66 | H148: 16.45
A149: CP | B149: Hydro | C149: 27 | D149: L7 | E149: 1.99 | F149: 1.69 | G149: 0.34 | H149: 0.48
A150: CP | B150: Hydro | C150: 27 | D150: M6 | E150: 1.33 | F150: 1.13 | G150: 0.23 | H150: 0.32
A151: CP | B151: Hydro | C151: 27 | D151: M7 | E151: 23.32 | F151: 19.79 | G151: 3.96 | H151: 5.6
A152: CP | B152: Hydro | C152: 27 | D152: P1 | E152: 2.49 | F152: 2.12 | G152: 0.42 | H152: 0.6
A153: CP | B153: Hydro | C153: 27 | D153: Q8 | E153: 14.46 | F153: 12.27 | G153: 2.46 | H153: 3.47
A154: CP | B154: Hydro | C154: 27 | D154: S1 | E154: 113.93 | F154: 96.69 | G154: 19.37 | H154: 27.34
A155: CP | B155: Hydro | C155: 27 | D155: S7 | E155: 9.72 | F155: 8.25 | G155: 1.65 | H155: 2.33
A156: CP | B156: Hydro | C156: 27 | D156: T1 | E156: 93.96 | F156: 79.74 | G156: 15.97 | H156: 22.55
A157: CP | B157: Hydro | C157: 27 | D157: T3 | E157: 52.21 | F157: 44.31 | G157: 8.88 | H157: 12.53
A158: CP | B158: Hydro | C158: 27 | D158: T4 | E158: 54.22 | F158: 46.02 | G158: 9.22 | H158: 13.01
A159: CP | B159: Hydro | C159: 27 | D159: T5 | E159: 15.21 | F159: 12.91 | G159: 2.59 | H159: 3.65
A160: CP | B160: Hydro | C160: 28 | D160: F6 | E160: 5.19 | F160: 4.41 | G160: 0.88 | H160: 1.25
A161: CP | B161: Hydro | C161: 28 | D161: H6 | E161: 69.68 | F161: 59.13 | G161: 11.84 | H161: 16.72
A162: CP | B162: Hydro | C162: 28 | D162: L7 | E162: 2.03 | F162: 1.72 | G162: 0.34 | H162: 0.49
A163: CP | B163: Hydro | C163: 28 | D163: M6 | E163: 1.36 | F163: 1.15 | G163: 0.23 | H163: 0.33
A164: CP | B164: Hydro | C164: 28 | D164: M7 | E164: 23.7 | F164: 20.11 | G164: 4.03 | H164: 5.69
A165: CP | B165: Hydro | C165: 28 | D165: P1 | E165: 2.53 | F165: 2.15 | G165: 0.43 | H165: 0.61
A166: CP | B166: Hydro | C166: 28 | D166: Q8 | E166: 14.7 | F166: 12.47 | G166: 2.5 | H166: 3.53
A167: CP | B167: Hydro | C167: 28 | D167: S1 | E167: 115.79 | F167: 98.27 | G167: 19.68 | H167: 27.79
A168: CP | B168: Hydro | C168: 28 | D168: S7 | E168: 9.88 | F168: 8.39 | G168: 1.68 | H168: 2.37
A169: CP | B169: Hydro | C169: 28 | D169: T1 | E169: 95.48 | F169: 81.04 | G169: 16.23 | H169: 22.92
A170: CP | B170: Hydro | C170: 28 | D170: T3 | E170: 53.06 | F170: 45.03 | G170: 9.02 | H170: 12.73
A171: CP | B171: Hydro | C171: 28 | D171: T4 | E171: 55.1 | F171: 46.77 | G171: 9.37 | H171: 13.23
A172: CP | B172: Hydro | C172: 28 | D172: T5 | E172: 15.45 | F172: 13.12 | G172: 2.63 | H172: 3.71
A173: CP | B173: Hydro | C173: 29 | D173: F6 | E173: 5.28 | F173: 4.48 | G173: 0.9 | H173: 1.27
A174: CP | B174: Hydro | C174: 29 | D174: H6 | E174: 70.8 | F174: 60.09 | G174: 12.04 | H174: 16.99
A175: CP | B175: Hydro | C175: 29 | D175: L7 | E175: 2.06 | F175: 1.75 | G175: 0.35 | H175: 0.49
A176: CP | B176: Hydro | C176: 29 | D176: M6 | E176: 1.38 | F176: 1.17 | G176: 0.23 | H176: 0.33
A177: CP | B177: Hydro | C177: 29 | D177: M7 | E177: 24.08 | F177: 20.44 | G177: 4.09 | H177: 5.78
A178: CP | B178: Hydro | C178: 29 | D178: P1 | E178: 2.57 | F178: 2.19 | G178: 0.44 | H178: 0.62
A179: CP | B179: Hydro | C179: 29 | D179: Q8 | E179: 14.93 | F179: 12.67 | G179: 2.54 | H179: 3.58
A180: CP | B180: Hydro | C180: 29 | D180: S1 | E180: 117.66 | F180: 99.86 | G180: 20 | H180: 28.24
A181: CP | B181: Hydro | C181: 29 | D181: S7 | E181: 10.04 | F181: 8.52 | G181: 1.71 | H181: 2.41
A182: CP | B182: Hydro | C182: 29 | D182: T1 | E182: 97.03 | F182: 82.35 | G182: 16.5 | H182: 23.29
A183: CP | B183: Hydro | C183: 29 | D183: T3 | E183: 53.92 | F183: 45.76 | G183: 9.17 | H183: 12.94
A184: CP | B184: Hydro | C184: 29 | D184: T4 | E184: 56 | F184: 47.53 | G184: 9.52 | H184: 13.44
A185: CP | B185: Hydro | C185: 29 | D185: T5 | E185: 15.71 | F185: 13.33 | G185: 2.67 | H185: 3.77
A186: CP | B186: Hydro | C186: 30 | D186: F6 | E186: 5.36 | F186: 4.55 | G186: 0.91 | H186: 1.29
A187: CP | B187: Hydro | C187: 30 | D187: H6 | E187: 71.95 | F187: 61.06 | G187: 12.23 | H187: 17.27
A188: CP | B188: Hydro | C188: 30 | D188: L7 | E188: 2.09 | F188: 1.78 | G188: 0.36 | H188: 0.5
A189: CP | B189: Hydro | C189: 30 | D189: M6 | E189: 1.4 | F189: 1.19 | G189: 0.24 | H189: 0.34
A190: CP | B190: Hydro | C190: 30 | D190: M7 | E190: 24.47 | F190: 20.77 | G190: 4.16 | H190: 5.87
A191: CP | B191: Hydro | C191: 30 | D191: P1 | E191: 2.62 | F191: 2.22 | G191: 0.44 | H191: 0.63
A192: CP | B192: Hydro | C192: 30 | D192: Q8 | E192: 15.17 | F192: 12.88 | G192: 2.58 | H192: 3.64
A193: CP | B193: Hydro | C193: 30 | D193: S1 | E193: 119.57 | F193: 101.48 | G193: 20.33 | H193: 28.7
A194: CP | B194: Hydro | C194: 30 | D194: S7 | E194: 10.2 | F194: 8.66 | G194: 1.73 | H194: 2.45
A195: CP | B195: Hydro | C195: 30 | D195: T1 | E195: 98.6 | F195: 83.68 | G195: 16.76 | H195: 23.66
A196: CP | B196: Hydro | C196: 30 | D196: T3 | E196: 54.79 | F196: 46.5 | G196: 9.31 | H196: 13.15
A197: CP | B197: Hydro | C197: 30 | D197: T4 | E197: 56.91 | F197: 48.3 | G197: 9.67 | H197: 13.66
A198: CP | B198: Hydro | C198: 30 | D198: T5 | E198: 15.96 | F198: 13.54 | G198: 2.71 | H198: 3.83
A199: CP | B199: Hydro | C199: 31 | D199: F6 | E199: 5.45 | F199: 4.63 | G199: 0.93 | H199: 1.31
A200: CP | B200: Hydro | C200: 31 | D200: H6 | E200: 73.11 | F200: 62.05 | G200: 12.43 | H200: 17.55
A201: CP | B201: Hydro | C201: 31 | D201: L7 | E201: 2.13 | F201: 1.81 | G201: 0.36 | H201: 0.51
... 4299 more rows

Sheet Sub1MW
A1: Source: | B1: Produced by CalcMicroSplits.sas
A3: scenario | B3: tech | C3: year | D3: etys_location | E3: capacity | F3: wintpk | G3: summam | H3: summpm
A4: CP | B4: Battery | C4: 16 | D4: A1 | E4: 0.224 | F4: 0.195 | G4: 0 | H4: 0
A5: CP | B5: Battery | C5: 16 | D5: A3 | E5: 0.041 | F5: 0.036 | G5: 0 | H5: 0
A6: CP | B6: Battery | C6: 16 | D6: A4 | E6: 0.129 | F6: 0.112 | G6: 0 | H6: 0
A7: CP | B7: Battery | C7: 16 | D7: A6 | E7: 0.399 | F7: 0.347 | G7: 0 | H7: 0
A8: CP | B8: Battery | C8: 16 | D8: A7 | E8: 0.148 | F8: 0.128 | G8: 0 | H8: 0
A9: CP | B9: Battery | C9: 16 | D9: A8 | E9: 0.458 | F9: 0.398 | G9: 0 | H9: 0
A10: CP | B10: Battery | C10: 16 | D10: A9 | E10: 0.076 | F10: 0.066 | G10: 0 | H10: 0
A11: CP | B11: Battery | C11: 16 | D11: B1 | E11: 0.633 | F11: 0.551 | G11: 0 | H11: 0
A12: CP | B12: Battery | C12: 16 | D12: B2 | E12: 0.813 | F12: 0.707 | G12: 0 | H12: 0
A13: CP | B13: Battery | C13: 16 | D13: B3 | E13: 0.207 | F13: 0.18 | G13: 0 | H13: 0
A14: CP | B14: Battery | C14: 16 | D14: B4 | E14: 0.219 | F14: 0.19 | G14: 0 | H14: 0
A15: CP | B15: Battery | C15: 16 | D15: C1 | E15: 0.085 | F15: 0.074 | G15: 0 | H15: 0
A16: CP | B16: Battery | C16: 16 | D16: C2 | E16: 0.168 | F16: 0.146 | G16: 0 | H16: 0
A17: CP | B17: Battery | C17: 16 | D17: C3 | E17: 0.097 | F17: 0.084 | G17: 0 | H17: 0
A18: CP | B18: Battery | C18: 16 | D18: C4 | E18: 0.125 | F18: 0.109 | G18: 0 | H18: 0
A19: CP | B19: Battery | C19: 16 | D19: C5 | E19: 0.146 | F19: 0.127 | G19: 0 | H19: 0
A20: CP | B20: Battery | C20: 16 | D20: C6 | E20: 0.051 | F20: 0.044 | G20: 0 | H20: 0
A21: CP | B21: Battery | C21: 16 | D21: C7 | E21: 0.194 | F21: 0.169 | G21: 0 | H21: 0
A22: CP | B22: Battery | C22: 16 | D22: D4 | E22: 0.332 | F22: 0.289 | G22: 0 | H22: 0
A23: CP | B23: Battery | C23: 16 | D23: D5 | E23: 0.257 | F23: 0.223 | G23: 0 | H23: 0
A24: CP | B24: Battery | C24: 16 | D24: D6 | E24: 0.31 | F24: 0.27 | G24: 0 | H24: 0
A25: CP | B25: Battery | C25: 16 | D25: E1 | E25: 0.652 | F25: 0.568 | G25: 0 | H25: 0
A26: CP | B26: Battery | C26: 16 | D26: E7 | E26: 0.216 | F26: 0.188 | G26: 0 | H26: 0
A27: CP | B27: Battery | C27: 16 | D27: E8 | E27: 0.152 | F27: 0.133 | G27: 0 | H27: 0
A28: CP | B28: Battery | C28: 16 | D28: F6 | E28: 1.81 | F28: 1.575 | G28: 0 | H28: 0
A29: CP | B29: Battery | C29: 16 | D29: G1 | E29: 0.378 | F29: 0.329 | G29: 0 | H29: 0
A30: CP | B30: Battery | C30: 16 | D30: G5 | E30: 0.231 | F30: 0.201 | G30: 0 | H30: 0
A31: CP | B31: Battery | C31: 16 | D31: G6 | E31: 0.452 | F31: 0.393 | G31: 0 | H31: 0
A32: CP | B32: Battery | C32: 16 | D32: G7 | E32: 0.301 | F32: 0.262 | G32: 0 | H32: 0
A33: CP | B33: Battery | C33: 16 | D33: H1 | E33: 0.1 | F33: 0.087 | G33: 0 | H33: 0
A34: CP | B34: Battery | C34: 16 | D34: H2 | E34: 0.514 | F34: 0.447 | G34: 0 | H34: 0
A35: CP | B35: Battery | C35: 16 | D35: H6 | E35: 0.716 | F35: 0.623 | G35: 0 | H35: 0
A36: CP | B36: Battery | C36: 16 | D36: J1 | E36: 0.326 | F36: 0.284 | G36: 0 | H36: 0
A37: CP | B37: Battery | C37: 16 | D37: J3 | E37: 0.702 | F37: 0.611 | G37: 0 | H37: 0
A38: CP | B38: Battery | C38: 16 | D38: J4 | E38: 0.236 | F38: 0.205 | G38: 0 | H38: 0
A39: CP | B39: Battery | C39: 16 | D39: J5 | E39: 0.54 | F39: 0.47 | G39: 0 | H39: 0
A40: CP | B40: Battery | C40: 16 | D40: J6 | E40: 0.38 | F40: 0.33 | G40: 0 | H40: 0
A41: CP | B41: Battery | C41: 16 | D41: J7 | E41: 0.341 | F41: 0.297 | G41: 0 | H41: 0
A42: CP | B42: Battery | C42: 16 | D42: J8 | E42: 0.312 | F42: 0.271 | G42: 0 | H42: 0
A43: CP | B43: Battery | C43: 16 | D43: K4 | E43: 0.469 | F43: 0.408 | G43: 0 | H43: 0
A44: CP | B44: Battery | C44: 16 | D44: K5 | E44: 0.313 | F44: 0.273 | G44: 0 | H44: 0
A45: CP | B45: Battery | C45: 16 | D45: K6 | E45: 0.28 | F45: 0.244 | G45: 0 | H45: 0
A46: CP | B46: Battery | C46: 16 | D46: L1 | E46: 0.05 | F46: 0.044 | G46: 0 | H46: 0
A47: CP | B47: Battery | C47: 16 | D47: L2 | E47: 0.567 | F47: 0.493 | G47: 0 | H47: 0
A48: CP | B48: Battery | C48: 16 | D48: L3 | E48: 1.029 | F48: 0.896 | G48: 0 | H48: 0
A49: CP | B49: Battery | C49: 16 | D49: L5 | E49: 0.955 | F49: 0.831 | G49: 0 | H49: 0
A50: CP | B50: Battery | C50: 16 | D50: L7 | E50: 0.443 | F50: 0.386 | G50: 0 | H50: 0
A51: CP | B51: Battery | C51: 16 | D51: L8 | E51: 0.336 | F51: 0.292 | G51: 0 | H51: 0
A52: CP | B52: Battery | C52: 16 | D52: M4 | E52: 0.211 | F52: 0.184 | G52: 0 | H52: 0
A53: CP | B53: Battery | C53: 16 | D53: M5 | E53: 0.153 | F53: 0.133 | G53: 0 | H53: 0
A54: CP | B54: Battery | C54: 16 | D54: M6 | E54: 0.085 | F54: 0.074 | G54: 0 | H54: 0
A55: CP | B55: Battery | C55: 16 | D55: M7 | E55: 0.074 | F55: 0.065 | G55: 0 | H55: 0
A56: CP | B56: Battery | C56: 16 | D56: M8 | E56: 0.023 | F56: 0.02 | G56: 0 | H56: 0
A57: CP | B57: Battery | C57: 16 | D57: N1 | E57: 0.355 | F57: 0.309 | G57: 0 | H57: 0
A58: CP | B58: Battery | C58: 16 | D58: N2 | E58: 0.393 | F58: 0.342 | G58: 0 | H58: 0
A59: CP | B59: Battery | C59: 16 | D59: N3 | E59: 0.248 | F59: 0.216 | G59: 0 | H59: 0
A60: CP | B60: Battery | C60: 16 | D60: N4 | E60: 0.39 | F60: 0.34 | G60: 0 | H60: 0
A61: CP | B61: Battery | C61: 16 | D61: N5 | E61: 0.198 | F61: 0.172 | G61: 0 | H61: 0
A62: CP | B62: Battery | C62: 16 | D62: N6 | E62: 0.067 | F62: 0.058 | G62: 0 | H62: 0
A63: CP | B63: Battery | C63: 16 | D63: N7 | E63: 0.099 | F63: 0.086 | G63: 0 | H63: 0
A64: CP | B64: Battery | C64: 16 | D64: P1 | E64: 0.671 | F64: 0.584 | G64: 0 | H64: 0
A65: CP | B65: Battery | C65: 16 | D65: P2 | E65: 0.261 | F65: 0.227 | G65: 0 | H65: 0
A66: CP | B66: Battery | C66: 16 | D66: P3 | E66: 0.852 | F66: 0.741 | G66: 0 | H66: 0
A67: CP | B67: Battery | C67: 16 | D67: P4 | E67: 0.1 | F67: 0.087 | G67: 0 | H67: 0
A68: CP | B68: Battery | C68: 16 | D68: P5 | E68: 0.091 | F68: 0.079 | G68: 0 | H68: 0
A69: CP | B69: Battery | C69: 16 | D69: P6 | E69: 0.294 | F69: 0.256 | G69: 0 | H69: 0
A70: CP | B70: Battery | C70: 16 | D70: P7 | E70: 0.194 | F70: 0.169 | G70: 0 | H70: 0
A71: CP | B71: Battery | C71: 16 | D71: P8 | E71: 0.548 | F71: 0.477 | G71: 0 | H71: 0
A72: CP | B72: Battery | C72: 16 | D72: Q2 | E72: 0.128 | F72: 0.111 | G72: 0 | H72: 0
A73: CP | B73: Battery | C73: 16 | D73: Q4 | E73: 0.613 | F73: 0.533 | G73: 0 | H73: 0
A74: CP | B74: Battery | C74: 16 | D74: Q5 | E74: 0.188 | F74: 0.164 | G74: 0 | H74: 0
A75: CP | B75: Battery | C75: 16 | D75: Q6 | E75: 0.147 | F75: 0.128 | G75: 0 | H75: 0
A76: CP | B76: Battery | C76: 16 | D76: Q7 | E76: 0.186 | F76: 0.162 | G76: 0 | H76: 0
A77: CP | B77: Battery | C77: 16 | D77: Q8 | E77: 0.16 | F77: 0.139 | G77: 0 | H77: 0
A78: CP | B78: Battery | C78: 16 | D78: R4 | E78: 0.228 | F78: 0.198 | G78: 0 | H78: 0
A79: CP | B79: Battery | C79: 16 | D79: R5 | E79: 0.117 | F79: 0.102 | G79: 0 | H79: 0
A80: CP | B80: Battery | C80: 16 | D80: R6 | E80: 0.05 | F80: 0.044 | G80: 0 | H80: 0
A81: CP | B81: Battery | C81: 16 | D81: S1 | E81: 0.717 | F81: 0.624 | G81: 0 | H81: 0
A82: CP | B82: Battery | C82: 16 | D82: S2 | E82: 0.112 | F82: 0.097 | G82: 0 | H82: 0
A83: CP | B83: Battery | C83: 16 | D83: S4 | E83: 0.033 | F83: 0.028 | G83: 0 | H83: 0
A84: CP | B84: Battery | C84: 16 | D84: S5 | E84: 0.28 | F84: 0.244 | G84: 0 | H84: 0
A85: CP | B85: Battery | C85: 16 | D85: S6 | E85: 0.034 | F85: 0.029 | G85: 0 | H85: 0
A86: CP | B86: Battery | C86: 16 | D86: S7 | E86: 0.043 | F86: 0.038 | G86: 0 | H86: 0
A87: CP | B87: Battery | C87: 16 | D87: T1 | E87: 0.195 | F87: 0.169 | G87: 0 | H87: 0
A88: CP | B88: Battery | C88: 16 | D88: T2 | E88: 0.179 | F88: 0.156 | G88: 0 | H88: 0
A89: CP | B89: Battery | C89: 16 | D89: T3 | E89: 0.03 | F89: 0.026 | G89: 0 | H89: 0
A90: CP | B90: Battery | C90: 16 | D90: T4 | E90: 0.248 | F90: 0.216 | G90: 0 | H90: 0
A91: CP | B91: Battery | C91: 16 | D91: T5 | E91: 0.052 | F91: 0.045 | G91: 0 | H91: 0
A92: CP | B92: Battery | C92: 17 | D92: A1 | E92: 0.232 | F92: 0.202 | G92: 0 | H92: 0
A93: CP | B93: Battery | C93: 17 | D93: A3 | E93: 0.042 | F93: 0.037 | G93: 0 | H93: 0
A94: CP | B94: Battery | C94: 17 | D94: A4 | E94: 0.134 | F94: 0.117 | G94: 0 | H94: 0
A95: CP | B95: Battery | C95: 17 | D95: A6 | E95: 0.414 | F95: 0.36 | G95: 0 | H95: 0
A96: CP | B96: Battery | C96: 17 | D96: A7 | E96: 0.153 | F96: 0.133 | G96: 0 | H96: 0
A97: CP | B97: Battery | C97: 17 | D97: A8 | E97: 0.475 | F97: 0.413 | G97: 0 | H97: 0
A98: CP | B98: Battery | C98: 17 | D98: A9 | E98: 0.079 | F98: 0.069 | G98: 0 | H98: 0
A99: CP | B99: Battery | C99: 17 | D99: B1 | E99: 0.656 | F99: 0.571 | G99: 0 | H99: 0
A100: CP | B100: Battery | C100: 17 | D100: B2 | E100: 0.843 | F100: 0.733 | G100: 0 | H100: 0
A101: CP | B101: Battery | C101: 17 | D101: B3 | E101: 0.215 | F101: 0.187 | G101: 0 | H101: 0
A102: CP | B102: Battery | C102: 17 | D102: B4 | E102: 0.227 | F102: 0.198 | G102: 0 | H102: 0
A103: CP | B103: Battery | C103: 17 | D103: C1 | E103: 0.088 | F103: 0.076 | G103: 0 | H103: 0
A104: CP | B104: Battery | C104: 17 | D104: C2 | E104: 0.174 | F104: 0.151 | G104: 0 | H104: 0
A105: CP | B105: Battery | C105: 17 | D105: C3 | E105: 0.101 | F105: 0.088 | G105: 0 | H105: 0
A106: CP | B106: Battery | C106: 17 | D106: C4 | E106: 0.129 | F106: 0.113 | G106: 0 | H106: 0
A107: CP | B107: Battery | C107: 17 | D107: C5 | E107: 0.151 | F107: 0.132 | G107: 0 | H107: 0
A108: CP | B108: Battery | C108: 17 | D108: C6 | E108: 0.053 | F108: 0.046 | G108: 0 | H108: 0
A109: CP | B109: Battery | C109: 17 | D109: C7 | E109: 0.201 | F109: 0.175 | G109: 0 | H109: 0
A110: CP | B110: Battery | C110: 17 | D110: D4 | E110: 0.344 | F110: 0.299 | G110: 0 | H110: 0
A111: CP | B111: Battery | C111: 17 | D111: D5 | E111: 0.266 | F111: 0.232 | G111: 0 | H111: 0
A112: CP | B112: Battery | C112: 17 | D112: D6 | E112: 0.321 | F112: 0.28 | G112: 0 | H112: 0
A113: CP | B113: Battery | C113: 17 | D113: E1 | E113: 0.677 | F113: 0.589 | G113: 0 | H113: 0
A114: CP | B114: Battery | C114: 17 | D114: E7 | E114: 0.224 | F114: 0.195 | G114: 0 | H114: 0
A115: CP | B115: Battery | C115: 17 | D115: E8 | E115: 0.158 | F115: 0.137 | G115: 0 | H115: 0
A116: CP | B116: Battery | C116: 17 | D116: F6 | E116: 1.877 | F116: 1.633 | G116: 0 | H116: 0
A117: CP | B117: Battery | C117: 17 | D117: G1 | E117: 0.392 | F117: 0.341 | G117: 0 | H117: 0
A118: CP | B118: Battery | C118: 17 | D118: G5 | E118: 0.239 | F118: 0.208 | G118: 0 | H118: 0
A119: CP | B119: Battery | C119: 17 | D119: G6 | E119: 0.469 | F119: 0.408 | G119: 0 | H119: 0
A120: CP | B120: Battery | C120: 17 | D120: G7 | E120: 0.312 | F120: 0.271 | G120: 0 | H120: 0
A121: CP | B121: Battery | C121: 17 | D121: H1 | E121: 0.103 | F121: 0.09 | G121: 0 | H121: 0
A122: CP | B122: Battery | C122: 17 | D122: H2 | E122: 0.533 | F122: 0.464 | G122: 0 | H122: 0
A123: CP | B123: Battery | C123: 17 | D123: H6 | E123: 0.743 | F123: 0.646 | G123: 0 | H123: 0
A124: CP | B124: Battery | C124: 17 | D124: J1 | E124: 0.338 | F124: 0.294 | G124: 0 | H124: 0
A125: CP | B125: Battery | C125: 17 | D125: J3 | E125: 0.728 | F125: 0.633 | G125: 0 | H125: 0
A126: CP | B126: Battery | C126: 17 | D126: J4 | E126: 0.244 | F126: 0.213 | G126: 0 | H126: 0
A127: CP | B127: Battery | C127: 17 | D127: J5 | E127: 0.56 | F127: 0.488 | G127: 0 | H127: 0
A128: CP | B128: Battery | C128: 17 | D128: J6 | E128: 0.394 | F128: 0.343 | G128: 0 | H128: 0
A129: CP | B129: Battery | C129: 17 | D129: J7 | E129: 0.353 | F129: 0.308 | G129: 0 | H129: 0
A130: CP | B130: Battery | C130: 17 | D130: J8 | E130: 0.323 | F130: 0.281 | G130: 0 | H130: 0
A131: CP | B131: Battery | C131: 17 | D131: K4 | E131: 0.486 | F131: 0.423 | G131: 0 | H131: 0
A132: CP | B132: Battery | C132: 17 | D132: K5 | E132: 0.325 | F132: 0.283 | G132: 0 | H132: 0
A133: CP | B133: Battery | C133: 17 | D133: K6 | E133: 0.291 | F133: 0.253 | G133: 0 | H133: 0
A134: CP | B134: Battery | C134: 17 | D134: L1 | E134: 0.052 | F134: 0.045 | G134: 0 | H134: 0
A135: CP | B135: Battery | C135: 17 | D135: L2 | E135: 0.588 | F135: 0.511 | G135: 0 | H135: 0
A136: CP | B136: Battery | C136: 17 | D136: L3 | E136: 1.068 | F136: 0.929 | G136: 0 | H136: 0
A137: CP | B137: Battery | C137: 17 | D137: L5 | E137: 0.99 | F137: 0.862 | G137: 0 | H137: 0
A138: CP | B138: Battery | C138: 17 | D138: L7 | E138: 0.46 | F138: 0.4 | G138: 0 | H138: 0
A139: CP | B139: Battery | C139: 17 | D139: L8 | E139: 0.348 | F139: 0.303 | G139: 0 | H139: 0
A140: CP | B140: Battery | C140: 17 | D140: M4 | E140: 0.219 | F140: 0.191 | G140: 0 | H140: 0
A141: CP | B141: Battery | C141: 17 | D141: M5 | E141: 0.159 | F141: 0.138 | G141: 0 | H141: 0
A142: CP | B142: Battery | C142: 17 | D142: M6 | E142: 0.089 | F142: 0.077 | G142: 0 | H142: 0
A143: CP | B143: Battery | C143: 17 | D143: M7 | E143: 0.077 | F143: 0.067 | G143: 0 | H143: 0
A144: CP | B144: Battery | C144: 17 | D144: M8 | E144: 0.023 | F144: 0.02 | G144: 0 | H144: 0
A145: CP | B145: Battery | C145: 17 | D145: N1 | E145: 0.368 | F145: 0.32 | G145: 0 | H145: 0
A146: CP | B146: Battery | C146: 17 | D146: N2 | E146: 0.408 | F146: 0.355 | G146: 0 | H146: 0
A147: CP | B147: Battery | C147: 17 | D147: N3 | E147: 0.258 | F147: 0.224 | G147: 0 | H147: 0
A148: CP | B148: Battery | C148: 17 | D148: N4 | E148: 0.405 | F148: 0.352 | G148: 0 | H148: 0
A149: CP | B149: Battery | C149: 17 | D149: N5 | E149: 0.205 | F149: 0.178 | G149: 0 | H149: 0
A150: CP | B150: Battery | C150: 17 | D150: N6 | E150: 0.07 | F150: 0.061 | G150: 0 | H150: 0
A151: CP | B151: Battery | C151: 17 | D151: N7 | E151: 0.102 | F151: 0.089 | G151: 0 | H151: 0
A152: CP | B152: Battery | C152: 17 | D152: P1 | E152: 0.696 | F152: 0.606 | G152: 0 | H152: 0
A153: CP | B153: Battery | C153: 17 | D153: P2 | E153: 0.271 | F153: 0.236 | G153: 0 | H153: 0
A154: CP | B154: Battery | C154: 17 | D154: P3 | E154: 0.883 | F154: 0.769 | G154: 0 | H154: 0
A155: CP | B155: Battery | C155: 17 | D155: P4 | E155: 0.104 | F155: 0.09 | G155: 0 | H155: 0
A156: CP | B156: Battery | C156: 17 | D156: P5 | E156: 0.094 | F156: 0.082 | G156: 0 | H156: 0
A157: CP | B157: Battery | C157: 17 | D157: P6 | E157: 0.305 | F157: 0.265 | G157: 0 | H157: 0
A158: CP | B158: Battery | C158: 17 | D158: P7 | E158: 0.201 | F158: 0.175 | G158: 0 | H158: 0
A159: CP | B159: Battery | C159: 17 | D159: P8 | E159: 0.568 | F159: 0.494 | G159: 0 | H159: 0
A160: CP | B160: Battery | C160: 17 | D160: Q2 | E160: 0.132 | F160: 0.115 | G160: 0 | H160: 0
A161: CP | B161: Battery | C161: 17 | D161: Q4 | E161: 0.636 | F161: 0.553 | G161: 0 | H161: 0
A162: CP | B162: Battery | C162: 17 | D162: Q5 | E162: 0.195 | F162: 0.17 | G162: 0 | H162: 0
A163: CP | B163: Battery | C163: 17 | D163: Q6 | E163: 0.153 | F163: 0.133 | G163: 0 | H163: 0
A164: CP | B164: Battery | C164: 17 | D164: Q7 | E164: 0.193 | F164: 0.168 | G164: 0 | H164: 0
A165: CP | B165: Battery | C165: 17 | D165: Q8 | E165: 0.166 | F165: 0.144 | G165: 0 | H165: 0
A166: CP | B166: Battery | C166: 17 | D166: R4 | E166: 0.236 | F166: 0.206 | G166: 0 | H166: 0
A167: CP | B167: Battery | C167: 17 | D167: R5 | E167: 0.121 | F167: 0.106 | G167: 0 | H167: 0
A168: CP | B168: Battery | C168: 17 | D168: R6 | E168: 0.052 | F168: 0.046 | G168: 0 | H168: 0
A169: CP | B169: Battery | C169: 17 | D169: S1 | E169: 0.743 | F169: 0.647 | G169: 0 | H169: 0
A170: CP | B170: Battery | C170: 17 | D170: S2 | E170: 0.116 | F170: 0.101 | G170: 0 | H170: 0
A171: CP | B171: Battery | C171: 17 | D171: S4 | E171: 0.034 | F171: 0.029 | G171: 0 | H171: 0
A172: CP | B172: Battery | C172: 17 | D172: S5 | E172: 0.291 | F172: 0.253 | G172: 0 | H172: 0
A173: CP | B173: Battery | C173: 17 | D173: S6 | E173: 0.035 | F173: 0.03 | G173: 0 | H173: 0
A174: CP | B174: Battery | C174: 17 | D174: S7 | E174: 0.045 | F174: 0.039 | G174: 0 | H174: 0
A175: CP | B175: Battery | C175: 17 | D175: T1 | E175: 0.202 | F175: 0.176 | G175: 0 | H175: 0
A176: CP | B176: Battery | C176: 17 | D176: T2 | E176: 0.186 | F176: 0.161 | G176: 0 | H176: 0
A177: CP | B177: Battery | C177: 17 | D177: T3 | E177: 0.031 | F177: 0.027 | G177: 0 | H177: 0
A178: CP | B178: Battery | C178: 17 | D178: T4 | E178: 0.258 | F178: 0.224 | G178: 0 | H178: 0
A179: CP | B179: Battery | C179: 17 | D179: T5 | E179: 0.054 | F179: 0.047 | G179: 0 | H179: 0
A180: CP | B180: Battery | C180: 18 | D180: A1 | E180: 0.268 | F180: 0.234 | G180: 0 | H180: 0
A181: CP | B181: Battery | C181: 18 | D181: A3 | E181: 0.049 | F181: 0.043 | G181: 0 | H181: 0
A182: CP | B182: Battery | C182: 18 | D182: A4 | E182: 0.155 | F182: 0.135 | G182: 0 | H182: 0
A183: CP | B183: Battery | C183: 18 | D183: A6 | E183: 0.479 | F183: 0.417 | G183: 0 | H183: 0
A184: CP | B184: Battery | C184: 18 | D184: A7 | E184: 0.177 | F184: 0.154 | G184: 0 | H184: 0
A185: CP | B185: Battery | C185: 18 | D185: A8 | E185: 0.549 | F185: 0.478 | G185: 0 | H185: 0
A186: CP | B186: Battery | C186: 18 | D186: A9 | E186: 0.092 | F186: 0.08 | G186: 0 | H186: 0
A187: CP | B187: Battery | C187: 18 | D187: B1 | E187: 0.759 | F187: 0.66 | G187: 0 | H187: 0
A188: CP | B188: Battery | C188: 18 | D188: B2 | E188: 0.975 | F188: 0.848 | G188: 0 | H188: 0
A189: CP | B189: Battery | C189: 18 | D189: B3 | E189: 0.249 | F189: 0.216 | G189: 0 | H189: 0
A190: CP | B190: Battery | C190: 18 | D190: B4 | E190: 0.263 | F190: 0.228 | G190: 0 | H190: 0
A191: CP | B191: Battery | C191: 18 | D191: C1 | E191: 0.102 | F191: 0.088 | G191: 0 | H191: 0
A192: CP | B192: Battery | C192: 18 | D192: C2 | E192: 0.201 | F192: 0.175 | G192: 0 | H192: 0
A193: CP | B193: Battery | C193: 18 | D193: C3 | E193: 0.116 | F193: 0.101 | G193: 0 | H193: 0
A194: CP | B194: Battery | C194: 18 | D194: C4 | E194: 0.15 | F194: 0.13 | G194: 0 | H194: 0
A195: CP | B195: Battery | C195: 18 | D195: C5 | E195: 0.175 | F195: 0.152 | G195: 0 | H195: 0
A196: CP | B196: Battery | C196: 18 | D196: C6 | E196: 0.061 | F196: 0.053 | G196: 0 | H196: 0
A197: CP | B197: Battery | C197: 18 | D197: C7 | E197: 0.233 | F197: 0.202 | G197: 0 | H197: 0
A198: CP | B198: Battery | C198: 18 | D198: D4 | E198: 0.398 | F198: 0.346 | G198: 0 | H198: 0
A199: CP | B199: Battery | C199: 18 | D199: D5 | E199: 0.308 | F199: 0.268 | G199: 0 | H199: 0
A200: CP | B200: Battery | C200: 18 | D200: D6 | E200: 0.372 | F200: 0.323 | G200: 0 | H200: 0
A201: CP | B201: Battery | C201: 18 | D201: E1 | E201: 0.782 | F201: 0.681 | G201: 0 | H201: 0
... 4299 more rows

Sheet Demands ->

Sheet mBattery
A1: Created by CalcMicroSplits.sas
A3: scenario | B3: year | C3: etys_location | D3: capacity | E3: wintpk | F3: summam | G3: summpm
A4: CP | B4: 16 | C4: A1 | D4: 0.224 | E4: 0 | F4: -0.17 | G4: 0
A5: CP | B5: 16 | C5: A3 | D5: 0.041 | E5: 0 | F5: -0.031 | G5: 0
A6: CP | B6: 16 | C6: A4 | D6: 0.129 | E6: 0 | F6: -0.098 | G6: 0
A7: CP | B7: 16 | C7: A6 | D7: 0.399 | E7: 0 | F7: -0.303 | G7: 0
A8: CP | B8: 16 | C8: A7 | D8: 0.148 | E8: 0 | F8: -0.112 | G8: 0
A9: CP | B9: 16 | C9: A8 | D9: 0.458 | E9: 0 | F9: -0.348 | G9: 0
A10: CP | B10: 16 | C10: A9 | D10: 0.076 | E10: 0 | F10: -0.058 | G10: 0
A11: CP | B11: 16 | C11: B1 | D11: 0.633 | E11: 0 | F11: -0.481 | G11: 0
A12: CP | B12: 16 | C12: B2 | D12: 0.813 | E12: 0 | F12: -0.618 | G12: 0
A13: CP | B13: 16 | C13: B3 | D13: 0.207 | E13: 0 | F13: -0.158 | G13: 0
A14: CP | B14: 16 | C14: B4 | D14: 0.219 | E14: 0 | F14: -0.166 | G14: 0
A15: CP | B15: 16 | C15: C1 | D15: 0.085 | E15: 0 | F15: -0.064 | G15: 0
A16: CP | B16: 16 | C16: C2 | D16: 0.168 | E16: 0 | F16: -0.127 | G16: 0
A17: CP | B17: 16 | C17: C3 | D17: 0.097 | E17: 0 | F17: -0.074 | G17: 0
A18: CP | B18: 16 | C18: C4 | D18: 0.125 | E18: 0 | F18: -0.095 | G18: 0
A19: CP | B19: 16 | C19: C5 | D19: 0.146 | E19: 0 | F19: -0.111 | G19: 0
A20: CP | B20: 16 | C20: C6 | D20: 0.051 | E20: 0 | F20: -0.039 | G20: 0
A21: CP | B21: 16 | C21: C7 | D21: 0.194 | E21: 0 | F21: -0.147 | G21: 0
A22: CP | B22: 16 | C22: D4 | D22: 0.332 | E22: 0 | F22: -0.252 | G22: 0
A23: CP | B23: 16 | C23: D5 | D23: 0.257 | E23: 0 | F23: -0.195 | G23: 0
A24: CP | B24: 16 | C24: D6 | D24: 0.31 | E24: 0 | F24: -0.235 | G24: 0
A25: CP | B25: 16 | C25: E1 | D25: 0.652 | E25: 0 | F25: -0.496 | G25: 0
A26: CP | B26: 16 | C26: E7 | D26: 0.216 | E26: 0 | F26: -0.164 | G26: 0
A27: CP | B27: 16 | C27: E8 | D27: 0.152 | E27: 0 | F27: -0.116 | G27: 0
A28: CP | B28: 16 | C28: F6 | D28: 1.81 | E28: 0 | F28: -1.376 | G28: 0
A29: CP | B29: 16 | C29: G1 | D29: 0.378 | E29: 0 | F29: -0.288 | G29: 0
A30: CP | B30: 16 | C30: G5 | D30: 0.231 | E30: 0 | F30: -0.175 | G30: 0
A31: CP | B31: 16 | C31: G6 | D31: 0.452 | E31: 0 | F31: -0.344 | G31: 0
A32: CP | B32: 16 | C32: G7 | D32: 0.301 | E32: 0 | F32: -0.229 | G32: 0
A33: CP | B33: 16 | C33: H1 | D33: 0.1 | E33: 0 | F33: -0.076 | G33: 0
A34: CP | B34: 16 | C34: H2 | D34: 0.514 | E34: 0 | F34: -0.391 | G34: 0
A35: CP | B35: 16 | C35: H6 | D35: 0.716 | E35: 0 | F35: -0.544 | G35: 0
A36: CP | B36: 16 | C36: J1 | D36: 0.326 | E36: 0 | F36: -0.248 | G36: 0
A37: CP | B37: 16 | C37: J3 | D37: 0.702 | E37: 0 | F37: -0.533 | G37: 0
A38: CP | B38: 16 | C38: J4 | D38: 0.236 | E38: 0 | F38: -0.179 | G38: 0
A39: CP | B39: 16 | C39: J5 | D39: 0.54 | E39: 0 | F39: -0.411 | G39: 0
A40: CP | B40: 16 | C40: J6 | D40: 0.38 | E40: 0 | F40: -0.289 | G40: 0
A41: CP | B41: 16 | C41: J7 | D41: 0.341 | E41: 0 | F41: -0.259 | G41: 0
A42: CP | B42: 16 | C42: J8 | D42: 0.312 | E42: 0 | F42: -0.237 | G42: 0
A43: CP | B43: 16 | C43: K4 | D43: 0.469 | E43: 0 | F43: -0.357 | G43: 0
A44: CP | B44: 16 | C44: K5 | D44: 0.313 | E44: 0 | F44: -0.238 | G44: 0
A45: CP | B45: 16 | C45: K6 | D45: 0.28 | E45: 0 | F45: -0.213 | G45: 0
A46: CP | B46: 16 | C46: L1 | D46: 0.05 | E46: 0 | F46: -0.038 | G46: 0
A47: CP | B47: 16 | C47: L2 | D47: 0.567 | E47: 0 | F47: -0.431 | G47: 0
A48: CP | B48: 16 | C48: L3 | D48: 1.029 | E48: 0 | F48: -0.782 | G48: 0
A49: CP | B49: 16 | C49: L5 | D49: 0.955 | E49: 0 | F49: -0.726 | G49: 0
A50: CP | B50: 16 | C50: L7 | D50: 0.443 | E50: 0 | F50: -0.337 | G50: 0
A51: CP | B51: 16 | C51: L8 | D51: 0.336 | E51: 0 | F51: -0.255 | G51: 0
A52: CP | B52: 16 | C52: M4 | D52: 0.211 | E52: 0 | F52: -0.161 | G52: 0
A53: CP | B53: 16 | C53: M5 | D53: 0.153 | E53: 0 | F53: -0.117 | G53: 0
A54: CP | B54: 16 | C54: M6 | D54: 0.085 | E54: 0 | F54: -0.065 | G54: 0
A55: CP | B55: 16 | C55: M7 | D55: 0.074 | E55: 0 | F55: -0.056 | G55: 0
A56: CP | B56: 16 | C56: M8 | D56: 0.023 | E56: 0 | F56: -0.017 | G56: 0
A57: CP | B57: 16 | C57: N1 | D57: 0.355 | E57: 0 | F57: -0.27 | G57: 0
A58: CP | B58: 16 | C58: N2 | D58: 0.393 | E58: 0 | F58: -0.299 | G58: 0
A59: CP | B59: 16 | C59: N3 | D59: 0.248 | E59: 0 | F59: -0.189 | G59: 0
A60: CP | B60: 16 | C60: N4 | D60: 0.39 | E60: 0 | F60: -0.297 | G60: 0
A61: CP | B61: 16 | C61: N5 | D61: 0.198 | E61: 0 | F61: -0.15 | G61: 0
A62: CP | B62: 16 | C62: N6 | D62: 0.067 | E62: 0 | F62: -0.051 | G62: 0
A63: CP | B63: 16 | C63: N7 | D63: 0.099 | E63: 0 | F63: -0.075 | G63: 0
A64: CP | B64: 16 | C64: P1 | D64: 0.671 | E64: 0 | F64: -0.51 | G64: 0
A65: CP | B65: 16 | C65: P2 | D65: 0.261 | E65: 0 | F65: -0.198 | G65: 0
A66: CP | B66: 16 | C66: P3 | D66: 0.852 | E66: 0 | F66: -0.647 | G66: 0
A67: CP | B67: 16 | C67: P4 | D67: 0.1 | E67: 0 | F67: -0.076 | G67: 0
A68: CP | B68: 16 | C68: P5 | D68: 0.091 | E68: 0 | F68: -0.069 | G68: 0
A69: CP | B69: 16 | C69: P6 | D69: 0.294 | E69: 0 | F69: -0.224 | G69: 0
A70: CP | B70: 16 | C70: P7 | D70: 0.194 | E70: 0 | F70: -0.148 | G70: 0
A71: CP | B71: 16 | C71: P8 | D71: 0.548 | E71: 0 | F71: -0.416 | G71: 0
A72: CP | B72: 16 | C72: Q2 | D72: 0.128 | E72: 0 | F72: -0.097 | G72: 0
A73: CP | B73: 16 | C73: Q4 | D73: 0.613 | E73: 0 | F73: -0.466 | G73: 0
A74: CP | B74: 16 | C74: Q5 | D74: 0.188 | E74: 0 | F74: -0.143 | G74: 0
A75: CP | B75: 16 | C75: Q6 | D75: 0.147 | E75: 0 | F75: -0.112 | G75: 0
A76: CP | B76: 16 | C76: Q7 | D76: 0.186 | E76: 0 | F76: -0.141 | G76: 0
A77: CP | B77: 16 | C77: Q8 | D77: 0.16 | E77: 0 | F77: -0.121 | G77: 0
A78: CP | B78: 16 | C78: R4 | D78: 0.228 | E78: 0 | F78: -0.173 | G78: 0
A79: CP | B79: 16 | C79: R5 | D79: 0.117 | E79: 0 | F79: -0.089 | G79: 0
A80: CP | B80: 16 | C80: R6 | D80: 0.05 | E80: 0 | F80: -0.038 | G80: 0
A81: CP | B81: 16 | C81: S1 | D81: 0.717 | E81: 0 | F81: -0.545 | G81: 0
A82: CP | B82: 16 | C82: S2 | D82: 0.112 | E82: 0 | F82: -0.085 | G82: 0
A83: CP | B83: 16 | C83: S4 | D83: 0.033 | E83: 0 | F83: -0.025 | G83: 0
A84: CP | B84: 16 | C84: S5 | D84: 0.28 | E84: 0 | F84: -0.213 | G84: 0
A85: CP | B85: 16 | C85: S6 | D85: 0.034 | E85: 0 | F85: -0.026 | G85: 0
A86: CP | B86: 16 | C86: S7 | D86: 0.043 | E86: 0 | F86: -0.033 | G86: 0
A87: CP | B87: 16 | C87: T1 | D87: 0.195 | E87: 0 | F87: -0.148 | G87: 0
A88: CP | B88: 16 | C88: T2 | D88: 0.179 | E88: 0 | F88: -0.136 | G88: 0
A89: CP | B89: 16 | C89: T3 | D89: 0.03 | E89: 0 | F89: -0.023 | G89: 0
A90: CP | B90: 16 | C90: T4 | D90: 0.248 | E90: 0 | F90: -0.189 | G90: 0
A91: CP | B91: 16 | C91: T5 | D91: 0.052 | E91: 0 | F91: -0.039 | G91: 0
A92: CP | B92: 17 | C92: A1 | D92: 0.232 | E92: 0 | F92: -0.176 | G92: 0
A93: CP | B93: 17 | C93: A3 | D93: 0.042 | E93: 0 | F93: -0.032 | G93: 0
A94: CP | B94: 17 | C94: A4 | D94: 0.134 | E94: 0 | F94: -0.102 | G94: 0
A95: CP | B95: 17 | C95: A6 | D95: 0.414 | E95: 0 | F95: -0.315 | G95: 0
A96: CP | B96: 17 | C96: A7 | D96: 0.153 | E96: 0 | F96: -0.116 | G96: 0
A97: CP | B97: 17 | C97: A8 | D97: 0.475 | E97: 0 | F97: -0.361 | G97: 0
A98: CP | B98: 17 | C98: A9 | D98: 0.079 | E98: 0 | F98: -0.06 | G98: 0
A99: CP | B99: 17 | C99: B1 | D99: 0.656 | E99: 0 | F99: -0.499 | G99: 0
A100: CP | B100: 17 | C100: B2 | D100: 0.843 | E100: 0 | F100: -0.641 | G100: 0
A101: CP | B101: 17 | C101: B3 | D101: 0.215 | E101: 0 | F101: -0.163 | G101: 0
A102: CP | B102: 17 | C102: B4 | D102: 0.227 | E102: 0 | F102: -0.173 | G102: 0
A103: CP | B103: 17 | C103: C1 | D103: 0.088 | E103: 0 | F103: -0.067 | G103: 0
A104: CP | B104: 17 | C104: C2 | D104: 0.174 | E104: 0 | F104: -0.132 | G104: 0
A105: CP | B105: 17 | C105: C3 | D105: 0.101 | E105: 0 | F105: -0.076 | G105: 0
A106: CP | B106: 17 | C106: C4 | D106: 0.129 | E106: 0 | F106: -0.098 | G106: 0
A107: CP | B107: 17 | C107: C5 | D107: 0.151 | E107: 0 | F107: -0.115 | G107: 0
A108: CP | B108: 17 | C108: C6 | D108: 0.053 | E108: 0 | F108: -0.04 | G108: 0
A109: CP | B109: 17 | C109: C7 | D109: 0.201 | E109: 0 | F109: -0.153 | G109: 0
A110: CP | B110: 17 | C110: D4 | D110: 0.344 | E110: 0 | F110: -0.262 | G110: 0
A111: CP | B111: 17 | C111: D5 | D111: 0.266 | E111: 0 | F111: -0.202 | G111: 0
A112: CP | B112: 17 | C112: D6 | D112: 0.321 | E112: 0 | F112: -0.244 | G112: 0
A113: CP | B113: 17 | C113: E1 | D113: 0.677 | E113: 0 | F113: -0.514 | G113: 0
A114: CP | B114: 17 | C114: E7 | D114: 0.224 | E114: 0 | F114: -0.17 | G114: 0
A115: CP | B115: 17 | C115: E8 | D115: 0.158 | E115: 0 | F115: -0.12 | G115: 0
A116: CP | B116: 17 | C116: F6 | D116: 1.877 | E116: 0 | F116: -1.427 | G116: 0
A117: CP | B117: 17 | C117: G1 | D117: 0.392 | E117: 0 | F117: -0.298 | G117: 0
A118: CP | B118: 17 | C118: G5 | D118: 0.239 | E118: 0 | F118: -0.182 | G118: 0
A119: CP | B119: 17 | C119: G6 | D119: 0.469 | E119: 0 | F119: -0.356 | G119: 0
A120: CP | B120: 17 | C120: G7 | D120: 0.312 | E120: 0 | F120: -0.237 | G120: 0
A121: CP | B121: 17 | C121: H1 | D121: 0.103 | E121: 0 | F121: -0.079 | G121: 0
A122: CP | B122: 17 | C122: H2 | D122: 0.533 | E122: 0 | F122: -0.405 | G122: 0
A123: CP | B123: 17 | C123: H6 | D123: 0.743 | E123: 0 | F123: -0.564 | G123: 0
A124: CP | B124: 17 | C124: J1 | D124: 0.338 | E124: 0 | F124: -0.257 | G124: 0
A125: CP | B125: 17 | C125: J3 | D125: 0.728 | E125: 0 | F125: -0.553 | G125: 0
A126: CP | B126: 17 | C126: J4 | D126: 0.244 | E126: 0 | F126: -0.186 | G126: 0
A127: CP | B127: 17 | C127: J5 | D127: 0.56 | E127: 0 | F127: -0.426 | G127: 0
A128: CP | B128: 17 | C128: J6 | D128: 0.394 | E128: 0 | F128: -0.299 | G128: 0
A129: CP | B129: 17 | C129: J7 | D129: 0.353 | E129: 0 | F129: -0.269 | G129: 0
A130: CP | B130: 17 | C130: J8 | D130: 0.323 | E130: 0 | F130: -0.246 | G130: 0
A131: CP | B131: 17 | C131: K4 | D131: 0.486 | E131: 0 | F131: -0.37 | G131: 0
A132: CP | B132: 17 | C132: K5 | D132: 0.325 | E132: 0 | F132: -0.247 | G132: 0
A133: CP | B133: 17 | C133: K6 | D133: 0.291 | E133: 0 | F133: -0.221 | G133: 0
A134: CP | B134: 17 | C134: L1 | D134: 0.052 | E134: 0 | F134: -0.04 | G134: 0
A135: CP | B135: 17 | C135: L2 | D135: 0.588 | E135: 0 | F135: -0.447 | G135: 0
A136: CP | B136: 17 | C136: L3 | D136: 1.068 | E136: 0 | F136: -0.811 | G136: 0
A137: CP | B137: 17 | C137: L5 | D137: 0.99 | E137: 0 | F137: -0.753 | G137: 0
A138: CP | B138: 17 | C138: L7 | D138: 0.46 | E138: 0 | F138: -0.349 | G138: 0
A139: CP | B139: 17 | C139: L8 | D139: 0.348 | E139: 0 | F139: -0.264 | G139: 0
A140: CP | B140: 17 | C140: M4 | D140: 0.219 | E140: 0 | F140: -0.167 | G140: 0
A141: CP | B141: 17 | C141: M5 | D141: 0.159 | E141: 0 | F141: -0.121 | G141: 0
A142: CP | B142: 17 | C142: M6 | D142: 0.089 | E142: 0 | F142: -0.067 | G142: 0
A143: CP | B143: 17 | C143: M7 | D143: 0.077 | E143: 0 | F143: -0.058 | G143: 0
A144: CP | B144: 17 | C144: M8 | D144: 0.023 | E144: 0 | F144: -0.018 | G144: 0
A145: CP | B145: 17 | C145: N1 | D145: 0.368 | E145: 0 | F145: -0.28 | G145: 0
A146: CP | B146: 17 | C146: N2 | D146: 0.408 | E146: 0 | F146: -0.31 | G146: 0
A147: CP | B147: 17 | C147: N3 | D147: 0.258 | E147: 0 | F147: -0.196 | G147: 0
A148: CP | B148: 17 | C148: N4 | D148: 0.405 | E148: 0 | F148: -0.308 | G148: 0
A149: CP | B149: 17 | C149: N5 | D149: 0.205 | E149: 0 | F149: -0.156 | G149: 0
A150: CP | B150: 17 | C150: N6 | D150: 0.07 | E150: 0 | F150: -0.053 | G150: 0
A151: CP | B151: 17 | C151: N7 | D151: 0.102 | E151: 0 | F151: -0.078 | G151: 0
A152: CP | B152: 17 | C152: P1 | D152: 0.696 | E152: 0 | F152: -0.529 | G152: 0
A153: CP | B153: 17 | C153: P2 | D153: 0.271 | E153: 0 | F153: -0.206 | G153: 0
A154: CP | B154: 17 | C154: P3 | D154: 0.883 | E154: 0 | F154: -0.671 | G154: 0
A155: CP | B155: 17 | C155: P4 | D155: 0.104 | E155: 0 | F155: -0.079 | G155: 0
A156: CP | B156: 17 | C156: P5 | D156: 0.094 | E156: 0 | F156: -0.072 | G156: 0
A157: CP | B157: 17 | C157: P6 | D157: 0.305 | E157: 0 | F157: -0.232 | G157: 0
A158: CP | B158: 17 | C158: P7 | D158: 0.201 | E158: 0 | F158: -0.153 | G158: 0
A159: CP | B159: 17 | C159: P8 | D159: 0.568 | E159: 0 | F159: -0.432 | G159: 0
A160: CP | B160: 17 | C160: Q2 | D160: 0.132 | E160: 0 | F160: -0.101 | G160: 0
A161: CP | B161: 17 | C161: Q4 | D161: 0.636 | E161: 0 | F161: -0.483 | G161: 0
A162: CP | B162: 17 | C162: Q5 | D162: 0.195 | E162: 0 | F162: -0.148 | G162: 0
A163: CP | B163: 17 | C163: Q6 | D163: 0.153 | E163: 0 | F163: -0.116 | G163: 0
A164: CP | B164: 17 | C164: Q7 | D164: 0.193 | E164: 0 | F164: -0.147 | G164: 0
A165: CP | B165: 17 | C165: Q8 | D165: 0.166 | E165: 0 | F165: -0.126 | G165: 0
A166: CP | B166: 17 | C166: R4 | D166: 0.236 | E166: 0 | F166: -0.18 | G166: 0
A167: CP | B167: 17 | C167: R5 | D167: 0.121 | E167: 0 | F167: -0.092 | G167: 0
A168: CP | B168: 17 | C168: R6 | D168: 0.052 | E168: 0 | F168: -0.04 | G168: 0
A169: CP | B169: 17 | C169: S1 | D169: 0.743 | E169: 0 | F169: -0.565 | G169: 0
A170: CP | B170: 17 | C170: S2 | D170: 0.116 | E170: 0 | F170: -0.088 | G170: 0
A171: CP | B171: 17 | C171: S4 | D171: 0.034 | E171: 0 | F171: -0.026 | G171: 0
A172: CP | B172: 17 | C172: S5 | D172: 0.291 | E172: 0 | F172: -0.221 | G172: 0
A173: CP | B173: 17 | C173: S6 | D173: 0.035 | E173: 0 | F173: -0.027 | G173: 0
A174: CP | B174: 17 | C174: S7 | D174: 0.045 | E174: 0 | F174: -0.034 | G174: 0
A175: CP | B175: 17 | C175: T1 | D175: 0.202 | E175: 0 | F175: -0.153 | G175: 0
A176: CP | B176: 17 | C176: T2 | D176: 0.186 | E176: 0 | F176: -0.141 | G176: 0
A177: CP | B177: 17 | C177: T3 | D177: 0.031 | E177: 0 | F177: -0.023 | G177: 0
A178: CP | B178: 17 | C178: T4 | D178: 0.258 | E178: 0 | F178: -0.196 | G178: 0
A179: CP | B179: 17 | C179: T5 | D179: 0.054 | E179: 0 | F179: -0.041 | G179: 0
A180: CP | B180: 18 | C180: A1 | D180: 0.268 | E180: 0 | F180: -0.204 | G180: 0
A181: CP | B181: 18 | C181: A3 | D181: 0.049 | E181: 0 | F181: -0.037 | G181: 0
A182: CP | B182: 18 | C182: A4 | D182: 0.155 | E182: 0 | F182: -0.118 | G182: 0
A183: CP | B183: 18 | C183: A6 | D183: 0.479 | E183: 0 | F183: -0.364 | G183: 0
A184: CP | B184: 18 | C184: A7 | D184: 0.177 | E184: 0 | F184: -0.135 | G184: 0
A185: CP | B185: 18 | C185: A8 | D185: 0.549 | E185: 0 | F185: -0.417 | G185: 0
A186: CP | B186: 18 | C186: A9 | D186: 0.092 | E186: 0 | F186: -0.07 | G186: 0
A187: CP | B187: 18 | C187: B1 | D187: 0.759 | E187: 0 | F187: -0.577 | G187: 0
A188: CP | B188: 18 | C188: B2 | D188: 0.975 | E188: 0 | F188: -0.741 | G188: 0
A189: CP | B189: 18 | C189: B3 | D189: 0.249 | E189: 0 | F189: -0.189 | G189: 0
A190: CP | B190: 18 | C190: B4 | D190: 0.263 | E190: 0 | F190: -0.2 | G190: 0
A191: CP | B191: 18 | C191: C1 | D191: 0.102 | E191: 0 | F191: -0.077 | G191: 0
A192: CP | B192: 18 | C192: C2 | D192: 0.201 | E192: 0 | F192: -0.153 | G192: 0
A193: CP | B193: 18 | C193: C3 | D193: 0.116 | E193: 0 | F193: -0.088 | G193: 0
A194: CP | B194: 18 | C194: C4 | D194: 0.15 | E194: 0 | F194: -0.114 | G194: 0
A195: CP | B195: 18 | C195: C5 | D195: 0.175 | E195: 0 | F195: -0.133 | G195: 0
A196: CP | B196: 18 | C196: C6 | D196: 0.061 | E196: 0 | F196: -0.046 | G196: 0
A197: CP | B197: 18 | C197: C7 | D197: 0.233 | E197: 0 | F197: -0.177 | G197: 0
A198: CP | B198: 18 | C198: D4 | D198: 0.398 | E198: 0 | F198: -0.302 | G198: 0
A199: CP | B199: 18 | C199: D5 | D199: 0.308 | E199: 0 | F199: -0.234 | G199: 0
A200: CP | B200: 18 | C200: D6 | D200: 0.372 | E200: 0 | F200: -0.282 | G200: 0
A201: CP | B201: 18 | C201: E1 | D201: 0.782 | E201: 0 | F201: -0.595 | G201: 0
... 8602 more rows

Sheet DxStorage
A1: Created by CalcDxStorage.sas | D1: For use in ETYS spatial model
A3: scenario | B3: tech | C3: year | D3: location | E3: Capacity | F3: wintpk | G3: summam | H3: summpm
A4: CP | B4: Battery | C4: 16 | D4: S1 | E4: 3.54 | F4: 0 | G4: -2.089 | H4: 0
A5: CP | B5: Battery | C5: 16 | D5: L7 | E5: 0.4 | F5: 0 | G5: -0.236 | H5: 0
A6: CP | B6: Battery | C6: 16 | D6: T4 | E6: 0.24 | F6: 0 | G6: -0.142 | H6: 0
A7: CP | B7: Battery | C7: 16 | D7: A8 | E7: 36.01 | F7: 0 | G7: -21.246 | H7: 0
A8: CP | B8: Battery | C8: 16 | D8: J4 | E8: 1.92 | F8: 0 | G8: -1.133 | H8: 0
A9: CP | B9: Battery | C9: 16 | D9: N5 | E9: 0.31 | F9: 0 | G9: -0.183 | H9: 0
A10: CP | B10: Battery | C10: 16 | D10: T5 | E10: 2.52 | F10: 0 | G10: -1.487 | H10: 0
A11: CP | B11: Battery | C11: 16 | D11: M6 | E11: 0.82 | F11: 0 | G11: -0.484 | H11: 0
A12: CP | B12: Battery | C12: 16 | D12: K5 | E12: 0.93 | F12: 0 | G12: -0.549 | H12: 0
A13: CP | B13: Battery | C13: 16 | D13: Q2 | E13: 0.42 | F13: 0 | G13: -0.248 | H13: 0
A14: CP | B14: Battery | C14: 16 | D14: A4 | E14: 0.07 | F14: 0 | G14: -0.041 | H14: 0
A15: CP | B15: Battery | C15: 16 | D15: N7 | E15: 0.02 | F15: 0 | G15: -0.012 | H15: 0
A16: CP | B16: Battery | C16: 16 | D16: J1 | E16: 1.91 | F16: 0 | G16: -1.127 | H16: 0
A17: CP | B17: Battery | C17: 16 | D17: P1 | E17: 0.25 | F17: 0 | G17: -0.148 | H17: 0
A18: CP | B18: Battery | C18: 16 | D18: B1 | E18: 41.52 | F18: 0 | G18: -24.497 | H18: 0
A19: CP | B19: Battery | C19: 16 | D19: J5 | E19: 0.76 | F19: 0 | G19: -0.448 | H19: 0
A20: CP | B20: Battery | C20: 16 | D20: C2 | E20: 236.04 | F20: 0 | G20: -139.264 | H20: 0
A21: CP | B21: Battery | C21: 16 | D21: L3 | E21: 2.99 | F21: 0 | G21: -1.764 | H21: 0
A22: CP | B22: Battery | C22: 16 | D22: R6 | E22: 0.43 | F22: 0 | G22: -0.254 | H22: 0
A23: CP | B23: Battery | C23: 16 | D23: T2 | E23: 0.74 | F23: 0 | G23: -0.437 | H23: 0
A24: CP | B24: Battery | C24: 16 | D24: P3 | E24: 2.3 | F24: 0 | G24: -1.357 | H24: 0
A25: CP | B25: Battery | C25: 16 | D25: N1 | E25: 0.09 | F25: 0 | G25: -0.053 | H25: 0
A26: CP | B26: Battery | C26: 16 | D26: N3 | E26: 0.99 | F26: 0 | G26: -0.584 | H26: 0
A27: CP | B27: Battery | C27: 16 | D27: K6 | E27: 0.42 | F27: 0 | G27: -0.248 | H27: 0
A28: CP | B28: Battery | C28: 16 | D28: M7 | E28: 0.72 | F28: 0 | G28: -0.425 | H28: 0
A29: CP | B29: Battery | C29: 16 | D29: H1 | E29: 0.67 | F29: 0 | G29: -0.395 | H29: 0
A30: CP | B30: Battery | C30: 16 | D30: M5 | E30: 0.17 | F30: 0 | G30: -0.1 | H30: 0
A31: CP | B31: Battery | C31: 16 | D31: A1 | E31: 20.08 | F31: 0 | G31: -11.847 | H31: 0
A32: CP | B32: Battery | C32: 16 | D32: C7 | E32: 2.03 | F32: 0 | G32: -1.198 | H32: 0
A33: CP | B33: Battery | C33: 16 | D33: P6 | E33: 0.36 | F33: 0 | G33: -0.212 | H33: 0
A34: CP | B34: Battery | C34: 16 | D34: B2 | E34: 9.12 | F34: 0 | G34: -5.381 | H34: 0
A35: CP | B35: Battery | C35: 16 | D35: R5 | E35: 0.38 | F35: 0 | G35: -0.224 | H35: 0
A36: CP | B36: Battery | C36: 16 | D36: C4 | E36: 0.33 | F36: 0 | G36: -0.195 | H36: 0
A37: CP | B37: Battery | C37: 16 | D37: G6 | E37: 4.01 | F37: 0 | G37: -2.366 | H37: 0
A38: CP | B38: Battery | C38: 16 | D38: T1 | E38: 0.55 | F38: 0 | G38: -0.325 | H38: 0
A39: CP | B39: Battery | C39: 16 | D39: K4 | E39: 2.18 | F39: 0 | G39: -1.286 | H39: 0
A40: CP | B40: Battery | C40: 16 | D40: P8 | E40: 1.77 | F40: 0 | G40: -1.044 | H40: 0
A41: CP | B41: Battery | C41: 16 | D41: Q7 | E41: 2.83 | F41: 0 | G41: -1.67 | H41: 0
A42: CP | B42: Battery | C42: 16 | D42: C5 | E42: 21.61 | F42: 0 | G42: -12.75 | H42: 0
A43: CP | B43: Battery | C43: 16 | D43: Q6 | E43: 0.84 | F43: 0 | G43: -0.496 | H43: 0
A44: CP | B44: Battery | C44: 16 | D44: F6 | E44: 54.72 | F44: 0 | G44: -32.285 | H44: 0
A45: CP | B45: Battery | C45: 16 | D45: N2 | E45: 0.01 | F45: 0 | G45: -0.006 | H45: 0
A46: CP | B46: Battery | C46: 16 | D46: Q8 | E46: 0.65 | F46: 0 | G46: -0.384 | H46: 0
A47: CP | B47: Battery | C47: 16 | D47: C6 | E47: 10.08 | F47: 0 | G47: -5.947 | H47: 0
A48: CP | B48: Battery | C48: 16 | D48: J6 | E48: 2.13 | F48: 0 | G48: -1.257 | H48: 0
A49: CP | B49: Battery | C49: 16 | D49: J8 | E49: 72.35 | F49: 0 | G49: -42.687 | H49: 0
A50: CP | B50: Battery | C50: 16 | D50: E7 | E50: 1.26 | F50: 0 | G50: -0.743 | H50: 0
A51: CP | B51: Battery | C51: 16 | D51: B3 | E51: 0.21 | F51: 0 | G51: -0.124 | H51: 0
A52: CP | B52: Battery | C52: 16 | D52: L5 | E52: 1.44 | F52: 0 | G52: -0.85 | H52: 0
A53: CP | B53: Battery | C53: 16 | D53: B4 | E53: 1.26 | F53: 0 | G53: -0.743 | H53: 0
A54: CP | B54: Battery | C54: 16 | D54: E1 | E54: 7.25 | F54: 0 | G54: -4.278 | H54: 0
A55: CP | B55: Battery | C55: 16 | D55: D4 | E55: 2.18 | F55: 0 | G55: -1.286 | H55: 0
A56: CP | B56: Battery | C56: 16 | D56: G1 | E56: 0.08 | F56: 0 | G56: -0.047 | H56: 0
A57: CP | B57: Battery | C57: 16 | D57: J7 | E57: 2.61 | F57: 0 | G57: -1.54 | H57: 0
A58: CP | B58: Battery | C58: 16 | D58: L2 | E58: 2.36 | F58: 0 | G58: -1.392 | H58: 0
A59: CP | B59: Battery | C59: 16 | D59: M8 | E59: 0.21 | F59: 0 | G59: -0.124 | H59: 0
A60: CP | B60: Battery | C60: 16 | D60: N4 | E60: 0.66 | F60: 0 | G60: -0.389 | H60: 0
A61: CP | B61: Battery | C61: 16 | D61: S2 | E61: 0.65 | F61: 0 | G61: -0.384 | H61: 0
A62: CP | B62: Battery | C62: 16 | D62: D5 | E62: 120.77 | F62: 0 | G62: -71.254 | H62: 0
A63: CP | B63: Battery | C63: 16 | D63: H2 | E63: 0.79 | F63: 0 | G63: -0.466 | H63: 0
A64: CP | B64: Battery | C64: 16 | D64: H6 | E64: 3.35 | F64: 0 | G64: -1.977 | H64: 0
A65: CP | B65: Battery | C65: 16 | D65: T3 | E65: 0.13 | F65: 0 | G65: -0.077 | H65: 0
A66: CP | B66: Battery | C66: 16 | D66: D6 | E66: 1.75 | F66: 0 | G66: -1.033 | H66: 0
A67: CP | B67: Battery | C67: 16 | D67: S5 | E67: 1.5 | F67: 0 | G67: -0.885 | H67: 0
A68: CP | B68: Battery | C68: 16 | D68: P2 | E68: 0.01 | F68: 0 | G68: -0.006 | H68: 0
A69: CP | B69: Battery | C69: 16 | D69: J3 | E69: 2.51 | F69: 0 | G69: -1.481 | H69: 0
A70: CP | B70: Battery | C70: 16 | D70: P4 | E70: 0.33 | F70: 0 | G70: -0.195 | H70: 0
A71: CP | B71: Battery | C71: 16 | D71: Q5 | E71: 0.16 | F71: 0 | G71: -0.094 | H71: 0
A72: CP | B72: Battery | C72: 16 | D72: E8 | E72: 0.45 | F72: 0 | G72: -0.266 | H72: 0
A73: CP | B73: Battery | C73: 16 | D73: C1 | E73: 0.05 | F73: 0 | G73: -0.03 | H73: 0
A74: CP | B74: Battery | C74: 16 | D74: A6 | E74: 115.02 | F74: 0 | G74: -67.862 | H74: 0
A75: CP | B75: Battery | C75: 16 | D75: G5 | E75: 0.31 | F75: 0 | G75: -0.183 | H75: 0
A76: CP | B76: Battery | C76: 16 | D76: L8 | E76: 0.21 | F76: 0 | G76: -0.124 | H76: 0
A77: CP | B77: Battery | C77: 16 | D77: P7 | E77: 0.33 | F77: 0 | G77: -0.195 | H77: 0
A78: CP | B78: Battery | C78: 16 | D78: Q4 | E78: 0.61 | F78: 0 | G78: -0.36 | H78: 0
A79: CP | B79: Battery | C79: 16 | D79: C3 | E79: 0.55 | F79: 0 | G79: -0.325 | H79: 0
A80: CP | B80: Battery | C80: 16 | D80: G7 | E80: 0.33 | F80: 0 | G80: -0.195 | H80: 0
A81: CP | B81: Battery | C81: 16 | D81: M4 | E81: 0.24 | F81: 0 | G81: -0.142 | H81: 0
A82: CP | B82: Battery | C82: 17 | D82: H1 | E82: 22.71 | F82: 0 | G82: -13.399 | H82: 0
A83: CP | B83: Battery | C83: 17 | D83: T2 | E83: 0.74 | F83: 0 | G83: -0.437 | H83: 0
A84: CP | B84: Battery | C84: 17 | D84: S1 | E84: 3.54 | F84: 0 | G84: -2.089 | H84: 0
A85: CP | B85: Battery | C85: 17 | D85: F6 | E85: 54.98 | F85: 0 | G85: -32.438 | H85: 0
A86: CP | B86: Battery | C86: 17 | D86: Q8 | E86: 10.69 | F86: 0 | G86: -6.307 | H86: 0
A87: CP | B87: Battery | C87: 17 | D87: C3 | E87: 0.59 | F87: 0 | G87: -0.348 | H87: 0
A88: CP | B88: Battery | C88: 17 | D88: B1 | E88: 41.56 | F88: 0 | G88: -24.52 | H88: 0
A89: CP | B89: Battery | C89: 17 | D89: K4 | E89: 2.21 | F89: 0 | G89: -1.304 | H89: 0
A90: CP | B90: Battery | C90: 17 | D90: J8 | E90: 72.36 | F90: 0 | G90: -42.692 | H90: 0
A91: CP | B91: Battery | C91: 17 | D91: G1 | E91: 0.08 | F91: 0 | G91: -0.047 | H91: 0
A92: CP | B92: Battery | C92: 17 | D92: P6 | E92: 0.38 | F92: 0 | G92: -0.224 | H92: 0
A93: CP | B93: Battery | C93: 17 | D93: L5 | E93: 1.54 | F93: 0 | G93: -0.909 | H93: 0
A94: CP | B94: Battery | C94: 17 | D94: E8 | E94: 0.48 | F94: 0 | G94: -0.283 | H94: 0
A95: CP | B95: Battery | C95: 17 | D95: Q7 | E95: 2.84 | F95: 0 | G95: -1.676 | H95: 0
A96: CP | B96: Battery | C96: 17 | D96: P1 | E96: 0.27 | F96: 0 | G96: -0.159 | H96: 0
A97: CP | B97: Battery | C97: 17 | D97: C1 | E97: 0.05 | F97: 0 | G97: -0.03 | H97: 0
A98: CP | B98: Battery | C98: 17 | D98: P8 | E98: 1.87 | F98: 0 | G98: -1.103 | H98: 0
A99: CP | B99: Battery | C99: 17 | D99: A6 | E99: 125.02 | F99: 0 | G99: -73.762 | H99: 0
A100: CP | B100: Battery | C100: 17 | D100: K6 | E100: 0.45 | F100: 0 | G100: -0.266 | H100: 0
A101: CP | B101: Battery | C101: 17 | D101: N2 | E101: 0.01 | F101: 0 | G101: -0.006 | H101: 0
A102: CP | B102: Battery | C102: 17 | D102: D6 | E102: 1.88 | F102: 0 | G102: -1.109 | H102: 0
A103: CP | B103: Battery | C103: 17 | D103: A1 | E103: 20.08 | F103: 0 | G103: -11.847 | H103: 0
A104: CP | B104: Battery | C104: 17 | D104: C7 | E104: 2.09 | F104: 0 | G104: -1.233 | H104: 0
A105: CP | B105: Battery | C105: 17 | D105: Q6 | E105: 0.88 | F105: 0 | G105: -0.519 | H105: 0
A106: CP | B106: Battery | C106: 17 | D106: J5 | E106: 0.81 | F106: 0 | G106: -0.478 | H106: 0
A107: CP | B107: Battery | C107: 17 | D107: B4 | E107: 1.29 | F107: 0 | G107: -0.761 | H107: 0
A108: CP | B108: Battery | C108: 17 | D108: Q2 | E108: 0.41 | F108: 0 | G108: -0.242 | H108: 0
A109: CP | B109: Battery | C109: 17 | D109: T5 | E109: 2.5 | F109: 0 | G109: -1.475 | H109: 0
A110: CP | B110: Battery | C110: 17 | D110: S5 | E110: 1.5 | F110: 0 | G110: -0.885 | H110: 0
A111: CP | B111: Battery | C111: 17 | D111: A8 | E111: 36.01 | F111: 0 | G111: -21.246 | H111: 0
A112: CP | B112: Battery | C112: 17 | D112: L2 | E112: 2.39 | F112: 0 | G112: -1.41 | H112: 0
A113: CP | B113: Battery | C113: 17 | D113: R6 | E113: 0.45 | F113: 0 | G113: -0.266 | H113: 0
A114: CP | B114: Battery | C114: 17 | D114: T4 | E114: 0.25 | F114: 0 | G114: -0.148 | H114: 0
A115: CP | B115: Battery | C115: 17 | D115: L8 | E115: 0.22 | F115: 0 | G115: -0.13 | H115: 0
A116: CP | B116: Battery | C116: 17 | D116: R5 | E116: 0.4 | F116: 0 | G116: -0.236 | H116: 0
A117: CP | B117: Battery | C117: 17 | D117: D5 | E117: 120.83 | F117: 0 | G117: -71.29 | H117: 0
A118: CP | B118: Battery | C118: 17 | D118: P4 | E118: 0.35 | F118: 0 | G118: -0.207 | H118: 0
A119: CP | B119: Battery | C119: 17 | D119: C5 | E119: 21.66 | F119: 0 | G119: -12.779 | H119: 0
A120: CP | B120: Battery | C120: 17 | D120: T3 | E120: 0.12 | F120: 0 | G120: -0.071 | H120: 0
A121: CP | B121: Battery | C121: 17 | D121: N1 | E121: 0.1 | F121: 0 | G121: -0.059 | H121: 0
A122: CP | B122: Battery | C122: 17 | D122: M8 | E122: 0.22 | F122: 0 | G122: -0.13 | H122: 0
A123: CP | B123: Battery | C123: 17 | D123: N7 | E123: 0.02 | F123: 0 | G123: -0.012 | H123: 0
A124: CP | B124: Battery | C124: 17 | D124: C6 | E124: 10.08 | F124: 0 | G124: -5.947 | H124: 0
A125: CP | B125: Battery | C125: 17 | D125: P3 | E125: 12.34 | F125: 0 | G125: -7.281 | H125: 0
A126: CP | B126: Battery | C126: 17 | D126: P2 | E126: 0.01 | F126: 0 | G126: -0.006 | H126: 0
A127: CP | B127: Battery | C127: 17 | D127: T1 | E127: 0.49 | F127: 0 | G127: -0.289 | H127: 0
A128: CP | B128: Battery | C128: 17 | D128: J7 | E128: 2.8 | F128: 0 | G128: -1.652 | H128: 0
A129: CP | B129: Battery | C129: 17 | D129: G5 | E129: 0.33 | F129: 0 | G129: -0.195 | H129: 0
A130: CP | B130: Battery | C130: 17 | D130: N5 | E130: 0.32 | F130: 0 | G130: -0.189 | H130: 0
A131: CP | B131: Battery | C131: 17 | D131: Q4 | E131: 0.64 | F131: 0 | G131: -0.378 | H131: 0
A132: CP | B132: Battery | C132: 17 | D132: P7 | E132: 0.35 | F132: 0 | G132: -0.207 | H132: 0
A133: CP | B133: Battery | C133: 17 | D133: M7 | E133: 0.76 | F133: 0 | G133: -0.448 | H133: 0
A134: CP | B134: Battery | C134: 17 | D134: Q5 | E134: 0.17 | F134: 0 | G134: -0.1 | H134: 0
A135: CP | B135: Battery | C135: 17 | D135: M6 | E135: 0.84 | F135: 0 | G135: -0.496 | H135: 0
A136: CP | B136: Battery | C136: 17 | D136: M4 | E136: 0.25 | F136: 0 | G136: -0.148 | H136: 0
A137: CP | B137: Battery | C137: 17 | D137: G6 | E137: 4.31 | F137: 0 | G137: -2.543 | H137: 0
A138: CP | B138: Battery | C138: 17 | D138: B2 | E138: 16.78 | F138: 0 | G138: -9.9 | H138: 0
A139: CP | B139: Battery | C139: 17 | D139: N4 | E139: 0.7 | F139: 0 | G139: -0.413 | H139: 0
A140: CP | B140: Battery | C140: 17 | D140: H6 | E140: 3.58 | F140: 0 | G140: -2.112 | H140: 0
A141: CP | B141: Battery | C141: 17 | D141: D4 | E141: 2.27 | F141: 0 | G141: -1.339 | H141: 0
A142: CP | B142: Battery | C142: 17 | D142: L7 | E142: 0.43 | F142: 0 | G142: -0.254 | H142: 0
A143: CP | B143: Battery | C143: 17 | D143: E7 | E143: 1.35 | F143: 0 | G143: -0.797 | H143: 0
A144: CP | B144: Battery | C144: 17 | D144: A4 | E144: 0.08 | F144: 0 | G144: -0.047 | H144: 0
A145: CP | B145: Battery | C145: 17 | D145: L3 | E145: 3.06 | F145: 0 | G145: -1.805 | H145: 0
A146: CP | B146: Battery | C146: 17 | D146: S2 | E146: 0.65 | F146: 0 | G146: -0.384 | H146: 0
A147: CP | B147: Battery | C147: 17 | D147: J1 | E147: 2.03 | F147: 0 | G147: -1.198 | H147: 0
A148: CP | B148: Battery | C148: 17 | D148: J3 | E148: 2.66 | F148: 0 | G148: -1.569 | H148: 0
A149: CP | B149: Battery | C149: 17 | D149: E1 | E149: 15.18 | F149: 0 | G149: -8.956 | H149: 0
A150: CP | B150: Battery | C150: 17 | D150: J6 | E150: 2.27 | F150: 0 | G150: -1.339 | H150: 0
A151: CP | B151: Battery | C151: 17 | D151: J4 | E151: 2.05 | F151: 0 | G151: -1.21 | H151: 0
A152: CP | B152: Battery | C152: 17 | D152: K5 | E152: 1 | F152: 0 | G152: -0.59 | H152: 0
A153: CP | B153: Battery | C153: 17 | D153: H2 | E153: 0.83 | F153: 0 | G153: -0.49 | H153: 0
A154: CP | B154: Battery | C154: 17 | D154: G7 | E154: 0.35 | F154: 0 | G154: -0.207 | H154: 0
A155: CP | B155: Battery | C155: 17 | D155: M5 | E155: 0.18 | F155: 0 | G155: -0.106 | H155: 0
A156: CP | B156: Battery | C156: 17 | D156: N3 | E156: 0.94 | F156: 0 | G156: -0.555 | H156: 0
A157: CP | B157: Battery | C157: 17 | D157: B3 | E157: 0.23 | F157: 0 | G157: -0.136 | H157: 0
A158: CP | B158: Battery | C158: 17 | D158: C4 | E158: 0.35 | F158: 0 | G158: -0.207 | H158: 0
A159: CP | B159: Battery | C159: 17 | D159: C2 | E159: 236.06 | F159: 0 | G159: -139.275 | H159: 0
A160: CP | B160: Battery | C160: 18 | D160: L7 | E160: 0.48 | F160: 0 | G160: -0.283 | H160: 0
A161: CP | B161: Battery | C161: 18 | D161: P4 | E161: 0.38 | F161: 0 | G161: -0.224 | H161: 0
A162: CP | B162: Battery | C162: 18 | D162: P1 | E162: 0.29 | F162: 0 | G162: -0.171 | H162: 0
A163: CP | B163: Battery | C163: 18 | D163: E8 | E163: 0.54 | F163: 0 | G163: -0.319 | H163: 0
A164: CP | B164: Battery | C164: 18 | D164: Q5 | E164: 0.19 | F164: 0 | G164: -0.112 | H164: 0
A165: CP | B165: Battery | C165: 18 | D165: Q7 | E165: 2.86 | F165: 0 | G165: -1.687 | H165: 0
A166: CP | B166: Battery | C166: 18 | D166: C7 | E166: 2.31 | F166: 0 | G166: -1.363 | H166: 0
A167: CP | B167: Battery | C167: 18 | D167: A8 | E167: 36.02 | F167: 0 | G167: -21.252 | H167: 0
A168: CP | B168: Battery | C168: 18 | D168: M7 | E168: 0.84 | F168: 0 | G168: -0.496 | H168: 0
A169: CP | B169: Battery | C169: 18 | D169: P7 | E169: 0.38 | F169: 0 | G169: -0.224 | H169: 0
A170: CP | B170: Battery | C170: 18 | D170: S2 | E170: 0.71 | F170: 0 | G170: -0.419 | H170: 0
A171: CP | B171: Battery | C171: 18 | D171: E7 | E171: 1.52 | F171: 0 | G171: -0.897 | H171: 0
A172: CP | B172: Battery | C172: 18 | D172: J7 | E172: 3.15 | F172: 0 | G172: -1.859 | H172: 0
A173: CP | B173: Battery | C173: 18 | D173: M5 | E173: 0.2 | F173: 0 | G173: -0.118 | H173: 0
A174: CP | B174: Battery | C174: 18 | D174: N1 | E174: 0.11 | F174: 0 | G174: -0.065 | H174: 0
A175: CP | B175: Battery | C175: 18 | D175: N3 | E175: 1.01 | F175: 0 | G175: -0.596 | H175: 0
A176: CP | B176: Battery | C176: 18 | D176: P6 | E176: 0.42 | F176: 0 | G176: -0.248 | H176: 0
A177: CP | B177: Battery | C177: 18 | D177: Q8 | E177: 10.77 | F177: 0 | G177: -6.354 | H177: 0
A178: CP | B178: Battery | C178: 18 | D178: T5 | E178: 2.54 | F178: 0 | G178: -1.499 | H178: 0
A179: CP | B179: Battery | C179: 18 | D179: G5 | E179: 0.37 | F179: 0 | G179: -0.218 | H179: 0
A180: CP | B180: Battery | C180: 18 | D180: H1 | E180: 22.79 | F180: 0 | G180: -13.446 | H180: 0
A181: CP | B181: Battery | C181: 18 | D181: K5 | E181: 1.12 | F181: 0 | G181: -0.661 | H181: 0
A182: CP | B182: Battery | C182: 18 | D182: N4 | E182: 0.77 | F182: 0 | G182: -0.454 | H182: 0
A183: CP | B183: Battery | C183: 18 | D183: L8 | E183: 0.25 | F183: 0 | G183: -0.148 | H183: 0
A184: CP | B184: Battery | C184: 18 | D184: P8 | E184: 2.08 | F184: 0 | G184: -1.227 | H184: 0
A185: CP | B185: Battery | C185: 18 | D185: T2 | E185: 1.79 | F185: 0 | G185: -1.056 | H185: 0
A186: CP | B186: Battery | C186: 18 | D186: D6 | E186: 2.11 | F186: 0 | G186: -1.245 | H186: 0
A187: CP | B187: Battery | C187: 18 | D187: H2 | E187: 0.93 | F187: 0 | G187: -0.549 | H187: 0
A188: CP | B188: Battery | C188: 18 | D188: B3 | E188: 0.25 | F188: 0 | G188: -0.148 | H188: 0
A189: CP | B189: Battery | C189: 18 | D189: N7 | E189: 0.02 | F189: 0 | G189: -0.012 | H189: 0
A190: CP | B190: Battery | C190: 18 | D190: J3 | E190: 2.96 | F190: 0 | G190: -1.746 | H190: 0
A191: CP | B191: Battery | C191: 18 | D191: J6 | E191: 2.54 | F191: 0 | G191: -1.499 | H191: 0
A192: CP | B192: Battery | C192: 18 | D192: E1 | E192: 15.92 | F192: 0 | G192: -9.393 | H192: 0
A193: CP | B193: Battery | C193: 18 | D193: T4 | E193: 0.28 | F193: 0 | G193: -0.165 | H193: 0
A194: CP | B194: Battery | C194: 18 | D194: C3 | E194: 0.66 | F194: 0 | G194: -0.389 | H194: 0
A195: CP | B195: Battery | C195: 18 | D195: C1 | E195: 0.06 | F195: 0 | G195: -0.035 | H195: 0
A196: CP | B196: Battery | C196: 18 | D196: D4 | E196: 2.43 | F196: 0 | G196: -1.434 | H196: 0
A197: CP | B197: Battery | C197: 18 | D197: C6 | E197: 10.09 | F197: 0 | G197: -5.953 | H197: 0
A198: CP | B198: Battery | C198: 18 | D198: A6 | E198: 160.03 | F198: 0 | G198: -94.418 | H198: 0
A199: CP | B199: Battery | C199: 18 | D199: A1 | E199: 20.09 | F199: 0 | G199: -11.853 | H199: 0
A200: CP | B200: Battery | C200: 18 | D200: L2 | E200: 2.44 | F200: 0 | G200: -1.44 | H200: 0
A201: CP | B201: Battery | C201: 18 | D201: G1 | E201: 0.1 | F201: 0 | G201: -0.059 | H201: 0
... 8721 more rows

Sheet TxStorage
A1: Created by txstorage.sas | D1: Source: | E1: T:\ESP\PS\Distributed Generation\2017\SAS\TxStorage\TxStorageDemand_for_ETYSspatial.xlsb
A3: scenario | B3: tech | C3: year | D3: location | E3: Capacity | F3: wintpk | G3: summam | H3: summpm
A4: CP | B4: Battery | C4: 17 | D4: K6 | E4: 49 | F4: 0 | G4: -28.91 | H4: 0
A5: CP | B5: Battery | C5: 18 | D5: K6 | E5: 49 | F5: 0 | G5: -28.91 | H5: 0
A6: CP | B6: Battery | C6: 18 | D6: Q2 | E6: 25 | F6: 0 | G6: -14.75 | H6: 0
A7: CP | B7: Battery | C7: 19 | D7: Q2 | E7: 25 | F7: 0 | G7: -14.75 | H7: 0
A8: CP | B8: Battery | C8: 19 | D8: K6 | E8: 49 | F8: 0 | G8: -28.91 | H8: 0
A9: CP | B9: Battery | C9: 20 | D9: R5 | E9: 49.9 | F9: 0 | G9: -29.441 | H9: 0
A10: CP | B10: Battery | C10: 20 | D10: K6 | E10: 49 | F10: 0 | G10: -28.91 | H10: 0
A11: CP | B11: Battery | C11: 20 | D11: Q2 | E11: 25 | F11: 0 | G11: -14.75 | H11: 0
A12: CP | B12: Battery | C12: 21 | D12: R5 | E12: 49.9 | F12: 0 | G12: 0 | H12: -29.441
A13: CP | B13: Battery | C13: 21 | D13: Q2 | E13: 25 | F13: 0 | G13: 0 | H13: -14.75
A14: CP | B14: Battery | C14: 21 | D14: K6 | E14: 49 | F14: 0 | G14: 0 | H14: -28.91
A15: CP | B15: Battery | C15: 22 | D15: K6 | E15: 49 | F15: 0 | G15: 0 | H15: -28.91
A16: CP | B16: Battery | C16: 22 | D16: R5 | E16: 49.9 | F16: 0 | G16: 0 | H16: -29.441
A17: CP | B17: Battery | C17: 22 | D17: Q2 | E17: 25 | F17: 0 | G17: 0 | H17: -14.75
A18: CP | B18: Battery | C18: 23 | D18: K6 | E18: 49 | F18: 0 | G18: 0 | H18: -28.91
A19: CP | B19: Battery | C19: 23 | D19: L5 | E19: 51 | F19: 0 | G19: 0 | H19: -30.09
A20: CP | B20: Battery | C20: 23 | D20: Q2 | E20: 25 | F20: 0 | G20: 0 | H20: -14.75
A21: CP | B21: Battery | C21: 23 | D21: R5 | E21: 49.9 | F21: 0 | G21: 0 | H21: -29.441
A22: CP | B22: Battery | C22: 24 | D22: L5 | E22: 111 | F22: 0 | G22: 0 | H22: -65.49
A23: CP | B23: Battery | C23: 24 | D23: R5 | E23: 49.9 | F23: 0 | G23: 0 | H23: -29.441
A24: CP | B24: Battery | C24: 24 | D24: K6 | E24: 49 | F24: 0 | G24: 0 | H24: -28.91
A25: CP | B25: Battery | C25: 24 | D25: Q2 | E25: 25 | F25: 0 | G25: 0 | H25: -14.75
A26: CP | B26: Battery | C26: 25 | D26: Q2 | E26: 25 | F26: 0 | G26: 0 | H26: -14.75
A27: CP | B27: Battery | C27: 25 | D27: K6 | E27: 49 | F27: 0 | G27: 0 | H27: -28.91
A28: CP | B28: Battery | C28: 25 | D28: R5 | E28: 49.9 | F28: 0 | G28: 0 | H28: -29.441
A29: CP | B29: Battery | C29: 25 | D29: L5 | E29: 111 | F29: 0 | G29: 0 | H29: -65.49
A30: CP | B30: Battery | C30: 26 | D30: Q2 | E30: 25 | F30: 0 | G30: 0 | H30: -14.75
A31: CP | B31: Battery | C31: 26 | D31: D6 | E31: 100 | F31: 0 | G31: 0 | H31: -59
A32: CP | B32: Battery | C32: 26 | D32: K6 | E32: 49 | F32: 0 | G32: 0 | H32: -28.91
A33: CP | B33: Battery | C33: 26 | D33: L5 | E33: 111 | F33: 0 | G33: 0 | H33: -65.49
A34: CP | B34: Battery | C34: 26 | D34: R5 | E34: 49.9 | F34: 0 | G34: 0 | H34: -29.441
A35: CP | B35: Battery | C35: 27 | D35: Q2 | E35: 25 | F35: 0 | G35: 0 | H35: -14.75
A36: CP | B36: Battery | C36: 27 | D36: L5 | E36: 111 | F36: 0 | G36: 0 | H36: -65.49
A37: CP | B37: Battery | C37: 27 | D37: K6 | E37: 49 | F37: 0 | G37: 0 | H37: -28.91
A38: CP | B38: Battery | C38: 27 | D38: R5 | E38: 49.9 | F38: 0 | G38: 0 | H38: -29.441
A39: CP | B39: Battery | C39: 27 | D39: D6 | E39: 100 | F39: 0 | G39: 0 | H39: -59
A40: CP | B40: Battery | C40: 28 | D40: Q2 | E40: 25 | F40: 0 | G40: 0 | H40: -14.75
A41: CP | B41: Battery | C41: 28 | D41: D6 | E41: 100 | F41: 0 | G41: 0 | H41: -59
A42: CP | B42: Battery | C42: 28 | D42: L5 | E42: 111 | F42: 0 | G42: 0 | H42: -65.49
A43: CP | B43: Battery | C43: 28 | D43: R5 | E43: 49.9 | F43: 0 | G43: 0 | H43: -29.441
A44: CP | B44: Battery | C44: 28 | D44: K6 | E44: 49 | F44: 0 | G44: 0 | H44: -28.91
A45: CP | B45: Battery | C45: 29 | D45: R5 | E45: 49.9 | F45: 0 | G45: 0 | H45: -29.441
A46: CP | B46: Battery | C46: 29 | D46: L5 | E46: 111 | F46: 0 | G46: 0 | H46: -65.49
A47: CP | B47: Battery | C47: 29 | D47: D6 | E47: 100 | F47: 0 | G47: 0 | H47: -59
A48: CP | B48: Battery | C48: 29 | D48: Q2 | E48: 25 | F48: 0 | G48: 0 | H48: -14.75
A49: CP | B49: Battery | C49: 29 | D49: K6 | E49: 49 | F49: 0 | G49: 0 | H49: -28.91
A50: CP | B50: Battery | C50: 30 | D50: Q2 | E50: 25 | F50: 0 | G50: 0 | H50: -14.75
A51: CP | B51: Battery | C51: 30 | D51: L5 | E51: 111 | F51: 0 | G51: 0 | H51: -65.49
A52: CP | B52: Battery | C52: 30 | D52: R5 | E52: 49.9 | F52: 0 | G52: 0 | H52: -29.441
A53: CP | B53: Battery | C53: 30 | D53: K6 | E53: 49 | F53: 0 | G53: 0 | H53: -28.91
A54: CP | B54: Battery | C54: 30 | D54: D6 | E54: 100 | F54: 0 | G54: 0 | H54: -59
A55: CP | B55: Battery | C55: 31 | D55: Q2 | E55: 25 | F55: 0 | G55: 0 | H55: -14.75
A56: CP | B56: Battery | C56: 31 | D56: R5 | E56: 49.9 | F56: 0 | G56: 0 | H56: -29.441
A57: CP | B57: Battery | C57: 31 | D57: L5 | E57: 111 | F57: 0 | G57: 0 | H57: -65.49
A58: CP | B58: Battery | C58: 31 | D58: D6 | E58: 100 | F58: 0 | G58: 0 | H58: -59
A59: CP | B59: Battery | C59: 31 | D59: K6 | E59: 49 | F59: 0 | G59: 0 | H59: -28.91
A60: CP | B60: Battery | C60: 32 | D60: R5 | E60: 49.9 | F60: 0 | G60: 0 | H60: -29.441
A61: CP | B61: Battery | C61: 32 | D61: Q2 | E61: 25 | F61: 0 | G61: 0 | H61: -14.75
A62: CP | B62: Battery | C62: 32 | D62: L5 | E62: 111 | F62: 0 | G62: 0 | H62: -65.49
A63: CP | B63: Battery | C63: 32 | D63: D6 | E63: 100 | F63: 0 | G63: 0 | H63: -59
A64: CP | B64: Battery | C64: 32 | D64: K6 | E64: 49 | F64: 0 | G64: 0 | H64: -28.91
A65: CP | B65: Battery | C65: 33 | D65: R5 | E65: 49.9 | F65: 0 | G65: 0 | H65: -29.441
A66: CP | B66: Battery | C66: 33 | D66: Q2 | E66: 25 | F66: 0 | G66: 0 | H66: -14.75
A67: CP | B67: Battery | C67: 33 | D67: D6 | E67: 100 | F67: 0 | G67: 0 | H67: -59
A68: CP | B68: Battery | C68: 33 | D68: L5 | E68: 111 | F68: 0 | G68: 0 | H68: -65.49
A69: CP | B69: Battery | C69: 34 | D69: R5 | E69: 49.9 | F69: 0 | G69: 0 | H69: -29.441
A70: CP | B70: Battery | C70: 34 | D70: D6 | E70: 100 | F70: 0 | G70: 0 | H70: -59
A71: CP | B71: Battery | C71: 34 | D71: L5 | E71: 111 | F71: 0 | G71: 0 | H71: -65.49
A72: CP | B72: Battery | C72: 35 | D72: L5 | E72: 111 | F72: 0 | G72: 0 | H72: -65.49
A73: CP | B73: Battery | C73: 35 | D73: D6 | E73: 100 | F73: 0 | G73: 0 | H73: -59
A74: CP | B74: Battery | C74: 36 | D74: L5 | E74: 111 | F74: 0 | G74: 0 | H74: -65.49
A75: CP | B75: Battery | C75: 36 | D75: D6 | E75: 100 | F75: 0 | G75: 0 | H75: -59
A76: CP | B76: Battery | C76: 37 | D76: L5 | E76: 111 | F76: 0 | G76: 0 | H76: -65.49
A77: CP | B77: Battery | C77: 37 | D77: D6 | E77: 100 | F77: 0 | G77: 0 | H77: -59
A78: CP | B78: Battery | C78: 38 | D78: D6 | E78: 100 | F78: 0 | G78: 0 | H78: -59
A79: CP | B79: Battery | C79: 38 | D79: L5 | E79: 111 | F79: 0 | G79: 0 | H79: -65.49
A80: CP | B80: Battery | C80: 39 | D80: L5 | E80: 111 | F80: 0 | G80: 0 | H80: -65.49
A81: CP | B81: Battery | C81: 39 | D81: D6 | E81: 100 | F81: 0 | G81: 0 | H81: -59
A82: CP | B82: Battery | C82: 40 | D82: L5 | E82: 111 | F82: 0 | G82: 0 | H82: -65.49
A83: CP | B83: Battery | C83: 40 | D83: D6 | E83: 100 | F83: 0 | G83: 0 | H83: -59
A84: SP | B84: Battery | C84: 17 | D84: K6 | E84: 49 | F84: 0 | G84: -28.91 | H84: 0
A85: SP | B85: Battery | C85: 18 | D85: Q2 | E85: 25 | F85: 0 | G85: -14.75 | H85: 0
A86: SP | B86: Battery | C86: 18 | D86: K6 | E86: 49 | F86: 0 | G86: -28.91 | H86: 0
A87: SP | B87: Battery | C87: 19 | D87: Q2 | E87: 25 | F87: 0 | G87: -14.75 | H87: 0
A88: SP | B88: Battery | C88: 19 | D88: K6 | E88: 49 | F88: 0 | G88: -28.91 | H88: 0
A89: SP | B89: Battery | C89: 20 | D89: R5 | E89: 49.9 | F89: 0 | G89: -29.441 | H89: 0
A90: SP | B90: Battery | C90: 20 | D90: Q2 | E90: 25 | F90: 0 | G90: -14.75 | H90: 0
A91: SP | B91: Battery | C91: 20 | D91: K6 | E91: 49 | F91: 0 | G91: -28.91 | H91: 0
A92: SP | B92: Battery | C92: 21 | D92: Q2 | E92: 25 | F92: 0 | G92: -14.75 | H92: 0
A93: SP | B93: Battery | C93: 21 | D93: R5 | E93: 49.9 | F93: 0 | G93: -29.441 | H93: 0
A94: SP | B94: Battery | C94: 21 | D94: K6 | E94: 49 | F94: 0 | G94: -28.91 | H94: 0
A95: SP | B95: Battery | C95: 22 | D95: R5 | E95: 49.9 | F95: 0 | G95: 0 | H95: -29.441
A96: SP | B96: Battery | C96: 22 | D96: Q2 | E96: 25 | F96: 0 | G96: 0 | H96: -14.75
A97: SP | B97: Battery | C97: 22 | D97: K6 | E97: 49 | F97: 0 | G97: 0 | H97: -28.91
A98: SP | B98: Battery | C98: 23 | D98: R5 | E98: 49.9 | F98: 0 | G98: 0 | H98: -29.441
A99: SP | B99: Battery | C99: 23 | D99: Q2 | E99: 25 | F99: 0 | G99: 0 | H99: -14.75
A100: SP | B100: Battery | C100: 23 | D100: K6 | E100: 49 | F100: 0 | G100: 0 | H100: -28.91
A101: SP | B101: Battery | C101: 24 | D101: R5 | E101: 49.9 | F101: 0 | G101: 0 | H101: -29.441
A102: SP | B102: Battery | C102: 24 | D102: Q2 | E102: 25 | F102: 0 | G102: 0 | H102: -14.75
A103: SP | B103: Battery | C103: 24 | D103: K6 | E103: 49 | F103: 0 | G103: 0 | H103: -28.91
A104: SP | B104: Battery | C104: 25 | D104: Q2 | E104: 25 | F104: 0 | G104: 0 | H104: -14.75
A105: SP | B105: Battery | C105: 25 | D105: R5 | E105: 49.9 | F105: 0 | G105: 0 | H105: -29.441
A106: SP | B106: Battery | C106: 25 | D106: K6 | E106: 49 | F106: 0 | G106: 0 | H106: -28.91
A107: SP | B107: Battery | C107: 26 | D107: R5 | E107: 49.9 | F107: 0 | G107: 0 | H107: -29.441
A108: SP | B108: Battery | C108: 26 | D108: Q2 | E108: 25 | F108: 0 | G108: 0 | H108: -14.75
A109: SP | B109: Battery | C109: 26 | D109: K6 | E109: 49 | F109: 0 | G109: 0 | H109: -28.91
A110: SP | B110: Battery | C110: 27 | D110: R5 | E110: 49.9 | F110: 0 | G110: 0 | H110: -29.441
A111: SP | B111: Battery | C111: 27 | D111: Q2 | E111: 25 | F111: 0 | G111: 0 | H111: -14.75
A112: SP | B112: Battery | C112: 27 | D112: K6 | E112: 49 | F112: 0 | G112: 0 | H112: -28.91
A113: SP | B113: Battery | C113: 28 | D113: R5 | E113: 49.9 | F113: 0 | G113: 0 | H113: -29.441
A114: SP | B114: Battery | C114: 28 | D114: Q2 | E114: 25 | F114: 0 | G114: 0 | H114: -14.75
A115: SP | B115: Battery | C115: 28 | D115: K6 | E115: 49 | F115: 0 | G115: 0 | H115: -28.91
A116: SP | B116: Battery | C116: 29 | D116: Q2 | E116: 25 | F116: 0 | G116: 0 | H116: -14.75
A117: SP | B117: Battery | C117: 29 | D117: R5 | E117: 49.9 | F117: 0 | G117: 0 | H117: -29.441
A118: SP | B118: Battery | C118: 29 | D118: K6 | E118: 49 | F118: 0 | G118: 0 | H118: -28.91
A119: SP | B119: Battery | C119: 30 | D119: R5 | E119: 49.9 | F119: 0 | G119: 0 | H119: -29.441
A120: SP | B120: Battery | C120: 30 | D120: Q2 | E120: 25 | F120: 0 | G120: 0 | H120: -14.75
A121: SP | B121: Battery | C121: 30 | D121: K6 | E121: 49 | F121: 0 | G121: 0 | H121: -28.91
A122: SP | B122: Battery | C122: 31 | D122: Q2 | E122: 25 | F122: 0 | G122: 0 | H122: -14.75
A123: SP | B123: Battery | C123: 31 | D123: R5 | E123: 49.9 | F123: 0 | G123: 0 | H123: -29.441
A124: SP | B124: Battery | C124: 31 | D124: K6 | E124: 49 | F124: 0 | G124: 0 | H124: -28.91
A125: SP | B125: Battery | C125: 32 | D125: R5 | E125: 49.9 | F125: 0 | G125: 0 | H125: -29.441
A126: SP | B126: Battery | C126: 32 | D126: Q2 | E126: 25 | F126: 0 | G126: 0 | H126: -14.75
A127: SP | B127: Battery | C127: 32 | D127: K6 | E127: 49 | F127: 0 | G127: 0 | H127: -28.91
A128: SP | B128: Battery | C128: 33 | D128: Q2 | E128: 25 | F128: 0 | G128: 0 | H128: -14.75
A129: SP | B129: Battery | C129: 33 | D129: R5 | E129: 49.9 | F129: 0 | G129: 0 | H129: -29.441
A130: SP | B130: Battery | C130: 33 | D130: K6 | E130: 49 | F130: 0 | G130: 0 | H130: -28.91
A131: SP | B131: Battery | C131: 34 | D131: R5 | E131: 49.9 | F131: 0 | G131: 0 | H131: -29.441
A132: SP | B132: Battery | C132: 34 | D132: Q2 | E132: 25 | F132: 0 | G132: 0 | H132: -14.75
A133: SP | B133: Battery | C133: 34 | D133: K6 | E133: 49 | F133: 0 | G133: 0 | H133: -28.91
A134: SP | B134: Battery | C134: 35 | D134: Q2 | E134: 25 | F134: 0 | G134: 0 | H134: -14.75
A135: SP | B135: Battery | C135: 35 | D135: R5 | E135: 49.9 | F135: 0 | G135: 0 | H135: -29.441
A136: SP | B136: Battery | C136: 35 | D136: K6 | E136: 49 | F136: 0 | G136: 0 | H136: -28.91
A137: SP | B137: Battery | C137: 36 | D137: R5 | E137: 49.9 | F137: 0 | G137: 0 | H137: -29.441
A138: SP | B138: Battery | C138: 36 | D138: Q2 | E138: 25 | F138: 0 | G138: 0 | H138: -14.75
A139: SP | B139: Battery | C139: 36 | D139: K6 | E139: 49 | F139: 0 | G139: 0 | H139: -28.91
A140: SP | B140: Battery | C140: 37 | D140: Q2 | E140: 25 | F140: 0 | G140: 0 | H140: -14.75
A141: SP | B141: Battery | C141: 37 | D141: R5 | E141: 49.9 | F141: 0 | G141: 0 | H141: -29.441
A142: SP | B142: Battery | C142: 37 | D142: K6 | E142: 49 | F142: 0 | G142: 0 | H142: -28.91
A143: SP | B143: Battery | C143: 38 | D143: Q2 | E143: 25 | F143: 0 | G143: 0 | H143: -14.75
A144: SP | B144: Battery | C144: 38 | D144: R5 | E144: 49.9 | F144: 0 | G144: 0 | H144: -29.441
A145: SP | B145: Battery | C145: 38 | D145: K6 | E145: 49 | F145: 0 | G145: 0 | H145: -28.91
A146: SP | B146: Battery | C146: 39 | D146: R5 | E146: 49.9 | F146: 0 | G146: 0 | H146: -29.441
A147: SP | B147: Battery | C147: 39 | D147: Q2 | E147: 25 | F147: 0 | G147: 0 | H147: -14.75
A148: SP | B148: Battery | C148: 39 | D148: K6 | E148: 49 | F148: 0 | G148: 0 | H148: -28.91
A149: SP | B149: Battery | C149: 40 | D149: R5 | E149: 49.9 | F149: 0 | G149: 0 | H149: -29.441
A150: SP | B150: Battery | C150: 40 | D150: Q2 | E150: 25 | F150: 0 | G150: 0 | H150: -14.75
A151: SP | B151: Battery | C151: 40 | D151: K6 | E151: 49 | F151: 0 | G151: 0 | H151: -28.91
A152: SS | B152: Battery | C152: 17 | D152: K6 | E152: 49 | F152: 0 | G152: -28.91 | H152: 0
A153: SS | B153: Battery | C153: 18 | D153: Q2 | E153: 25 | F153: 0 | G153: -14.75 | H153: 0
A154: SS | B154: Battery | C154: 18 | D154: K6 | E154: 49 | F154: 0 | G154: -28.91 | H154: 0
A155: SS | B155: Battery | C155: 19 | D155: Q2 | E155: 25 | F155: 0 | G155: -14.75 | H155: 0
A156: SS | B156: Battery | C156: 19 | D156: K6 | E156: 49 | F156: 0 | G156: -28.91 | H156: 0
A157: SS | B157: Battery | C157: 20 | D157: R5 | E157: 49.9 | F157: 0 | G157: -29.441 | H157: 0
A158: SS | B158: Battery | C158: 20 | D158: K6 | E158: 49 | F158: 0 | G158: -28.91 | H158: 0
A159: SS | B159: Battery | C159: 20 | D159: Q2 | E159: 25 | F159: 0 | G159: -14.75 | H159: 0
A160: SS | B160: Battery | C160: 21 | D160: K6 | E160: 49 | F160: 0 | G160: -28.91 | H160: 0
A161: SS | B161: Battery | C161: 21 | D161: Q2 | E161: 25 | F161: 0 | G161: -14.75 | H161: 0
A162: SS | B162: Battery | C162: 21 | D162: R5 | E162: 49.9 | F162: 0 | G162: -29.441 | H162: 0
A163: SS | B163: Battery | C163: 22 | D163: K6 | E163: 49 | F163: 0 | G163: -28.91 | H163: 0
A164: SS | B164: Battery | C164: 22 | D164: Q2 | E164: 25 | F164: 0 | G164: -14.75 | H164: 0
A165: SS | B165: Battery | C165: 22 | D165: R5 | E165: 49.9 | F165: 0 | G165: -29.441 | H165: 0
A166: SS | B166: Battery | C166: 23 | D166: R5 | E166: 49.9 | F166: 0 | G166: -29.441 | H166: 0
A167: SS | B167: Battery | C167: 23 | D167: Q2 | E167: 25 | F167: 0 | G167: -14.75 | H167: 0
A168: SS | B168: Battery | C168: 23 | D168: K6 | E168: 49 | F168: 0 | G168: -28.91 | H168: 0
A169: SS | B169: Battery | C169: 24 | D169: R5 | E169: 49.9 | F169: 0 | G169: -29.441 | H169: 0
A170: SS | B170: Battery | C170: 24 | D170: K6 | E170: 49 | F170: 0 | G170: -28.91 | H170: 0
A171: SS | B171: Battery | C171: 24 | D171: Q2 | E171: 25 | F171: 0 | G171: -14.75 | H171: 0
A172: SS | B172: Battery | C172: 25 | D172: R5 | E172: 49.9 | F172: 0 | G172: -29.441 | H172: 0
A173: SS | B173: Battery | C173: 25 | D173: Q2 | E173: 25 | F173: 0 | G173: -14.75 | H173: 0
A174: SS | B174: Battery | C174: 25 | D174: K6 | E174: 49 | F174: 0 | G174: -28.91 | H174: 0
A175: SS | B175: Battery | C175: 26 | D175: Q2 | E175: 25 | F175: 0 | G175: -14.75 | H175: 0
A176: SS | B176: Battery | C176: 26 | D176: K6 | E176: 49 | F176: 0 | G176: -28.91 | H176: 0
A177: SS | B177: Battery | C177: 26 | D177: R5 | E177: 49.9 | F177: 0 | G177: -29.441 | H177: 0
A178: SS | B178: Battery | C178: 27 | D178: Q2 | E178: 25 | F178: 0 | G178: -14.75 | H178: 0
A179: SS | B179: Battery | C179: 27 | D179: R5 | E179: 49.9 | F179: 0 | G179: -29.441 | H179: 0
A180: SS | B180: Battery | C180: 27 | D180: K6 | E180: 49 | F180: 0 | G180: -28.91 | H180: 0
A181: SS | B181: Battery | C181: 28 | D181: K6 | E181: 49 | F181: 0 | G181: -28.91 | H181: 0
A182: SS | B182: Battery | C182: 28 | D182: Q2 | E182: 25 | F182: 0 | G182: -14.75 | H182: 0
A183: SS | B183: Battery | C183: 28 | D183: R5 | E183: 49.9 | F183: 0 | G183: -29.441 | H183: 0
A184: SS | B184: Battery | C184: 29 | D184: K6 | E184: 49 | F184: 0 | G184: -28.91 | H184: 0
A185: SS | B185: Battery | C185: 29 | D185: R5 | E185: 49.9 | F185: 0 | G185: -29.441 | H185: 0
A186: SS | B186: Battery | C186: 29 | D186: Q2 | E186: 25 | F186: 0 | G186: -14.75 | H186: 0
A187: SS | B187: Battery | C187: 30 | D187: R5 | E187: 49.9 | F187: 0 | G187: -29.441 | H187: 0
A188: SS | B188: Battery | C188: 30 | D188: Q2 | E188: 25 | F188: 0 | G188: -14.75 | H188: 0
A189: SS | B189: Battery | C189: 30 | D189: K6 | E189: 49 | F189: 0 | G189: -28.91 | H189: 0
A190: SS | B190: Battery | C190: 31 | D190: K6 | E190: 49 | F190: 0 | G190: -28.91 | H190: 0
A191: SS | B191: Battery | C191: 31 | D191: R5 | E191: 49.9 | F191: 0 | G191: -29.441 | H191: 0
A192: SS | B192: Battery | C192: 31 | D192: Q2 | E192: 25 | F192: 0 | G192: -14.75 | H192: 0
A193: SS | B193: Battery | C193: 32 | D193: R5 | E193: 49.9 | F193: 0 | G193: -29.441 | H193: 0
A194: SS | B194: Battery | C194: 32 | D194: K6 | E194: 49 | F194: 0 | G194: -28.91 | H194: 0
A195: SS | B195: Battery | C195: 32 | D195: Q2 | E195: 25 | F195: 0 | G195: -14.75 | H195: 0
A196: SS | B196: Battery | C196: 33 | D196: R5 | E196: 49.9 | F196: 0 | G196: -29.441 | H196: 0
A197: SS | B197: Battery | C197: 33 | D197: Q2 | E197: 25 | F197: 0 | G197: -14.75 | H197: 0
A198: SS | B198: Battery | C198: 34 | D198: R5 | E198: 49.9 | F198: 0 | G198: -29.441 | H198: 0
A199: TD | B199: Battery | C199: 17 | D199: K6 | E199: 49 | F199: 0 | G199: -28.91 | H199: 0
A200: TD | B200: Battery | C200: 18 | D200: K6 | E200: 49 | F200: 0 | G200: -28.91 | H200: 0
A201: TD | B201: Battery | C201: 18 | D201: Q2 | E201: 25 | F201: 0 | G201: -14.75 | H201: 0
... 521 more rows

Sheet Active
A1: Updated by Kein, 13/10/17 | D1: Scenario | E1: ='MAIN DATA'!A4 -> Two Degrees
B2: Active Power GW | D2: Time Zone | E2: ='MAIN DATA'!A5 -> Winter Peak
B4: DO NOT OVERWRITE THE PURPLE AREA BELOW | D4: Vlookup Column | F4: 3 | G4: 4 | H4: =HLOOKUP(H$22,Controls!$C$10:$AB$12,3,FALSE) -> 5 | I4: =HLOOKUP(I$22,Controls!$C$10:$AB$12,3,FALSE) -> 6 | J4: =HLOOKUP(J$22,Controls!$C$10:$AB$12,3,FALSE) -> 7 | K4: =HLOOKUP(K$22,Controls!$C$10:$AB$12,3,FALSE) -> 8 | L4: =HLOOKUP(L$22,Controls!$C$10:$AB$12,3,FALSE) -> 9 | M4: =HLOOKUP(M$22,Controls!$C$10:$AB$12,3,FALSE) -> 10 | N4: =HLOOKUP(N$22,Controls!$C$10:$AB$12,3,FALSE) -> 11 | O4: =HLOOKUP(O$22,Controls!$C$10:$AB$12,3,FALSE) -> 12 | P4: =HLOOKUP(P$22,Controls!$C$10:$AB$12,3,FALSE) -> 13 | Q4: =HLOOKUP(Q$22,Controls!$C$10:$AB$12,3,FALSE) -> 14 | R4: =HLOOKUP(R$22,Controls!$C$10:$AB$12,3,FALSE) -> 15 | S4: =HLOOKUP(S$22,Controls!$C$10:$AB$12,3,FALSE) -> 16 | T4: =HLOOKUP(T$22,Controls!$C$10:$AB$12,3,FALSE) -> 17 | U4: =HLOOKUP(U$22,Controls!$C$10:$AB$12,3,FALSE) -> 18 | V4: =HLOOKUP(V$22,Controls!$C$10:$AB$12,3,FALSE) -> 19 | W4: =HLOOKUP(W$22,Controls!$C$10:$AB$12,3,FALSE) -> 20 | X4: =HLOOKUP(X$22,Controls!$C$10:$AB$12,3,FALSE) -> 21 | Y4: =HLOOKUP(Y$22,Controls!$C$10:$AB$12,3,FALSE) -> 22 | Z4: =HLOOKUP(Z$22,Controls!$C$10:$AB$12,3,FALSE) -> 23 | AA4: =HLOOKUP(AA$22,Controls!$C$10:$AB$12,3,FALSE) -> 24 | AB4: =HLOOKUP(AB$22,Controls!$C$10:$AB$12,3,FALSE) -> 25 | AC4: =HLOOKUP(AC$22,Controls!$C$10:$AB$12,3,FALSE) -> 26 | AD4: =HLOOKUP(AD$22,Controls!$C$10:$AB$12,3,FALSE) -> 27 | AE4: =HLOOKUP(AE$22,Controls!$C$10:$AB$12,3,FALSE) -> 28 | AF4: =HLOOKUP(AF$22,Controls!$C$10:$AB$12,3,FALSE) -> 29 | AG4: =HLOOKUP(AG$22,Controls!$C$10:$AB$12,3,FALSE) -> 30
B5: (ROWS 23:114)
A21: 1 | B21: 2 | C21: 3 | D21: 4 | E21: 5 | F21: 6 | G21: 7 | H21: 8 | I21: 9 | J21: 10 | K21: 11 | L21: 12 | M21: 13 | N21: 14 | O21: 15 | P21: 16 | Q21: 17 | R21: 18 | S21: 19 | T21: 20 | U21: 21 | V21: 22 | W21: 23 | X21: 24 | Y21: 25 | Z21: 26 | AA21: 27 | AB21: 28 | AC21: 29 | AD21: 30 | AE21: 31 | AF21: 32 | AG21: 33
B22: Scenario | C22: FLOP | D22: FLOP Zone | F22: 2013/14 | G22: 2014/15 | H22: =Controls!C10 -> 2015/16 | I22: =Controls!D10 -> 2016/17 | J22: =Controls!E10 -> 2017/18 | K22: =Controls!F10 -> 2018/19 | L22: =Controls!G10 -> 2019/20 | M22: =Controls!H10 -> 2020/21 | N22: =Controls!I10 -> 2021/22 | O22: =Controls!J10 -> 2022/23 | P22: =Controls!K10 -> 2023/24 | Q22: =Controls!L10 -> 2024/25 | R22: =Controls!M10 -> 2025/26 | S22: =Controls!N10 -> 2026/27 | T22: =Controls!O10 -> 2027/28 | U22: =Controls!P10 -> 2028/29 | V22: =Controls!Q10 -> 2029/30 | W22: =Controls!R10 -> 2030/31 | X22: =Controls!S10 -> 2031/32 | Y22: =Controls!T10 -> 2032/33 | Z22: =Controls!U10 -> 2033/34 | AA22: =Controls!V10 -> 2034/35 | AB22: =Controls!W10 -> 2035/36 | AC22: =Controls!X10 -> 2036/37 | AD22: =Controls!Y10 -> 2037/38 | AE22: =Controls!Z10 -> 2038/39 | AF22: =Controls!AA10 -> 2039/40 | AG22: =Controls!AB10 -> 2040/41
A23: 1 | B23: =INDEX(INDIRECT(Controls!$F$41),Active!$A23,Active!B$21) -> Two Degrees Winter Peak | C23: =INDEX(INDIRECT(Controls!$F$41),Active!$A23,Active!C$21) -> A | D23: =INDEX(INDIRECT(Controls!$F$41),Active!$A23,Active!D$21) -> A1 | E23: =INDEX(INDIRECT(Controls!$F$41),Active!$A23,Active!E$21) -> 0 | F23: =INDEX(INDIRECT(Controls!$F$41),Active!$A23,Active!F$21) -> 0 | G23: =INDEX(INDIRECT(Controls!$F$41),Active!$A23,Active!G$21) -> 0 | H23: =INDEX(INDIRECT(Controls!$F$41),Active!$A23,Active!H$21) -> 0 | I23: =INDEX(INDIRECT(Controls!$F$41),Active!$A23,Active!I$21) -> 1920.589917 | J23: =INDEX(INDIRECT(Controls!$F$41),Active!$A23,Active!J$21) -> 1962.999338 | K23: =INDEX(INDIRECT(Controls!$F$41),Active!$A23,Active!K$21) -> 1951.955432 | L23: =INDEX(INDIRECT(Controls!$F$41),Active!$A23,Active!L$21) -> 1942.618875 | M23: =INDEX(INDIRECT(Controls!$F$41),Active!$A23,Active!M$21) -> 1931.512707 | N23: =INDEX(INDIRECT(Controls!$F$41),Active!$A23,Active!N$21) -> 1922.988487 | O23: =INDEX(INDIRECT(Controls!$F$41),Active!$A23,Active!O$21) -> 1922.710827 | P23: =INDEX(INDIRECT(Controls!$F$41),Active!$A23,Active!P$21) -> 1913.380565 | Q23: =INDEX(INDIRECT(Controls!$F$41),Active!$A23,Active!Q$21) -> 1909.169071 | R23: =INDEX(INDIRECT(Controls!$F$41),Active!$A23,Active!R$21) -> 1910.312829 | S23: =INDEX(INDIRECT(Controls!$F$41),Active!$A23,Active!S$21) -> 1917.8267 | T23: =INDEX(INDIRECT(Controls!$F$41),Active!$A23,Active!T$21) -> 1929.552087 | U23: =INDEX(INDIRECT(Controls!$F$41),Active!$A23,Active!U$21) -> 1939.859537 | V23: =INDEX(INDIRECT(Controls!$F$41),Active!$A23,Active!V$21) -> 1948.670774 | W23: =INDEX(INDIRECT(Controls!$F$41),Active!$A23,Active!W$21) -> 1961.006948 | X23: =INDEX(INDIRECT(Controls!$F$41),Active!$A23,Active!X$21) -> 1959.190663 | Y23: =INDEX(INDIRECT(Controls!$F$41),Active!$A23,Active!Y$21) -> 1962.44292 | Z23: =INDEX(INDIRECT(Controls!$F$41),Active!$A23,Active!Z$21) -> 1963.823545 | AA23: =INDEX(INDIRECT(Controls!$F$41),Active!$A23,Active!AA$21) -> 1964.756799 | AB23: =INDEX(INDIRECT(Controls!$F$41),Active!$A23,Active!AB$21) -> 1962.877522 | AC23: =INDEX(INDIRECT(Controls!$F$41),Active!$A23,Active!AC$21) -> 1965.14083 | AD23: =INDEX(INDIRECT(Controls!$F$41),Active!$A23,Active!AD$21) -> 1968.947005 | AE23: =INDEX(INDIRECT(Controls!$F$41),Active!$A23,Active!AE$21) -> 1975.206204 | AF23: =INDEX(INDIRECT(Controls!$F$41),Active!$A23,Active!AF$21) -> 1991.476622 | AG23: =INDEX(INDIRECT(Controls!$F$41),Active!$A23,Active!AG$21) -> 2006.512549
A24: 2 | B24: =INDEX(INDIRECT(Controls!$F$41),Active!$A24,Active!B$21) -> Two Degrees Winter Peak | C24: =INDEX(INDIRECT(Controls!$F$41),Active!$A24,Active!C$21) -> A | D24: =INDEX(INDIRECT(Controls!$F$41),Active!$A24,Active!D$21) -> A3 | E24: =INDEX(INDIRECT(Controls!$F$41),Active!$A24,Active!E$21) -> 0 | F24: =INDEX(INDIRECT(Controls!$F$41),Active!$A24,Active!F$21) -> 0 | G24: =INDEX(INDIRECT(Controls!$F$41),Active!$A24,Active!G$21) -> 0 | H24: =INDEX(INDIRECT(Controls!$F$41),Active!$A24,Active!H$21) -> 0 | I24: =INDEX(INDIRECT(Controls!$F$41),Active!$A24,Active!I$21) -> 426.247255 | J24: =INDEX(INDIRECT(Controls!$F$41),Active!$A24,Active!J$21) -> 435.7570746 | K24: =INDEX(INDIRECT(Controls!$F$41),Active!$A24,Active!K$21) -> 433.4440892 | L24: =INDEX(INDIRECT(Controls!$F$41),Active!$A24,Active!L$21) -> 431.5203426 | M24: =INDEX(INDIRECT(Controls!$F$41),Active!$A24,Active!M$21) -> 429.2047734 | N24: =INDEX(INDIRECT(Controls!$F$41),Active!$A24,Active!N$21) -> 427.4128512 | O24: =INDEX(INDIRECT(Controls!$F$41),Active!$A24,Active!O$21) -> 427.4447614 | P24: =INDEX(INDIRECT(Controls!$F$41),Active!$A24,Active!P$21) -> 425.419807 | Q24: =INDEX(INDIRECT(Controls!$F$41),Active!$A24,Active!Q$21) -> 424.508884 | R24: =INDEX(INDIRECT(Controls!$F$41),Active!$A24,Active!R$21) -> 424.8223926 | S24: =INDEX(INDIRECT(Controls!$F$41),Active!$A24,Active!S$21) -> 426.5746469 | T24: =INDEX(INDIRECT(Controls!$F$41),Active!$A24,Active!T$21) -> 429.2767174 | U24: =INDEX(INDIRECT(Controls!$F$41),Active!$A24,Active!U$21) -> 431.6729778 | V24: =INDEX(INDIRECT(Controls!$F$41),Active!$A24,Active!V$21) -> 433.7427115 | W24: =INDEX(INDIRECT(Controls!$F$41),Active!$A24,Active!W$21) -> 436.5960574 | X24: =INDEX(INDIRECT(Controls!$F$41),Active!$A24,Active!X$21) -> 436.2891653 | Y24: =INDEX(INDIRECT(Controls!$F$41),Active!$A24,Active!Y$21) -> 437.0868638 | Z24: =INDEX(INDIRECT(Controls!$F$41),Active!$A24,Active!Z$21) -> 437.4492207 | AA24: =INDEX(INDIRECT(Controls!$F$41),Active!$A24,Active!AA$21) -> 437.6929487 | AB24: =INDEX(INDIRECT(Controls!$F$41),Active!$A24,Active!AB$21) -> 437.2941338 | AC24: =INDEX(INDIRECT(Controls!$F$41),Active!$A24,Active!AC$21) -> 437.8217198 | AD24: =INDEX(INDIRECT(Controls!$F$41),Active!$A24,Active!AD$21) -> 438.7006707 | AE24: =INDEX(INDIRECT(Controls!$F$41),Active!$A24,Active!AE$21) -> 440.1352246 | AF24: =INDEX(INDIRECT(Controls!$F$41),Active!$A24,Active!AF$21) -> 443.8043009 | AG24: =INDEX(INDIRECT(Controls!$F$41),Active!$A24,Active!AG$21) -> 447.2128302
A25: 3 | B25: =INDEX(INDIRECT(Controls!$F$41),Active!$A25,Active!B$21) -> Two Degrees Winter Peak | C25: =INDEX(INDIRECT(Controls!$F$41),Active!$A25,Active!C$21) -> A | D25: =INDEX(INDIRECT(Controls!$F$41),Active!$A25,Active!D$21) -> A4 | E25: =INDEX(INDIRECT(Controls!$F$41),Active!$A25,Active!E$21) -> 0 | F25: =INDEX(INDIRECT(Controls!$F$41),Active!$A25,Active!F$21) -> 0 | G25: =INDEX(INDIRECT(Controls!$F$41),Active!$A25,Active!G$21) -> 0 | H25: =INDEX(INDIRECT(Controls!$F$41),Active!$A25,Active!H$21) -> 0 | I25: =INDEX(INDIRECT(Controls!$F$41),Active!$A25,Active!I$21) -> 1305.770892 | J25: =INDEX(INDIRECT(Controls!$F$41),Active!$A25,Active!J$21) -> 1336.826142 | K25: =INDEX(INDIRECT(Controls!$F$41),Active!$A25,Active!K$21) -> 1332.458497 | L25: =INDEX(INDIRECT(Controls!$F$41),Active!$A25,Active!L$21) -> 1329.486384 | M25: =INDEX(INDIRECT(Controls!$F$41),Active!$A25,Active!M$21) -> 1325.332009 | N25: =INDEX(INDIRECT(Controls!$F$41),Active!$A25,Active!N$21) -> 1321.80959 | O25: =INDEX(INDIRECT(Controls!$F$41),Active!$A25,Active!O$21) -> 1323.748849 | P25: =INDEX(INDIRECT(Controls!$F$41),Active!$A25,Active!P$21) -> 1318.446571 | Q25: =INDEX(INDIRECT(Controls!$F$41),Active!$A25,Active!Q$21) -> 1316.123785 | R25: =INDEX(INDIRECT(Controls!$F$41),Active!$A25,Active!R$21) -> 1318.258952 | S25: =INDEX(INDIRECT(Controls!$F$41),Active!$A25,Active!S$21) -> 1325.293625 | T25: =INDEX(INDIRECT(Controls!$F$41),Active!$A25,Active!T$21) -> 1335.535873 | U25: =INDEX(INDIRECT(Controls!$F$41),Active!$A25,Active!U$21) -> 1345.016148 | V25: =INDEX(INDIRECT(Controls!$F$41),Active!$A25,Active!V$21) -> 1353.605133 | W25: =INDEX(INDIRECT(Controls!$F$41),Active!$A25,Active!W$21) -> 1364.620303 | X25: =INDEX(INDIRECT(Controls!$F$41),Active!$A25,Active!X$21) -> 1365.574307 | Y25: =INDEX(INDIRECT(Controls!$F$41),Active!$A25,Active!Y$21) -> 1369.512465 | Z25: =INDEX(INDIRECT(Controls!$F$41),Active!$A25,Active!Z$21) -> 1371.724021 | AA25: =INDEX(INDIRECT(Controls!$F$41),Active!$A25,Active!AA$21) -> 1373.191364 | AB25: =INDEX(INDIRECT(Controls!$F$41),Active!$A25,Active!AB$21) -> 1372.32921 | AC25: =INDEX(INDIRECT(Controls!$F$41),Active!$A25,Active!AC$21) -> 1374.443093 | AD25: =INDEX(INDIRECT(Controls!$F$41),Active!$A25,Active!AD$21) -> 1377.809517 | AE25: =INDEX(INDIRECT(Controls!$F$41),Active!$A25,Active!AE$21) -> 1383.098293 | AF25: =INDEX(INDIRECT(Controls!$F$41),Active!$A25,Active!AF$21) -> 1395.481906 | AG25: =INDEX(INDIRECT(Controls!$F$41),Active!$A25,Active!AG$21) -> 1407.331784
A26: 4 | B26: =INDEX(INDIRECT(Controls!$F$41),Active!$A26,Active!B$21) -> Two Degrees Winter Peak | C26: =INDEX(INDIRECT(Controls!$F$41),Active!$A26,Active!C$21) -> A | D26: =INDEX(INDIRECT(Controls!$F$41),Active!$A26,Active!D$21) -> A6 | E26: =INDEX(INDIRECT(Controls!$F$41),Active!$A26,Active!E$21) -> 0 | F26: =INDEX(INDIRECT(Controls!$F$41),Active!$A26,Active!F$21) -> 0 | G26: =INDEX(INDIRECT(Controls!$F$41),Active!$A26,Active!G$21) -> 0 | H26: =INDEX(INDIRECT(Controls!$F$41),Active!$A26,Active!H$21) -> 0 | I26: =INDEX(INDIRECT(Controls!$F$41),Active!$A26,Active!I$21) -> 2195.809794 | J26: =INDEX(INDIRECT(Controls!$F$41),Active!$A26,Active!J$21) -> 2256.614632 | K26: =INDEX(INDIRECT(Controls!$F$41),Active!$A26,Active!K$21) -> 2261.400932 | L26: =INDEX(INDIRECT(Controls!$F$41),Active!$A26,Active!L$21) -> 2269.440617 | M26: =INDEX(INDIRECT(Controls!$F$41),Active!$A26,Active!M$21) -> 2275.572756 | N26: =INDEX(INDIRECT(Controls!$F$41),Active!$A26,Active!N$21) -> 2278.42848 | O26: =INDEX(INDIRECT(Controls!$F$41),Active!$A26,Active!O$21) -> 2289.908664 | P26: =INDEX(INDIRECT(Controls!$F$41),Active!$A26,Active!P$21) -> 2285.013593 | Q26: =INDEX(INDIRECT(Controls!$F$41),Active!$A26,Active!Q$21) -> 2283.195215 | R26: =INDEX(INDIRECT(Controls!$F$41),Active!$A26,Active!R$21) -> 2292.028998 | S26: =INDEX(INDIRECT(Controls!$F$41),Active!$A26,Active!S$21) -> 2311.297955 | T26: =INDEX(INDIRECT(Controls!$F$41),Active!$A26,Active!T$21) -> 2337.290426 | U26: =INDEX(INDIRECT(Controls!$F$41),Active!$A26,Active!U$21) -> 2362.78194 | V26: =INDEX(INDIRECT(Controls!$F$41),Active!$A26,Active!V$21) -> 2387.261115 | W26: =INDEX(INDIRECT(Controls!$F$41),Active!$A26,Active!W$21) -> 2415.934732 | X26: =INDEX(INDIRECT(Controls!$F$41),Active!$A26,Active!X$21) -> 2425.993014 | Y26: =INDEX(INDIRECT(Controls!$F$41),Active!$A26,Active!Y$21) -> 2439.285722 | Z26: =INDEX(INDIRECT(Controls!$F$41),Active!$A26,Active!Z$21) -> 2447.921015 | AA26: =INDEX(INDIRECT(Controls!$F$41),Active!$A26,Active!AA$21) -> 2453.605202 | AB26: =INDEX(INDIRECT(Controls!$F$41),Active!$A26,Active!AB$21) -> 2453.760278 | AC26: =INDEX(INDIRECT(Controls!$F$41),Active!$A26,Active!AC$21) -> 2459.536251 | AD26: =INDEX(INDIRECT(Controls!$F$41),Active!$A26,Active!AD$21) -> 2468.204783 | AE26: =INDEX(INDIRECT(Controls!$F$41),Active!$A26,Active!AE$21) -> 2481.089288 | AF26: =INDEX(INDIRECT(Controls!$F$41),Active!$A26,Active!AF$21) -> 2507.018519 | AG26: =INDEX(INDIRECT(Controls!$F$41),Active!$A26,Active!AG$21) -> 2533.230412
A27: 5 | B27: =INDEX(INDIRECT(Controls!$F$41),Active!$A27,Active!B$21) -> Two Degrees Winter Peak | C27: =INDEX(INDIRECT(Controls!$F$41),Active!$A27,Active!C$21) -> A | D27: =INDEX(INDIRECT(Controls!$F$41),Active!$A27,Active!D$21) -> A7 | E27: =INDEX(INDIRECT(Controls!$F$41),Active!$A27,Active!E$21) -> 0 | F27: =INDEX(INDIRECT(Controls!$F$41),Active!$A27,Active!F$21) -> 0 | G27: =INDEX(INDIRECT(Controls!$F$41),Active!$A27,Active!G$21) -> 0 | H27: =INDEX(INDIRECT(Controls!$F$41),Active!$A27,Active!H$21) -> 0 | I27: =INDEX(INDIRECT(Controls!$F$41),Active!$A27,Active!I$21) -> 3139.063358 | J27: =INDEX(INDIRECT(Controls!$F$41),Active!$A27,Active!J$21) -> 3216.952882 | K27: =INDEX(INDIRECT(Controls!$F$41),Active!$A27,Active!K$21) -> 3211.02314 | L27: =INDEX(INDIRECT(Controls!$F$41),Active!$A27,Active!L$21) -> 3208.789794 | M27: =INDEX(INDIRECT(Controls!$F$41),Active!$A27,Active!M$21) -> 3203.744651 | N27: =INDEX(INDIRECT(Controls!$F$41),Active!$A27,Active!N$21) -> 3198.584074 | O27: =INDEX(INDIRECT(Controls!$F$41),Active!$A27,Active!O$21) -> 3206.342365 | P27: =INDEX(INDIRECT(Controls!$F$41),Active!$A27,Active!P$21) -> 3195.110663 | Q27: =INDEX(INDIRECT(Controls!$F$41),Active!$A27,Active!Q$21) -> 3190.313176 | R27: =INDEX(INDIRECT(Controls!$F$41),Active!$A27,Active!R$21) -> 3197.421356 | S27: =INDEX(INDIRECT(Controls!$F$41),Active!$A27,Active!S$21) -> 3217.135222 | T27: =INDEX(INDIRECT(Controls!$F$41),Active!$A27,Active!T$21) -> 3245.060964 | U27: =INDEX(INDIRECT(Controls!$F$41),Active!$A27,Active!U$21) -> 3271.448922 | V27: =INDEX(INDIRECT(Controls!$F$41),Active!$A27,Active!V$21) -> 3295.877488 | W27: =INDEX(INDIRECT(Controls!$F$41),Active!$A27,Active!W$21) -> 3326.18173 | X27: =INDEX(INDIRECT(Controls!$F$41),Active!$A27,Active!X$21) -> 3331.659975 | Y27: =INDEX(INDIRECT(Controls!$F$41),Active!$A27,Active!Y$21) -> 3343.640109 | Z27: =INDEX(INDIRECT(Controls!$F$41),Active!$A27,Active!Z$21) -> 3350.808759 | AA27: =INDEX(INDIRECT(Controls!$F$41),Active!$A27,Active!AA$21) -> 3355.548037 | AB27: =INDEX(INDIRECT(Controls!$F$41),Active!$A27,Active!AB$21) -> 3354.080025 | AC27: =INDEX(INDIRECT(Controls!$F$41),Active!$A27,Active!AC$21) -> 3359.998574 | AD27: =INDEX(INDIRECT(Controls!$F$41),Active!$A27,Active!AD$21) -> 3369.224423 | AE27: =INDEX(INDIRECT(Controls!$F$41),Active!$A27,Active!AE$21) -> 3383.442029 | AF27: =INDEX(INDIRECT(Controls!$F$41),Active!$A27,Active!AF$21) -> 3415.135205 | AG27: =INDEX(INDIRECT(Controls!$F$41),Active!$A27,Active!AG$21) -> 3445.989894
A28: 6 | B28: =INDEX(INDIRECT(Controls!$F$41),Active!$A28,Active!B$21) -> Two Degrees Winter Peak | C28: =INDEX(INDIRECT(Controls!$F$41),Active!$A28,Active!C$21) -> A | D28: =INDEX(INDIRECT(Controls!$F$41),Active!$A28,Active!D$21) -> A8 | E28: =INDEX(INDIRECT(Controls!$F$41),Active!$A28,Active!E$21) -> 0 | F28: =INDEX(INDIRECT(Controls!$F$41),Active!$A28,Active!F$21) -> 0 | G28: =INDEX(INDIRECT(Controls!$F$41),Active!$A28,Active!G$21) -> 0 | H28: =INDEX(INDIRECT(Controls!$F$41),Active!$A28,Active!H$21) -> 0 | I28: =INDEX(INDIRECT(Controls!$F$41),Active!$A28,Active!I$21) -> 2024.268751 | J28: =INDEX(INDIRECT(Controls!$F$41),Active!$A28,Active!J$21) -> 2073.148794 | K28: =INDEX(INDIRECT(Controls!$F$41),Active!$A28,Active!K$21) -> 2067.419256 | L28: =INDEX(INDIRECT(Controls!$F$41),Active!$A28,Active!L$21) -> 2063.930968 | M28: =INDEX(INDIRECT(Controls!$F$41),Active!$A28,Active!M$21) -> 2058.616797 | N28: =INDEX(INDIRECT(Controls!$F$41),Active!$A28,Active!N$21) -> 2053.90982 | O28: =INDEX(INDIRECT(Controls!$F$41),Active!$A28,Active!O$21) -> 2057.621725 | P28: =INDEX(INDIRECT(Controls!$F$41),Active!$A28,Active!P$21) -> 2049.747094 | Q28: =INDEX(INDIRECT(Controls!$F$41),Active!$A28,Active!Q$21) -> 2046.325416 | R28: =INDEX(INDIRECT(Controls!$F$41),Active!$A28,Active!R$21) -> 2050.085564 | S28: =INDEX(INDIRECT(Controls!$F$41),Active!$A28,Active!S$21) -> 2061.629683 | T28: =INDEX(INDIRECT(Controls!$F$41),Active!$A28,Active!T$21) -> 2078.26048 | U28: =INDEX(INDIRECT(Controls!$F$41),Active!$A28,Active!U$21) -> 2093.777023 | V28: =INDEX(INDIRECT(Controls!$F$41),Active!$A28,Active!V$21) -> 2107.953606 | W28: =INDEX(INDIRECT(Controls!$F$41),Active!$A28,Active!W$21) -> 2125.901209 | X28: =INDEX(INDIRECT(Controls!$F$41),Active!$A28,Active!X$21) -> 2128.105892 | Y28: =INDEX(INDIRECT(Controls!$F$41),Active!$A28,Active!Y$21) -> 2134.783623 | Z28: =INDEX(INDIRECT(Controls!$F$41),Active!$A28,Active!Z$21) -> 2138.634126 | AA28: =INDEX(INDIRECT(Controls!$F$41),Active!$A28,Active!AA$21) -> 2141.185008 | AB28: =INDEX(INDIRECT(Controls!$F$41),Active!$A28,Active!AB$21) -> 2139.986228 | AC28: =INDEX(INDIRECT(Controls!$F$41),Active!$A28,Active!AC$21) -> 2143.453954 | AD28: =INDEX(INDIRECT(Controls!$F$41),Active!$A28,Active!AD$21) -> 2148.930925 | AE28: =INDEX(INDIRECT(Controls!$F$41),Active!$A28,Active!AE$21) -> 2157.472432 | AF28: =INDEX(INDIRECT(Controls!$F$41),Active!$A28,Active!AF$21) -> 2177.10832 | AG28: =INDEX(INDIRECT(Controls!$F$41),Active!$A28,Active!AG$21) -> 2196.018101
A29: 7 | B29: =INDEX(INDIRECT(Controls!$F$41),Active!$A29,Active!B$21) -> Two Degrees Winter Peak | C29: =INDEX(INDIRECT(Controls!$F$41),Active!$A29,Active!C$21) -> A | D29: =INDEX(INDIRECT(Controls!$F$41),Active!$A29,Active!D$21) -> A9 | E29: =INDEX(INDIRECT(Controls!$F$41),Active!$A29,Active!E$21) -> 0 | F29: =INDEX(INDIRECT(Controls!$F$41),Active!$A29,Active!F$21) -> 0 | G29: =INDEX(INDIRECT(Controls!$F$41),Active!$A29,Active!G$21) -> 0 | H29: =INDEX(INDIRECT(Controls!$F$41),Active!$A29,Active!H$21) -> 0 | I29: =INDEX(INDIRECT(Controls!$F$41),Active!$A29,Active!I$21) -> 420.0666839 | J29: =INDEX(INDIRECT(Controls!$F$41),Active!$A29,Active!J$21) -> 429.0026659 | K29: =INDEX(INDIRECT(Controls!$F$41),Active!$A29,Active!K$21) -> 426.1069719 | L29: =INDEX(INDIRECT(Controls!$F$41),Active!$A29,Active!L$21) -> 423.5488165 | M29: =INDEX(INDIRECT(Controls!$F$41),Active!$A29,Active!M$21) -> 420.6004269 | N29: =INDEX(INDIRECT(Controls!$F$41),Active!$A29,Active!N$21) -> 418.3885159 | O29: =INDEX(INDIRECT(Controls!$F$41),Active!$A29,Active!O$21) -> 418.0024397 | P29: =INDEX(INDIRECT(Controls!$F$41),Active!$A29,Active!P$21) -> 415.8025658 | Q29: =INDEX(INDIRECT(Controls!$F$41),Active!$A29,Active!Q$21) -> 414.7987993 | R29: =INDEX(INDIRECT(Controls!$F$41),Active!$A29,Active!R$21) -> 414.841409 | S29: =INDEX(INDIRECT(Controls!$F$41),Active!$A29,Active!S$21) -> 416.1903438 | T29: =INDEX(INDIRECT(Controls!$F$41),Active!$A29,Active!T$21) -> 418.4077803 | U29: =INDEX(INDIRECT(Controls!$F$41),Active!$A29,Active!U$21) -> 420.2841975 | V29: =INDEX(INDIRECT(Controls!$F$41),Active!$A29,Active!V$21) -> 421.8141102 | W29: =INDEX(INDIRECT(Controls!$F$41),Active!$A29,Active!W$21) -> 424.1104551 | X29: =INDEX(INDIRECT(Controls!$F$41),Active!$A29,Active!X$21) -> 423.3785554 | Y29: =INDEX(INDIRECT(Controls!$F$41),Active!$A29,Active!Y$21) -> 423.8258447 | Z29: =INDEX(INDIRECT(Controls!$F$41),Active!$A29,Active!Z$21) -> 423.933203 | AA29: =INDEX(INDIRECT(Controls!$F$41),Active!$A29,Active!AA$21) -> 424.0099922 | AB29: =INDEX(INDIRECT(Controls!$F$41),Active!$A29,Active!AB$21) -> 423.5354328 | AC29: =INDEX(INDIRECT(Controls!$F$41),Active!$A29,Active!AC$21) -> 423.9425321 | AD29: =INDEX(INDIRECT(Controls!$F$41),Active!$A29,Active!AD$21) -> 424.6559601 | AE29: =INDEX(INDIRECT(Controls!$F$41),Active!$A29,Active!AE$21) -> 425.8669835 | AF29: =INDEX(INDIRECT(Controls!$F$41),Active!$A29,Active!AF$21) -> 429.2235428 | AG29: =INDEX(INDIRECT(Controls!$F$41),Active!$A29,Active!AG$21) -> 432.2633798
A30: 8 | B30: =INDEX(INDIRECT(Controls!$F$41),Active!$A30,Active!B$21) -> Two Degrees Winter Peak | C30: =INDEX(INDIRECT(Controls!$F$41),Active!$A30,Active!C$21) -> B | D30: =INDEX(INDIRECT(Controls!$F$41),Active!$A30,Active!D$21) -> B1 | E30: =INDEX(INDIRECT(Controls!$F$41),Active!$A30,Active!E$21) -> 0 | F30: =INDEX(INDIRECT(Controls!$F$41),Active!$A30,Active!F$21) -> 0 | G30: =INDEX(INDIRECT(Controls!$F$41),Active!$A30,Active!G$21) -> 0 | H30: =INDEX(INDIRECT(Controls!$F$41),Active!$A30,Active!H$21) -> 0 | I30: =INDEX(INDIRECT(Controls!$F$41),Active!$A30,Active!I$21) -> 1565.494387 | J30: =INDEX(INDIRECT(Controls!$F$41),Active!$A30,Active!J$21) -> 1602.273081 | K30: =INDEX(INDIRECT(Controls!$F$41),Active!$A30,Active!K$21) -> 1596.395519 | L30: =INDEX(INDIRECT(Controls!$F$41),Active!$A30,Active!L$21) -> 1592.143147 | M30: =INDEX(INDIRECT(Controls!$F$41),Active!$A30,Active!M$21) -> 1586.469097 | N30: =INDEX(INDIRECT(Controls!$F$41),Active!$A30,Active!N$21) -> 1581.782042 | O30: =INDEX(INDIRECT(Controls!$F$41),Active!$A30,Active!O$21) -> 1583.672617 | P30: =INDEX(INDIRECT(Controls!$F$41),Active!$A30,Active!P$21) -> 1577.103148 | Q30: =INDEX(INDIRECT(Controls!$F$41),Active!$A30,Active!Q$21) -> 1574.208008 | R30: =INDEX(INDIRECT(Controls!$F$41),Active!$A30,Active!R$21) -> 1576.490742 | S30: =INDEX(INDIRECT(Controls!$F$41),Active!$A30,Active!S$21) -> 1584.531443 | T30: =INDEX(INDIRECT(Controls!$F$41),Active!$A30,Active!T$21) -> 1596.347447 | U30: =INDEX(INDIRECT(Controls!$F$41),Active!$A30,Active!U$21) -> 1607.208671 | V30: =INDEX(INDIRECT(Controls!$F$41),Active!$A30,Active!V$21) -> 1616.97561 | W30: =INDEX(INDIRECT(Controls!$F$41),Active!$A30,Active!W$21) -> 1629.645261 | X30: =INDEX(INDIRECT(Controls!$F$41),Active!$A30,Active!X$21) -> 1630.342191 | Y30: =INDEX(INDIRECT(Controls!$F$41),Active!$A30,Active!Y$21) -> 1634.711117 | Z30: =INDEX(INDIRECT(Controls!$F$41),Active!$A30,Active!Z$21) -> 1637.102715 | AA30: =INDEX(INDIRECT(Controls!$F$41),Active!$A30,Active!AA$21) -> 1638.691904 | AB30: =INDEX(INDIRECT(Controls!$F$41),Active!$A30,Active!AB$21) -> 1637.573439 | AC30: =INDEX(INDIRECT(Controls!$F$41),Active!$A30,Active!AC$21) -> 1639.990382 | AD30: =INDEX(INDIRECT(Controls!$F$41),Active!$A30,Active!AD$21) -> 1643.867444 | AE30: =INDEX(INDIRECT(Controls!$F$41),Active!$A30,Active!AE$21) -> 1649.997251 | AF30: =INDEX(INDIRECT(Controls!$F$41),Active!$A30,Active!AF$21) -> 1664.574213 | AG30: =INDEX(INDIRECT(Controls!$F$41),Active!$A30,Active!AG$21) -> 1678.4489
A31: 9 | B31: =INDEX(INDIRECT(Controls!$F$41),Active!$A31,Active!B$21) -> Two Degrees Winter Peak | C31: =INDEX(INDIRECT(Controls!$F$41),Active!$A31,Active!C$21) -> B | D31: =INDEX(INDIRECT(Controls!$F$41),Active!$A31,Active!D$21) -> B2 | E31: =INDEX(INDIRECT(Controls!$F$41),Active!$A31,Active!E$21) -> 0 | F31: =INDEX(INDIRECT(Controls!$F$41),Active!$A31,Active!F$21) -> 0 | G31: =INDEX(INDIRECT(Controls!$F$41),Active!$A31,Active!G$21) -> 0 | H31: =INDEX(INDIRECT(Controls!$F$41),Active!$A31,Active!H$21) -> 0 | I31: =INDEX(INDIRECT(Controls!$F$41),Active!$A31,Active!I$21) -> 1370.165873 | J31: =INDEX(INDIRECT(Controls!$F$41),Active!$A31,Active!J$21) -> 1404.051275 | K31: =INDEX(INDIRECT(Controls!$F$41),Active!$A31,Active!K$21) -> 1401.303979 | L31: =INDEX(INDIRECT(Controls!$F$41),Active!$A31,Active!L$21) -> 1400.158234 | M31: =INDEX(INDIRECT(Controls!$F$41),Active!$A31,Active!M$21) -> 1397.784114 | N31: =INDEX(INDIRECT(Controls!$F$41),Active!$A31,Active!N$21) -> 1395.416492 | O31: =INDEX(INDIRECT(Controls!$F$41),Active!$A31,Active!O$21) -> 1398.695152 | P31: =INDEX(INDIRECT(Controls!$F$41),Active!$A31,Active!P$21) -> 1393.739924 | Q31: =INDEX(INDIRECT(Controls!$F$41),Active!$A31,Active!Q$21) -> 1391.618506 | R31: =INDEX(INDIRECT(Controls!$F$41),Active!$A31,Active!R$21) -> 1394.652412 | S31: =INDEX(INDIRECT(Controls!$F$41),Active!$A31,Active!S$21) -> 1403.159768 | T31: =INDEX(INDIRECT(Controls!$F$41),Active!$A31,Active!T$21) -> 1415.234086 | U31: =INDEX(INDIRECT(Controls!$F$41),Active!$A31,Active!U$21) -> 1426.626948 | V31: =INDEX(INDIRECT(Controls!$F$41),Active!$A31,Active!V$21) -> 1437.15818 | W31: =INDEX(INDIRECT(Controls!$F$41),Active!$A31,Active!W$21) -> 1450.252577 | X31: =INDEX(INDIRECT(Controls!$F$41),Active!$A31,Active!X$21) -> 1452.532943 | Y31: =INDEX(INDIRECT(Controls!$F$41),Active!$A31,Active!Y$21) -> 1457.674695 | Z31: =INDEX(INDIRECT(Controls!$F$41),Active!$A31,Active!Z$21) -> 1460.739281 | AA31: =INDEX(INDIRECT(Controls!$F$41),Active!$A31,Active!AA$21) -> 1462.765754 | AB31: =INDEX(INDIRECT(Controls!$F$41),Active!$A31,Active!AB$21) -> 1462.103944 | AC31: =INDEX(INDIRECT(Controls!$F$41),Active!$A31,Active!AC$21) -> 1464.658205 | AD31: =INDEX(INDIRECT(Controls!$F$41),Active!$A31,Active!AD$21) -> 1468.645758 | AE31: =INDEX(INDIRECT(Controls!$F$41),Active!$A31,Active!AE$21) -> 1474.799267 | AF31: =INDEX(INDIRECT(Controls!$F$41),Active!$A31,Active!AF$21) -> 1488.566062 | AG31: =INDEX(INDIRECT(Controls!$F$41),Active!$A31,Active!AG$21) -> 1501.951397
A32: 10 | B32: =INDEX(INDIRECT(Controls!$F$41),Active!$A32,Active!B$21) -> Two Degrees Winter Peak | C32: =INDEX(INDIRECT(Controls!$F$41),Active!$A32,Active!C$21) -> B | D32: =INDEX(INDIRECT(Controls!$F$41),Active!$A32,Active!D$21) -> B3 | E32: =INDEX(INDIRECT(Controls!$F$41),Active!$A32,Active!E$21) -> 0 | F32: =INDEX(INDIRECT(Controls!$F$41),Active!$A32,Active!F$21) -> 0 | G32: =INDEX(INDIRECT(Controls!$F$41),Active!$A32,Active!G$21) -> 0 | H32: =INDEX(INDIRECT(Controls!$F$41),Active!$A32,Active!H$21) -> 0 | I32: =INDEX(INDIRECT(Controls!$F$41),Active!$A32,Active!I$21) -> 1213.521235 | J32: =INDEX(INDIRECT(Controls!$F$41),Active!$A32,Active!J$21) -> 1240.554922 | K32: =INDEX(INDIRECT(Controls!$F$41),Active!$A32,Active!K$21) -> 1233.912395 | L32: =INDEX(INDIRECT(Controls!$F$41),Active!$A32,Active!L$21) -> 1228.37373 | M32: =INDEX(INDIRECT(Controls!$F$41),Active!$A32,Active!M$21) -> 1221.719169 | N32: =INDEX(INDIRECT(Controls!$F$41),Active!$A32,Active!N$21) -> 1216.575986 | O32: =INDEX(INDIRECT(Controls!$F$41),Active!$A32,Active!O$21) -> 1216.627888 | P32: =INDEX(INDIRECT(Controls!$F$41),Active!$A32,Active!P$21) -> 1210.84381 | Q32: =INDEX(INDIRECT(Controls!$F$41),Active!$A32,Active!Q$21) -> 1208.24053 | R32: =INDEX(INDIRECT(Controls!$F$41),Active!$A32,Active!R$21) -> 1209.10824 | S32: =INDEX(INDIRECT(Controls!$F$41),Active!$A32,Active!S$21) -> 1214.061637 | T32: =INDEX(INDIRECT(Controls!$F$41),Active!$A32,Active!T$21) -> 1221.71285 | U32: =INDEX(INDIRECT(Controls!$F$41),Active!$A32,Active!U$21) -> 1228.489727 | V32: =INDEX(INDIRECT(Controls!$F$41),Active!$A32,Active!V$21) -> 1234.334682 | W32: =INDEX(INDIRECT(Controls!$F$41),Active!$A32,Active!W$21) -> 1242.410028 | X32: =INDEX(INDIRECT(Controls!$F$41),Active!$A32,Active!X$21) -> 1241.49625 | Y32: =INDEX(INDIRECT(Controls!$F$41),Active!$A32,Active!Y$21) -> 1243.735682 | Z32: =INDEX(INDIRECT(Controls!$F$41),Active!$A32,Active!Z$21) -> 1244.744012 | AA32: =INDEX(INDIRECT(Controls!$F$41),Active!$A32,Active!AA$21) -> 1245.422661 | AB32: =INDEX(INDIRECT(Controls!$F$41),Active!$A32,Active!AB$21) -> 1244.279634 | AC32: =INDEX(INDIRECT(Controls!$F$41),Active!$A32,Active!AC$21) -> 1245.77114 | AD32: =INDEX(INDIRECT(Controls!$F$41),Active!$A32,Active!AD$21) -> 1248.259253 | AE32: =INDEX(INDIRECT(Controls!$F$41),Active!$A32,Active!AE$21) -> 1252.324502 | AF32: =INDEX(INDIRECT(Controls!$F$41),Active!$A32,Active!AF$21) -> 1262.746132 | AG32: =INDEX(INDIRECT(Controls!$F$41),Active!$A32,Active!AG$21) -> 1272.420397
A33: 11 | B33: =INDEX(INDIRECT(Controls!$F$41),Active!$A33,Active!B$21) -> Two Degrees Winter Peak | C33: =INDEX(INDIRECT(Controls!$F$41),Active!$A33,Active!C$21) -> B | D33: =INDEX(INDIRECT(Controls!$F$41),Active!$A33,Active!D$21) -> B4 | E33: =INDEX(INDIRECT(Controls!$F$41),Active!$A33,Active!E$21) -> 0 | F33: =INDEX(INDIRECT(Controls!$F$41),Active!$A33,Active!F$21) -> 0 | G33: =INDEX(INDIRECT(Controls!$F$41),Active!$A33,Active!G$21) -> 0 | H33: =INDEX(INDIRECT(Controls!$F$41),Active!$A33,Active!H$21) -> 0 | I33: =INDEX(INDIRECT(Controls!$F$41),Active!$A33,Active!I$21) -> 383.4188958 | J33: =INDEX(INDIRECT(Controls!$F$41),Active!$A33,Active!J$21) -> 394.9406207 | K33: =INDEX(INDIRECT(Controls!$F$41),Active!$A33,Active!K$21) -> 397.0547603 | L33: =INDEX(INDIRECT(Controls!$F$41),Active!$A33,Active!L$21) -> 399.8325282 | M33: =INDEX(INDIRECT(Controls!$F$41),Active!$A33,Active!M$21) -> 402.2857028 | N33: =INDEX(INDIRECT(Controls!$F$41),Active!$A33,Active!N$21) -> 403.7095064 | O33: =INDEX(INDIRECT(Controls!$F$41),Active!$A33,Active!O$21) -> 406.5802459 | P33: =INDEX(INDIRECT(Controls!$F$41),Active!$A33,Active!P$21) -> 406.1492737 | Q33: =INDEX(INDIRECT(Controls!$F$41),Active!$A33,Active!Q$21) -> 406.051761 | R33: =INDEX(INDIRECT(Controls!$F$41),Active!$A33,Active!R$21) -> 408.1468034 | S33: =INDEX(INDIRECT(Controls!$F$41),Active!$A33,Active!S$21) -> 412.2953975 | T33: =INDEX(INDIRECT(Controls!$F$41),Active!$A33,Active!T$21) -> 417.7581247 | U33: =INDEX(INDIRECT(Controls!$F$41),Active!$A33,Active!U$21) -> 423.2156171 | V33: =INDEX(INDIRECT(Controls!$F$41),Active!$A33,Active!V$21) -> 428.547606 | W33: =INDEX(INDIRECT(Controls!$F$41),Active!$A33,Active!W$21) -> 434.6240713 | X33: =INDEX(INDIRECT(Controls!$F$41),Active!$A33,Active!X$21) -> 437.2712837 | Y33: =INDEX(INDIRECT(Controls!$F$41),Active!$A33,Active!Y$21) -> 440.2952935 | Z33: =INDEX(INDIRECT(Controls!$F$41),Active!$A33,Active!Z$21) -> 442.3212227 | AA33: =INDEX(INDIRECT(Controls!$F$41),Active!$A33,Active!AA$21) -> 443.6527387 | AB33: =INDEX(INDIRECT(Controls!$F$41),Active!$A33,Active!AB$21) -> 443.8489432 | AC33: =INDEX(INDIRECT(Controls!$F$41),Active!$A33,Active!AC$21) -> 445.0915846 | AD33: =INDEX(INDIRECT(Controls!$F$41),Active!$A33,Active!AD$21) -> 446.9221644 | AE33: =INDEX(INDIRECT(Controls!$F$41),Active!$A33,Active!AE$21) -> 449.592534 | AF33: =INDEX(INDIRECT(Controls!$F$41),Active!$A33,Active!AF$21) -> 454.6580798 | AG33: =INDEX(INDIRECT(Controls!$F$41),Active!$A33,Active!AG$21) -> 459.8973538
A34: 12 | B34: =INDEX(INDIRECT(Controls!$F$41),Active!$A34,Active!B$21) -> Two Degrees Winter Peak | C34: =INDEX(INDIRECT(Controls!$F$41),Active!$A34,Active!C$21) -> C | D34: =INDEX(INDIRECT(Controls!$F$41),Active!$A34,Active!D$21) -> C1 | E34: =INDEX(INDIRECT(Controls!$F$41),Active!$A34,Active!E$21) -> 0 | F34: =INDEX(INDIRECT(Controls!$F$41),Active!$A34,Active!F$21) -> 0 | G34: =INDEX(INDIRECT(Controls!$F$41),Active!$A34,Active!G$21) -> 0 | H34: =INDEX(INDIRECT(Controls!$F$41),Active!$A34,Active!H$21) -> 0 | I34: =INDEX(INDIRECT(Controls!$F$41),Active!$A34,Active!I$21) -> 259.3731204 | J34: =INDEX(INDIRECT(Controls!$F$41),Active!$A34,Active!J$21) -> 264.7156886 | K34: =INDEX(INDIRECT(Controls!$F$41),Active!$A34,Active!K$21) -> 262.6803208 | L34: =INDEX(INDIRECT(Controls!$F$41),Active!$A34,Active!L$21) -> 260.8348786 | M34: =INDEX(INDIRECT(Controls!$F$41),Active!$A34,Active!M$21) -> 258.7468405 | N34: =INDEX(INDIRECT(Controls!$F$41),Active!$A34,Active!N$21) -> 257.2020387 | O34: =INDEX(INDIRECT(Controls!$F$41),Active!$A34,Active!O$21) -> 256.7960323 | P34: =INDEX(INDIRECT(Controls!$F$41),Active!$A34,Active!P$21) -> 255.355693 | Q34: =INDEX(INDIRECT(Controls!$F$41),Active!$A34,Active!Q$21) -> 254.6933343 | R34: =INDEX(INDIRECT(Controls!$F$41),Active!$A34,Active!R$21) -> 254.6127127 | S34: =INDEX(INDIRECT(Controls!$F$41),Active!$A34,Active!S$21) -> 255.2939038 | T34: =INDEX(INDIRECT(Controls!$F$41),Active!$A34,Active!T$21) -> 256.4842415 | U34: =INDEX(INDIRECT(Controls!$F$41),Active!$A34,Active!U$21) -> 257.448099 | V34: =INDEX(INDIRECT(Controls!$F$41),Active!$A34,Active!V$21) -> 258.1880838 | W34: =INDEX(INDIRECT(Controls!$F$41),Active!$A34,Active!W$21) -> 259.3989719 | X34: =INDEX(INDIRECT(Controls!$F$41),Active!$A34,Active!X$21) -> 258.7746433 | Y34: =INDEX(INDIRECT(Controls!$F$41),Active!$A34,Active!Y$21) -> 258.9147919 | Z34: =INDEX(INDIRECT(Controls!$F$41),Active!$A34,Active!Z$21) -> 258.8808176 | AA34: =INDEX(INDIRECT(Controls!$F$41),Active!$A34,Active!AA$21) -> 258.8626304 | AB34: =INDEX(INDIRECT(Controls!$F$41),Active!$A34,Active!AB$21) -> 258.5368801 | AC34: =INDEX(INDIRECT(Controls!$F$41),Active!$A34,Active!AC$21) -> 258.7429465 | AD34: =INDEX(INDIRECT(Controls!$F$41),Active!$A34,Active!AD$21) -> 259.1221225 | AE34: =INDEX(INDIRECT(Controls!$F$41),Active!$A34,Active!AE$21) -> 259.7884887 | AF34: =INDEX(INDIRECT(Controls!$F$41),Active!$A34,Active!AF$21) -> 261.7569139 | AG34: =INDEX(INDIRECT(Controls!$F$41),Active!$A34,Active!AG$21) -> 263.5057075
A35: 13 | B35: =INDEX(INDIRECT(Controls!$F$41),Active!$A35,Active!B$21) -> Two Degrees Winter Peak | C35: =INDEX(INDIRECT(Controls!$F$41),Active!$A35,Active!C$21) -> C | D35: =INDEX(INDIRECT(Controls!$F$41),Active!$A35,Active!D$21) -> C2 | E35: =INDEX(INDIRECT(Controls!$F$41),Active!$A35,Active!E$21) -> 0 | F35: =INDEX(INDIRECT(Controls!$F$41),Active!$A35,Active!F$21) -> 0 | G35: =INDEX(INDIRECT(Controls!$F$41),Active!$A35,Active!G$21) -> 0 | H35: =INDEX(INDIRECT(Controls!$F$41),Active!$A35,Active!H$21) -> 0 | I35: =INDEX(INDIRECT(Controls!$F$41),Active!$A35,Active!I$21) -> 755.8360552 | J35: =INDEX(INDIRECT(Controls!$F$41),Active!$A35,Active!J$21) -> 773.3535112 | K35: =INDEX(INDIRECT(Controls!$F$41),Active!$A35,Active!K$21) -> 770.1769887 | L35: =INDEX(INDIRECT(Controls!$F$41),Active!$A35,Active!L$21) -> 767.7598045 | M35: =INDEX(INDIRECT(Controls!$F$41),Active!$A35,Active!M$21) -> 764.6539703 | N35: =INDEX(INDIRECT(Controls!$F$41),Active!$A35,Active!N$21) -> 762.1458439 | O35: =INDEX(INDIRECT(Controls!$F$41),Active!$A35,Active!O$21) -> 762.8291006 | P35: =INDEX(INDIRECT(Controls!$F$41),Active!$A35,Active!P$21) -> 759.5449942 | Q35: =INDEX(INDIRECT(Controls!$F$41),Active!$A35,Active!Q$21) -> 758.0888909 | R35: =INDEX(INDIRECT(Controls!$F$41),Active!$A35,Active!R$21) -> 759.0445913 | S35: =INDEX(INDIRECT(Controls!$F$41),Active!$A35,Active!S$21) -> 762.7189659 | T35: =INDEX(INDIRECT(Controls!$F$41),Active!$A35,Active!T$21) -> 768.1789626 | U35: =INDEX(INDIRECT(Controls!$F$41),Active!$A35,Active!U$21) -> 773.1561884 | V35: =INDEX(INDIRECT(Controls!$F$41),Active!$A35,Active!V$21) -> 777.5914976 | W35: =INDEX(INDIRECT(Controls!$F$41),Active!$A35,Active!W$21) -> 783.4250661 | X35: =INDEX(INDIRECT(Controls!$F$41),Active!$A35,Active!X$21) -> 783.5254592 | Y35: =INDEX(INDIRECT(Controls!$F$41),Active!$A35,Active!Y$21) -> 785.448543 | Z35: =INDEX(INDIRECT(Controls!$F$41),Active!$A35,Active!Z$21) -> 786.4659344 | AA35: =INDEX(INDIRECT(Controls!$F$41),Active!$A35,Active!AA$21) -> 787.1433797 | AB35: =INDEX(INDIRECT(Controls!$F$41),Active!$A35,Active!AB$21) -> 786.5585543 | AC35: =INDEX(INDIRECT(Controls!$F$41),Active!$A35,Active!AC$21) -> 787.6634471 | AD35: =INDEX(INDIRECT(Controls!$F$41),Active!$A35,Active!AD$21) -> 789.4513415 | AE35: =INDEX(INDIRECT(Controls!$F$41),Active!$A35,Active!AE$21) -> 792.2994232 | AF35: =INDEX(INDIRECT(Controls!$F$41),Active!$A35,Active!AF$21) -> 799.1947667 | AG35: =INDEX(INDIRECT(Controls!$F$41),Active!$A35,Active!AG$21) -> 805.7180853
A36: 14 | B36: =INDEX(INDIRECT(Controls!$F$41),Active!$A36,Active!B$21) -> Two Degrees Winter Peak | C36: =INDEX(INDIRECT(Controls!$F$41),Active!$A36,Active!C$21) -> C | D36: =INDEX(INDIRECT(Controls!$F$41),Active!$A36,Active!D$21) -> C3 | E36: =INDEX(INDIRECT(Controls!$F$41),Active!$A36,Active!E$21) -> 0 | F36: =INDEX(INDIRECT(Controls!$F$41),Active!$A36,Active!F$21) -> 0 | G36: =INDEX(INDIRECT(Controls!$F$41),Active!$A36,Active!G$21) -> 0 | H36: =INDEX(INDIRECT(Controls!$F$41),Active!$A36,Active!H$21) -> 0 | I36: =INDEX(INDIRECT(Controls!$F$41),Active!$A36,Active!I$21) -> 228.2376625 | J36: =INDEX(INDIRECT(Controls!$F$41),Active!$A36,Active!J$21) -> 233.8300592 | K36: =INDEX(INDIRECT(Controls!$F$41),Active!$A36,Active!K$21) -> 233.2987471 | L36: =INDEX(INDIRECT(Controls!$F$41),Active!$A36,Active!L$21) -> 233.0287095 | M36: =INDEX(INDIRECT(Controls!$F$41),Active!$A36,Active!M$21) -> 232.5535642 | N36: =INDEX(INDIRECT(Controls!$F$41),Active!$A36,Active!N$21) -> 232.1058545 | O36: =INDEX(INDIRECT(Controls!$F$41),Active!$A36,Active!O$21) -> 232.6020847 | P36: =INDEX(INDIRECT(Controls!$F$41),Active!$A36,Active!P$21) -> 231.7522359 | Q36: =INDEX(INDIRECT(Controls!$F$41),Active!$A36,Active!Q$21) -> 231.3861781 | R36: =INDEX(INDIRECT(Controls!$F$41),Active!$A36,Active!R$21) -> 231.8597114 | S36: =INDEX(INDIRECT(Controls!$F$41),Active!$A36,Active!S$21) -> 233.2316564 | T36: =INDEX(INDIRECT(Controls!$F$41),Active!$A36,Active!T$21) -> 235.1896988 | U36: =INDEX(INDIRECT(Controls!$F$41),Active!$A36,Active!U$21) -> 237.0294868 | V36: =INDEX(INDIRECT(Controls!$F$41),Active!$A36,Active!V$21) -> 238.7227929 | W36: =INDEX(INDIRECT(Controls!$F$41),Active!$A36,Active!W$21) -> 240.8423669 | X36: =INDEX(INDIRECT(Controls!$F$41),Active!$A36,Active!X$21) -> 241.1708778 | Y36: =INDEX(INDIRECT(Controls!$F$41),Active!$A36,Active!Y$21) -> 241.9868626 | Z36: =INDEX(INDIRECT(Controls!$F$41),Active!$A36,Active!Z$21) -> 242.4674923 | AA36: =INDEX(INDIRECT(Controls!$F$41),Active!$A36,Active!AA$21) -> 242.7855192 | AB36: =INDEX(INDIRECT(Controls!$F$41),Active!$A36,Active!AB$21) -> 242.66553 | AC36: =INDEX(INDIRECT(Controls!$F$41),Active!$A36,Active!AC$21) -> 243.0775199 | AD36: =INDEX(INDIRECT(Controls!$F$41),Active!$A36,Active!AD$21) -> 243.7234874 | AE36: =INDEX(INDIRECT(Controls!$F$41),Active!$A36,Active!AE$21) -> 244.7242805 | AF36: =INDEX(INDIRECT(Controls!$F$41),Active!$A36,Active!AF$21) -> 246.9865044 | AG36: =INDEX(INDIRECT(Controls!$F$41),Active!$A36,Active!AG$21) -> 249.1780179
A37: 15 | B37: =INDEX(INDIRECT(Controls!$F$41),Active!$A37,Active!B$21) -> Two Degrees Winter Peak | C37: =INDEX(INDIRECT(Controls!$F$41),Active!$A37,Active!C$21) -> C | D37: =INDEX(INDIRECT(Controls!$F$41),Active!$A37,Active!D$21) -> C4 | E37: =INDEX(INDIRECT(Controls!$F$41),Active!$A37,Active!E$21) -> 0 | F37: =INDEX(INDIRECT(Controls!$F$41),Active!$A37,Active!F$21) -> 0 | G37: =INDEX(INDIRECT(Controls!$F$41),Active!$A37,Active!G$21) -> 0 | H37: =INDEX(INDIRECT(Controls!$F$41),Active!$A37,Active!H$21) -> 0 | I37: =INDEX(INDIRECT(Controls!$F$41),Active!$A37,Active!I$21) -> 146.6856685 | J37: =INDEX(INDIRECT(Controls!$F$41),Active!$A37,Active!J$21) -> 149.7841603 | K37: =INDEX(INDIRECT(Controls!$F$41),Active!$A37,Active!K$21) -> 148.7420112 | L37: =INDEX(INDIRECT(Controls!$F$41),Active!$A37,Active!L$21) -> 147.8154135 | M37: =INDEX(INDIRECT(Controls!$F$41),Active!$A37,Active!M$21) -> 146.7523418 | N37: =INDEX(INDIRECT(Controls!$F$41),Active!$A37,Active!N$21) -> 145.9575282 | O37: =INDEX(INDIRECT(Controls!$F$41),Active!$A37,Active!O$21) -> 145.8017194 | P37: =INDEX(INDIRECT(Controls!$F$41),Active!$A37,Active!P$21) -> 145.0232609 | Q37: =INDEX(INDIRECT(Controls!$F$41),Active!$A37,Active!Q$21) -> 144.6674174 | R37: =INDEX(INDIRECT(Controls!$F$41),Active!$A37,Active!R$21) -> 144.6689047 | S37: =INDEX(INDIRECT(Controls!$F$41),Active!$A37,Active!S$21) -> 145.1209467 | T37: =INDEX(INDIRECT(Controls!$F$41),Active!$A37,Active!T$21) -> 145.8728702 | U37: =INDEX(INDIRECT(Controls!$F$41),Active!$A37,Active!U$21) -> 146.5037178 | V37: =INDEX(INDIRECT(Controls!$F$41),Active!$A37,Active!V$21) -> 147.012325 | W37: =INDEX(INDIRECT(Controls!$F$41),Active!$A37,Active!W$21) -> 147.7882748 | X37: =INDEX(INDIRECT(Controls!$F$41),Active!$A37,Active!X$21) -> 147.5111057 | Y37: =INDEX(INDIRECT(Controls!$F$41),Active!$A37,Active!Y$21) -> 147.6502609 | Z37: =INDEX(INDIRECT(Controls!$F$41),Active!$A37,Active!Z$21) -> 147.6751932 | AA37: =INDEX(INDIRECT(Controls!$F$41),Active!$A37,Active!AA$21) -> 147.693792 | AB37: =INDEX(INDIRECT(Controls!$F$41),Active!$A37,Active!AB$21) -> 147.5239786 | AC37: =INDEX(INDIRECT(Controls!$F$41),Active!$A37,Active!AC$21) -> 147.6604628 | AD37: =INDEX(INDIRECT(Controls!$F$41),Active!$A37,Active!AD$21) -> 147.9019076 | AE37: =INDEX(INDIRECT(Controls!$F$41),Active!$A37,Active!AE$21) -> 148.3145994 | AF37: =INDEX(INDIRECT(Controls!$F$41),Active!$A37,Active!AF$21) -> 149.473659 | AG37: =INDEX(INDIRECT(Controls!$F$41),Active!$A37,Active!AG$21) -> 150.519106
A38: 16 | B38: =INDEX(INDIRECT(Controls!$F$41),Active!$A38,Active!B$21) -> Two Degrees Winter Peak | C38: =INDEX(INDIRECT(Controls!$F$41),Active!$A38,Active!C$21) -> C | D38: =INDEX(INDIRECT(Controls!$F$41),Active!$A38,Active!D$21) -> C5 | E38: =INDEX(INDIRECT(Controls!$F$41),Active!$A38,Active!E$21) -> 0 | F38: =INDEX(INDIRECT(Controls!$F$41),Active!$A38,Active!F$21) -> 0 | G38: =INDEX(INDIRECT(Controls!$F$41),Active!$A38,Active!G$21) -> 0 | H38: =INDEX(INDIRECT(Controls!$F$41),Active!$A38,Active!H$21) -> 0 | I38: =INDEX(INDIRECT(Controls!$F$41),Active!$A38,Active!I$21) -> 447.7455621 | J38: =INDEX(INDIRECT(Controls!$F$41),Active!$A38,Active!J$21) -> 459.0520921 | K38: =INDEX(INDIRECT(Controls!$F$41),Active!$A38,Active!K$21) -> 458.4842429 | L38: =INDEX(INDIRECT(Controls!$F$41),Active!$A38,Active!L$21) -> 458.4644085 | M38: =INDEX(INDIRECT(Controls!$F$41),Active!$A38,Active!M$21) -> 458.0453548 | N38: =INDEX(INDIRECT(Controls!$F$41),Active!$A38,Active!N$21) -> 457.5104165 | O38: =INDEX(INDIRECT(Controls!$F$41),Active!$A38,Active!O$21) -> 458.8053515 | P38: =INDEX(INDIRECT(Controls!$F$41),Active!$A38,Active!P$21) -> 457.2954373 | Q38: =INDEX(INDIRECT(Controls!$F$41),Active!$A38,Active!Q$21) -> 456.6589728 | R38: =INDEX(INDIRECT(Controls!$F$41),Active!$A38,Active!R$21) -> 457.7929948 | S38: =INDEX(INDIRECT(Controls!$F$41),Active!$A38,Active!S$21) -> 460.775367 | T38: =INDEX(INDIRECT(Controls!$F$41),Active!$A38,Active!T$21) -> 464.9595179 | U38: =INDEX(INDIRECT(Controls!$F$41),Active!$A38,Active!U$21) -> 468.9422049 | V38: =INDEX(INDIRECT(Controls!$F$41),Active!$A38,Active!V$21) -> 472.6565572 | W38: =INDEX(INDIRECT(Controls!$F$41),Active!$A38,Active!W$21) -> 477.2116201 | X38: =INDEX(INDIRECT(Controls!$F$41),Active!$A38,Active!X$21) -> 478.1867196 | Y38: =INDEX(INDIRECT(Controls!$F$41),Active!$A38,Active!Y$21) -> 480.0483563 | Z38: =INDEX(INDIRECT(Controls!$F$41),Active!$A38,Active!Z$21) -> 481.1835125 | AA38: =INDEX(INDIRECT(Controls!$F$41),Active!$A38,Active!AA$21) -> 481.9332088 | AB38: =INDEX(INDIRECT(Controls!$F$41),Active!$A38,Active!AB$21) -> 481.7605883 | AC38: =INDEX(INDIRECT(Controls!$F$41),Active!$A38,Active!AC$21) -> 482.6556838 | AD38: =INDEX(INDIRECT(Controls!$F$41),Active!$A38,Active!AD$21) -> 484.0405367 | AE38: =INDEX(INDIRECT(Controls!$F$41),Active!$A38,Active!AE$21) -> 486.159927 | AF38: =INDEX(INDIRECT(Controls!$F$41),Active!$A38,Active!AF$21) -> 490.7974969 | AG38: =INDEX(INDIRECT(Controls!$F$41),Active!$A38,Active!AG$21) -> 495.3425091
A39: 17 | B39: =INDEX(INDIRECT(Controls!$F$41),Active!$A39,Active!B$21) -> Two Degrees Winter Peak | C39: =INDEX(INDIRECT(Controls!$F$41),Active!$A39,Active!C$21) -> C | D39: =INDEX(INDIRECT(Controls!$F$41),Active!$A39,Active!D$21) -> C6 | E39: =INDEX(INDIRECT(Controls!$F$41),Active!$A39,Active!E$21) -> 0 | F39: =INDEX(INDIRECT(Controls!$F$41),Active!$A39,Active!F$21) -> 0 | G39: =INDEX(INDIRECT(Controls!$F$41),Active!$A39,Active!G$21) -> 0 | H39: =INDEX(INDIRECT(Controls!$F$41),Active!$A39,Active!H$21) -> 0 | I39: =INDEX(INDIRECT(Controls!$F$41),Active!$A39,Active!I$21) -> 262.3632968 | J39: =INDEX(INDIRECT(Controls!$F$41),Active!$A39,Active!J$21) -> 268.8052247 | K39: =INDEX(INDIRECT(Controls!$F$41),Active!$A39,Active!K$21) -> 268.2133678 | L39: =INDEX(INDIRECT(Controls!$F$41),Active!$A39,Active!L$21) -> 267.9232629 | M39: =INDEX(INDIRECT(Controls!$F$41),Active!$A39,Active!M$21) -> 267.3975085 | N39: =INDEX(INDIRECT(Controls!$F$41),Active!$A39,Active!N$21) -> 266.8965329 | O39: =INDEX(INDIRECT(Controls!$F$41),Active!$A39,Active!O$21) -> 267.479761 | P39: =INDEX(INDIRECT(Controls!$F$41),Active!$A39,Active!P$21) -> 266.5091084 | Q39: =INDEX(INDIRECT(Controls!$F$41),Active!$A39,Active!Q$21) -> 266.0915702 | R39: =INDEX(INDIRECT(Controls!$F$41),Active!$A39,Active!R$21) -> 266.6440725 | S39: =INDEX(INDIRECT(Controls!$F$41),Active!$A39,Active!S$21) -> 268.2327358 | T39: =INDEX(INDIRECT(Controls!$F$41),Active!$A39,Active!T$21) -> 270.4971996 | U39: =INDEX(INDIRECT(Controls!$F$41),Active!$A39,Active!U$21) -> 272.6269435 | V39: =INDEX(INDIRECT(Controls!$F$41),Active!$A39,Active!V$21) -> 274.5890616 | W39: =INDEX(INDIRECT(Controls!$F$41),Active!$A39,Active!W$21) -> 277.0413607 | X39: =INDEX(INDIRECT(Controls!$F$41),Active!$A39,Active!X$21) -> 277.4321584 | Y39: =INDEX(INDIRECT(Controls!$F$41),Active!$A39,Active!Y$21) -> 278.3805375 | Z39: =INDEX(INDIRECT(Controls!$F$41),Active!$A39,Active!Z$21) -> 278.9406879 | AA39: =INDEX(INDIRECT(Controls!$F$41),Active!$A39,Active!AA$21) -> 279.311276 | AB39: =INDEX(INDIRECT(Controls!$F$41),Active!$A39,Active!AB$21) -> 279.1758461 | AC39: =INDEX(INDIRECT(Controls!$F$41),Active!$A39,Active!AC$21) -> 279.6528958 | AD39: =INDEX(INDIRECT(Controls!$F$41),Active!$A39,Active!AD$21) -> 280.4001317 | AE39: =INDEX(INDIRECT(Controls!$F$41),Active!$A39,Active!AE$21) -> 281.5567777 | AF39: =INDEX(INDIRECT(Controls!$F$41),Active!$A39,Active!AF$21) -> 284.1651961 | AG39: =INDEX(INDIRECT(Controls!$F$41),Active!$A39,Active!AG$21) -> 286.6941699
A40: 18 | B40: =INDEX(INDIRECT(Controls!$F$41),Active!$A40,Active!B$21) -> Two Degrees Winter Peak | C40: =INDEX(INDIRECT(Controls!$F$41),Active!$A40,Active!C$21) -> C | D40: =INDEX(INDIRECT(Controls!$F$41),Active!$A40,Active!D$21) -> C7 | E40: =INDEX(INDIRECT(Controls!$F$41),Active!$A40,Active!E$21) -> 0 | F40: =INDEX(INDIRECT(Controls!$F$41),Active!$A40,Active!F$21) -> 0 | G40: =INDEX(INDIRECT(Controls!$F$41),Active!$A40,Active!G$21) -> 0 | H40: =INDEX(INDIRECT(Controls!$F$41),Active!$A40,Active!H$21) -> 0 | I40: =INDEX(INDIRECT(Controls!$F$41),Active!$A40,Active!I$21) -> 229.5537689 | J40: =INDEX(INDIRECT(Controls!$F$41),Active!$A40,Active!J$21) -> 235.5944302 | K40: =INDEX(INDIRECT(Controls!$F$41),Active!$A40,Active!K$21) -> 235.6481303 | L40: =INDEX(INDIRECT(Controls!$F$41),Active!$A40,Active!L$21) -> 236.0085622 | M40: =INDEX(INDIRECT(Controls!$F$41),Active!$A40,Active!M$21) -> 236.1666095 | N40: =INDEX(INDIRECT(Controls!$F$41),Active!$A40,Active!N$21) -> 236.1419027 | O40: =INDEX(INDIRECT(Controls!$F$41),Active!$A40,Active!O$21) -> 237.0394315 | P40: =INDEX(INDIRECT(Controls!$F$41),Active!$A40,Active!P$21) -> 236.379625 | Q40: =INDEX(INDIRECT(Controls!$F$41),Active!$A40,Active!Q$21) -> 236.1126601 | R40: =INDEX(INDIRECT(Controls!$F$41),Active!$A40,Active!R$21) -> 236.8431011 | S40: =INDEX(INDIRECT(Controls!$F$41),Active!$A40,Active!S$21) -> 238.5835933 | T40: =INDEX(INDIRECT(Controls!$F$41),Active!$A40,Active!T$21) -> 240.9780172 | U40: =INDEX(INDIRECT(Controls!$F$41),Active!$A40,Active!U$21) -> 243.2913359 | V40: =INDEX(INDIRECT(Controls!$F$41),Active!$A40,Active!V$21) -> 245.4809109 | W40: =INDEX(INDIRECT(Controls!$F$41),Active!$A40,Active!W$21) -> 248.1047634 | X40: =INDEX(INDIRECT(Controls!$F$41),Active!$A40,Active!X$21) -> 248.8449942 | Y40: =INDEX(INDIRECT(Controls!$F$41),Active!$A40,Active!Y$21) -> 249.989037 | Z40: =INDEX(INDIRECT(Controls!$F$41),Active!$A40,Active!Z$21) -> 250.7107658 | AA40: =INDEX(INDIRECT(Controls!$F$41),Active!$A40,Active!AA$21) -> 251.1865615 | AB40: =INDEX(INDIRECT(Controls!$F$41),Active!$A40,Active!AB$21) -> 251.1436808 | AC40: =INDEX(INDIRECT(Controls!$F$41),Active!$A40,Active!AC$21) -> 251.6657248 | AD40: =INDEX(INDIRECT(Controls!$F$41),Active!$A40,Active!AD$21) -> 252.4612114 | AE40: =INDEX(INDIRECT(Controls!$F$41),Active!$A40,Active!AE$21) -> 253.6612375 | AF40: =INDEX(INDIRECT(Controls!$F$41),Active!$A40,Active!AF$21) -> 256.1839673 | AG40: =INDEX(INDIRECT(Controls!$F$41),Active!$A40,Active!AG$21) -> 258.6927917
A41: 19 | B41: =INDEX(INDIRECT(Controls!$F$41),Active!$A41,Active!B$21) -> Two Degrees Winter Peak | C41: =INDEX(INDIRECT(Controls!$F$41),Active!$A41,Active!C$21) -> D | D41: =INDEX(INDIRECT(Controls!$F$41),Active!$A41,Active!D$21) -> D4 | E41: =INDEX(INDIRECT(Controls!$F$41),Active!$A41,Active!E$21) -> 0 | F41: =INDEX(INDIRECT(Controls!$F$41),Active!$A41,Active!F$21) -> 0 | G41: =INDEX(INDIRECT(Controls!$F$41),Active!$A41,Active!G$21) -> 0 | H41: =INDEX(INDIRECT(Controls!$F$41),Active!$A41,Active!H$21) -> 0 | I41: =INDEX(INDIRECT(Controls!$F$41),Active!$A41,Active!I$21) -> 1124.342767 | J41: =INDEX(INDIRECT(Controls!$F$41),Active!$A41,Active!J$21) -> 1153.723582 | K41: =INDEX(INDIRECT(Controls!$F$41),Active!$A41,Active!K$21) -> 1153.695348 | L41: =INDEX(INDIRECT(Controls!$F$41),Active!$A41,Active!L$21) -> 1155.147705 | M41: =INDEX(INDIRECT(Controls!$F$41),Active!$A41,Active!M$21) -> 1155.606857 | N41: =INDEX(INDIRECT(Controls!$F$41),Active!$A41,Active!N$21) -> 1155.275066 | O41: =INDEX(INDIRECT(Controls!$F$41),Active!$A41,Active!O$21) -> 1159.473784 | P41: =INDEX(INDIRECT(Controls!$F$41),Active!$A41,Active!P$21) -> 1156.145537 | Q41: =INDEX(INDIRECT(Controls!$F$41),Active!$A41,Active!Q$21) -> 1154.787834 | R41: =INDEX(INDIRECT(Controls!$F$41),Active!$A41,Active!R$21) -> 1158.239612 | S41: =INDEX(INDIRECT(Controls!$F$41),Active!$A41,Active!S$21) -> 1166.585844 | T41: =INDEX(INDIRECT(Controls!$F$41),Active!$A41,Active!T$21) -> 1178.103078 | U41: =INDEX(INDIRECT(Controls!$F$41),Active!$A41,Active!U$21) -> 1189.204327 | V41: =INDEX(INDIRECT(Controls!$F$41),Active!$A41,Active!V$21) -> 1199.687805 | W41: =INDEX(INDIRECT(Controls!$F$41),Active!$A41,Active!W$21) -> 1212.295604 | X41: =INDEX(INDIRECT(Controls!$F$41),Active!$A41,Active!X$21) -> 1215.718244 | Y41: =INDEX(INDIRECT(Controls!$F$41),Active!$A41,Active!Y$21) -> 1221.161563 | Z41: =INDEX(INDIRECT(Controls!$F$41),Active!$A41,Active!Z$21) -> 1224.578518 | AA41: =INDEX(INDIRECT(Controls!$F$41),Active!$A41,Active!AA$21) -> 1226.831712 | AB41: =INDEX(INDIRECT(Controls!$F$41),Active!$A41,Active!AB$21) -> 1226.583153 | AC41: =INDEX(INDIRECT(Controls!$F$41),Active!$A41,Active!AC$21) -> 1229.086769 | AD41: =INDEX(INDIRECT(Controls!$F$41),Active!$A41,Active!AD$21) -> 1232.910815 | AE41: =INDEX(INDIRECT(Controls!$F$41),Active!$A41,Active!AE$21) -> 1238.692667 | AF41: =INDEX(INDIRECT(Controls!$F$41),Active!$A41,Active!AF$21) -> 1250.926311 | AG41: =INDEX(INDIRECT(Controls!$F$41),Active!$A41,Active!AG$21) -> 1263.063512
A42: 20 | B42: =INDEX(INDIRECT(Controls!$F$41),Active!$A42,Active!B$21) -> Two Degrees Winter Peak | C42: =INDEX(INDIRECT(Controls!$F$41),Active!$A42,Active!C$21) -> D | D42: =INDEX(INDIRECT(Controls!$F$41),Active!$A42,Active!D$21) -> D5 | E42: =INDEX(INDIRECT(Controls!$F$41),Active!$A42,Active!E$21) -> 0 | F42: =INDEX(INDIRECT(Controls!$F$41),Active!$A42,Active!F$21) -> 0 | G42: =INDEX(INDIRECT(Controls!$F$41),Active!$A42,Active!G$21) -> 0 | H42: =INDEX(INDIRECT(Controls!$F$41),Active!$A42,Active!H$21) -> 0 | I42: =INDEX(INDIRECT(Controls!$F$41),Active!$A42,Active!I$21) -> 586.2228782 | J42: =INDEX(INDIRECT(Controls!$F$41),Active!$A42,Active!J$21) -> 599.8143247 | K42: =INDEX(INDIRECT(Controls!$F$41),Active!$A42,Active!K$21) -> 597.3576831 | L42: =INDEX(INDIRECT(Controls!$F$41),Active!$A42,Active!L$21) -> 595.4905079 | M42: =INDEX(INDIRECT(Controls!$F$41),Active!$A42,Active!M$21) -> 593.0892659 | N42: =INDEX(INDIRECT(Controls!$F$41),Active!$A42,Active!N$21) -> 591.14908 | O42: =INDEX(INDIRECT(Controls!$F$41),Active!$A42,Active!O$21) -> 591.68379 | P42: =INDEX(INDIRECT(Controls!$F$41),Active!$A42,Active!P$21) -> 589.1389911 | Q42: =INDEX(INDIRECT(Controls!$F$41),Active!$A42,Active!Q$21) -> 588.0108582 | R42: =INDEX(INDIRECT(Controls!$F$41),Active!$A42,Active!R$21) -> 588.7551439 | S42: =INDEX(INDIRECT(Controls!$F$41),Active!$A42,Active!S$21) -> 591.6092975 | T42: =INDEX(INDIRECT(Controls!$F$41),Active!$A42,Active!T$21) -> 595.8491443 | U42: =INDEX(INDIRECT(Controls!$F$41),Active!$A42,Active!U$21) -> 599.7150102 | V42: =INDEX(INDIRECT(Controls!$F$41),Active!$A42,Active!V$21) -> 603.1608508 | W42: =INDEX(INDIRECT(Controls!$F$41),Active!$A42,Active!W$21) -> 607.6912415 | X42: =INDEX(INDIRECT(Controls!$F$41),Active!$A42,Active!X$21) -> 607.774022 | Y42: =INDEX(INDIRECT(Controls!$F$41),Active!$A42,Active!Y$21) -> 609.2694354 | Z42: =INDEX(INDIRECT(Controls!$F$41),Active!$A42,Active!Z$21) -> 610.0613783 | AA42: =INDEX(INDIRECT(Controls!$F$41),Active!$A42,Active!AA$21) -> 610.5886722 | AB42: =INDEX(INDIRECT(Controls!$F$41),Active!$A42,Active!AB$21) -> 610.1360176 | AC42: =INDEX(INDIRECT(Controls!$F$41),Active!$A42,Active!AC$21) -> 610.9942589 | AD42: =INDEX(INDIRECT(Controls!$F$41),Active!$A42,Active!AD$21) -> 612.3826903 | AE42: =INDEX(INDIRECT(Controls!$F$41),Active!$A42,Active!AE$21) -> 614.5939696 | AF42: =INDEX(INDIRECT(Controls!$F$41),Active!$A42,Active!AF$21) -> 619.9449339 | AG42: =INDEX(INDIRECT(Controls!$F$41),Active!$A42,Active!AG$21) -> 625.0080438
A43: 21 | B43: =INDEX(INDIRECT(Controls!$F$41),Active!$A43,Active!B$21) -> Two Degrees Winter Peak | C43: =INDEX(INDIRECT(Controls!$F$41),Active!$A43,Active!C$21) -> D | D43: =INDEX(INDIRECT(Controls!$F$41),Active!$A43,Active!D$21) -> D6 | E43: =INDEX(INDIRECT(Controls!$F$41),Active!$A43,Active!E$21) -> 0 | F43: =INDEX(INDIRECT(Controls!$F$41),Active!$A43,Active!F$21) -> 0 | G43: =INDEX(INDIRECT(Controls!$F$41),Active!$A43,Active!G$21) -> 0 | H43: =INDEX(INDIRECT(Controls!$F$41),Active!$A43,Active!H$21) -> 0 | I43: =INDEX(INDIRECT(Controls!$F$41),Active!$A43,Active!I$21) -> 695.6601827 | J43: =INDEX(INDIRECT(Controls!$F$41),Active!$A43,Active!J$21) -> 712.8550715 | K43: =INDEX(INDIRECT(Controls!$F$41),Active!$A43,Active!K$21) -> 711.4469329 | L43: =INDEX(INDIRECT(Controls!$F$41),Active!$A43,Active!L$21) -> 710.8509401 | M43: =INDEX(INDIRECT(Controls!$F$41),Active!$A43,Active!M$21) -> 709.6311895 | N43: =INDEX(INDIRECT(Controls!$F$41),Active!$A43,Active!N$21) -> 708.4194887 | O43: =INDEX(INDIRECT(Controls!$F$41),Active!$A43,Active!O$21) -> 710.0751295 | P43: =INDEX(INDIRECT(Controls!$F$41),Active!$A43,Active!P$21) -> 707.5548594 | Q43: =INDEX(INDIRECT(Controls!$F$41),Active!$A43,Active!Q$21) -> 706.4754882 | R43: =INDEX(INDIRECT(Controls!$F$41),Active!$A43,Active!R$21) -> 708.0101206 | S43: =INDEX(INDIRECT(Controls!$F$41),Active!$A43,Active!S$21) -> 712.3213273 | T43: =INDEX(INDIRECT(Controls!$F$41),Active!$A43,Active!T$21) -> 718.442095 | U43: =INDEX(INDIRECT(Controls!$F$41),Active!$A43,Active!U$21) -> 724.2160194 | V43: =INDEX(INDIRECT(Controls!$F$41),Active!$A43,Active!V$21) -> 729.5519449 | W43: =INDEX(INDIRECT(Controls!$F$41),Active!$A43,Active!W$21) -> 736.1891143 | X43: =INDEX(INDIRECT(Controls!$F$41),Active!$A43,Active!X$21) -> 737.3376443 | Y43: =INDEX(INDIRECT(Controls!$F$41),Active!$A43,Active!Y$21) -> 739.9409093 | Z43: =INDEX(INDIRECT(Controls!$F$41),Active!$A43,Active!Z$21) -> 741.4914769 | AA43: =INDEX(INDIRECT(Controls!$F$41),Active!$A43,Active!AA$21) -> 742.5168352 | AB43: =INDEX(INDIRECT(Controls!$F$41),Active!$A43,Active!AB$21) -> 742.1790641 | AC43: =INDEX(INDIRECT(Controls!$F$41),Active!$A43,Active!AC$21) -> 743.4734808 | AD43: =INDEX(INDIRECT(Controls!$F$41),Active!$A43,Active!AD$21) -> 745.494747 | AE43: =INDEX(INDIRECT(Controls!$F$41),Active!$A43,Active!AE$21) -> 748.6146346 | AF43: =INDEX(INDIRECT(Controls!$F$41),Active!$A43,Active!AF$21) -> 755.5987185 | AG43: =INDEX(INDIRECT(Controls!$F$41),Active!$A43,Active!AG$21) -> 762.3878346
A44: 22 | B44: =INDEX(INDIRECT(Controls!$F$41),Active!$A44,Active!B$21) -> Two Degrees Winter Peak | C44: =INDEX(INDIRECT(Controls!$F$41),Active!$A44,Active!C$21) -> E | D44: =INDEX(INDIRECT(Controls!$F$41),Active!$A44,Active!D$21) -> E1 | E44: =INDEX(INDIRECT(Controls!$F$41),Active!$A44,Active!E$21) -> 0 | F44: =INDEX(INDIRECT(Controls!$F$41),Active!$A44,Active!F$21) -> 0 | G44: =INDEX(INDIRECT(Controls!$F$41),Active!$A44,Active!G$21) -> 0 | H44: =INDEX(INDIRECT(Controls!$F$41),Active!$A44,Active!H$21) -> 0 | I44: =INDEX(INDIRECT(Controls!$F$41),Active!$A44,Active!I$21) -> 1107.153778 | J44: =INDEX(INDIRECT(Controls!$F$41),Active!$A44,Active!J$21) -> 1133.447723 | K44: =INDEX(INDIRECT(Controls!$F$41),Active!$A44,Active!K$21) -> 1129.691309 | L44: =INDEX(INDIRECT(Controls!$F$41),Active!$A44,Active!L$21) -> 1127.114186 | M44: =INDEX(INDIRECT(Controls!$F$41),Active!$A44,Active!M$21) -> 1123.534278 | N44: =INDEX(INDIRECT(Controls!$F$41),Active!$A44,Active!N$21) -> 1120.509202 | O44: =INDEX(INDIRECT(Controls!$F$41),Active!$A44,Active!O$21) -> 1122.117496 | P44: =INDEX(INDIRECT(Controls!$F$41),Active!$A44,Active!P$21) -> 1117.604123 | Q44: =INDEX(INDIRECT(Controls!$F$41),Active!$A44,Active!Q$21) -> 1115.625508 | R44: =INDEX(INDIRECT(Controls!$F$41),Active!$A44,Active!R$21) -> 1117.412942 | S44: =INDEX(INDIRECT(Controls!$F$41),Active!$A44,Active!S$21) -> 1123.345014 | T44: =INDEX(INDIRECT(Controls!$F$41),Active!$A44,Active!T$21) -> 1131.990946 | U44: =INDEX(INDIRECT(Controls!$F$41),Active!$A44,Active!U$21) -> 1139.987388 | V44: =INDEX(INDIRECT(Controls!$F$41),Active!$A44,Active!V$21) -> 1147.225981 | W44: =INDEX(INDIRECT(Controls!$F$41),Active!$A44,Active!W$21) -> 1156.521218 | X44: =INDEX(INDIRECT(Controls!$F$41),Active!$A44,Active!X$21) -> 1157.293093 | Y44: =INDEX(INDIRECT(Controls!$F$41),Active!$A44,Active!Y$21) -> 1160.603021 | Z44: =INDEX(INDIRECT(Controls!$F$41),Active!$A44,Active!Z$21) -> 1162.456656 | AA44: =INDEX(INDIRECT(Controls!$F$41),Active!$A44,Active!AA$21) -> 1163.68672 | AB44: =INDEX(INDIRECT(Controls!$F$41),Active!$A44,Active!AB$21) -> 1162.948678 | AC44: =INDEX(INDIRECT(Controls!$F$41),Active!$A44,Active!AC$21) -> 1164.731298 | AD44: =INDEX(INDIRECT(Controls!$F$41),Active!$A44,Active!AD$21) -> 1167.572495 | AE44: =INDEX(INDIRECT(Controls!$F$41),Active!$A44,Active!AE$21) -> 1172.039336 | AF44: =INDEX(INDIRECT(Controls!$F$41),Active!$A44,Active!AF$21) -> 1182.51696 | AG44: =INDEX(INDIRECT(Controls!$F$41),Active!$A44,Active!AG$21) -> 1192.536865
A45: 23 | B45: =INDEX(INDIRECT(Controls!$F$41),Active!$A45,Active!B$21) -> Two Degrees Winter Peak | C45: =INDEX(INDIRECT(Controls!$F$41),Active!$A45,Active!C$21) -> E | D45: =INDEX(INDIRECT(Controls!$F$41),Active!$A45,Active!D$21) -> E7 | E45: =INDEX(INDIRECT(Controls!$F$41),Active!$A45,Active!E$21) -> 0 | F45: =INDEX(INDIRECT(Controls!$F$41),Active!$A45,Active!F$21) -> 0 | G45: =INDEX(INDIRECT(Controls!$F$41),Active!$A45,Active!G$21) -> 0 | H45: =INDEX(INDIRECT(Controls!$F$41),Active!$A45,Active!H$21) -> 0 | I45: =INDEX(INDIRECT(Controls!$F$41),Active!$A45,Active!I$21) -> 381.5219775 | J45: =INDEX(INDIRECT(Controls!$F$41),Active!$A45,Active!J$21) -> 390.017266 | K45: =INDEX(INDIRECT(Controls!$F$41),Active!$A45,Active!K$21) -> 387.9233925 | L45: =INDEX(INDIRECT(Controls!$F$41),Active!$A45,Active!L$21) -> 386.176153 | M45: =INDEX(INDIRECT(Controls!$F$41),Active!$A45,Active!M$21) -> 384.0780474 | N45: =INDEX(INDIRECT(Controls!$F$41),Active!$A45,Active!N$21) -> 382.4570797 | O45: =INDEX(INDIRECT(Controls!$F$41),Active!$A45,Active!O$21) -> 382.469662 | P45: =INDEX(INDIRECT(Controls!$F$41),Active!$A45,Active!P$21) -> 380.6493638 | Q45: =INDEX(INDIRECT(Controls!$F$41),Active!$A45,Active!Q$21) -> 379.8299633 | R45: =INDEX(INDIRECT(Controls!$F$41),Active!$A45,Active!R$21) -> 380.1003821 | S45: =INDEX(INDIRECT(Controls!$F$41),Active!$A45,Active!S$21) -> 381.6543123 | T45: =INDEX(INDIRECT(Controls!$F$41),Active!$A45,Active!T$21) -> 384.0558114 | U45: =INDEX(INDIRECT(Controls!$F$41),Active!$A45,Active!U$21) -> 386.1820712 | V45: =INDEX(INDIRECT(Controls!$F$41),Active!$A45,Active!V$21) -> 388.0151203 | W45: =INDEX(INDIRECT(Controls!$F$41),Active!$A45,Active!W$21) -> 390.5493361 | X45: =INDEX(INDIRECT(Controls!$F$41),Active!$A45,Active!X$21) -> 390.2582093 | Y45: =INDEX(INDIRECT(Controls!$F$41),Active!$A45,Active!Y$21) -> 390.9592386 | Z45: =INDEX(INDIRECT(Controls!$F$41),Active!$A45,Active!Z$21) -> 391.2740158 | AA45: =INDEX(INDIRECT(Controls!$F$41),Active!$A45,Active!AA$21) -> 391.4859161 | AB45: =INDEX(INDIRECT(Controls!$F$41),Active!$A45,Active!AB$21) -> 391.1258278 | AC45: =INDEX(INDIRECT(Controls!$F$41),Active!$A45,Active!AC$21) -> 391.5937367 | AD45: =INDEX(INDIRECT(Controls!$F$41),Active!$A45,Active!AD$21) -> 392.3746139 | AE45: =INDEX(INDIRECT(Controls!$F$41),Active!$A45,Active!AE$21) -> 393.650884 | AF45: =INDEX(INDIRECT(Controls!$F$41),Active!$A45,Active!AF$21) -> 396.9250468 | AG45: =INDEX(INDIRECT(Controls!$F$41),Active!$A45,Active!AG$21) -> 399.9637068
A46: 24 | B46: =INDEX(INDIRECT(Controls!$F$41),Active!$A46,Active!B$21) -> Two Degrees Winter Peak | C46: =INDEX(INDIRECT(Controls!$F$41),Active!$A46,Active!C$21) -> E | D46: =INDEX(INDIRECT(Controls!$F$41),Active!$A46,Active!D$21) -> E8 | E46: =INDEX(INDIRECT(Controls!$F$41),Active!$A46,Active!E$21) -> 0 | F46: =INDEX(INDIRECT(Controls!$F$41),Active!$A46,Active!F$21) -> 0 | G46: =INDEX(INDIRECT(Controls!$F$41),Active!$A46,Active!G$21) -> 0 | H46: =INDEX(INDIRECT(Controls!$F$41),Active!$A46,Active!H$21) -> 0 | I46: =INDEX(INDIRECT(Controls!$F$41),Active!$A46,Active!I$21) -> 101.1987485 | J46: =INDEX(INDIRECT(Controls!$F$41),Active!$A46,Active!J$21) -> 103.6419493 | K46: =INDEX(INDIRECT(Controls!$F$41),Active!$A46,Active!K$21) -> 103.3548828 | L46: =INDEX(INDIRECT(Controls!$F$41),Active!$A46,Active!L$21) -> 103.1798153 | M46: =INDEX(INDIRECT(Controls!$F$41),Active!$A46,Active!M$21) -> 102.9134627 | N46: =INDEX(INDIRECT(Controls!$F$41),Active!$A46,Active!N$21) -> 102.6776912 | O46: =INDEX(INDIRECT(Controls!$F$41),Active!$A46,Active!O$21) -> 102.8628319 | P46: =INDEX(INDIRECT(Controls!$F$41),Active!$A46,Active!P$21) -> 102.4689482 | Q46: =INDEX(INDIRECT(Controls!$F$41),Active!$A46,Active!Q$21) -> 102.2977805 | R46: =INDEX(INDIRECT(Controls!$F$41),Active!$A46,Active!R$21) -> 102.4854878 | S46: =INDEX(INDIRECT(Controls!$F$41),Active!$A46,Active!S$21) -> 103.0622229 | T46: =INDEX(INDIRECT(Controls!$F$41),Active!$A46,Active!T$21) -> 103.8931858 | U46: =INDEX(INDIRECT(Controls!$F$41),Active!$A46,Active!U$21) -> 104.6684035 | V46: =INDEX(INDIRECT(Controls!$F$41),Active!$A46,Active!V$21) -> 105.3766075 | W46: =INDEX(INDIRECT(Controls!$F$41),Active!$A46,Active!W$21) -> 106.2733293 | X46: =INDEX(INDIRECT(Controls!$F$41),Active!$A46,Active!X$21) -> 106.3831075 | Y46: =INDEX(INDIRECT(Controls!$F$41),Active!$A46,Active!Y$21) -> 106.7165985 | Z46: =INDEX(INDIRECT(Controls!$F$41),Active!$A46,Active!Z$21) -> 106.9088399 | AA46: =INDEX(INDIRECT(Controls!$F$41),Active!$A46,Active!AA$21) -> 107.0361982 | AB46: =INDEX(INDIRECT(Controls!$F$41),Active!$A46,Active!AB$21) -> 106.9761843 | AC46: =INDEX(INDIRECT(Controls!$F$41),Active!$A46,Active!AC$21) -> 107.1494299 | AD46: =INDEX(INDIRECT(Controls!$F$41),Active!$A46,Active!AD$21) -> 107.4230822 | AE46: =INDEX(INDIRECT(Controls!$F$41),Active!$A46,Active!AE$21) -> 107.849888 | AF46: =INDEX(INDIRECT(Controls!$F$41),Active!$A46,Active!AF$21) -> 108.8312742 | AG46: =INDEX(INDIRECT(Controls!$F$41),Active!$A46,Active!AG$21) -> 109.776299
A47: 25 | B47: =INDEX(INDIRECT(Controls!$F$41),Active!$A47,Active!B$21) -> Two Degrees Winter Peak | C47: =INDEX(INDIRECT(Controls!$F$41),Active!$A47,Active!C$21) -> F | D47: =INDEX(INDIRECT(Controls!$F$41),Active!$A47,Active!D$21) -> F6 | E47: =INDEX(INDIRECT(Controls!$F$41),Active!$A47,Active!E$21) -> 0 | F47: =INDEX(INDIRECT(Controls!$F$41),Active!$A47,Active!F$21) -> 0 | G47: =INDEX(INDIRECT(Controls!$F$41),Active!$A47,Active!G$21) -> 0 | H47: =INDEX(INDIRECT(Controls!$F$41),Active!$A47,Active!H$21) -> 0 | I47: =INDEX(INDIRECT(Controls!$F$41),Active!$A47,Active!I$21) -> 1497.183646 | J47: =INDEX(INDIRECT(Controls!$F$41),Active!$A47,Active!J$21) -> 1534.210469 | K47: =INDEX(INDIRECT(Controls!$F$41),Active!$A47,Active!K$21) -> 1531.208719 | L47: =INDEX(INDIRECT(Controls!$F$41),Active!$A47,Active!L$21) -> 1529.957004 | M47: =INDEX(INDIRECT(Controls!$F$41),Active!$A47,Active!M$21) -> 1527.363043 | N47: =INDEX(INDIRECT(Controls!$F$41),Active!$A47,Active!N$21) -> 1524.776101 | O47: =INDEX(INDIRECT(Controls!$F$41),Active!$A47,Active!O$21) -> 1528.358854 | P47: =INDEX(INDIRECT(Controls!$F$41),Active!$A47,Active!P$21) -> 1522.944339 | Q47: =INDEX(INDIRECT(Controls!$F$41),Active!$A47,Active!Q$21) -> 1520.6263 | R47: =INDEX(INDIRECT(Controls!$F$41),Active!$A47,Active!R$21) -> 1523.941553 | S47: =INDEX(INDIRECT(Controls!$F$41),Active!$A47,Active!S$21) -> 1533.237702 | T47: =INDEX(INDIRECT(Controls!$F$41),Active!$A47,Active!T$21) -> 1546.431503 | U47: =INDEX(INDIRECT(Controls!$F$41),Active!$A47,Active!U$21) -> 1558.88069 | V47: =INDEX(INDIRECT(Controls!$F$41),Active!$A47,Active!V$21) -> 1570.388381 | W47: =INDEX(INDIRECT(Controls!$F$41),Active!$A47,Active!W$21) -> 1584.696851 | X47: =INDEX(INDIRECT(Controls!$F$41),Active!$A47,Active!X$21) -> 1587.188771 | Y47: =INDEX(INDIRECT(Controls!$F$41),Active!$A47,Active!Y$21) -> 1592.8073 | Z47: =INDEX(INDIRECT(Controls!$F$41),Active!$A47,Active!Z$21) -> 1596.156073 | AA47: =INDEX(INDIRECT(Controls!$F$41),Active!$A47,Active!AA$21) -> 1598.370465 | AB47: =INDEX(INDIRECT(Controls!$F$41),Active!$A47,Active!AB$21) -> 1597.647334 | AC47: =INDEX(INDIRECT(Controls!$F$41),Active!$A47,Active!AC$21) -> 1600.438423 | AD47: =INDEX(INDIRECT(Controls!$F$41),Active!$A47,Active!AD$21) -> 1604.795688 | AE47: =INDEX(INDIRECT(Controls!$F$41),Active!$A47,Active!AE$21) -> 1611.519717 | AF47: =INDEX(INDIRECT(Controls!$F$41),Active!$A47,Active!AF$21) -> 1626.562824 | AG47: =INDEX(INDIRECT(Controls!$F$41),Active!$A47,Active!AG$21) -> 1641.189129
A48: 26 | B48: =INDEX(INDIRECT(Controls!$F$41),Active!$A48,Active!B$21) -> Two Degrees Winter Peak | C48: =INDEX(INDIRECT(Controls!$F$41),Active!$A48,Active!C$21) -> G | D48: =INDEX(INDIRECT(Controls!$F$41),Active!$A48,Active!D$21) -> G1 | E48: =INDEX(INDIRECT(Controls!$F$41),Active!$A48,Active!E$21) -> 0 | F48: =INDEX(INDIRECT(Controls!$F$41),Active!$A48,Active!F$21) -> 0 | G48: =INDEX(INDIRECT(Controls!$F$41),Active!$A48,Active!G$21) -> 0 | H48: =INDEX(INDIRECT(Controls!$F$41),Active!$A48,Active!H$21) -> 0 | I48: =INDEX(INDIRECT(Controls!$F$41),Active!$A48,Active!I$21) -> 372.795815 | J48: =INDEX(INDIRECT(Controls!$F$41),Active!$A48,Active!J$21) -> 383.4510911 | K48: =INDEX(INDIRECT(Controls!$F$41),Active!$A48,Active!K$21) -> 384.733105 | L48: =INDEX(INDIRECT(Controls!$F$41),Active!$A48,Active!L$21) -> 386.602548 | M48: =INDEX(INDIRECT(Controls!$F$41),Active!$A48,Active!M$21) -> 388.1512532 | N48: =INDEX(INDIRECT(Controls!$F$41),Active!$A48,Active!N$21) -> 388.9757976 | O48: =INDEX(INDIRECT(Controls!$F$41),Active!$A48,Active!O$21) -> 391.2428984 | P48: =INDEX(INDIRECT(Controls!$F$41),Active!$A48,Active!P$21) -> 390.5674404 | Q48: =INDEX(INDIRECT(Controls!$F$41),Active!$A48,Active!Q$21) -> 390.3395066 | R48: =INDEX(INDIRECT(Controls!$F$41),Active!$A48,Active!R$21) -> 392.0421606 | S48: =INDEX(INDIRECT(Controls!$F$41),Active!$A48,Active!S$21) -> 395.6014347 | T48: =INDEX(INDIRECT(Controls!$F$41),Active!$A48,Active!T$21) -> 400.3536491 | U48: =INDEX(INDIRECT(Controls!$F$41),Active!$A48,Active!U$21) -> 405.0510109 | V48: =INDEX(INDIRECT(Controls!$F$41),Active!$A48,Active!V$21) -> 409.5953259 | W48: =INDEX(INDIRECT(Controls!$F$41),Active!$A48,Active!W$21) -> 414.8561881 | X48: =INDEX(INDIRECT(Controls!$F$41),Active!$A48,Active!X$21) -> 416.8909747 | Y48: =INDEX(INDIRECT(Controls!$F$41),Active!$A48,Active!Y$21) -> 419.4058647 | Z48: =INDEX(INDIRECT(Controls!$F$41),Active!$A48,Active!Z$21) -> 421.0621686 | AA48: =INDEX(INDIRECT(Controls!$F$41),Active!$A48,Active!AA$21) -> 422.1516777 | AB48: =INDEX(INDIRECT(Controls!$F$41),Active!$A48,Active!AB$21) -> 422.2401079 | AC48: =INDEX(INDIRECT(Controls!$F$41),Active!$A48,Active!AC$21) -> 423.3066809 | AD48: =INDEX(INDIRECT(Controls!$F$41),Active!$A48,Active!AD$21) -> 424.8947657 | AE48: =INDEX(INDIRECT(Controls!$F$41),Active!$A48,Active!AE$21) -> 427.2366709 | AF48: =INDEX(INDIRECT(Controls!$F$41),Active!$A48,Active!AF$21) -> 431.8363611 | AG48: =INDEX(INDIRECT(Controls!$F$41),Active!$A48,Active!AG$21) -> 436.5297089
A49: 27 | B49: =INDEX(INDIRECT(Controls!$F$41),Active!$A49,Active!B$21) -> Two Degrees Winter Peak | C49: =INDEX(INDIRECT(Controls!$F$41),Active!$A49,Active!C$21) -> G | D49: =INDEX(INDIRECT(Controls!$F$41),Active!$A49,Active!D$21) -> G5 | E49: =INDEX(INDIRECT(Controls!$F$41),Active!$A49,Active!E$21) -> 0 | F49: =INDEX(INDIRECT(Controls!$F$41),Active!$A49,Active!F$21) -> 0 | G49: =INDEX(INDIRECT(Controls!$F$41),Active!$A49,Active!G$21) -> 0 | H49: =INDEX(INDIRECT(Controls!$F$41),Active!$A49,Active!H$21) -> 0 | I49: =INDEX(INDIRECT(Controls!$F$41),Active!$A49,Active!I$21) -> 587.4233721 | J49: =INDEX(INDIRECT(Controls!$F$41),Active!$A49,Active!J$21) -> 600.6361364 | K49: =INDEX(INDIRECT(Controls!$F$41),Active!$A49,Active!K$21) -> 597.5998189 | L49: =INDEX(INDIRECT(Controls!$F$41),Active!$A49,Active!L$21) -> 595.1112279 | M49: =INDEX(INDIRECT(Controls!$F$41),Active!$A49,Active!M$21) -> 592.0836597 | N49: =INDEX(INDIRECT(Controls!$F$41),Active!$A49,Active!N$21) -> 589.7236358 | O49: =INDEX(INDIRECT(Controls!$F$41),Active!$A49,Active!O$21) -> 589.8701035 | P49: =INDEX(INDIRECT(Controls!$F$41),Active!$A49,Active!P$21) -> 587.1296026 | Q49: =INDEX(INDIRECT(Controls!$F$41),Active!$A49,Active!Q$21) -> 585.900267 | R49: =INDEX(INDIRECT(Controls!$F$41),Active!$A49,Active!R$21) -> 586.3977048 | S49: =INDEX(INDIRECT(Controls!$F$41),Active!$A49,Active!S$21) -> 588.9053036 | T49: =INDEX(INDIRECT(Controls!$F$41),Active!$A49,Active!T$21) -> 592.7384508 | U49: =INDEX(INDIRECT(Controls!$F$41),Active!$A49,Active!U$21) -> 596.159884 | V49: =INDEX(INDIRECT(Controls!$F$41),Active!$A49,Active!V$21) -> 599.1373877 | W49: =INDEX(INDIRECT(Controls!$F$41),Active!$A49,Active!W$21) -> 603.1962376 | X49: =INDEX(INDIRECT(Controls!$F$41),Active!$A49,Active!X$21) -> 602.8787219 | Y49: =INDEX(INDIRECT(Controls!$F$41),Active!$A49,Active!Y$21) -> 604.0612299 | Z49: =INDEX(INDIRECT(Controls!$F$41),Active!$A49,Active!Z$21) -> 604.62191 | AA49: =INDEX(INDIRECT(Controls!$F$41),Active!$A49,Active!AA$21) -> 604.9979101 | AB49: =INDEX(INDIRECT(Controls!$F$41),Active!$A49,Active!AB$21) -> 604.468305 | AC49: =INDEX(INDIRECT(Controls!$F$41),Active!$A49,Active!AC$21) -> 605.2230846 | AD49: =INDEX(INDIRECT(Controls!$F$41),Active!$A49,Active!AD$21) -> 606.4718948 | AE49: =INDEX(INDIRECT(Controls!$F$41),Active!$A49,Active!AE$21) -> 608.4986589 | AF49: =INDEX(INDIRECT(Controls!$F$41),Active!$A49,Active!AF$21) -> 613.6187717 | AG49: =INDEX(INDIRECT(Controls!$F$41),Active!$A49,Active!AG$21) -> 618.3945346
A50: 28 | B50: =INDEX(INDIRECT(Controls!$F$41),Active!$A50,Active!B$21) -> Two Degrees Winter Peak | C50: =INDEX(INDIRECT(Controls!$F$41),Active!$A50,Active!C$21) -> G | D50: =INDEX(INDIRECT(Controls!$F$41),Active!$A50,Active!D$21) -> G6 | E50: =INDEX(INDIRECT(Controls!$F$41),Active!$A50,Active!E$21) -> 0 | F50: =INDEX(INDIRECT(Controls!$F$41),Active!$A50,Active!F$21) -> 0 | G50: =INDEX(INDIRECT(Controls!$F$41),Active!$A50,Active!G$21) -> 0 | H50: =INDEX(INDIRECT(Controls!$F$41),Active!$A50,Active!H$21) -> 0 | I50: =INDEX(INDIRECT(Controls!$F$41),Active!$A50,Active!I$21) -> 861.1123366 | J50: =INDEX(INDIRECT(Controls!$F$41),Active!$A50,Active!J$21) -> 882.6809649 | K50: =INDEX(INDIRECT(Controls!$F$41),Active!$A50,Active!K$21) -> 881.3396602 | L50: =INDEX(INDIRECT(Controls!$F$41),Active!$A50,Active!L$21) -> 881.0336823 | M50: =INDEX(INDIRECT(Controls!$F$41),Active!$A50,Active!M$21) -> 879.9582636 | N50: =INDEX(INDIRECT(Controls!$F$41),Active!$A50,Active!N$21) -> 878.7491122 | O50: =INDEX(INDIRECT(Controls!$F$41),Active!$A50,Active!O$21) -> 881.0707101 | P50: =INDEX(INDIRECT(Controls!$F$41),Active!$A50,Active!P$21) -> 878.0842054 | Q50: =INDEX(INDIRECT(Controls!$F$41),Active!$A50,Active!Q$21) -> 876.8172588 | R50: =INDEX(INDIRECT(Controls!$F$41),Active!$A50,Active!R$21) -> 878.8905185 | S50: =INDEX(INDIRECT(Controls!$F$41),Active!$A50,Active!S$21) -> 884.4734449 | T50: =INDEX(INDIRECT(Controls!$F$41),Active!$A50,Active!T$21) -> 892.3403401 | U50: =INDEX(INDIRECT(Controls!$F$41),Active!$A50,Active!U$21) -> 899.8037447 | V50: =INDEX(INDIRECT(Controls!$F$41),Active!$A50,Active!V$21) -> 906.7410894 | W50: =INDEX(INDIRECT(Controls!$F$41),Active!$A50,Active!W$21) -> 915.2929515 | X50: =INDEX(INDIRECT(Controls!$F$41),Active!$A50,Active!X$21) -> 916.99461 | Y50: =INDEX(INDIRECT(Controls!$F$41),Active!$A50,Active!Y$21) -> 920.4379171 | Z50: =INDEX(INDIRECT(Controls!$F$41),Active!$A50,Active!Z$21) -> 922.5200746 | AA50: =INDEX(INDIRECT(Controls!$F$41),Active!$A50,Active!AA$21) -> 923.895824 | AB50: =INDEX(INDIRECT(Controls!$F$41),Active!$A50,Active!AB$21) -> 923.5308679 | AC50: =INDEX(INDIRECT(Controls!$F$41),Active!$A50,Active!AC$21) -> 925.2067012 | AD50: =INDEX(INDIRECT(Controls!$F$41),Active!$A50,Active!AD$21) -> 927.8082926 | AE50: =INDEX(INDIRECT(Controls!$F$41),Active!$A50,Active!AE$21) -> 931.8023595 | AF50: =INDEX(INDIRECT(Controls!$F$41),Active!$A50,Active!AF$21) -> 940.6165517 | AG50: =INDEX(INDIRECT(Controls!$F$41),Active!$A50,Active!AG$21) -> 949.2284903
A51: 29 | B51: =INDEX(INDIRECT(Controls!$F$41),Active!$A51,Active!B$21) -> Two Degrees Winter Peak | C51: =INDEX(INDIRECT(Controls!$F$41),Active!$A51,Active!C$21) -> G | D51: =INDEX(INDIRECT(Controls!$F$41),Active!$A51,Active!D$21) -> G7 | E51: =INDEX(INDIRECT(Controls!$F$41),Active!$A51,Active!E$21) -> 0 | F51: =INDEX(INDIRECT(Controls!$F$41),Active!$A51,Active!F$21) -> 0 | G51: =INDEX(INDIRECT(Controls!$F$41),Active!$A51,Active!G$21) -> 0 | H51: =INDEX(INDIRECT(Controls!$F$41),Active!$A51,Active!H$21) -> 0 | I51: =INDEX(INDIRECT(Controls!$F$41),Active!$A51,Active!I$21) -> 263.2671325 | J51: =INDEX(INDIRECT(Controls!$F$41),Active!$A51,Active!J$21) -> 270.3893495 | K51: =INDEX(INDIRECT(Controls!$F$41),Active!$A51,Active!K$21) -> 270.7257308 | L51: =INDEX(INDIRECT(Controls!$F$41),Active!$A51,Active!L$21) -> 271.4344294 | M51: =INDEX(INDIRECT(Controls!$F$41),Active!$A51,Active!M$21) -> 271.9128452 | N51: =INDEX(INDIRECT(Controls!$F$41),Active!$A51,Active!N$21) -> 272.083376 | O51: =INDEX(INDIRECT(Controls!$F$41),Active!$A51,Active!O$21) -> 273.2989008 | P51: =INDEX(INDIRECT(Controls!$F$41),Active!$A51,Active!P$21) -> 272.6332844 | Q51: =INDEX(INDIRECT(Controls!$F$41),Active!$A51,Active!Q$21) -> 272.3744021 | R51: =INDEX(INDIRECT(Controls!$F$41),Active!$A51,Active!R$21) -> 273.3308903 | S51: =INDEX(INDIRECT(Controls!$F$41),Active!$A51,Active!S$21) -> 275.4955166 | T51: =INDEX(INDIRECT(Controls!$F$41),Active!$A51,Active!T$21) -> 278.4402324 | U51: =INDEX(INDIRECT(Controls!$F$41),Active!$A51,Active!U$21) -> 281.3096092 | V51: =INDEX(INDIRECT(Controls!$F$41),Active!$A51,Active!V$21) -> 284.0480882 | W51: =INDEX(INDIRECT(Controls!$F$41),Active!$A51,Active!W$21) -> 287.2872191 | X51: =INDEX(INDIRECT(Controls!$F$41),Active!$A51,Active!X$21) -> 288.3276659 | Y51: =INDEX(INDIRECT(Controls!$F$41),Active!$A51,Active!Y$21) -> 289.7908238 | Z51: =INDEX(INDIRECT(Controls!$F$41),Active!$A51,Active!Z$21) -> 290.7299143 | AA51: =INDEX(INDIRECT(Controls!$F$41),Active!$A51,Active!AA$21) -> 291.3484525 | AB51: =INDEX(INDIRECT(Controls!$F$41),Active!$A51,Active!AB$21) -> 291.3356285 | AC51: =INDEX(INDIRECT(Controls!$F$41),Active!$A51,Active!AC$21) -> 291.9846581 | AD51: =INDEX(INDIRECT(Controls!$F$41),Active!$A51,Active!AD$21) -> 292.9651001 | AE51: =INDEX(INDIRECT(Controls!$F$41),Active!$A51,Active!AE$21) -> 294.4317681 | AF51: =INDEX(INDIRECT(Controls!$F$41),Active!$A51,Active!AF$21) -> 297.4406312 | AG51: =INDEX(INDIRECT(Controls!$F$41),Active!$A51,Active!AG$21) -> 300.4602807
A52: 30 | B52: =INDEX(INDIRECT(Controls!$F$41),Active!$A52,Active!B$21) -> Two Degrees Winter Peak | C52: =INDEX(INDIRECT(Controls!$F$41),Active!$A52,Active!C$21) -> H | D52: =INDEX(INDIRECT(Controls!$F$41),Active!$A52,Active!D$21) -> H1 | E52: =INDEX(INDIRECT(Controls!$F$41),Active!$A52,Active!E$21) -> 0 | F52: =INDEX(INDIRECT(Controls!$F$41),Active!$A52,Active!F$21) -> 0 | G52: =INDEX(INDIRECT(Controls!$F$41),Active!$A52,Active!G$21) -> 0 | H52: =INDEX(INDIRECT(Controls!$F$41),Active!$A52,Active!H$21) -> 0 | I52: =INDEX(INDIRECT(Controls!$F$41),Active!$A52,Active!I$21) -> 277.4450395 | J52: =INDEX(INDIRECT(Controls!$F$41),Active!$A52,Active!J$21) -> 283.8740931 | K52: =INDEX(INDIRECT(Controls!$F$41),Active!$A52,Active!K$21) -> 282.7065507 | L52: =INDEX(INDIRECT(Controls!$F$41),Active!$A52,Active!L$21) -> 281.8176242 | M52: =INDEX(INDIRECT(Controls!$F$41),Active!$A52,Active!M$21) -> 280.6759044 | N52: =INDEX(INDIRECT(Controls!$F$41),Active!$A52,Active!N$21) -> 279.7541346 | O52: =INDEX(INDIRECT(Controls!$F$41),Active!$A52,Active!O$21) -> 280.0038978 | P52: =INDEX(INDIRECT(Controls!$F$41),Active!$A52,Active!P$21) -> 278.7978907 | Q52: =INDEX(INDIRECT(Controls!$F$41),Active!$A52,Active!Q$21) -> 278.2631341 | R52: =INDEX(INDIRECT(Controls!$F$41),Active!$A52,Active!R$21) -> 278.61328 | S52: =INDEX(INDIRECT(Controls!$F$41),Active!$A52,Active!S$21) -> 279.9610927 | T52: =INDEX(INDIRECT(Controls!$F$41),Active!$A52,Active!T$21) -> 281.9641863 | U52: =INDEX(INDIRECT(Controls!$F$41),Active!$A52,Active!U$21) -> 283.7899702 | V52: =INDEX(INDIRECT(Controls!$F$41),Active!$A52,Active!V$21) -> 285.4167709 | W52: =INDEX(INDIRECT(Controls!$F$41),Active!$A52,Active!W$21) -> 287.5568168 | X52: =INDEX(INDIRECT(Controls!$F$41),Active!$A52,Active!X$21) -> 287.5925984 | Y52: =INDEX(INDIRECT(Controls!$F$41),Active!$A52,Active!Y$21) -> 288.2976615 | Z52: =INDEX(INDIRECT(Controls!$F$41),Active!$A52,Active!Z$21) -> 288.6704936 | AA52: =INDEX(INDIRECT(Controls!$F$41),Active!$A52,Active!AA$21) -> 288.9187567 | AB52: =INDEX(INDIRECT(Controls!$F$41),Active!$A52,Active!AB$21) -> 288.7038815 | AC52: =INDEX(INDIRECT(Controls!$F$41),Active!$A52,Active!AC$21) -> 289.1091739 | AD52: =INDEX(INDIRECT(Controls!$F$41),Active!$A52,Active!AD$21) -> 289.7650764 | AE52: =INDEX(INDIRECT(Controls!$F$41),Active!$A52,Active!AE$21) -> 290.8100179 | AF52: =INDEX(INDIRECT(Controls!$F$41),Active!$A52,Active!AF$21) -> 293.3404484 | AG52: =INDEX(INDIRECT(Controls!$F$41),Active!$A52,Active!AG$21) -> 295.7341703
A53: 31 | B53: =INDEX(INDIRECT(Controls!$F$41),Active!$A53,Active!B$21) -> Two Degrees Winter Peak | C53: =INDEX(INDIRECT(Controls!$F$41),Active!$A53,Active!C$21) -> H | D53: =INDEX(INDIRECT(Controls!$F$41),Active!$A53,Active!D$21) -> H2 | E53: =INDEX(INDIRECT(Controls!$F$41),Active!$A53,Active!E$21) -> 0 | F53: =INDEX(INDIRECT(Controls!$F$41),Active!$A53,Active!F$21) -> 0 | G53: =INDEX(INDIRECT(Controls!$F$41),Active!$A53,Active!G$21) -> 0 | H53: =INDEX(INDIRECT(Controls!$F$41),Active!$A53,Active!H$21) -> 0 | I53: =INDEX(INDIRECT(Controls!$F$41),Active!$A53,Active!I$21) -> 867.3235654 | J53: =INDEX(INDIRECT(Controls!$F$41),Active!$A53,Active!J$21) -> 886.5801864 | K53: =INDEX(INDIRECT(Controls!$F$41),Active!$A53,Active!K$21) -> 881.7410641 | L53: =INDEX(INDIRECT(Controls!$F$41),Active!$A53,Active!L$21) -> 877.6840444 | M53: =INDEX(INDIRECT(Controls!$F$41),Active!$A53,Active!M$21) -> 872.8288668 | N53: =INDEX(INDIRECT(Controls!$F$41),Active!$A53,Active!N$21) -> 869.0866601 | O53: =INDEX(INDIRECT(Controls!$F$41),Active!$A53,Active!O$21) -> 869.0616941 | P53: =INDEX(INDIRECT(Controls!$F$41),Active!$A53,Active!P$21) -> 864.897354 | Q53: =INDEX(INDIRECT(Controls!$F$41),Active!$A53,Active!Q$21) -> 863.0209834 | R53: =INDEX(INDIRECT(Controls!$F$41),Active!$A53,Active!R$21) -> 863.6015592 | S53: =INDEX(INDIRECT(Controls!$F$41),Active!$A53,Active!S$21) -> 867.0856607 | T53: =INDEX(INDIRECT(Controls!$F$41),Active!$A53,Active!T$21) -> 872.4878959 | U53: =INDEX(INDIRECT(Controls!$F$41),Active!$A53,Active!U$21) -> 877.2593364 | V53: =INDEX(INDIRECT(Controls!$F$41),Active!$A53,Active!V$21) -> 881.3610429 | W53: =INDEX(INDIRECT(Controls!$F$41),Active!$A53,Active!W$21) -> 887.0559828 | X53: =INDEX(INDIRECT(Controls!$F$41),Active!$A53,Active!X$21) -> 886.3390559 | Y53: =INDEX(INDIRECT(Controls!$F$41),Active!$A53,Active!Y$21) -> 887.8892489 | Z53: =INDEX(INDIRECT(Controls!$F$41),Active!$A53,Active!Z$21) -> 888.5727968 | AA53: =INDEX(INDIRECT(Controls!$F$41),Active!$A53,Active!AA$21) -> 889.0335495 | AB53: =INDEX(INDIRECT(Controls!$F$41),Active!$A53,Active!AB$21) -> 888.2044916 | AC53: =INDEX(INDIRECT(Controls!$F$41),Active!$A53,Active!AC$21) -> 889.2537234 | AD53: =INDEX(INDIRECT(Controls!$F$41),Active!$A53,Active!AD$21) -> 891.0093092 | AE53: =INDEX(INDIRECT(Controls!$F$41),Active!$A53,Active!AE$21) -> 893.8846754 | AF53: =INDEX(INDIRECT(Controls!$F$41),Active!$A53,Active!AF$21) -> 901.2946414 | AG53: =INDEX(INDIRECT(Controls!$F$41),Active!$A53,Active!AG$21) -> 908.1615407
A54: 32 | B54: =INDEX(INDIRECT(Controls!$F$41),Active!$A54,Active!B$21) -> Two Degrees Winter Peak | C54: =INDEX(INDIRECT(Controls!$F$41),Active!$A54,Active!C$21) -> H | D54: =INDEX(INDIRECT(Controls!$F$41),Active!$A54,Active!D$21) -> H6 | E54: =INDEX(INDIRECT(Controls!$F$41),Active!$A54,Active!E$21) -> 0 | F54: =INDEX(INDIRECT(Controls!$F$41),Active!$A54,Active!F$21) -> 0 | G54: =INDEX(INDIRECT(Controls!$F$41),Active!$A54,Active!G$21) -> 0 | H54: =INDEX(INDIRECT(Controls!$F$41),Active!$A54,Active!H$21) -> 0 | I54: =INDEX(INDIRECT(Controls!$F$41),Active!$A54,Active!I$21) -> 940.2823821 | J54: =INDEX(INDIRECT(Controls!$F$41),Active!$A54,Active!J$21) -> 962.7110275 | K54: =INDEX(INDIRECT(Controls!$F$41),Active!$A54,Active!K$21) -> 959.6589644 | L54: =INDEX(INDIRECT(Controls!$F$41),Active!$A54,Active!L$21) -> 957.6187754 | M54: =INDEX(INDIRECT(Controls!$F$41),Active!$A54,Active!M$21) -> 954.7278605 | N54: =INDEX(INDIRECT(Controls!$F$41),Active!$A54,Active!N$21) -> 952.2587264 | O54: =INDEX(INDIRECT(Controls!$F$41),Active!$A54,Active!O$21) -> 953.7182375 | P54: =INDEX(INDIRECT(Controls!$F$41),Active!$A54,Active!P$21) -> 949.9309312 | Q54: =INDEX(INDIRECT(Controls!$F$41),Active!$A54,Active!Q$21) -> 948.2743148 | R54: =INDEX(INDIRECT(Controls!$F$41),Active!$A54,Active!R$21) -> 949.8520683 | S54: =INDEX(INDIRECT(Controls!$F$41),Active!$A54,Active!S$21) -> 954.9747914 | T54: =INDEX(INDIRECT(Controls!$F$41),Active!$A54,Active!T$21) -> 962.4174824 | U54: =INDEX(INDIRECT(Controls!$F$41),Active!$A54,Active!U$21) -> 969.3174653 | V54: =INDEX(INDIRECT(Controls!$F$41),Active!$A54,Active!V$21) -> 975.5793641 | W54: =INDEX(INDIRECT(Controls!$F$41),Active!$A54,Active!W$21) -> 983.5892318 | X54: =INDEX(INDIRECT(Controls!$F$41),Active!$A54,Active!X$21) -> 984.3410652 | Y54: =INDEX(INDIRECT(Controls!$F$41),Active!$A54,Active!Y$21) -> 987.2280957 | Z54: =INDEX(INDIRECT(Controls!$F$41),Active!$A54,Active!Z$21) -> 988.8583487 | AA54: =INDEX(INDIRECT(Controls!$F$41),Active!$A54,Active!AA$21) -> 989.9396561 | AB54: =INDEX(INDIRECT(Controls!$F$41),Active!$A54,Active!AB$21) -> 989.3311333 | AC54: =INDEX(INDIRECT(Controls!$F$41),Active!$A54,Active!AC$21) -> 990.8703765 | AD54: =INDEX(INDIRECT(Controls!$F$41),Active!$A54,Active!AD$21) -> 993.3176026 | AE54: =INDEX(INDIRECT(Controls!$F$41),Active!$A54,Active!AE$21) -> 997.1566538 | AF54: =INDEX(INDIRECT(Controls!$F$41),Active!$A54,Active!AF$21) -> 1006.113225 | AG54: =INDEX(INDIRECT(Controls!$F$41),Active!$A54,Active!AG$21) -> 1014.694509
A55: 33 | B55: =INDEX(INDIRECT(Controls!$F$41),Active!$A55,Active!B$21) -> Two Degrees Winter Peak | C55: =INDEX(INDIRECT(Controls!$F$41),Active!$A55,Active!C$21) -> J | D55: =INDEX(INDIRECT(Controls!$F$41),Active!$A55,Active!D$21) -> J1 | E55: =INDEX(INDIRECT(Controls!$F$41),Active!$A55,Active!E$21) -> 0 | F55: =INDEX(INDIRECT(Controls!$F$41),Active!$A55,Active!F$21) -> 0 | G55: =INDEX(INDIRECT(Controls!$F$41),Active!$A55,Active!G$21) -> 0 | H55: =INDEX(INDIRECT(Controls!$F$41),Active!$A55,Active!H$21) -> 0 | I55: =INDEX(INDIRECT(Controls!$F$41),Active!$A55,Active!I$21) -> 659.504312 | J55: =INDEX(INDIRECT(Controls!$F$41),Active!$A55,Active!J$21) -> 673.1711356 | K55: =INDEX(INDIRECT(Controls!$F$41),Active!$A55,Active!K$21) -> 668.1122472 | L55: =INDEX(INDIRECT(Controls!$F$41),Active!$A55,Active!L$21) -> 663.5449801 | M55: =INDEX(INDIRECT(Controls!$F$41),Active!$A55,Active!M$21) -> 658.3616408 | N55: =INDEX(INDIRECT(Controls!$F$41),Active!$A55,Active!N$21) -> 654.5179418 | O55: =INDEX(INDIRECT(Controls!$F$41),Active!$A55,Active!O$21) -> 653.5644674 | P55: =INDEX(INDIRECT(Controls!$F$41),Active!$A55,Active!P$21) -> 649.9407271 | Q55: =INDEX(INDIRECT(Controls!$F$41),Active!$A55,Active!Q$21) -> 648.2765908 | R55: =INDEX(INDIRECT(Controls!$F$41),Active!$A55,Active!R$21) -> 648.1219107 | S55: =INDEX(INDIRECT(Controls!$F$41),Active!$A55,Active!S$21) -> 649.9253549 | T55: =INDEX(INDIRECT(Controls!$F$41),Active!$A55,Active!T$21) -> 653.0361579 | U55: =INDEX(INDIRECT(Controls!$F$41),Active!$A55,Active!U$21) -> 655.578582 | V55: =INDEX(INDIRECT(Controls!$F$41),Active!$A55,Active!V$21) -> 657.5564361 | W55: =INDEX(INDIRECT(Controls!$F$41),Active!$A55,Active!W$21) -> 660.7327485 | X55: =INDEX(INDIRECT(Controls!$F$41),Active!$A55,Active!X$21) -> 659.2264037 | Y55: =INDEX(INDIRECT(Controls!$F$41),Active!$A55,Active!Y$21) -> 659.6467667 | Z55: =INDEX(INDIRECT(Controls!$F$41),Active!$A55,Active!Z$21) -> 659.6075587 | AA55: =INDEX(INDIRECT(Controls!$F$41),Active!$A55,Active!AA$21) -> 659.5921823 | AB55: =INDEX(INDIRECT(Controls!$F$41),Active!$A55,Active!AB$21) -> 658.7793024 | AC55: =INDEX(INDIRECT(Controls!$F$41),Active!$A55,Active!AC$21) -> 659.3245799 | AD55: =INDEX(INDIRECT(Controls!$F$41),Active!$A55,Active!AD$21) -> 660.3175659 | AE55: =INDEX(INDIRECT(Controls!$F$41),Active!$A55,Active!AE$21) -> 662.0502223 | AF55: =INDEX(INDIRECT(Controls!$F$41),Active!$A55,Active!AF$21) -> 667.1042947 | AG55: =INDEX(INDIRECT(Controls!$F$41),Active!$A55,Active!AG$21) -> 671.6112385
A56: 34 | B56: =INDEX(INDIRECT(Controls!$F$41),Active!$A56,Active!B$21) -> Two Degrees Winter Peak | C56: =INDEX(INDIRECT(Controls!$F$41),Active!$A56,Active!C$21) -> J | D56: =INDEX(INDIRECT(Controls!$F$41),Active!$A56,Active!D$21) -> J2 | E56: =INDEX(INDIRECT(Controls!$F$41),Active!$A56,Active!E$21) -> 0 | F56: =INDEX(INDIRECT(Controls!$F$41),Active!$A56,Active!F$21) -> 0 | G56: =INDEX(INDIRECT(Controls!$F$41),Active!$A56,Active!G$21) -> 0 | H56: =INDEX(INDIRECT(Controls!$F$41),Active!$A56,Active!H$21) -> 0 | I56: =INDEX(INDIRECT(Controls!$F$41),Active!$A56,Active!I$21) -> 0 | J56: =INDEX(INDIRECT(Controls!$F$41),Active!$A56,Active!J$21) -> 0 | K56: =INDEX(INDIRECT(Controls!$F$41),Active!$A56,Active!K$21) -> 0 | L56: =INDEX(INDIRECT(Controls!$F$41),Active!$A56,Active!L$21) -> 0 | M56: =INDEX(INDIRECT(Controls!$F$41),Active!$A56,Active!M$21) -> 0 | N56: =INDEX(INDIRECT(Controls!$F$41),Active!$A56,Active!N$21) -> 0 | O56: =INDEX(INDIRECT(Controls!$F$41),Active!$A56,Active!O$21) -> 0 | P56: =INDEX(INDIRECT(Controls!$F$41),Active!$A56,Active!P$21) -> 0 | Q56: =INDEX(INDIRECT(Controls!$F$41),Active!$A56,Active!Q$21) -> 0 | R56: =INDEX(INDIRECT(Controls!$F$41),Active!$A56,Active!R$21) -> 0 | S56: =INDEX(INDIRECT(Controls!$F$41),Active!$A56,Active!S$21) -> 0 | T56: =INDEX(INDIRECT(Controls!$F$41),Active!$A56,Active!T$21) -> 0 | U56: =INDEX(INDIRECT(Controls!$F$41),Active!$A56,Active!U$21) -> 0 | V56: =INDEX(INDIRECT(Controls!$F$41),Active!$A56,Active!V$21) -> 0 | W56: =INDEX(INDIRECT(Controls!$F$41),Active!$A56,Active!W$21) -> 0 | X56: =INDEX(INDIRECT(Controls!$F$41),Active!$A56,Active!X$21) -> 0 | Y56: =INDEX(INDIRECT(Controls!$F$41),Active!$A56,Active!Y$21) -> 0 | Z56: =INDEX(INDIRECT(Controls!$F$41),Active!$A56,Active!Z$21) -> 0 | AA56: =INDEX(INDIRECT(Controls!$F$41),Active!$A56,Active!AA$21) -> 0 | AB56: =INDEX(INDIRECT(Controls!$F$41),Active!$A56,Active!AB$21) -> 0 | AC56: =INDEX(INDIRECT(Controls!$F$41),Active!$A56,Active!AC$21) -> 0 | AD56: =INDEX(INDIRECT(Controls!$F$41),Active!$A56,Active!AD$21) -> 0 | AE56: =INDEX(INDIRECT(Controls!$F$41),Active!$A56,Active!AE$21) -> 0 | AF56: =INDEX(INDIRECT(Controls!$F$41),Active!$A56,Active!AF$21) -> 0 | AG56: =INDEX(INDIRECT(Controls!$F$41),Active!$A56,Active!AG$21) -> 0
A57: 35 | B57: =INDEX(INDIRECT(Controls!$F$41),Active!$A57,Active!B$21) -> Two Degrees Winter Peak | C57: =INDEX(INDIRECT(Controls!$F$41),Active!$A57,Active!C$21) -> J | D57: =INDEX(INDIRECT(Controls!$F$41),Active!$A57,Active!D$21) -> J3 | E57: =INDEX(INDIRECT(Controls!$F$41),Active!$A57,Active!E$21) -> 0 | F57: =INDEX(INDIRECT(Controls!$F$41),Active!$A57,Active!F$21) -> 0 | G57: =INDEX(INDIRECT(Controls!$F$41),Active!$A57,Active!G$21) -> 0 | H57: =INDEX(INDIRECT(Controls!$F$41),Active!$A57,Active!H$21) -> 0 | I57: =INDEX(INDIRECT(Controls!$F$41),Active!$A57,Active!I$21) -> 571.6604041 | J57: =INDEX(INDIRECT(Controls!$F$41),Active!$A57,Active!J$21) -> 585.3086998 | K57: =INDEX(INDIRECT(Controls!$F$41),Active!$A57,Active!K$21) -> 583.4707115 | L57: =INDEX(INDIRECT(Controls!$F$41),Active!$A57,Active!L$21) -> 582.2492218 | M57: =INDEX(INDIRECT(Controls!$F$41),Active!$A57,Active!M$21) -> 580.5106356 | N57: =INDEX(INDIRECT(Controls!$F$41),Active!$A57,Active!N$21) -> 579.0221956 | O57: =INDEX(INDIRECT(Controls!$F$41),Active!$A57,Active!O$21) -> 579.9214302 | P57: =INDEX(INDIRECT(Controls!$F$41),Active!$A57,Active!P$21) -> 577.6246965 | Q57: =INDEX(INDIRECT(Controls!$F$41),Active!$A57,Active!Q$21) -> 576.6205516 | R57: =INDEX(INDIRECT(Controls!$F$41),Active!$A57,Active!R$21) -> 577.587365 | S57: =INDEX(INDIRECT(Controls!$F$41),Active!$A57,Active!S$21) -> 580.7125816 | T57: =INDEX(INDIRECT(Controls!$F$41),Active!$A57,Active!T$21) -> 585.2501867 | U57: =INDEX(INDIRECT(Controls!$F$41),Active!$A57,Active!U$21) -> 589.4589732 | V57: =INDEX(INDIRECT(Controls!$F$41),Active!$A57,Active!V$21) -> 593.2805302 | W57: =INDEX(INDIRECT(Controls!$F$41),Active!$A57,Active!W$21) -> 598.1649599 | X57: =INDEX(INDIRECT(Controls!$F$41),Active!$A57,Active!X$21) -> 598.6342902 | Y57: =INDEX(INDIRECT(Controls!$F$41),Active!$A57,Active!Y$21) -> 600.3991665 | Z57: =INDEX(INDIRECT(Controls!$F$41),Active!$A57,Active!Z$21) -> 601.3974245 | AA57: =INDEX(INDIRECT(Controls!$F$41),Active!$A57,Active!AA$21) -> 602.0594808 | AB57: =INDEX(INDIRECT(Controls!$F$41),Active!$A57,Active!AB$21) -> 601.6918429 | AC57: =INDEX(INDIRECT(Controls!$F$41),Active!$A57,Active!AC$21) -> 602.6308677 | AD57: =INDEX(INDIRECT(Controls!$F$41),Active!$A57,Active!AD$21) -> 604.1230543 | AE57: =INDEX(INDIRECT(Controls!$F$41),Active!$A57,Active!AE$21) -> 606.462848 | AF57: =INDEX(INDIRECT(Controls!$F$41),Active!$A57,Active!AF$21) -> 611.9155365 | AG57: =INDEX(INDIRECT(Controls!$F$41),Active!$A57,Active!AG$21) -> 617.1417715
A58: 36 | B58: =INDEX(INDIRECT(Controls!$F$41),Active!$A58,Active!B$21) -> Two Degrees Winter Peak | C58: =INDEX(INDIRECT(Controls!$F$41),Active!$A58,Active!C$21) -> J | D58: =INDEX(INDIRECT(Controls!$F$41),Active!$A58,Active!D$21) -> J4 | E58: =INDEX(INDIRECT(Controls!$F$41),Active!$A58,Active!E$21) -> 0 | F58: =INDEX(INDIRECT(Controls!$F$41),Active!$A58,Active!F$21) -> 0 | G58: =INDEX(INDIRECT(Controls!$F$41),Active!$A58,Active!G$21) -> 0 | H58: =INDEX(INDIRECT(Controls!$F$41),Active!$A58,Active!H$21) -> 0 | I58: =INDEX(INDIRECT(Controls!$F$41),Active!$A58,Active!I$21) -> 244.5489596 | J58: =INDEX(INDIRECT(Controls!$F$41),Active!$A58,Active!J$21) -> 251.8121089 | K58: =INDEX(INDIRECT(Controls!$F$41),Active!$A58,Active!K$21) -> 253.0396149 | L58: =INDEX(INDIRECT(Controls!$F$41),Active!$A58,Active!L$21) -> 254.6813537 | M58: =INDEX(INDIRECT(Controls!$F$41),Active!$A58,Active!M$21) -> 256.1152601 | N58: =INDEX(INDIRECT(Controls!$F$41),Active!$A58,Active!N$21) -> 256.9358722 | O58: =INDEX(INDIRECT(Controls!$F$41),Active!$A58,Active!O$21) -> 258.6849386 | P58: =INDEX(INDIRECT(Controls!$F$41),Active!$A58,Active!P$21) -> 258.3699767 | Q58: =INDEX(INDIRECT(Controls!$F$41),Active!$A58,Active!Q$21) -> 258.2869731 | R58: =INDEX(INDIRECT(Controls!$F$41),Active!$A58,Active!R$21) -> 259.5709528 | S58: =INDEX(INDIRECT(Controls!$F$41),Active!$A58,Active!S$21) -> 262.1428219 | T58: =INDEX(INDIRECT(Controls!$F$41),Active!$A58,Active!T$21) -> 265.5396073 | U58: =INDEX(INDIRECT(Controls!$F$41),Active!$A58,Active!U$21) -> 268.9252753 | V58: =INDEX(INDIRECT(Controls!$F$41),Active!$A58,Active!V$21) -> 272.2260469 | W58: =INDEX(INDIRECT(Controls!$F$41),Active!$A58,Active!W$21) -> 276.0005125 | X58: =INDEX(INDIRECT(Controls!$F$41),Active!$A58,Active!X$21) -> 277.6046691 | Y58: =INDEX(INDIRECT(Controls!$F$41),Active!$A58,Active!Y$21) -> 279.4669314 | Z58: =INDEX(INDIRECT(Controls!$F$41),Active!$A58,Active!Z$21) -> 280.7100888 | AA58: =INDEX(INDIRECT(Controls!$F$41),Active!$A58,Active!AA$21) -> 281.5272826 | AB58: =INDEX(INDIRECT(Controls!$F$41),Active!$A58,Active!AB$21) -> 281.6364272 | AC58: =INDEX(INDIRECT(Controls!$F$41),Active!$A58,Active!AC$21) -> 282.4068579 | AD58: =INDEX(INDIRECT(Controls!$F$41),Active!$A58,Active!AD$21) -> 283.5444454 | AE58: =INDEX(INDIRECT(Controls!$F$41),Active!$A58,Active!AE$21) -> 285.2078592 | AF58: =INDEX(INDIRECT(Controls!$F$41),Active!$A58,Active!AF$21) -> 288.387841 | AG58: =INDEX(INDIRECT(Controls!$F$41),Active!$A58,Active!AG$21) -> 291.6668647
A59: 37 | B59: =INDEX(INDIRECT(Controls!$F$41),Active!$A59,Active!B$21) -> Two Degrees Winter Peak | C59: =INDEX(INDIRECT(Controls!$F$41),Active!$A59,Active!C$21) -> J | D59: =INDEX(INDIRECT(Controls!$F$41),Active!$A59,Active!D$21) -> J5 | E59: =INDEX(INDIRECT(Controls!$F$41),Active!$A59,Active!E$21) -> 0 | F59: =INDEX(INDIRECT(Controls!$F$41),Active!$A59,Active!F$21) -> 0 | G59: =INDEX(INDIRECT(Controls!$F$41),Active!$A59,Active!G$21) -> 0 | H59: =INDEX(INDIRECT(Controls!$F$41),Active!$A59,Active!H$21) -> 0 | I59: =INDEX(INDIRECT(Controls!$F$41),Active!$A59,Active!I$21) -> 512.1488361 | J59: =INDEX(INDIRECT(Controls!$F$41),Active!$A59,Active!J$21) -> 524.1547196 | K59: =INDEX(INDIRECT(Controls!$F$41),Active!$A59,Active!K$21) -> 522.1948439 | L59: =INDEX(INDIRECT(Controls!$F$41),Active!$A59,Active!L$21) -> 520.7638779 | M59: =INDEX(INDIRECT(Controls!$F$41),Active!$A59,Active!M$21) -> 518.8675663 | N59: =INDEX(INDIRECT(Controls!$F$41),Active!$A59,Active!N$21) -> 517.3073977 | O59: =INDEX(INDIRECT(Controls!$F$41),Active!$A59,Active!O$21) -> 517.9007993 | P59: =INDEX(INDIRECT(Controls!$F$41),Active!$A59,Active!P$21) -> 515.7393299 | Q59: =INDEX(INDIRECT(Controls!$F$41),Active!$A59,Active!Q$21) -> 514.7858152 | R59: =INDEX(INDIRECT(Controls!$F$41),Active!$A59,Active!R$21) -> 515.5165978 | S59: =INDEX(INDIRECT(Controls!$F$41),Active!$A59,Active!S$21) -> 518.1243839 | T59: =INDEX(INDIRECT(Controls!$F$41),Active!$A59,Active!T$21) -> 521.9631941 | U59: =INDEX(INDIRECT(Controls!$F$41),Active!$A59,Active!U$21) -> 525.4872667 | V59: =INDEX(INDIRECT(Controls!$F$41),Active!$A59,Active!V$21) -> 528.6518606 | W59: =INDEX(INDIRECT(Controls!$F$41),Active!$A59,Active!W$21) -> 532.765722 | X59: =INDEX(INDIRECT(Controls!$F$41),Active!$A59,Active!X$21) -> 532.9679078 | Y59: =INDEX(INDIRECT(Controls!$F$41),Active!$A59,Active!Y$21) -> 534.3768274 | Z59: =INDEX(INDIRECT(Controls!$F$41),Active!$A59,Active!Z$21) -> 535.144223 | AA59: =INDEX(INDIRECT(Controls!$F$41),Active!$A59,Active!AA$21) -> 535.6543015 | AB59: =INDEX(INDIRECT(Controls!$F$41),Active!$A59,Active!AB$21) -> 535.2834969 | AC59: =INDEX(INDIRECT(Controls!$F$41),Active!$A59,Active!AC$21) -> 536.0674135 | AD59: =INDEX(INDIRECT(Controls!$F$41),Active!$A59,Active!AD$21) -> 537.3266044 | AE59: =INDEX(INDIRECT(Controls!$F$41),Active!$A59,Active!AE$21) -> 539.3197747 | AF59: =INDEX(INDIRECT(Controls!$F$41),Active!$A59,Active!AF$21) -> 544.0730164 | AG59: =INDEX(INDIRECT(Controls!$F$41),Active!$A59,Active!AG$21) -> 548.5929059
A60: 38 | B60: =INDEX(INDIRECT(Controls!$F$41),Active!$A60,Active!B$21) -> Two Degrees Winter Peak | C60: =INDEX(INDIRECT(Controls!$F$41),Active!$A60,Active!C$21) -> J | D60: =INDEX(INDIRECT(Controls!$F$41),Active!$A60,Active!D$21) -> J6 | E60: =INDEX(INDIRECT(Controls!$F$41),Active!$A60,Active!E$21) -> 0 | F60: =INDEX(INDIRECT(Controls!$F$41),Active!$A60,Active!F$21) -> 0 | G60: =INDEX(INDIRECT(Controls!$F$41),Active!$A60,Active!G$21) -> 0 | H60: =INDEX(INDIRECT(Controls!$F$41),Active!$A60,Active!H$21) -> 0 | I60: =INDEX(INDIRECT(Controls!$F$41),Active!$A60,Active!I$21) -> 772.9634538 | J60: =INDEX(INDIRECT(Controls!$F$41),Active!$A60,Active!J$21) -> 792.2190847 | K60: =INDEX(INDIRECT(Controls!$F$41),Active!$A60,Active!K$21) -> 790.8665209 | L60: =INDEX(INDIRECT(Controls!$F$41),Active!$A60,Active!L$21) -> 790.4321983 | M60: =INDEX(INDIRECT(Controls!$F$41),Active!$A60,Active!M$21) -> 789.306213 | N60: =INDEX(INDIRECT(Controls!$F$41),Active!$A60,Active!N$21) -> 788.1133241 | O60: =INDEX(INDIRECT(Controls!$F$41),Active!$A60,Active!O$21) -> 790.0966129 | P60: =INDEX(INDIRECT(Controls!$F$41),Active!$A60,Active!P$21) -> 787.366578 | Q60: =INDEX(INDIRECT(Controls!$F$41),Active!$A60,Active!Q$21) -> 786.2037572 | R60: =INDEX(INDIRECT(Controls!$F$41),Active!$A60,Active!R$21) -> 788.0005733 | S60: =INDEX(INDIRECT(Controls!$F$41),Active!$A60,Active!S$21) -> 792.92089 | T60: =INDEX(INDIRECT(Controls!$F$41),Active!$A60,Active!T$21) -> 799.8750912 | U60: =INDEX(INDIRECT(Controls!$F$41),Active!$A60,Active!U$21) -> 806.4575484 | V60: =INDEX(INDIRECT(Controls!$F$41),Active!$A60,Active!V$21) -> 812.561839 | W60: =INDEX(INDIRECT(Controls!$F$41),Active!$A60,Active!W$21) -> 820.1139723 | X60: =INDEX(INDIRECT(Controls!$F$41),Active!$A60,Active!X$21) -> 821.5379056 | Y60: =INDEX(INDIRECT(Controls!$F$41),Active!$A60,Active!Y$21) -> 824.5470467 | Z60: =INDEX(INDIRECT(Controls!$F$41),Active!$A60,Active!Z$21) -> 826.3558537 | AA60: =INDEX(INDIRECT(Controls!$F$41),Active!$A60,Active!AA$21) -> 827.5513795 | AB60: =INDEX(INDIRECT(Controls!$F$41),Active!$A60,Active!AB$21) -> 827.2041281 | AC60: =INDEX(INDIRECT(Controls!$F$41),Active!$A60,Active!AC$21) -> 828.6812102 | AD60: =INDEX(INDIRECT(Controls!$F$41),Active!$A60,Active!AD$21) -> 830.9796548 | AE60: =INDEX(INDIRECT(Controls!$F$41),Active!$A60,Active!AE$21) -> 834.5159903 | AF60: =INDEX(INDIRECT(Controls!$F$41),Active!$A60,Active!AF$21) -> 842.3653911 | AG60: =INDEX(INDIRECT(Controls!$F$41),Active!$A60,Active!AG$21) -> 850.0187888
A61: 39 | B61: =INDEX(INDIRECT(Controls!$F$41),Active!$A61,Active!B$21) -> Two Degrees Winter Peak | C61: =INDEX(INDIRECT(Controls!$F$41),Active!$A61,Active!C$21) -> J | D61: =INDEX(INDIRECT(Controls!$F$41),Active!$A61,Active!D$21) -> J7 | E61: =INDEX(INDIRECT(Controls!$F$41),Active!$A61,Active!E$21) -> 0 | F61: =INDEX(INDIRECT(Controls!$F$41),Active!$A61,Active!F$21) -> 0 | G61: =INDEX(INDIRECT(Controls!$F$41),Active!$A61,Active!G$21) -> 0 | H61: =INDEX(INDIRECT(Controls!$F$41),Active!$A61,Active!H$21) -> 0 | I61: =INDEX(INDIRECT(Controls!$F$41),Active!$A61,Active!I$21) -> 362.8020373 | J61: =INDEX(INDIRECT(Controls!$F$41),Active!$A61,Active!J$21) -> 371.8608811 | K61: =INDEX(INDIRECT(Controls!$F$41),Active!$A61,Active!K$21) -> 371.2556122 | L61: =INDEX(INDIRECT(Controls!$F$41),Active!$A61,Active!L$21) -> 371.083544 | M61: =INDEX(INDIRECT(Controls!$F$41),Active!$A61,Active!M$21) -> 370.58703 | N61: =INDEX(INDIRECT(Controls!$F$41),Active!$A61,Active!N$21) -> 370.0485344 | O61: =INDEX(INDIRECT(Controls!$F$41),Active!$A61,Active!O$21) -> 370.9994602 | P61: =INDEX(INDIRECT(Controls!$F$41),Active!$A61,Active!P$21) -> 369.7278818 | Q61: =INDEX(INDIRECT(Controls!$F$41),Active!$A61,Active!Q$21) -> 369.1871844 | R61: =INDEX(INDIRECT(Controls!$F$41),Active!$A61,Active!R$21) -> 370.0433309 | S61: =INDEX(INDIRECT(Controls!$F$41),Active!$A61,Active!S$21) -> 372.3708938 | T61: =INDEX(INDIRECT(Controls!$F$41),Active!$A61,Active!T$21) -> 375.6563327 | U61: =INDEX(INDIRECT(Controls!$F$41),Active!$A61,Active!U$21) -> 378.7691908 | V61: =INDEX(INDIRECT(Controls!$F$41),Active!$A61,Active!V$21) -> 381.6588002 | W61: =INDEX(INDIRECT(Controls!$F$41),Active!$A61,Active!W$21) -> 385.2282556 | X61: =INDEX(INDIRECT(Controls!$F$41),Active!$A61,Active!X$21) -> 385.9172122 | Y61: =INDEX(INDIRECT(Controls!$F$41),Active!$A61,Active!Y$21) -> 387.3458609 | Z61: =INDEX(INDIRECT(Controls!$F$41),Active!$A61,Active!Z$21) -> 388.2068384 | AA61: =INDEX(INDIRECT(Controls!$F$41),Active!$A61,Active!AA$21) -> 388.7758191 | AB61: =INDEX(INDIRECT(Controls!$F$41),Active!$A61,Active!AB$21) -> 388.6167444 | AC61: =INDEX(INDIRECT(Controls!$F$41),Active!$A61,Active!AC$21) -> 389.3154508 | AD61: =INDEX(INDIRECT(Controls!$F$41),Active!$A61,Active!AD$21) -> 390.4015931 | AE61: =INDEX(INDIRECT(Controls!$F$41),Active!$A61,Active!AE$21) -> 392.0711556 | AF61: =INDEX(INDIRECT(Controls!$F$41),Active!$A61,Active!AF$21) -> 395.7678361 | AG61: =INDEX(INDIRECT(Controls!$F$41),Active!$A61,Active!AG$21) -> 399.3753971
A62: 40 | B62: =INDEX(INDIRECT(Controls!$F$41),Active!$A62,Active!B$21) -> Two Degrees Winter Peak | C62: =INDEX(INDIRECT(Controls!$F$41),Active!$A62,Active!C$21) -> J | D62: =INDEX(INDIRECT(Controls!$F$41),Active!$A62,Active!D$21) -> J8 | E62: =INDEX(INDIRECT(Controls!$F$41),Active!$A62,Active!E$21) -> 0 | F62: =INDEX(INDIRECT(Controls!$F$41),Active!$A62,Active!F$21) -> 0 | G62: =INDEX(INDIRECT(Controls!$F$41),Active!$A62,Active!G$21) -> 0 | H62: =INDEX(INDIRECT(Controls!$F$41),Active!$A62,Active!H$21) -> 0 | I62: =INDEX(INDIRECT(Controls!$F$41),Active!$A62,Active!I$21) -> 204.3545798 | J62: =INDEX(INDIRECT(Controls!$F$41),Active!$A62,Active!J$21) -> 209.9182006 | K62: =INDEX(INDIRECT(Controls!$F$41),Active!$A62,Active!K$21) -> 210.2290334 | L62: =INDEX(INDIRECT(Controls!$F$41),Active!$A62,Active!L$21) -> 210.8325846 | M62: =INDEX(INDIRECT(Controls!$F$41),Active!$A62,Active!M$21) -> 211.2577147 | N62: =INDEX(INDIRECT(Controls!$F$41),Active!$A62,Active!N$21) -> 211.4260706 | O62: =INDEX(INDIRECT(Controls!$F$41),Active!$A62,Active!O$21) -> 212.4032817 | P62: =INDEX(INDIRECT(Controls!$F$41),Active!$A62,Active!P$21) -> 211.903097 | Q62: =INDEX(INDIRECT(Controls!$F$41),Active!$A62,Active!Q$21) -> 211.7107033 | R62: =INDEX(INDIRECT(Controls!$F$41),Active!$A62,Active!R$21) -> 212.4746457 | S62: =INDEX(INDIRECT(Controls!$F$41),Active!$A62,Active!S$21) -> 214.185377 | T62: =INDEX(INDIRECT(Controls!$F$41),Active!$A62,Active!T$21) -> 216.5070834 | U62: =INDEX(INDIRECT(Controls!$F$41),Active!$A62,Active!U$21) -> 218.7735086 | V62: =INDEX(INDIRECT(Controls!$F$41),Active!$A62,Active!V$21) -> 220.9403217 | W62: =INDEX(INDIRECT(Controls!$F$41),Active!$A62,Active!W$21) -> 223.4962229 | X62: =INDEX(INDIRECT(Controls!$F$41),Active!$A62,Active!X$21) -> 224.338497 | Y62: =INDEX(INDIRECT(Controls!$F$41),Active!$A62,Active!Y$21) -> 225.5015783 | Z62: =INDEX(INDIRECT(Controls!$F$41),Active!$A62,Active!Z$21) -> 226.250676 | AA62: =INDEX(INDIRECT(Controls!$F$41),Active!$A62,Active!AA$21) -> 226.7439861 | AB62: =INDEX(INDIRECT(Controls!$F$41),Active!$A62,Active!AB$21) -> 226.7406102 | AC62: =INDEX(INDIRECT(Controls!$F$41),Active!$A62,Active!AC$21) -> 227.2535082 | AD62: =INDEX(INDIRECT(Controls!$F$41),Active!$A62,Active!AD$21) -> 228.0268797 | AE62: =INDEX(INDIRECT(Controls!$F$41),Active!$A62,Active!AE$21) -> 229.1817027 | AF62: =INDEX(INDIRECT(Controls!$F$41),Active!$A62,Active!AF$21) -> 231.5381822 | AG62: =INDEX(INDIRECT(Controls!$F$41),Active!$A62,Active!AG$21) -> 233.9078721
A63: 41 | B63: =INDEX(INDIRECT(Controls!$F$41),Active!$A63,Active!B$21) -> Two Degrees Winter Peak | C63: =INDEX(INDIRECT(Controls!$F$41),Active!$A63,Active!C$21) -> K | D63: =INDEX(INDIRECT(Controls!$F$41),Active!$A63,Active!D$21) -> K4 | E63: =INDEX(INDIRECT(Controls!$F$41),Active!$A63,Active!E$21) -> 0 | F63: =INDEX(INDIRECT(Controls!$F$41),Active!$A63,Active!F$21) -> 0 | G63: =INDEX(INDIRECT(Controls!$F$41),Active!$A63,Active!G$21) -> 0 | H63: =INDEX(INDIRECT(Controls!$F$41),Active!$A63,Active!H$21) -> 0 | I63: =INDEX(INDIRECT(Controls!$F$41),Active!$A63,Active!I$21) -> 205.5224237 | J63: =INDEX(INDIRECT(Controls!$F$41),Active!$A63,Active!J$21) -> 210.6276934 | K63: =INDEX(INDIRECT(Controls!$F$41),Active!$A63,Active!K$21) -> 210.2474385 | L63: =INDEX(INDIRECT(Controls!$F$41),Active!$A63,Active!L$21) -> 210.1097924 | M63: =INDEX(INDIRECT(Controls!$F$41),Active!$A63,Active!M$21) -> 209.7881038 | N63: =INDEX(INDIRECT(Controls!$F$41),Active!$A63,Active!N$21) -> 209.456003 | O63: =INDEX(INDIRECT(Controls!$F$41),Active!$A63,Active!O$21) -> 209.9693648 | P63: =INDEX(INDIRECT(Controls!$F$41),Active!$A63,Active!P$21) -> 209.2366423 | Q63: =INDEX(INDIRECT(Controls!$F$41),Active!$A63,Active!Q$21) -> 208.923912 | R63: =INDEX(INDIRECT(Controls!$F$41),Active!$A63,Active!R$21) -> 209.3927518 | S63: =INDEX(INDIRECT(Controls!$F$41),Active!$A63,Active!S$21) -> 210.6883623 | T63: =INDEX(INDIRECT(Controls!$F$41),Active!$A63,Active!T$21) -> 212.5224999 | U63: =INDEX(INDIRECT(Controls!$F$41),Active!$A63,Active!U$21) -> 214.2564682 | V63: =INDEX(INDIRECT(Controls!$F$41),Active!$A63,Active!V$21) -> 215.8624703 | W63: =INDEX(INDIRECT(Controls!$F$41),Active!$A63,Active!W$21) -> 217.853243 | X63: =INDEX(INDIRECT(Controls!$F$41),Active!$A63,Active!X$21) -> 218.2174789 | Y63: =INDEX(INDIRECT(Controls!$F$41),Active!$A63,Active!Y$21) -> 219.0062366 | Z63: =INDEX(INDIRECT(Controls!$F$41),Active!$A63,Active!Z$21) -> 219.4788204 | AA63: =INDEX(INDIRECT(Controls!$F$41),Active!$A63,Active!AA$21) -> 219.791229 | AB63: =INDEX(INDIRECT(Controls!$F$41),Active!$A63,Active!AB$21) -> 219.6961703 | AC63: =INDEX(INDIRECT(Controls!$F$41),Active!$A63,Active!AC$21) -> 220.0851339 | AD63: =INDEX(INDIRECT(Controls!$F$41),Active!$A63,Active!AD$21) -> 220.691152 | AE63: =INDEX(INDIRECT(Controls!$F$41),Active!$A63,Active!AE$21) -> 221.6246399 | AF63: =INDEX(INDIRECT(Controls!$F$41),Active!$A63,Active!AF$21) -> 223.7030305 | AG63: =INDEX(INDIRECT(Controls!$F$41),Active!$A63,Active!AG$21) -> 225.7272996
A64: 42 | B64: =INDEX(INDIRECT(Controls!$F$41),Active!$A64,Active!B$21) -> Two Degrees Winter Peak | C64: =INDEX(INDIRECT(Controls!$F$41),Active!$A64,Active!C$21) -> K | D64: =INDEX(INDIRECT(Controls!$F$41),Active!$A64,Active!D$21) -> K5 | E64: =INDEX(INDIRECT(Controls!$F$41),Active!$A64,Active!E$21) -> 0 | F64: =INDEX(INDIRECT(Controls!$F$41),Active!$A64,Active!F$21) -> 0 | G64: =INDEX(INDIRECT(Controls!$F$41),Active!$A64,Active!G$21) -> 0 | H64: =INDEX(INDIRECT(Controls!$F$41),Active!$A64,Active!H$21) -> 0 | I64: =INDEX(INDIRECT(Controls!$F$41),Active!$A64,Active!I$21) -> 251.8619048 | J64: =INDEX(INDIRECT(Controls!$F$41),Active!$A64,Active!J$21) -> 258.9305888 | K64: =INDEX(INDIRECT(Controls!$F$41),Active!$A64,Active!K$21) -> 259.612883 | L64: =INDEX(INDIRECT(Controls!$F$41),Active!$A64,Active!L$21) -> 260.6783066 | M64: =INDEX(INDIRECT(Controls!$F$41),Active!$A64,Active!M$21) -> 261.5258179 | N64: =INDEX(INDIRECT(Controls!$F$41),Active!$A64,Active!N$21) -> 261.9498408 | O64: =INDEX(INDIRECT(Controls!$F$41),Active!$A64,Active!O$21) -> 263.3569454 | P64: =INDEX(INDIRECT(Controls!$F$41),Active!$A64,Active!P$21) -> 262.8396631 | Q64: =INDEX(INDIRECT(Controls!$F$41),Active!$A64,Active!Q$21) -> 262.6540331 | R64: =INDEX(INDIRECT(Controls!$F$41),Active!$A64,Active!R$21) -> 263.7248929 | S64: =INDEX(INDIRECT(Controls!$F$41),Active!$A64,Active!S$21) -> 266.0168104 | T64: =INDEX(INDIRECT(Controls!$F$41),Active!$A64,Active!T$21) -> 269.0945326 | U64: =INDEX(INDIRECT(Controls!$F$41),Active!$A64,Active!U$21) -> 272.1233699 | V64: =INDEX(INDIRECT(Controls!$F$41),Active!$A64,Active!V$21) -> 275.0414361 | W64: =INDEX(INDIRECT(Controls!$F$41),Active!$A64,Active!W$21) -> 278.4418682 | X64: =INDEX(INDIRECT(Controls!$F$41),Active!$A64,Active!X$21) -> 279.6884605 | Y64: =INDEX(INDIRECT(Controls!$F$41),Active!$A64,Active!Y$21) -> 281.2864442 | Z64: =INDEX(INDIRECT(Controls!$F$41),Active!$A64,Active!Z$21) -> 282.3309444 | AA64: =INDEX(INDIRECT(Controls!$F$41),Active!$A64,Active!AA$21) -> 283.0182732 | AB64: =INDEX(INDIRECT(Controls!$F$41),Active!$A64,Active!AB$21) -> 283.0536957 | AC64: =INDEX(INDIRECT(Controls!$F$41),Active!$A64,Active!AC$21) -> 283.7406142 | AD64: =INDEX(INDIRECT(Controls!$F$41),Active!$A64,Active!AD$21) -> 284.7679522 | AE64: =INDEX(INDIRECT(Controls!$F$41),Active!$A64,Active!AE$21) -> 286.289672 | AF64: =INDEX(INDIRECT(Controls!$F$41),Active!$A64,Active!AF$21) -> 289.319877 | AG64: =INDEX(INDIRECT(Controls!$F$41),Active!$A64,Active!AG$21) -> 292.3954722
